{"text_format":"1","workbook":"xlsx","n_sheets":17,"sheets":["Notes","Summary","STP Q1","Trusts Q1","Sites Q1","STP Q2","Trusts Q2","Sites Q2","STP Q3","Trusts Q3","Sites Q3","STP Q4","Trusts Q4","BSQ1","BSQ2","BSQ3","BSQ4"],"not_rendered":{"charts":0,"images":0,"macros":1,"external_links":1,"defined_names":15,"comments":0,"pivot_tables":0},"unopened":[],"bounds":{"document_bytes":16777216,"sheet_cells":100000,"rows_first":2000,"rows_last":500,"rows_between":2000,"halvings":0,"cell_chars":16384,"cell_head_chars":4096},"cells_cut":0,"cells_raw":0,"read":"whole","date_system":"1900"}

{"sheet":"Notes","index":0,"n_rows":2,"n_cols":1,"rows_kept":2,"cut":false,"hidden":false,"merged":[[1,8,3,14]]}
[]
["Maternity Friends and Family Test (FFT) Data - December 2021"]

{"sheet":"Summary","index":1,"n_rows":23,"n_cols":10,"rows_kept":23,"cut":false,"hidden":false,"merged":[[6,1,7,1],[6,4,6,5],[6,6,6,7],[6,8,6,9]]}
[]
[]
[]
[]
[]
[]
[null,"FFT","Number of organisations submitting","Total responses to date","Responses",null,"Percentage Positive",null,"Percentage Negative"]
[null,null,{"$f":"[1]Instructions!$D$1","v":"2021-12-01"},{"$f":"[1]Instructions!$D$1","v":"2021-12-01"},{"$f":"[1]Instructions!$D$1","v":"2021-12-01"},{"$f":"[1]Instructions!$D$1-5","v":"2021-11-26"},{"$f":"[1]Instructions!$D$1","v":"2021-12-01"},{"$f":"[1]Instructions!$D$1-5","v":"2021-11-26"},{"$f":"[1]Instructions!$D$1","v":"2021-12-01"},{"$f":"[1]Instructions!$D$1-5","v":"2021-11-26"}]
[null,"Maternity Total","NA",2890096,12706,15680,0.91751928222886825,0.92251275510204078,4.5682877525106504E-2,4.4532390799933437E-2]
[null,"Maternity NHS Total","NA",2886693,12706,15680,0.91751928222886825,0.92251275510204078,4.5682877525106504E-2,4.4532390799933437E-2]
[null,"Maternity IS Total","NA","NA","NA","NA","NA","NA","NA","NA"]
[null,"Antenatal Total",113,583916,3520,4072,"NA",0.90938113948919452,4.1761363636363638E-2,5.3290766208251475E-2]
[null,"Antenatal NHS ",113,582732,3520,4072,0.91221590909090911,0.90938113948919452,4.1761363636363638E-2,5.3290766208251475E-2]
[null,"Antenatal IS","NA","NA","NA","NA","NA","NA","NA","NA"]
[null,"Birth Total",117,901988,3881,4911,"NA",0.94624312767257179,3.8649832517392423E-2,3.2987171655467315E-2]
[null,"Birth NHS",117,901564,3881,4911,0.93790260242205614,0.94624312767257179,3.8649832517392423E-2,3.2987171655467315E-2]
[null,"Birth IS","NA","NA","NA","NA","NA","NA","NA","NA"]
[null,"Postnatal Ward Total",116,986733,4352,5549,"NA",0.91692196792214808,4.250919117647059E-2,3.7844656694899982E-2]
[null,"Postnatal Ward Total NHS",116,986733,4352,5549,0.91130514705882348,0.91692196792214808,4.250919117647059E-2,3.7844656694899982E-2]
[null,"Postnatal Ward Total IS","NA","NA","NA","NA","NA","NA","NA","NA"]
[null,"Postnatal Community Total",119,417459,953,1148,"NA",0.89459930313588854,5.9811122770199371E-2,5.4006968641114983E-2]
[null,"Postnatal Community NHS",119,415664,953,1148,0.8824763903462749,0.89459930313588854,5.9811122770199371E-2,5.4006968641114983E-2]
[null,"Postnatal Community IS","NA","NA","NA","NA","NA","NA","NA","NA"]

{"sheet":"STP Q1","index":2,"n_rows":55,"n_cols":11,"rows_kept":55,"cut":false,"hidden":false,"merged":[[8,0,9,0],[8,1,9,1],[8,2,9,2],[8,3,9,3],[8,4,9,4],[8,5,8,10]]}
[]
[]
[]
[]
[]
[null,"   Sort data by:           "]
[]
[]
["STP Code","STP Name","Total Responses","Percentage Positive","Percentage Negative","Breakdown of Responses"]
[null,null,null,null,null,"Very Good","Good","Neither Good nor Poor","Poor","Very Poor","Don't Know"]
[null,"England (including Independent Sector providers)",3520,0.91221590909090911,4.1761363636363638E-2,2550,661,145,65,82,17]
[null,"England (excluding Independent Sector providers)",3520,0.91221590909090911,4.1761363636363638E-2,2550,661,145,65,82,17]
[null,"Selection (excluding suppressed data)",{"$f":"SUBTOTAL(9,C14:C55)","v":3520},{"$f":"IFERROR((F13+G13)/SUM(F13:K13), \"-\")","v":0.91328963051251488},{"$f":"IFERROR((I13+J13)/SUM(F13:K13), \"-\")","v":4.022646007151371E-2},{"$f":"SUBTOTAL(9,F14:F55)","v":2434},631,141,57,78,15]
["QE1","HEALTHIER LANCASHIRE AND SOUTH CUMBRIA",107,0.92523364485981308,3.7383177570093455E-2,70,29,3,1,3,1]
["QF7","SOUTH YORKSHIRE AND BASSETLAW STP",31,0.70967741935483875,0.19354838709677419,"*","*","*","*","*","*"]
["QGH","HEREFORDSHIRE AND WORCESTERSHIRE STP",2,"*","*","*","*","*","*","*","*"]
["QH8","MID AND SOUTH ESSEX STP",1,"*","*","*","*","*","*","*","*"]
["QHG","BEDFORDSHIRE, LUTON AND MILTON KEYNES STP",343,0.92711370262390669,1.7492711370262391E-2,239,79,14,2,4,5]
["QHL","BIRMINGHAM AND SOLIHULL STP",129,0.8294573643410853,7.7519379844961239E-2,69,38,12,4,6,0]
["QHM","CUMBRIA AND NORTH EAST STP",81,0.93827160493827155,4.9382716049382713E-2,"*","*","*","*","*","*"]
["QJ2","JOINED UP CARE DERBYSHIRE STP",4,"*","*","*","*","*","*","*","*"]
["QJG","SUFFOLK AND NORTH EAST ESSEX ICS",40,0.95,0.05,31,7,0,2,0,0]
["QJK","DEVON STP",53,0.49056603773584906,0,20,6,27,0,0,0]
["QJM","LINCOLNSHIRE STP",0,"NA","NA",0,0,0,0,0,0]
["QK1","LEICESTER, LEICESTERSHIRE AND RUTLAND STP",76,0.98684210526315785,0,57,18,1,0,0,0]
["QKK","OUR HEALTHIER SOUTH EAST LONDON STP",105,0.92380952380952386,2.8571428571428571E-2,67,30,5,0,3,0]
["QKS","KENT AND MEDWAY STP",407,0.91400491400491402,4.9140049140049137E-2,297,75,15,11,9,0]
["QM7","HERTFORDSHIRE AND WEST ESSEX STP",16,0.8125,0,7,6,3,0,0,0]
["QMF","EAST LONDON HEALTH & CARE PARTNERSHIP (STP)",149,0.93288590604026844,4.6979865771812082E-2,121,18,3,2,5,0]
["QMJ","NORTH LONDON PARTNERS IN HEALTH & CARE (STP)",20,0.55000000000000004,0.35,7,4,1,2,5,1]
["QMM","NORFOLK AND WAVENEY HEALTH & CARE PARTNERSHIP (STP)",74,0.90540540540540537,4.0540540540540543E-2,34,33,4,1,2,0]
["QNC","STAFFORDSHIRE & STOKE ON TRENT STP",0,"NA","NA",0,0,0,0,0,0]
["QNQ","FRIMLEY HEALTH & CARE (STP)",16,0.9375,0,"*","*","*","*","*","*"]
["QNX","SUSSEX HEALTH AND CARE PARTNERSHIP",2,"*","*","*","*","*","*","*","*"]
["QOC","SHROPSHIRE AND TELFORD AND WREKIN STP",67,1,0,63,4,0,0,0,0]
["QOP","GREATER MANCHESTER HEALTH & SOCIAL CARE PARTNERSHIP",148,0.95270270270270274,2.0270270270270271E-2,114,27,4,2,1,0]
["QOQ","HUMBER, COAST AND VALE STP",15,1,0,"*","*","*","*","*","*"]
["QOX","BATH AND NORTH EAST SOMERSET, SWINDON AND WILTSHIRE STP",3,"*","*","*","*","*","*","*","*"]
["QPM","NORTHAMPTONSHIRE STP",8,0.875,0.125,6,1,0,0,1,0]
["QR1","GLOUCESTERSHIRE STP",0,"NA","NA",0,0,0,0,0,0]
["QRL","HAMPSHIRE AND THE ISLE OF WIGHT STP",176,0.95454545454545459,1.1363636363636364E-2,131,37,4,1,1,2]
["QRV","NORTH WEST LONDON HEALTH & CARE PARTNERSHIP (STP)",246,0.84552845528455289,8.943089430894309E-2,147,61,13,8,14,3]
["QSL","SOMERSET STP",21,0.90476190476190477,9.5238095238095233E-2,17,2,0,0,2,0]
["QT1","NOTTINGHAM AND NOTTINGHAMSHIRE HEALTH AND CARE STP",27,0.81481481481481477,0.1111111111111111,20,2,2,0,3,0]
["QT6","CORNWALL AND THE ISLES OF SCILLY HEALTH & SOCIAL CARE PARTNERSHIP (STP)",7,1,0,6,1,0,0,0,0]
["QU9","BUCKINGHAMSHIRE, OXFORDSHIRE AND BERKSHIRE WEST STP",122,0.82786885245901642,9.8360655737704916E-2,83,18,9,8,4,0]
["QUA","THE BLACK COUNTRY AND WEST BIRMINGHAM STP",26,0.88461538461538458,3.8461538461538464E-2,17,6,2,0,1,0]
["QUE","CAMBRIDGESHIRE AND PETERBOROUGH STP",163,0.97546012269938653,1.2269938650306749E-2,145,14,2,1,1,0]
["QUY","BRISTOL, NORTH SOMERSET AND SOUTH GLOUCESTERSHIRE STP",30,1,0,28,2,0,0,0,0]
["QVV","DORSET STP",77,0.89610389610389607,5.1948051948051951E-2,55,14,4,2,2,0]
["QWE","SOUTH WEST LONDON HEALTH & CARE PARTNERSHIP (STP)",104,0.92307692307692313,5.7692307692307696E-2,75,21,2,2,4,0]
["QWO","WEST YORKSHIRE AND HARROGATE HEALTH & CARE PARTNERSHIP (STP)",475,0.95789473684210524,2.5263157894736842E-2,396,59,7,6,6,1]
["QWU","COVENTRY AND WARWICKSHIRE STP",6,0.83333333333333337,0.16666666666666666,"*","*","*","*","*","*"]
["QXU","SURREY HEARTLANDS HEALTH & CARE PARTNERSHIP (STP)",3,"*","*","*","*","*","*","*","*"]
["QYG","CHESHIRE AND MERSEYSIDE STP",140,0.93571428571428572,2.1428571428571429E-2,112,19,4,2,1,2]

{"sheet":"Trusts Q1","index":3,"n_rows":126,"n_cols":20,"rows_kept":126,"cut":false,"hidden":false,"merged":[[8,6,8,11],[8,12,8,19],[8,0,9,0],[8,1,9,1],[8,2,9,2],[8,3,9,3],[8,4,9,4],[8,5,9,5]]}
[]
[]
[]
[]
[]
[null,"   Sort data by:           "]
[]
[]
["STP Code","Trust Code","Trust Name","Total Responses","Percentage Positive","Percentage Negative","Breakdown of Responses",null,null,null,null,null,"Mode of Collection"]
[null,null,null,null,null,null,"Very Good","Good","Neither Good nor Poor","Poor","Very Poor","Don't Know","Mode SMS","Mode Electronic Discharge","Mode Electronic Home","Mode Paper Discharge","Mode Paper Home","Mode Telephone","Mode Online","Mode Other"]
[null,null,"England (including Independent Sector providers)",3520,0.91221590909090911,4.1761363636363638E-2,2550,661,145,65,82,17,1282,320,3,981,434,1,433,66]
[null,null,"England (excluding Independent Sector providers)",3520,0.91221590909090911,4.1761363636363638E-2,2550,661,145,65,82,17,1282,320,3,981,434,1,433,66]
[null,null,"Selection (excluding suppressed data)",{"$f":"SUBTOTAL(9,D14:D298)","v":3520},{"$f":"IFERROR((G13+H13)/SUM(G13:L13), \"-\")","v":0.9179251477347341},{"$f":"IFERROR((J13+K13)/SUM(G13:L13), \"-\")","v":3.8739330269205514E-2},{"$f":"SUBTOTAL(9,G14:G298)","v":2249},547,115,51,67,17,1239,171,0,960,421,1,189,65]
["QE1","RXL","BLACKPOOL TEACHING HOSPITALS NHS FOUNDATION TRUST",2,"*","*","*","*","*","*","*","*","*","*","*","*","*","*","*","*"]
["QE1","RXR","EAST LANCASHIRE HOSPITALS NHS TRUST",85,0.94117647058823528,2.3529411764705882E-2,59,21,2,0,2,1,52,0,0,32,0,0,1,0]
["QE1","RXN","LANCASHIRE TEACHING HOSPITALS NHS FOUNDATION TRUST",20,0.85,0.1,"*","*","*","*","*","*","*","*","*","*","*","*","*","*"]
["QF7","RFF","BARNSLEY HOSPITAL NHS FOUNDATION TRUST",3,"*","*","*","*","*","*","*","*","*","*","*","*","*","*","*","*"]
["QF7","RP5","DONCASTER AND BASSETLAW TEACHING HOSPITALS NHS FOUNDATION TRUST",0,"NA","NA",0,0,0,0,0,0,0,0,0,0,0,0,0,0]
["QF7","RHQ","SHEFFIELD TEACHING HOSPITALS NHS FOUNDATION TRUST",27,0.66666666666666663,0.22222222222222221,12,6,1,3,3,2,27,0,0,0,0,0,0,0]
["QF7","RFR","THE ROTHERHAM NHS FOUNDATION TRUST",1,"*","*","*","*","*","*","*","*","*","*","*","*","*","*","*","*"]
["QGH","RWP","WORCESTERSHIRE ACUTE HOSPITALS NHS TRUST",2,"*","*","*","*","*","*","*","*","*","*","*","*","*","*","*","*"]
["QGH","RLQ","WYE VALLEY NHS TRUST",0,"NA","NA",0,0,0,0,0,0,0,0,0,0,0,0,0,0]
["QH8","RAJ","MID AND SOUTH ESSEX NHS FOUNDATION TRUST",1,"*","*","*","*","*","*","*","*","*","*","*","*","*","*","*","*"]
["QHG","RC9","BEDFORDSHIRE HOSPITALS NHS FOUNDATION TRUST",68,0.91176470588235292,2.9411764705882353E-2,40,22,4,2,0,0,0,68,0,0,0,0,0,0]
["QHG","RD8","MILTON KEYNES UNIVERSITY HOSPITAL NHS FOUNDATION TRUST",275,0.93090909090909091,1.4545454545454545E-2,199,57,10,0,4,5,266,0,0,5,0,0,4,0]
["QHL","RQ3","BIRMINGHAM WOMEN'S AND CHILDREN'S NHS FOUNDATION TRUST",127,0.82677165354330706,7.874015748031496E-2,"*","*","*","*","*","*","*","*","*","*","*","*","*","*"]
["QHL","RRK","UNIVERSITY HOSPITALS BIRMINGHAM NHS FOUNDATION TRUST",2,"*","*","*","*","*","*","*","*","*","*","*","*","*","*","*","*"]
["QHM","RR7","GATESHEAD HEALTH NHS FOUNDATION TRUST",5,1,0,"*","*","*","*","*","*","*","*","*","*","*","*","*","*"]
["QHM","RNN","NORTH CUMBRIA INTEGRATED CARE NHS FOUNDATION TRUST",1,"*","*","*","*","*","*","*","*","*","*","*","*","*","*","*","*"]
["QHM","RVW","NORTH TEES AND HARTLEPOOL NHS FOUNDATION TRUST",11,1,0,8,3,0,0,0,0,10,0,0,1,0,0,0,0]
["QHM","RTR","SOUTH TEES HOSPITALS NHS FOUNDATION TRUST",62,0.91935483870967738,6.4516129032258063E-2,42,15,1,4,0,0,62,0,0,0,0,0,0,0]
["QHM","R0B","SOUTH TYNESIDE AND SUNDERLAND NHS FOUNDATION TRUST",0,"NA","NA",0,0,0,0,0,0,0,0,0,0,0,0,0,0]
["QHM","RTD","THE NEWCASTLE UPON TYNE HOSPITALS NHS FOUNDATION TRUST",2,"*","*","*","*","*","*","*","*","*","*","*","*","*","*","*","*"]
["QJ2","RTG","UNIVERSITY HOSPITALS OF DERBY AND BURTON NHS FOUNDATION TRUST",4,"*","*","*","*","*","*","*","*","*","*","*","*","*","*","*","*"]
["QJG","RDE","EAST SUFFOLK AND NORTH ESSEX NHS FOUNDATION TRUST",9,1,0,7,2,0,0,0,0,0,0,0,0,0,0,9,0]
["QJG","RGR","WEST SUFFOLK NHS FOUNDATION TRUST",31,0.93548387096774188,6.4516129032258063E-2,24,5,0,2,0,0,8,0,0,0,0,0,23,0]
["QJK","RBZ","NORTHERN DEVON HEALTHCARE NHS TRUST",13,0.92307692307692313,0,12,0,1,0,0,0,0,0,0,13,0,0,0,0]
["QJK","RH8","ROYAL DEVON AND EXETER NHS FOUNDATION TRUST",32,0.1875,0,0,6,26,0,0,0,0,0,0,32,0,0,0,0]
["QJK","RA9","TORBAY AND SOUTH DEVON NHS FOUNDATION TRUST",1,"*","*","*","*","*","*","*","*","*","*","*","*","*","*","*","*"]
["QJK","RK9","UNIVERSITY HOSPITALS PLYMOUTH NHS TRUST",7,1,0,7,0,0,0,0,0,0,0,0,7,0,0,0,0]
["QJM","RWD","UNITED LINCOLNSHIRE HOSPITALS NHS TRUST",0,"NA","NA",0,0,0,0,0,0,0,0,0,0,0,0,0,0]
["QK1","RWE","UNIVERSITY HOSPITALS OF LEICESTER NHS TRUST",76,0.98684210526315785,0,57,18,1,0,0,0,0,0,0,76,0,0,0,0]
["QKK","RJ1","GUY'S AND ST THOMAS' NHS FOUNDATION TRUST",66,0.89393939393939392,3.0303030303030304E-2,41,18,5,0,2,0,0,0,0,48,0,0,18,0]
["QKK","RJZ","KING'S COLLEGE HOSPITAL NHS FOUNDATION TRUST",13,0.92307692307692313,7.6923076923076927E-2,10,2,0,0,1,0,12,0,0,0,0,0,1,0]
["QKK","RJ2","LEWISHAM AND GREENWICH NHS TRUST",26,1,0,16,10,0,0,0,0,0,0,0,26,0,0,0,0]
["QKS","RN7","DARTFORD AND GRAVESHAM NHS TRUST",4,"*","*","*","*","*","*","*","*","*","*","*","*","*","*","*","*"]
["QKS","RVV","EAST KENT HOSPITALS UNIVERSITY NHS FOUNDATION TRUST",324,0.89197530864197527,6.1728395061728392E-2,217,72,15,11,9,0,324,0,0,0,0,0,0,0]
["QKS","RWF","MAIDSTONE AND TUNBRIDGE WELLS NHS TRUST",4,"*","*","*","*","*","*","*","*","*","*","*","*","*","*","*","*"]
["QKS","RPA","MEDWAY NHS FOUNDATION TRUST",75,1,0,74,1,0,0,0,0,0,0,0,75,0,0,0,0]
["QM7","RWH","EAST AND NORTH HERTFORDSHIRE NHS TRUST",1,"*","*","*","*","*","*","*","*","*","*","*","*","*","*","*","*"]
["QM7","RWG","WEST HERTFORDSHIRE TEACHING HOSPITALS NHS TRUST",15,0.8,0,"*","*","*","*","*","*","*","*","*","*","*","*","*","*"]
["QMF","RF4","BARKING, HAVERING AND REDBRIDGE UNIVERSITY HOSPITALS NHS TRUST",28,0.9285714285714286,7.1428571428571425E-2,25,1,0,0,2,0,0,2,0,26,0,0,0,0]
["QMF","R1H","BARTS HEALTH NHS TRUST",90,0.93333333333333335,4.4444444444444446E-2,74,10,2,2,2,0,34,0,0,52,0,0,4,0]
["QMF","RQX","HOMERTON UNIVERSITY HOSPITAL NHS FOUNDATION TRUST",31,0.93548387096774188,3.2258064516129031E-2,22,7,1,0,1,0,31,0,0,0,0,0,0,0]
["QMJ","RAP","NORTH MIDDLESEX UNIVERSITY HOSPITAL NHS TRUST",0,"NA","NA",0,0,0,0,0,0,0,0,0,0,0,0,0,0]
["QMJ","RAL","ROYAL FREE LONDON NHS FOUNDATION TRUST",17,0.47058823529411764,0.41176470588235292,4,4,1,2,5,1,0,17,0,0,0,0,0,0]
["QMJ","RKE","WHITTINGTON HEALTH NHS TRUST",3,"*","*","*","*","*","*","*","*","*","*","*","*","*","*","*","*"]
["QMM","RGP","JAMES PAGET UNIVERSITY HOSPITALS NHS FOUNDATION TRUST",0,"NA","NA",0,0,0,0,0,0,0,0,0,0,0,0,0,0]
["QMM","RM1","NORFOLK AND NORWICH UNIVERSITY HOSPITALS NHS FOUNDATION TRUST",61,0.90163934426229508,3.2786885245901641E-2,23,32,4,1,1,0,0,0,0,1,0,0,60,0]
["QMM","RCX","THE QUEEN ELIZABETH HOSPITAL, KING'S LYNN, NHS FOUNDATION TRUST",13,0.92307692307692313,7.6923076923076927E-2,11,1,0,0,1,0,0,0,0,1,0,0,12,0]
["QNC","RJE","UNIVERSITY HOSPITALS OF NORTH MIDLANDS NHS TRUST",0,"NA","NA",0,0,0,0,0,0,0,0,0,0,0,0,0,0]
["QNQ","RDU","FRIMLEY HEALTH NHS FOUNDATION TRUST",16,0.9375,0,"*","*","*","*","*","*","*","*","*","*","*","*","*","*"]
["QNX","RXC","EAST SUSSEX HEALTHCARE NHS TRUST",0,"NA","NA",0,0,0,0,0,0,0,0,0,0,0,0,0,0]
["QNX","RYR","UNIVERSITY HOSPITALS SUSSEX NHS FOUNDATION TRUST",2,"*","*","*","*","*","*","*","*","*","*","*","*","*","*","*","*"]
["QOC","RXW","THE SHREWSBURY AND TELFORD HOSPITAL NHS TRUST",67,1,0,63,4,0,0,0,0,0,0,0,67,0,0,0,0]
["QOP","RMC","BOLTON NHS FOUNDATION TRUST",3,"*","*","*","*","*","*","*","*","*","*","*","*","*","*","*","*"]
["QOP","R0A","MANCHESTER UNIVERSITY NHS FOUNDATION TRUST",40,0.95,0,31,7,2,0,0,0,0,40,0,0,0,0,0,0]
["QOP","RWJ","STOCKPORT NHS FOUNDATION TRUST",42,0.9285714285714286,2.3809523809523808E-2,27,12,2,1,0,0,0,0,0,42,0,0,0,0]
["QOP","RMP","TAMESIDE AND GLOSSOP INTEGRATED CARE NHS FOUNDATION TRUST",51,0.96078431372549022,3.9215686274509803E-2,44,5,0,1,1,0,0,0,0,51,0,0,0,0]
["QOP","RRF","WRIGHTINGTON, WIGAN AND LEIGH NHS FOUNDATION TRUST",12,1,0,10,2,0,0,0,0,0,0,0,12,0,0,0,0]
["QOQ","RCD","HARROGATE AND DISTRICT NHS FOUNDATION TRUST",7,1,0,"*","*","*","*","*","*","*","*","*","*","*","*","*","*"]
["QOQ","RWA","HULL UNIVERSITY TEACHING HOSPITALS NHS TRUST",6,1,0,6,0,0,0,0,0,0,0,0,6,0,0,0,0]
["QOQ","RJL","NORTHERN LINCOLNSHIRE AND GOOLE NHS FOUNDATION TRUST",2,"*","*","*","*","*","*","*","*","*","*","*","*","*","*","*","*"]
["QOX","RN3","GREAT WESTERN HOSPITALS NHS FOUNDATION TRUST",2,"*","*","*","*","*","*","*","*","*","*","*","*","*","*","*","*"]
["QOX","RD1","ROYAL UNITED HOSPITALS BATH NHS FOUNDATION TRUST",1,"*","*","*","*","*","*","*","*","*","*","*","*","*","*","*","*"]
["QOX","RNZ","SALISBURY NHS FOUNDATION TRUST",0,"NA","NA",0,0,0,0,0,0,0,0,0,0,0,0,0,0]
["QPM","RNQ","KETTERING GENERAL HOSPITAL NHS FOUNDATION TRUST",4,"*","*","*","*","*","*","*","*","*","*","*","*","*","*","*","*"]
["QPM","RNS","NORTHAMPTON GENERAL HOSPITAL NHS TRUST",4,"*","*","*","*","*","*","*","*","*","*","*","*","*","*","*","*"]
["QR1","RTE","GLOUCESTERSHIRE HOSPITALS NHS FOUNDATION TRUST",0,"NA","NA",0,0,0,0,0,0,0,0,0,0,0,0,0,0]
["QRL","RN5","HAMPSHIRE HOSPITALS NHS FOUNDATION TRUST",4,"*","*","*","*","*","*","*","*","*","*","*","*","*","*","*","*"]
["QRL","R1F","ISLE OF WIGHT NHS TRUST",11,1,0,9,2,0,0,0,0,0,0,0,11,0,0,0,0]
["QRL","RHU","PORTSMOUTH HOSPITALS UNIVERSITY NATIONAL HEALTH SERVICE TRUST",130,0.96923076923076923,0,101,25,3,0,0,1,0,0,0,130,0,0,0,0]
["QRL","RHM","UNIVERSITY HOSPITAL SOUTHAMPTON NHS FOUNDATION TRUST",31,0.90322580645161288,3.2258064516129031E-2,18,10,1,0,1,1,0,0,0,0,7,0,24,0]
["QRV","RQM","CHELSEA AND WESTMINSTER HOSPITAL NHS FOUNDATION TRUST",33,0.78787878787878785,0.18181818181818182,20,6,0,1,5,1,30,0,0,0,0,0,3,0]
["QRV","RYJ","IMPERIAL COLLEGE HEALTHCARE NHS TRUST",50,0.82,0.1,35,6,2,2,3,2,0,0,0,0,0,0,0,50]
["QRV","R1K","LONDON NORTH WEST UNIVERSITY HEALTHCARE NHS TRUST",1,"*","*","*","*","*","*","*","*","*","*","*","*","*","*","*","*"]
["QRV","RAS","THE HILLINGDON HOSPITALS NHS FOUNDATION TRUST",162,0.86419753086419748,6.7901234567901231E-2,"*","*","*","*","*","*","*","*","*","*","*","*","*","*"]
["QSL","RH5","SOMERSET NHS FOUNDATION TRUST",0,"NA","NA",0,0,0,0,0,0,0,0,0,0,0,0,0,0]
["QSL","RA4","YEOVIL DISTRICT HOSPITAL NHS FOUNDATION TRUST",21,0.90476190476190477,9.5238095238095233E-2,17,2,0,0,2,0,21,0,0,0,0,0,0,0]
["QT1","RX1","NOTTINGHAM UNIVERSITY HOSPITALS NHS TRUST",11,0.81818181818181823,0.18181818181818182,8,1,0,0,2,0,0,3,0,0,8,0,0,0]
["QT1","RK5","SHERWOOD FOREST HOSPITALS NHS FOUNDATION TRUST",16,0.8125,6.25E-2,12,1,2,0,1,0,16,0,0,0,0,0,0,0]
["QT6","REF","ROYAL CORNWALL HOSPITALS NHS TRUST",7,1,0,6,1,0,0,0,0,0,6,0,1,0,0,0,0]
["QU9","RXQ","BUCKINGHAMSHIRE HEALTHCARE NHS TRUST",114,0.82456140350877194,0.10526315789473684,76,18,8,8,4,0,114,0,0,0,0,0,0,0]
["QU9","RTH","OXFORD UNIVERSITY HOSPITALS NHS FOUNDATION TRUST",8,0.875,0,7,0,1,0,0,0,0,0,0,0,0,0,8,0]
["QU9","RHW","ROYAL BERKSHIRE NHS FOUNDATION TRUST",0,"NA","NA",0,0,0,0,0,0,0,0,0,0,0,0,0,0]
["QUA","RNA","THE DUDLEY GROUP NHS FOUNDATION TRUST",0,"NA","NA",0,0,0,0,0,0,0,0,0,0,0,0,0,0]
["QUA","RL4","THE ROYAL WOLVERHAMPTON NHS TRUST",16,0.875,6.25E-2,8,6,1,0,1,0,16,0,0,0,0,0,0,0]
["QUA","RBK","WALSALL HEALTHCARE NHS TRUST",10,0.9,0,9,0,1,0,0,0,9,0,0,0,0,1,0,0]
["QUE","RGT","CAMBRIDGE UNIVERSITY HOSPITALS NHS FOUNDATION TRUST",9,1,0,7,2,0,0,0,0,0,7,0,0,0,0,2,0]
["QUE","RGN","NORTH WEST ANGLIA NHS FOUNDATION TRUST",154,0.97402597402597402,1.2987012987012988E-2,138,12,2,1,1,0,0,0,0,154,0,0,0,0]
["QUY","RVJ","NORTH BRISTOL NHS TRUST",0,"NA","NA",0,0,0,0,0,0,0,0,0,0,0,0,0,0]
["QUY","RA7","UNIVERSITY HOSPITALS BRISTOL AND WESTON NHS FOUNDATION TRUST",30,1,0,28,2,0,0,0,0,0,0,0,30,0,0,0,0]
["QVV","RBD","DORSET COUNTY HOSPITAL NHS FOUNDATION TRUST",14,0.9285714285714286,7.1428571428571425E-2,10,3,0,0,1,0,14,0,0,0,0,0,0,0]
["QVV","R0D","UNIVERSITY HOSPITALS DORSET NHS FOUNDATION TRUST",63,0.88888888888888884,4.7619047619047616E-2,45,11,4,2,1,0,62,0,0,0,0,0,1,0]
["QWE","RJ6","CROYDON HEALTH SERVICES NHS TRUST",65,0.93846153846153846,4.6153846153846156E-2,43,18,1,0,3,0,65,0,0,0,0,0,0,0]
["QWE","RVR","EPSOM AND ST HELIER UNIVERSITY HOSPITALS NHS TRUST",10,1,0,10,0,0,0,0,0,0,0,0,7,0,0,3,0]
["QWE","RAX","KINGSTON HOSPITAL NHS FOUNDATION TRUST",28,0.8928571428571429,7.1428571428571425E-2,22,3,1,1,1,0,0,28,0,0,0,0,0,0]
["QWE","RJ7","ST GEORGE'S UNIVERSITY HOSPITALS NHS FOUNDATION TRUST",1,"*","*","*","*","*","*","*","*","*","*","*","*","*","*","*","*"]
["QWO","RCF","AIREDALE NHS FOUNDATION TRUST",0,"NA","NA",0,0,0,0,0,0,0,0,0,0,0,0,0,0]
["QWO","RAE","BRADFORD TEACHING HOSPITALS NHS FOUNDATION TRUST",0,"NA","NA",0,0,0,0,0,0,0,0,0,0,0,0,0,0]
["QWO","RWY","CALDERDALE AND HUDDERSFIELD NHS FOUNDATION TRUST",54,1,0,"*","*","*","*","*","*","*","*","*","*","*","*","*","*"]
["QWO","RR8","LEEDS TEACHING HOSPITALS NHS TRUST",3,"*","*","*","*","*","*","*","*","*","*","*","*","*","*","*","*"]
["QWO","RXF","MID YORKSHIRE HOSPITALS NHS TRUST",418,0.9569377990430622,2.6315789473684209E-2,344,56,6,5,6,1,6,0,0,0,406,0,6,0]
["QWU","RLT","GEORGE ELIOT HOSPITAL NHS TRUST",3,"*","*","*","*","*","*","*","*","*","*","*","*","*","*","*","*"]
["QWU","RJC","SOUTH WARWICKSHIRE NHS FOUNDATION TRUST",2,"*","*","*","*","*","*","*","*","*","*","*","*","*","*","*","*"]
["QWU","RKB","UNIVERSITY HOSPITALS COVENTRY AND WARWICKSHIRE NHS TRUST",1,"*","*","*","*","*","*","*","*","*","*","*","*","*","*","*","*"]
["QXU","RTK","ASHFORD AND ST PETER'S HOSPITALS NHS FOUNDATION TRUST",0,"NA","NA",0,0,0,0,0,0,0,0,0,0,0,0,0,0]
["QXU","RA2","ROYAL SURREY COUNTY HOSPITAL NHS FOUNDATION TRUST",2,"*","*","*","*","*","*","*","*","*","*","*","*","*","*","*","*"]
["QXU","RTP","SURREY AND SUSSEX HEALTHCARE NHS TRUST",1,"*","*","*","*","*","*","*","*","*","*","*","*","*","*","*","*"]
["QYG","RJN","EAST CHESHIRE NHS TRUST",0,"NA","NA",0,0,0,0,0,0,0,0,0,0,0,0,0,0]
["QYG","REP","LIVERPOOL WOMEN'S NHS FOUNDATION TRUST",15,0.8666666666666667,6.6666666666666666E-2,10,3,0,1,0,1,0,0,0,0,0,0,0,15]
["QYG","RBT","MID CHESHIRE HOSPITALS NHS FOUNDATION TRUST",26,0.96153846153846156,0,22,3,0,0,0,1,26,0,0,0,0,0,0,0]
["QYG","RVY","SOUTHPORT AND ORMSKIRK HOSPITAL NHS TRUST",1,"*","*","*","*","*","*","*","*","*","*","*","*","*","*","*","*"]
["QYG","RBN","ST HELENS AND KNOWSLEY TEACHING HOSPITALS NHS TRUST",61,0.93442622950819676,1.6393442622950821E-2,47,10,3,1,0,0,1,0,0,50,0,0,10,0]
["QYG","RWW","WARRINGTON AND HALTON TEACHING HOSPITALS NHS FOUNDATION TRUST",0,"NA","NA",0,0,0,0,0,0,0,0,0,0,0,0,0,0]
["QYG","RBL","WIRRAL UNIVERSITY TEACHING HOSPITAL NHS FOUNDATION TRUST",37,0.94594594594594594,2.7027027027027029E-2,32,3,1,0,1,0,33,0,0,4,0,0,0,0]

{"sheet":"Sites Q1","index":4,"n_rows":187,"n_cols":14,"rows_kept":187,"cut":false,"hidden":false,"merged":[[8,6,9,6],[8,7,9,7],[8,8,8,13],[8,0,9,0],[8,1,9,1],[8,2,9,2],[8,3,9,3],[8,4,9,4],[8,5,9,5]]}
[]
[]
[]
[]
[]
[null,"   Sort data by:           "]
[]
[]
["STP Code","Trust Code","Trust Name","Site Code","Site Name","Total Responses","Percentage Positive","Percentage Negative","Breakdown of Responses"]
[null,null,null,null,null,null,null,null,"Very Good","Good","Neither Good nor Poor","Poor","Very Poor","Don't Know"]
[null,null,null,null,"England (including Independent Sector providers)",3520,0.91221590909090911,4.1761363636363638E-2,2550,661,145,65,82,17]
[null,null,null,null,"England (excluding Independent Sector providers)",3520,0.91221590909090911,4.1761363636363638E-2,2550,661,145,65,82,17]
[null,null,null,null,"Selection (excluding suppressed data)",{"$f":"SUBTOTAL(9,F14:F297)","v":3520},{"$f":"IFERROR((I13+J13)/SUM(I13:N13), \"-\")","v":0.92161985630306986},{"$f":"IFERROR((L13+M13)/SUM(I13:N13), \"-\")","v":3.6250816459830179E-2},{"$f":"SUBTOTAL(9,I14:I297)","v":2279},543,113,49,62,16]
["QE1","RXL","BLACKPOOL TEACHING HOSPITALS NHS FOUNDATION TRUST","RXL01","Blackpool Victoria Hospital",2,"*","*","*","*","*","*","*","*"]
["QE1","RXR","EAST LANCASHIRE HOSPITALS NHS TRUST","RXR20","Royal Blackburn Hospital",85,0.94117647058823528,2.3529411764705882E-2,59,21,2,0,2,1]
["QE1","RXN","LANCASHIRE TEACHING HOSPITALS NHS FOUNDATION TRUST","RXN01","Chorley and South Ribble Hospital",0,"NA","NA",0,0,0,0,0,0]
["QE1","RXN","LANCASHIRE TEACHING HOSPITALS NHS FOUNDATION TRUST","RXN02","Royal Preston Hospital",20,0.85,0.1,"*","*","*","*","*","*"]
["QF7","RFF","BARNSLEY HOSPITAL NHS FOUNDATION TRUST","RFFAA","Barnsley Hospital NHS Foundation Trust HQ",3,"*","*","*","*","*","*","*","*"]
["QF7","RP5","DONCASTER AND BASSETLAW TEACHING HOSPITALS NHS FOUNDATION TRUST","RP5BA","Bassetlaw Hospital",0,"NA","NA",0,0,0,0,0,0]
["QF7","RP5","DONCASTER AND BASSETLAW TEACHING HOSPITALS NHS FOUNDATION TRUST","RP5DR","Doncaster Royal Infirmary",0,"NA","NA",0,0,0,0,0,0]
["QF7","RP5","DONCASTER AND BASSETLAW TEACHING HOSPITALS NHS FOUNDATION TRUST","RP5XXX","Non-hospital site",0,"NA","NA",0,0,0,0,0,0]
["QF7","RHQ","SHEFFIELD TEACHING HOSPITALS NHS FOUNDATION TRUST","RHQHH","Royal Hallamshire Hospital",27,0.66666666666666663,0.22222222222222221,12,6,1,3,3,2]
["QF7","RFR","THE ROTHERHAM NHS FOUNDATION TRUST","RFRPA","Rotherham District General Hospital",1,"*","*","*","*","*","*","*","*"]
["QGH","RWP","WORCESTERSHIRE ACUTE HOSPITALS NHS TRUST","RWP01","Alexandra Hospital",0,"NA","NA",0,0,0,0,0,0]
["QGH","RWP","WORCESTERSHIRE ACUTE HOSPITALS NHS TRUST","RWP31","Kidderminster Hospital",0,"NA","NA",0,0,0,0,0,0]
["QGH","RWP","WORCESTERSHIRE ACUTE HOSPITALS NHS TRUST","RWP50","Worcestershire Royal Hospital",2,"*","*","*","*","*","*","*","*"]
["QGH","RLQ","WYE VALLEY NHS TRUST","RLQ01","Hereford County Hospital",0,"NA","NA",0,0,0,0,0,0]
["QH8","RAJ","MID AND SOUTH ESSEX NHS FOUNDATION TRUST","RAJ12","BASILDON HOSPITAL",1,"*","*","*","*","*","*","*","*"]
["QHG","RC9","BEDFORDSHIRE HOSPITALS NHS FOUNDATION TRUST","RC979","BEDFORD HOSPITAL SOUTH WING",41,1,0,33,8,0,0,0,0]
["QHG","RC9","BEDFORDSHIRE HOSPITALS NHS FOUNDATION TRUST","RC971","Luton and Dunstable Hospital",27,0.77777777777777779,7.407407407407407E-2,7,14,4,2,0,0]
["QHG","RD8","MILTON KEYNES UNIVERSITY HOSPITAL NHS FOUNDATION TRUST","RD816","Milton Keynes Hospital",275,0.93090909090909091,1.4545454545454545E-2,199,57,10,0,4,5]
["QHL","RQ3","BIRMINGHAM WOMEN'S AND CHILDREN'S NHS FOUNDATION TRUST","RQ370","Birmingham Women's Hospital",127,0.82677165354330706,7.874015748031496E-2,"*","*","*","*","*","*"]
["QHL","RRK","UNIVERSITY HOSPITALS BIRMINGHAM NHS FOUNDATION TRUST","RRK98","Good Hope Hospital",0,"NA","NA",0,0,0,0,0,0]
["QHL","RRK","UNIVERSITY HOSPITALS BIRMINGHAM NHS FOUNDATION TRUST","RRK97","Heartlands Hospital",2,"*","*","*","*","*","*","*","*"]
["QHL","RRK","UNIVERSITY HOSPITALS BIRMINGHAM NHS FOUNDATION TRUST","RRK99","Solihull Hospital",0,"NA","NA",0,0,0,0,0,0]
["QHM","RR7","GATESHEAD HEALTH NHS FOUNDATION TRUST","RR7EN","Queen Elizabeth Hospital",5,1,0,"*","*","*","*","*","*"]
["QHM","RNN","NORTH CUMBRIA INTEGRATED CARE NHS FOUNDATION TRUST","RNNXXX","Non-hospital site",1,"*","*","*","*","*","*","*","*"]
["QHM","RVW","NORTH TEES AND HARTLEPOOL NHS FOUNDATION TRUST","RVWXXX","Non-hospital site",3,"*","*","*","*","*","*","*","*"]
["QHM","RVW","NORTH TEES AND HARTLEPOOL NHS FOUNDATION TRUST","RVWAE","University Hospital Of North Tees",8,1,0,6,2,0,0,0,0]
["QHM","RTR","SOUTH TEES HOSPITALS NHS FOUNDATION TRUST","RTR45","Friarage Hospital Site",0,"NA","NA",0,0,0,0,0,0]
["QHM","RTR","SOUTH TEES HOSPITALS NHS FOUNDATION TRUST","RTRAT","The James Cook University Hospital",62,0.91935483870967738,6.4516129032258063E-2,42,15,1,4,0,0]
["QHM","R0B","SOUTH TYNESIDE AND SUNDERLAND NHS FOUNDATION TRUST","R0BXXX","Non-hospital site",0,"NA","NA",0,0,0,0,0,0]
["QHM","R0B","SOUTH TYNESIDE AND SUNDERLAND NHS FOUNDATION TRUST","R0B0Q","South Tyneside District Hospital",0,"NA","NA",0,0,0,0,0,0]
["QHM","R0B","SOUTH TYNESIDE AND SUNDERLAND NHS FOUNDATION TRUST","R0B01","Sunderland Royal Hospital",0,"NA","NA",0,0,0,0,0,0]
["QHM","RTD","THE NEWCASTLE UPON TYNE HOSPITALS NHS FOUNDATION TRUST","RTD02","The Royal Victoria Infirmary",2,"*","*","*","*","*","*","*","*"]
["QJ2","RTG","UNIVERSITY HOSPITALS OF DERBY AND BURTON NHS FOUNDATION TRUST","RTG02","Queens Hospital, Burton Upon Trent",4,"*","*","*","*","*","*","*","*"]
["QJG","RDE","EAST SUFFOLK AND NORTH ESSEX NHS FOUNDATION TRUST","RDEE4","Colchester General Hospital",0,"NA","NA",0,0,0,0,0,0]
["QJG","RDE","EAST SUFFOLK AND NORTH ESSEX NHS FOUNDATION TRUST","RDE03","Ipswich Hospital",9,1,0,7,2,0,0,0,0]
["QJG","RGR","WEST SUFFOLK NHS FOUNDATION TRUST","RGR50","West Suffolk Hospital",31,0.93548387096774188,6.4516129032258063E-2,24,5,0,2,0,0]
["QJK","RBZ","NORTHERN DEVON HEALTHCARE NHS TRUST","RBZ12","North Devon District Hospital",13,0.92307692307692313,0,12,0,1,0,0,0]
["QJK","RH8","ROYAL DEVON AND EXETER NHS FOUNDATION TRUST","RH854","Honiton Hospital - RH 854",1,"*","*","*","*","*","*","*","*"]
["QJK","RH8","ROYAL DEVON AND EXETER NHS FOUNDATION TRUST","RH801","Royal Devon and Exeter Hospital (Wonford)",31,0.19354838709677419,0,0,6,25,0,0,0]
["QJK","RA9","TORBAY AND SOUTH DEVON NHS FOUNDATION TRUST","RA901","Torbay Hospital",1,"*","*","*","*","*","*","*","*"]
["QJK","RK9","UNIVERSITY HOSPITALS PLYMOUTH NHS TRUST","RK950","Derriford Hospital",1,"*","*","*","*","*","*","*","*"]
["QJK","RK9","UNIVERSITY HOSPITALS PLYMOUTH NHS TRUST","RK9XXX","Non-hospital site",6,1,0,"*","*","*","*","*","*"]
["QJM","RWD","UNITED LINCOLNSHIRE HOSPITALS NHS TRUST","RWDLP","Grantham and District Hospital",0,"NA","NA",0,0,0,0,0,0]
["QJM","RWD","UNITED LINCOLNSHIRE HOSPITALS NHS TRUST","RWDDA","Lincoln County Hospital",0,"NA","NA",0,0,0,0,0,0]
["QJM","RWD","UNITED LINCOLNSHIRE HOSPITALS NHS TRUST","RWDLA","Pilgrim Hospital",0,"NA","NA",0,0,0,0,0,0]
["QK1","RWE","UNIVERSITY HOSPITALS OF LEICESTER NHS TRUST","RWEAK","Leicester General Hospital",22,1,0,16,6,0,0,0,0]
["QK1","RWE","UNIVERSITY HOSPITALS OF LEICESTER NHS TRUST","RWEAA","Leicester Royal Infirmary",29,0.96551724137931039,0,17,11,1,0,0,0]
["QK1","RWE","UNIVERSITY HOSPITALS OF LEICESTER NHS TRUST","RWEXXX","Non-hospital site",25,1,0,24,1,0,0,0,0]
["QKK","RJ1","GUY'S AND ST THOMAS' NHS FOUNDATION TRUST","RJ122","St Thomas' Hospital",66,0.89393939393939392,3.0303030303030304E-2,41,18,5,0,2,0]
["QKK","RJZ","KING'S COLLEGE HOSPITAL NHS FOUNDATION TRUST","RJZ01","King's College Hospital (Denmark Hill)",5,1,0,5,0,0,0,0,0]
["QKK","RJZ","KING'S COLLEGE HOSPITAL NHS FOUNDATION TRUST","RJZ30","Princess Royal University Hospital",8,0.875,0.125,5,2,0,0,1,0]
["QKK","RJ2","LEWISHAM AND GREENWICH NHS TRUST","RJ2XXX","Non-hospital site",0,"NA","NA",0,0,0,0,0,0]
["QKK","RJ2","LEWISHAM AND GREENWICH NHS TRUST","RJ231","Queen Elizabeth Hospital",0,"NA","NA",0,0,0,0,0,0]
["QKK","RJ2","LEWISHAM AND GREENWICH NHS TRUST","RJ224","University Hospital Lewisham",26,1,0,16,10,0,0,0,0]
["QKS","RN7","DARTFORD AND GRAVESHAM NHS TRUST","RN707","Darent Valley Hospital",4,"*","*","*","*","*","*","*","*"]
["QKS","RVV","EAST KENT HOSPITALS UNIVERSITY NHS FOUNDATION TRUST","RVV01","William Harvey Hospital (Ashford)",324,0.89197530864197527,6.1728395061728392E-2,217,72,15,11,9,0]
["QKS","RWF","MAIDSTONE AND TUNBRIDGE WELLS NHS TRUST","RWF03","Maidstone District General Hospital",0,"NA","NA",0,0,0,0,0,0]
["QKS","RWF","MAIDSTONE AND TUNBRIDGE WELLS NHS TRUST","RWFXXX","Non-hospital site",2,"*","*","*","*","*","*","*","*"]
["QKS","RWF","MAIDSTONE AND TUNBRIDGE WELLS NHS TRUST","RWFTW","The Tunbridge Wells Hospital",2,"*","*","*","*","*","*","*","*"]
["QKS","RPA","MEDWAY NHS FOUNDATION TRUST","RPA02","Medway Maritime Hospital",75,1,0,74,1,0,0,0,0]
["QM7","RWH","EAST AND NORTH HERTFORDSHIRE NHS TRUST","RWH01","Lister Hospital",1,"*","*","*","*","*","*","*","*"]
["QM7","RWH","EAST AND NORTH HERTFORDSHIRE NHS TRUST","RWHXXX","Non-hospital site",0,"NA","NA",0,0,0,0,0,0]
["QM7","RWG","WEST HERTFORDSHIRE TEACHING HOSPITALS NHS TRUST","RWG02","Watford General Hospital",15,0.8,0,"*","*","*","*","*","*"]
["QMF","RF4","BARKING, HAVERING AND REDBRIDGE UNIVERSITY HOSPITALS NHS TRUST","RF4XXX","Non-hospital site",28,0.9285714285714286,7.1428571428571425E-2,25,1,0,0,2,0]
["QMF","R1H","BARTS HEALTH NHS TRUST","R1HNH","Newham General Hospital",51,0.94117647058823528,5.8823529411764705E-2,43,5,0,1,2,0]
["QMF","R1H","BARTS HEALTH NHS TRUST","R1H12","The Royal London Hospital",14,0.9285714285714286,0,12,1,1,0,0,0]
["QMF","R1H","BARTS HEALTH NHS TRUST","R1HKH","Whipps Cross University Hospital",25,0.92,0.04,19,4,1,1,0,0]
["QMF","RQX","HOMERTON UNIVERSITY HOSPITAL NHS FOUNDATION TRUST","RQXM1","Homerton University Hospital",31,0.93548387096774188,3.2258064516129031E-2,22,7,1,0,1,0]
["QMJ","RAP","NORTH MIDDLESEX UNIVERSITY HOSPITAL NHS TRUST","RAPNM","North Middlesex Hospital",0,"NA","NA",0,0,0,0,0,0]
["QMJ","RAL","ROYAL FREE LONDON NHS FOUNDATION TRUST","RAL26","Barnet Hospital",14,0.42857142857142855,0.42857142857142855,"*","*","*","*","*","*"]
["QMJ","RAL","ROYAL FREE LONDON NHS FOUNDATION TRUST","RAL01","Royal Free Hospital",3,"*","*","*","*","*","*","*","*"]
["QMJ","RKE","WHITTINGTON HEALTH NHS TRUST","RKEXXX","Non-hospital site",0,"NA","NA",0,0,0,0,0,0]
["QMJ","RKE","WHITTINGTON HEALTH NHS TRUST","RKEQ4","The Whittington Hospital",3,"*","*","*","*","*","*","*","*"]
["QMM","RGP","JAMES PAGET UNIVERSITY HOSPITALS NHS FOUNDATION TRUST","RGP75","James Paget University Hospital",0,"NA","NA",0,0,0,0,0,0]
["QMM","RM1","NORFOLK AND NORWICH UNIVERSITY HOSPITALS NHS FOUNDATION TRUST","RM102","Norfolk and Norwich University Hospital",61,0.90163934426229508,3.2786885245901641E-2,23,32,4,1,1,0]
["QMM","RCX","THE QUEEN ELIZABETH HOSPITAL, KING'S LYNN, NHS FOUNDATION TRUST","RCXXXX","Non-hospital site",2,"*","*","*","*","*","*","*","*"]
["QMM","RCX","THE QUEEN ELIZABETH HOSPITAL, KING'S LYNN, NHS FOUNDATION TRUST","RCX66","North Cambridgeshire Hospital",0,"NA","NA",0,0,0,0,0,0]
["QMM","RCX","THE QUEEN ELIZABETH HOSPITAL, KING'S LYNN, NHS FOUNDATION TRUST","RCX70","The Queen Elizabeth Hospital",11,0.90909090909090906,9.0909090909090912E-2,9,1,0,0,1,0]
["QNC","RJE","UNIVERSITY HOSPITALS OF NORTH MIDLANDS NHS TRUST","RJE09","County Hospital",0,"NA","NA",0,0,0,0,0,0]
["QNC","RJE","UNIVERSITY HOSPITALS OF NORTH MIDLANDS NHS TRUST","RJE01","Royal Stoke University Hospital",0,"NA","NA",0,0,0,0,0,0]
["QNQ","RDU","FRIMLEY HEALTH NHS FOUNDATION TRUST","RDU01","Frimley Park Hospital",16,0.9375,0,"*","*","*","*","*","*"]
["QNX","RXC","EAST SUSSEX HEALTHCARE NHS TRUST","RXC01","Conquest Hospital",0,"NA","NA",0,0,0,0,0,0]
["QNX","RXC","EAST SUSSEX HEALTHCARE NHS TRUST","RXC02","Eastbourne District General Hospital",0,"NA","NA",0,0,0,0,0,0]
["QNX","RXC","EAST SUSSEX HEALTHCARE NHS TRUST","RXCXXX","Non-hospital site",0,"NA","NA",0,0,0,0,0,0]
["QNX","RYR","UNIVERSITY HOSPITALS SUSSEX NHS FOUNDATION TRUST","RYR18","Worthing Hospital",2,"*","*","*","*","*","*","*","*"]
["QOC","RXW","THE SHREWSBURY AND TELFORD HOSPITAL NHS TRUST","RXWXXX","Non-hospital site",67,1,0,63,4,0,0,0,0]
["QOP","RMC","BOLTON NHS FOUNDATION TRUST","RMC01","Royal Bolton Hospital",3,"*","*","*","*","*","*","*","*"]
["QOP","R0A","MANCHESTER UNIVERSITY NHS FOUNDATION TRUST","R0A05","St Mary's Hospital",40,0.95,0,31,7,2,0,0,0]
["QOP","RWJ","STOCKPORT NHS FOUNDATION TRUST","RWJ09","Stepping Hill Hospital",42,0.9285714285714286,2.3809523809523808E-2,27,12,2,1,0,0]
["QOP","RMP","TAMESIDE AND GLOSSOP INTEGRATED CARE NHS FOUNDATION TRUST","RMP01","Tameside General Hospital",51,0.96078431372549022,3.9215686274509803E-2,44,5,0,1,1,0]
["QOP","RRF","WRIGHTINGTON, WIGAN AND LEIGH NHS FOUNDATION TRUST","RRF02","Royal Albert Edward Infirmary",12,1,0,10,2,0,0,0,0]
["QOQ","RCD","HARROGATE AND DISTRICT NHS FOUNDATION TRUST","RCD01","Harrogate District Hospital",7,1,0,"*","*","*","*","*","*"]
["QOQ","RWA","HULL UNIVERSITY TEACHING HOSPITALS NHS TRUST","RWA01","Hull Royal Infirmary",6,1,0,6,0,0,0,0,0]
["QOQ","RJL","NORTHERN LINCOLNSHIRE AND GOOLE NHS FOUNDATION TRUST","RJL30","Diana, Princess Of Wales Hospital",1,"*","*","*","*","*","*","*","*"]
["QOQ","RJL","NORTHERN LINCOLNSHIRE AND GOOLE NHS FOUNDATION TRUST","RJL32","Scunthorpe General Hospital",1,"*","*","*","*","*","*","*","*"]
["QOX","RN3","GREAT WESTERN HOSPITALS NHS FOUNDATION TRUST","RN325","The Great Western Hospital",2,"*","*","*","*","*","*","*","*"]
["QOX","RD1","ROYAL UNITED HOSPITALS BATH NHS FOUNDATION TRUST","RD108","Trowbridge Community Hospital",1,"*","*","*","*","*","*","*","*"]
["QOX","RNZ","SALISBURY NHS FOUNDATION TRUST","RNZ02","Salisbury District Hospital",0,"NA","NA",0,0,0,0,0,0]
["QPM","RNQ","KETTERING GENERAL HOSPITAL NHS FOUNDATION TRUST","RNQ51","Kettering General Hospital",4,"*","*","*","*","*","*","*","*"]
["QPM","RNS","NORTHAMPTON GENERAL HOSPITAL NHS TRUST","RNS01","Northampton General Hospital (Acute)",4,"*","*","*","*","*","*","*","*"]
["QR1","RTE","GLOUCESTERSHIRE HOSPITALS NHS FOUNDATION TRUST","RTE03","Gloucestershire Royal Hospital",0,"NA","NA",0,0,0,0,0,0]
["QR1","RTE","GLOUCESTERSHIRE HOSPITALS NHS FOUNDATION TRUST","RTE27","Stroud Maternity Hospital",0,"NA","NA",0,0,0,0,0,0]
["QRL","RN5","HAMPSHIRE HOSPITALS NHS FOUNDATION TRUST","RN542","Andover War Memorial Hospital",1,"*","*","*","*","*","*","*","*"]
["QRL","RN5","HAMPSHIRE HOSPITALS NHS FOUNDATION TRUST","RN506","Basingstoke and North Hampshire Hospital",1,"*","*","*","*","*","*","*","*"]
["QRL","RN5","HAMPSHIRE HOSPITALS NHS FOUNDATION TRUST","RN541","Royal Hampshire County Hospital",2,"*","*","*","*","*","*","*","*"]
["QRL","R1F","ISLE OF WIGHT NHS TRUST","R1F01","St Mary's Hospital",11,1,0,9,2,0,0,0,0]
["QRL","RHU","PORTSMOUTH HOSPITALS UNIVERSITY NATIONAL HEALTH SERVICE TRUST","RHU10","Gosport War Memorial Hospital",28,0.9285714285714286,0,23,3,1,0,0,1]
["QRL","RHU","PORTSMOUTH HOSPITALS UNIVERSITY NATIONAL HEALTH SERVICE TRUST","RHU04","Petersfield Community Hospital",24,1,0,19,5,0,0,0,0]
["QRL","RHU","PORTSMOUTH HOSPITALS UNIVERSITY NATIONAL HEALTH SERVICE TRUST","RHU03","Queen Alexandra Hospital",0,"NA","NA",0,0,0,0,0,0]
["QRL","RHU","PORTSMOUTH HOSPITALS UNIVERSITY NATIONAL HEALTH SERVICE TRUST","RHU02","St Mary's Hospital",78,0.97435897435897434,0,59,17,2,0,0,0]
["QRL","RHM","UNIVERSITY HOSPITAL SOUTHAMPTON NHS FOUNDATION TRUST","RHM12","Princess Anne Hospital",31,0.90322580645161288,3.2258064516129031E-2,18,10,1,0,1,1]
["QRV","RQM","CHELSEA AND WESTMINSTER HOSPITAL NHS FOUNDATION TRUST","RQM01","Chelsea and Westminster Hospital",20,0.7,0.25,13,1,0,1,4,1]
["QRV","RQM","CHELSEA AND WESTMINSTER HOSPITAL NHS FOUNDATION TRUST","RQM91","West Middlesex University Hospital",13,0.92307692307692313,7.6923076923076927E-2,7,5,0,0,1,0]
["QRV","RYJ","IMPERIAL COLLEGE HEALTHCARE NHS TRUST","RYJ04","Queen Charlotte's Hospital",25,0.76,0.08,16,3,2,0,2,2]
["QRV","RYJ","IMPERIAL COLLEGE HEALTHCARE NHS TRUST","RYJ01","St Mary's Hospital (HQ)",25,0.88,0.12,19,3,0,2,1,0]
["QRV","R1K","LONDON NORTH WEST UNIVERSITY HEALTHCARE NHS TRUST","R1K02","Central Middlesex Hospital",0,"NA","NA",0,0,0,0,0,0]
["QRV","R1K","LONDON NORTH WEST UNIVERSITY HEALTHCARE NHS TRUST","R1K01","Northwick Park Hospital",1,"*","*","*","*","*","*","*","*"]
["QRV","RAS","THE HILLINGDON HOSPITALS NHS FOUNDATION TRUST","RAS01","Hillingdon Hospital",162,0.86419753086419748,6.7901234567901231E-2,"*","*","*","*","*","*"]
["QSL","RH5","SOMERSET NHS FOUNDATION TRUST","RH5K6","Bridgwater Hospital",0,"NA","NA",0,0,0,0,0,0]
["QSL","RH5","SOMERSET NHS FOUNDATION TRUST","RH5A8","MUSGROVE PARK HOSPITAL",0,"NA","NA",0,0,0,0,0,0]
["QSL","RH5","SOMERSET NHS FOUNDATION TRUST","RH5XXX","WiC MIU - RH5XXX",0,"NA","NA",0,0,0,0,0,0]
["QSL","RA4","YEOVIL DISTRICT HOSPITAL NHS FOUNDATION TRUST","RA430","Yeovil District Hospital",21,0.90476190476190477,9.5238095238095233E-2,17,2,0,0,2,0]
["QT1","RX1","NOTTINGHAM UNIVERSITY HOSPITALS NHS TRUST","RX1XXX","Non-hospital site",11,0.81818181818181823,0.18181818181818182,8,1,0,0,2,0]
["QT1","RK5","SHERWOOD FOREST HOSPITALS NHS FOUNDATION TRUST","RK5BC","King's Mill Hospital",16,0.8125,6.25E-2,12,1,2,0,1,0]
["QT6","REF","ROYAL CORNWALL HOSPITALS NHS TRUST","REFXXX","Non-hospital site",0,"NA","NA",0,0,0,0,0,0]
["QT6","REF","ROYAL CORNWALL HOSPITALS NHS TRUST","REF12","Royal Cornwall Hospital (Treliske)",7,1,0,6,1,0,0,0,0]
["QU9","RXQ","BUCKINGHAMSHIRE HEALTHCARE NHS TRUST","RXQ02","Stoke Mandeville Hospital",63,0.80952380952380953,0.1111111111111111,42,9,5,4,3,0]
["QU9","RXQ","BUCKINGHAMSHIRE HEALTHCARE NHS TRUST","RXQ50","Wycombe Hospital",51,0.84313725490196079,9.8039215686274508E-2,34,9,3,4,1,0]
["QU9","RTH","OXFORD UNIVERSITY HOSPITALS NHS FOUNDATION TRUST","RTH05","Horton General Hospital",8,0.875,0,7,0,1,0,0,0]
["QU9","RTH","OXFORD UNIVERSITY HOSPITALS NHS FOUNDATION TRUST","RTH08","John Radcliffe Hospital",0,"NA","NA",0,0,0,0,0,0]
["QU9","RHW","ROYAL BERKSHIRE NHS FOUNDATION TRUST","RHW01","Royal Berkshire Hospital",0,"NA","NA",0,0,0,0,0,0]
["QUA","RNA","THE DUDLEY GROUP NHS FOUNDATION TRUST","RNA01","Russells Hall Hospital",0,"NA","NA",0,0,0,0,0,0]
["QUA","RL4","THE ROYAL WOLVERHAMPTON NHS TRUST","RL403","New Cross Hospital",16,0.875,6.25E-2,8,6,1,0,1,0]
["QUA","RBK","WALSALL HEALTHCARE NHS TRUST","RBK02","Manor Hospital",10,0.9,0,9,0,1,0,0,0]
["QUE","RGT","CAMBRIDGE UNIVERSITY HOSPITALS NHS FOUNDATION TRUST","RGT32","Rosie Hospital",9,1,0,7,2,0,0,0,0]
["QUE","RGN","NORTH WEST ANGLIA NHS FOUNDATION TRUST","RGN90","Hinchingbrooke Hospital",123,0.98373983739837401,8.130081300813009E-3,111,10,1,1,0,0]
["QUE","RGN","NORTH WEST ANGLIA NHS FOUNDATION TRUST","RGN80","Peterborough City Hospital",31,0.93548387096774188,3.2258064516129031E-2,27,2,1,0,1,0]
["QUY","RVJ","NORTH BRISTOL NHS TRUST","RVJ01","Southmead Hospital",0,"NA","NA",0,0,0,0,0,0]
["QUY","RA7","UNIVERSITY HOSPITALS BRISTOL AND WESTON NHS FOUNDATION TRUST","RA707","St Michael's Hospital",30,1,0,28,2,0,0,0,0]
["QVV","RBD","DORSET COUNTY HOSPITAL NHS FOUNDATION TRUST","RBD01","Dorset County Hospital",14,0.9285714285714286,7.1428571428571425E-2,10,3,0,0,1,0]
["QVV","R0D","UNIVERSITY HOSPITALS DORSET NHS FOUNDATION TRUST","R0D01","Poole Hospital",32,0.875,9.375E-2,20,8,1,2,1,0]
["QVV","R0D","UNIVERSITY HOSPITALS DORSET NHS FOUNDATION TRUST","R0D02","Royal Bournemouth Hospital",31,0.90322580645161288,0,25,3,3,0,0,0]
["QWE","RJ6","CROYDON HEALTH SERVICES NHS TRUST","RJ611","Croydon University Hospital",65,0.93846153846153846,4.6153846153846156E-2,43,18,1,0,3,0]
["QWE","RVR","EPSOM AND ST HELIER UNIVERSITY HOSPITALS NHS TRUST","RVR50","Epsom Hospital",5,1,0,5,0,0,0,0,0]
["QWE","RVR","EPSOM AND ST HELIER UNIVERSITY HOSPITALS NHS TRUST","RVRXXX","Non-hospital site",0,"NA","NA",0,0,0,0,0,0]
["QWE","RVR","EPSOM AND ST HELIER UNIVERSITY HOSPITALS NHS TRUST","RVR05","St Helier Hospital",5,1,0,5,0,0,0,0,0]
["QWE","RAX","KINGSTON HOSPITAL NHS FOUNDATION TRUST","RAX01","Kingston Hospital",28,0.8928571428571429,7.1428571428571425E-2,22,3,1,1,1,0]
["QWE","RJ7","ST GEORGE'S UNIVERSITY HOSPITALS NHS FOUNDATION TRUST","RJ701","St George's Hospital (Tooting)",1,"*","*","*","*","*","*","*","*"]
["QWO","RCF","AIREDALE NHS FOUNDATION TRUST","RCF22","Airedale General Hospital",0,"NA","NA",0,0,0,0,0,0]
["QWO","RAE","BRADFORD TEACHING HOSPITALS NHS FOUNDATION TRUST","RAE01","Bradford Royal Infirmary",0,"NA","NA",0,0,0,0,0,0]
["QWO","RAE","BRADFORD TEACHING HOSPITALS NHS FOUNDATION TRUST","RAEXXX","Non-hospital site",0,"NA","NA",0,0,0,0,0,0]
["QWO","RWY","CALDERDALE AND HUDDERSFIELD NHS FOUNDATION TRUST","RWY02","Calderdale Royal Hospital",46,1,0,45,1,0,0,0,0]
["QWO","RWY","CALDERDALE AND HUDDERSFIELD NHS FOUNDATION TRUST","RWY01","Huddersfield Royal Infirmary",7,1,0,"*","*","*","*","*","*"]
["QWO","RWY","CALDERDALE AND HUDDERSFIELD NHS FOUNDATION TRUST","RWYXXX","Non-hospital site",1,"*","*","*","*","*","*","*","*"]
["QWO","RR8","LEEDS TEACHING HOSPITALS NHS TRUST","RR8XXX","Non-hospital site",2,"*","*","*","*","*","*","*","*"]
["QWO","RR8","LEEDS TEACHING HOSPITALS NHS TRUST","RR813","St James's University Hospital",1,"*","*","*","*","*","*","*","*"]
["QWO","RXF","MID YORKSHIRE HOSPITALS NHS TRUST","RXF10","Dewsbury and District Hospital",88,1,0,72,16,0,0,0,0]
["QWO","RXF","MID YORKSHIRE HOSPITALS NHS TRUST","RXF05","Pinderfields General Hospital",286,0.94055944055944052,3.4965034965034968E-2,230,39,6,4,6,1]
["QWO","RXF","MID YORKSHIRE HOSPITALS NHS TRUST","RXF03","Pontefract General Infirmary",44,0.97727272727272729,2.2727272727272728E-2,42,1,0,1,0,0]
["QWU","RLT","GEORGE ELIOT HOSPITAL NHS TRUST","RLT01","George Eliot Hospital - Acute Services",3,"*","*","*","*","*","*","*","*"]
["QWU","RJC","SOUTH WARWICKSHIRE NHS FOUNDATION TRUST","RJCXXX","Non-hospital site",2,"*","*","*","*","*","*","*","*"]
["QWU","RKB","UNIVERSITY HOSPITALS COVENTRY AND WARWICKSHIRE NHS TRUST","RKB02","Coventry and Warwickshire Hospital",1,"*","*","*","*","*","*","*","*"]
["QWU","RKB","UNIVERSITY HOSPITALS COVENTRY AND WARWICKSHIRE NHS TRUST","RKB03","Hospital Of St Cross",0,"NA","NA",0,0,0,0,0,0]
["QWU","RKB","UNIVERSITY HOSPITALS COVENTRY AND WARWICKSHIRE NHS TRUST","RKBXXX","Non-hospital site",0,"NA","NA",0,0,0,0,0,0]
["QXU","RTK","ASHFORD AND ST PETER'S HOSPITALS NHS FOUNDATION TRUST","RTK02","Ashford Hospital",0,"NA","NA",0,0,0,0,0,0]
["QXU","RA2","ROYAL SURREY COUNTY HOSPITAL NHS FOUNDATION TRUST","RA201","Royal Surrey County Hospital",2,"*","*","*","*","*","*","*","*"]
["QXU","RTP","SURREY AND SUSSEX HEALTHCARE NHS TRUST","RTP04","East Surrey Hospital",1,"*","*","*","*","*","*","*","*"]
["QYG","RJN","EAST CHESHIRE NHS TRUST","RJN71","Macclesfield District General Hospital",0,"NA","NA",0,0,0,0,0,0]
["QYG","REP","LIVERPOOL WOMEN'S NHS FOUNDATION TRUST","REP01","Liverpool Womens Hospital",15,0.8666666666666667,6.6666666666666666E-2,10,3,0,1,0,1]
["QYG","RBT","MID CHESHIRE HOSPITALS NHS FOUNDATION TRUST","RBT20","Leighton Hospital",26,0.96153846153846156,0,22,3,0,0,0,1]
["QYG","RVY","SOUTHPORT AND ORMSKIRK HOSPITAL NHS TRUST","RVY02","Ormskirk and District General Hospital",1,"*","*","*","*","*","*","*","*"]
["QYG","RBN","ST HELENS AND KNOWSLEY TEACHING HOSPITALS NHS TRUST","RBN01","Whiston Hospital",61,0.93442622950819676,1.6393442622950821E-2,47,10,3,1,0,0]
["QYG","RWW","WARRINGTON AND HALTON TEACHING HOSPITALS NHS FOUNDATION TRUST","RWWWH","Warrington Hospital",0,"NA","NA",0,0,0,0,0,0]
["QYG","RBL","WIRRAL UNIVERSITY TEACHING HOSPITAL NHS FOUNDATION TRUST","RBL14","Arrowe Park Hospital",37,0.94594594594594594,2.7027027027027029E-2,32,3,1,0,1,0]

{"sheet":"STP Q2","index":5,"n_rows":55,"n_cols":12,"rows_kept":55,"cut":false,"hidden":false,"merged":[[8,6,8,11],[8,0,9,0],[8,1,9,1],[8,2,9,2],[8,3,9,3],[8,4,9,4],[8,5,9,5]]}
[]
[]
[]
[]
[]
[null,"   Sort data by:           "]
[]
[]
["STP Code","STP Name","Total Responses","Total Eligible","Percentage Positive","Percentage Negative","Breakdown of Responses"]
[null,null,null,null,null,null,"Very Good","Good","Neither Good nor Poor","Poor","Very Poor","Don't Know"]
[null,"England (including Independent Sector providers)",3881,42573,0.93790260242205614,3.8649832517392423E-2,3063,577,74,58,92,17]
[null,"England (excluding Independent Sector providers)",3881,42573,0.93790260242205614,3.8649832517392423E-2,3063,577,74,58,92,17]
[null,"Selection (excluding suppressed data)",{"$f":"SUBTOTAL(9,C14:C400)","v":3881},{"$f":"SUBTOTAL(9,D14:D400)","v":42573},{"$f":"IFERROR((G13+H13)/SUM(G13:L13), \"-\")","v":0.93730074388947926},{"$f":"IFERROR((J13+K13)/SUM(G13:L13), \"-\")","v":3.9585547290116894E-2},{"$f":"SUBTOTAL(9,G14:G400)","v":2963},{"$f":"SUBTOTAL(9,H14:H400)","v":565},70,58,91,17]
["QE1","HEALTHIER LANCASHIRE AND SOUTH CUMBRIA",88,1240,0.95454545454545459,4.5454545454545456E-2,70,14,0,2,2,0]
["QF7","SOUTH YORKSHIRE AND BASSETLAW STP",87,1299,0.87356321839080464,0.11494252873563218,62,14,1,4,6,0]
["QGH","HEREFORDSHIRE AND WORCESTERSHIRE STP",17,181,1,0,17,0,0,0,0,0]
["QH8","MID AND SOUTH ESSEX STP",95,694,0.88421052631578945,8.4210526315789472E-2,73,11,3,3,5,0]
["QHG","BEDFORDSHIRE, LUTON AND MILTON KEYNES STP",33,1293,0.93939393939393945,3.0303030303030304E-2,26,5,0,1,0,1]
["QHL","BIRMINGHAM AND SOLIHULL STP",79,1433,0.84810126582278478,7.5949367088607597E-2,48,19,5,1,5,1]
["QHM","CUMBRIA AND NORTH EAST STP",89,1986,0.9550561797752809,0,"*","*","*","*","*","*"]
["QJ2","JOINED UP CARE DERBYSHIRE STP",1,240,"*","*","*","*","*","*","*","*"]
["QJG","SUFFOLK AND NORTH EAST ESSEX ICS",4,896,"*","*","*","*","*","*","*","*"]
["QJK","DEVON STP",8,628,0.875,0,7,0,0,0,0,1]
["QJM","LINCOLNSHIRE STP",23,397,1,0,21,2,0,0,0,0]
["QK1","LEICESTER, LEICESTERSHIRE AND RUTLAND STP",239,759,0.97489539748953979,1.2552301255230125E-2,192,41,1,1,2,2]
["QKK","OUR HEALTHIER SOUTH EAST LONDON STP",119,1751,0.86554621848739499,4.2016806722689079E-2,66,37,10,4,1,1]
["QKS","KENT AND MEDWAY STP",98,1189,1,0,97,1,0,0,0,0]
["QM7","HERTFORDSHIRE AND WEST ESSEX STP",129,1082,0.93798449612403101,3.1007751937984496E-2,96,25,4,2,2,0]
["QMF","EAST LONDON HEALTH & CARE PARTNERSHIP (STP)",183,2231,0.92896174863387981,4.3715846994535519E-2,155,15,5,1,7,0]
["QMJ","NORTH LONDON PARTNERS IN HEALTH & CARE (STP)",145,1568,0.94482758620689655,3.4482758620689655E-2,64,73,3,3,2,0]
["QMM","NORFOLK AND WAVENEY HEALTH & CARE PARTNERSHIP (STP)",19,718,1,0,"*","*","*","*","*","*"]
["QNC","STAFFORDSHIRE & STOKE ON TRENT STP",4,531,"*","*","*","*","*","*","*","*"]
["QNQ","FRIMLEY HEALTH & CARE (STP)",16,493,0.9375,0,14,1,1,0,0,0]
["QNX","SUSSEX HEALTH AND CARE PARTNERSHIP",82,963,0.96341463414634143,3.6585365853658534E-2,71,8,0,1,2,0]
["QOC","SHROPSHIRE AND TELFORD AND WREKIN STP",21,328,1,0,21,0,0,0,0,0]
["QOP","GREATER MANCHESTER HEALTH & SOCIAL CARE PARTNERSHIP",233,2345,0.88841201716738194,8.15450643776824E-2,173,34,6,3,16,1]
["QOQ","HUMBER, COAST AND VALE STP",143,1180,0.94405594405594406,5.5944055944055944E-2,122,13,0,2,6,0]
["QOX","BATH AND NORTH EAST SOMERSET, SWINDON AND WILTSHIRE STP",9,794,1,0,9,0,0,0,0,0]
["QPM","NORTHAMPTONSHIRE STP",6,645,1,0,6,0,0,0,0,0]
["QR1","GLOUCESTERSHIRE STP",36,67,0.88888888888888884,5.5555555555555552E-2,26,6,2,1,1,0]
["QRL","HAMPSHIRE AND THE ISLE OF WIGHT STP",193,1383,0.97409326424870468,1.5544041450777202E-2,175,13,2,1,2,0]
["QRV","NORTH WEST LONDON HEALTH & CARE PARTNERSHIP (STP)",199,1490,0.90954773869346739,7.5376884422110546E-2,152,29,3,8,7,0]
["QSL","SOMERSET STP",25,357,1,0,20,5,0,0,0,0]
["QT1","NOTTINGHAM AND NOTTINGHAMSHIRE HEALTH AND CARE STP",41,901,0.85365853658536583,9.7560975609756101E-2,29,6,2,2,2,0]
["QT6","CORNWALL AND THE ISLES OF SCILLY HEALTH & SOCIAL CARE PARTNERSHIP (STP)",20,338,1,0,18,2,0,0,0,0]
["QU9","BUCKINGHAMSHIRE, OXFORDSHIRE AND BERKSHIRE WEST STP",34,945,0.91176470588235292,5.8823529411764705E-2,28,3,1,1,1,0]
["QUA","THE BLACK COUNTRY AND WEST BIRMINGHAM STP",78,929,0.85897435897435892,0.10256410256410256,56,11,2,4,4,1]
["QUE","CAMBRIDGESHIRE AND PETERBOROUGH STP",45,927,0.97777777777777775,2.2222222222222223E-2,41,3,0,1,0,0]
["QUY","BRISTOL, NORTH SOMERSET AND SOUTH GLOUCESTERSHIRE STP",105,867,0.95238095238095233,1.9047619047619049E-2,83,17,2,1,1,1]
["QVV","DORSET STP",180,442,0.9555555555555556,2.2222222222222223E-2,154,18,2,2,2,2]
["QWE","SOUTH WEST LONDON HEALTH & CARE PARTNERSHIP (STP)",103,1365,0.88349514563106801,6.7961165048543687E-2,72,19,4,2,5,1]
["QWO","WEST YORKSHIRE AND HARROGATE HEALTH & CARE PARTNERSHIP (STP)",552,2001,0.97463768115942029,1.2681159420289856E-2,463,75,5,2,5,2]
["QWU","COVENTRY AND WARWICKSHIRE STP",76,917,0.92105263157894735,5.2631578947368418E-2,61,9,2,3,1,0]
["QXU","SURREY HEARTLANDS HEALTH & CARE PARTNERSHIP (STP)",40,877,1,0,35,5,0,0,0,0]
["QYG","CHESHIRE AND MERSEYSIDE STP",184,1903,0.92934782608695654,3.2608695652173912E-2,140,31,4,2,4,3]

{"sheet":"Trusts Q2","index":6,"n_rows":130,"n_cols":21,"rows_kept":130,"cut":false,"hidden":false,"merged":[[8,6,9,6],[8,7,8,12],[8,13,8,20],[8,0,9,0],[8,1,9,1],[8,2,9,2],[8,3,9,3],[8,4,9,4],[8,5,9,5]]}
[]
[]
[]
[]
[]
[null,"   Sort data by:           "]
[]
[]
["STP Code","Trust Code","Trust Name","Total Responses","Total Eligible","Percentage Positive","Percentage Negative","Breakdown of Responses",null,null,null,null,null,"Mode of Collection"]
[null,null,null,null,null,null,null,"Very Good","Good","Neither Good nor Poor","Poor","Very Poor","Don't Know","Mode SMS","Mode Electronic Discharge","Mode Electronic Home","Mode Paper Discharge","Mode Paper Home","Mode Telephone","Mode Online","Mode Other"]
[null,null,"England (including Independent Sector providers)",3881,42573,0.93790260242205614,3.8649832517392423E-2,3063,577,74,58,92,17,1588,769,37,1081,9,12,326,59]
[null,null,"England (excluding Independent Sector providers)",3881,42573,0.93790260242205614,3.8649832517392423E-2,3063,577,74,58,92,17,1588,769,37,1081,9,12,326,59]
[null,null,"Selection (excluding suppressed data)",{"$f":"SUBTOTAL(9,D14:D299)","v":3881},{"$f":"SUBTOTAL(9,E14:E299)","v":42573},{"$f":"IFERROR((H13+I13)/SUM(H13:M13), \"-\")","v":0.93935159306875349},{"$f":"IFERROR((K13+L13)/SUM(H13:M13), \"-\")","v":3.6892118501956402E-2},{"$f":"SUBTOTAL(9,H14:H299)","v":2820},541,70,51,81,15,{"$f":"SUBTOTAL(9,N14:N299)","v":1455},763,37,998,7,1,258,{"$f":"SUBTOTAL(9,U14:U299)","v":59}]
["QE1","RXL","BLACKPOOL TEACHING HOSPITALS NHS FOUNDATION TRUST",0,210,"NA","NA",0,0,0,0,0,0,0,0,0,0,0,0,0,0]
["QE1","RXR","EAST LANCASHIRE HOSPITALS NHS TRUST",42,506,0.9285714285714286,7.1428571428571425E-2,32,7,0,2,1,0,40,0,0,2,0,0,0,0]
["QE1","RXN","LANCASHIRE TEACHING HOSPITALS NHS FOUNDATION TRUST",9,186,1,0,8,1,0,0,0,0,9,0,0,0,0,0,0,0]
["QE1","RTX","UNIVERSITY HOSPITALS OF MORECAMBE BAY NHS FOUNDATION TRUST",37,338,0.97297297297297303,2.7027027027027029E-2,30,6,0,0,1,0,37,0,0,0,0,0,0,0]
["QF7","RFF","BARNSLEY HOSPITAL NHS FOUNDATION TRUST",2,214,"*","*","*","*","*","*","*","*","*","*","*","*","*","*","*","*"]
["QF7","RP5","DONCASTER AND BASSETLAW TEACHING HOSPITALS NHS FOUNDATION TRUST",0,395,"NA","NA",0,0,0,0,0,0,0,0,0,0,0,0,0,0]
["QF7","RHQ","SHEFFIELD TEACHING HOSPITALS NHS FOUNDATION TRUST",82,476,0.86585365853658536,0.12195121951219512,"*","*","*","*","*","*","*","*","*","*","*","*","*","*"]
["QF7","RFR","THE ROTHERHAM NHS FOUNDATION TRUST",3,214,"*","*","*","*","*","*","*","*","*","*","*","*","*","*","*","*"]
["QGH","RWP","WORCESTERSHIRE ACUTE HOSPITALS NHS TRUST",16,181,1,0,16,0,0,0,0,0,0,16,0,0,0,0,0,0]
["QGH","RLQ","WYE VALLEY NHS TRUST",1,0,"*","*","*","*","*","*","*","*","*","*","*","*","*","*","*","*"]
["QH8","RAJ","MID AND SOUTH ESSEX NHS FOUNDATION TRUST",95,694,0.88421052631578945,8.4210526315789472E-2,73,11,3,3,5,0,95,0,0,0,0,0,0,0]
["QHG","RC9","BEDFORDSHIRE HOSPITALS NHS FOUNDATION TRUST",10,982,0.9,0.1,8,1,0,1,0,0,0,10,0,0,0,0,0,0]
["QHG","RD8","MILTON KEYNES UNIVERSITY HOSPITAL NHS FOUNDATION TRUST",23,311,0.95652173913043481,0,18,4,0,0,0,1,1,0,0,16,0,0,6,0]
["QHL","RQ3","BIRMINGHAM WOMEN'S AND CHILDREN'S NHS FOUNDATION TRUST",2,592,"*","*","*","*","*","*","*","*","*","*","*","*","*","*","*","*"]
["QHL","RRK","UNIVERSITY HOSPITALS BIRMINGHAM NHS FOUNDATION TRUST",77,841,0.8441558441558441,7.792207792207792E-2,47,18,5,1,5,1,77,0,0,0,0,0,0,0]
["QHM","RR7","GATESHEAD HEALTH NHS FOUNDATION TRUST",5,171,1,0,"*","*","*","*","*","*","*","*","*","*","*","*","*","*"]
["QHM","RNN","NORTH CUMBRIA INTEGRATED CARE NHS FOUNDATION TRUST",11,216,1,0,"*","*","*","*","*","*","*","*","*","*","*","*","*","*"]
["QHM","RVW","NORTH TEES AND HARTLEPOOL NHS FOUNDATION TRUST",10,252,1,0,"*","*","*","*","*","*","*","*","*","*","*","*","*","*"]
["QHM","RTF","NORTHUMBRIA HEALTHCARE NHS FOUNDATION TRUST",48,266,0.91666666666666663,0,37,7,4,0,0,0,37,0,0,11,0,0,0,0]
["QHM","RTR","SOUTH TEES HOSPITALS NHS FOUNDATION TRUST",0,295,"NA","NA",0,0,0,0,0,0,0,0,0,0,0,0,0,0]
["QHM","R0B","SOUTH TYNESIDE AND SUNDERLAND NHS FOUNDATION TRUST",0,332,"NA","NA",0,0,0,0,0,0,0,0,0,0,0,0,0,0]
["QHM","RTD","THE NEWCASTLE UPON TYNE HOSPITALS NHS FOUNDATION TRUST",15,454,1,0,"*","*","*","*","*","*","*","*","*","*","*","*","*","*"]
["QJ2","RTG","UNIVERSITY HOSPITALS OF DERBY AND BURTON NHS FOUNDATION TRUST",1,240,"*","*","*","*","*","*","*","*","*","*","*","*","*","*","*","*"]
["QJG","RDE","EAST SUFFOLK AND NORTH ESSEX NHS FOUNDATION TRUST",4,585,"*","*","*","*","*","*","*","*","*","*","*","*","*","*","*","*"]
["QJG","RGR","WEST SUFFOLK NHS FOUNDATION TRUST",0,311,"NA","NA",0,0,0,0,0,0,0,0,0,0,0,0,0,0]
["QJK","RBZ","NORTHERN DEVON HEALTHCARE NHS TRUST",0,101,"NA","NA",0,0,0,0,0,0,0,0,0,0,0,0,0,0]
["QJK","RH8","ROYAL DEVON AND EXETER NHS FOUNDATION TRUST",0,289,"NA","NA",0,0,0,0,0,0,0,0,0,0,0,0,0,0]
["QJK","RA9","TORBAY AND SOUTH DEVON NHS FOUNDATION TRUST",2,160,"*","*","*","*","*","*","*","*","*","*","*","*","*","*","*","*"]
["QJK","RK9","UNIVERSITY HOSPITALS PLYMOUTH NHS TRUST",6,78,0.83333333333333337,0,5,0,0,0,0,1,0,5,0,1,0,0,0,0]
["QJM","RWD","UNITED LINCOLNSHIRE HOSPITALS NHS TRUST",23,397,1,0,21,2,0,0,0,0,0,0,0,23,0,0,0,0]
["QK1","RWE","UNIVERSITY HOSPITALS OF LEICESTER NHS TRUST",239,759,0.97489539748953979,1.2552301255230125E-2,192,41,1,1,2,2,0,239,0,0,0,0,0,0]
["QKK","RJ1","GUY'S AND ST THOMAS' NHS FOUNDATION TRUST",35,522,0.94285714285714284,0,26,7,2,0,0,0,0,0,0,28,0,0,7,0]
["QKK","RJZ","KING'S COLLEGE HOSPITAL NHS FOUNDATION TRUST",80,629,0.83750000000000002,6.25E-2,38,29,8,4,1,0,62,10,0,0,0,0,8,0]
["QKK","RJ2","LEWISHAM AND GREENWICH NHS TRUST",4,600,"*","*","*","*","*","*","*","*","*","*","*","*","*","*","*","*"]
["QKS","RN7","DARTFORD AND GRAVESHAM NHS TRUST",0,344,"NA","NA",0,0,0,0,0,0,0,0,0,0,0,0,0,0]
["QKS","RWF","MAIDSTONE AND TUNBRIDGE WELLS NHS TRUST",13,461,1,0,12,1,0,0,0,0,0,1,0,0,0,0,12,0]
["QKS","RPA","MEDWAY NHS FOUNDATION TRUST",85,384,1,0,85,0,0,0,0,0,0,0,0,85,0,0,0,0]
["QM7","RWH","EAST AND NORTH HERTFORDSHIRE NHS TRUST",90,428,0.9555555555555556,2.2222222222222223E-2,67,19,2,1,1,0,0,90,0,0,0,0,0,0]
["QM7","RQW","THE PRINCESS ALEXANDRA HOSPITAL NHS TRUST",15,314,0.8,6.6666666666666666E-2,9,3,2,1,0,0,0,0,0,0,0,0,0,15]
["QM7","RWG","WEST HERTFORDSHIRE TEACHING HOSPITALS NHS TRUST",24,340,0.95833333333333337,4.1666666666666664E-2,20,3,0,0,1,0,0,24,0,0,0,0,0,0]
["QMF","RF4","BARKING, HAVERING AND REDBRIDGE UNIVERSITY HOSPITALS NHS TRUST",34,563,0.94117647058823528,2.9411764705882353E-2,32,0,1,0,1,0,0,0,0,31,0,0,3,0]
["QMF","R1H","BARTS HEALTH NHS TRUST",83,1210,0.91566265060240959,4.8192771084337352E-2,66,10,3,0,4,0,19,0,0,63,0,0,1,0]
["QMF","RQX","HOMERTON UNIVERSITY HOSPITAL NHS FOUNDATION TRUST",66,458,0.93939393939393945,4.5454545454545456E-2,57,5,1,1,2,0,66,0,0,0,0,0,0,0]
["QMJ","RAP","NORTH MIDDLESEX UNIVERSITY HOSPITAL NHS TRUST",0,214,"NA","NA",0,0,0,0,0,0,0,0,0,0,0,0,0,0]
["QMJ","RAL","ROYAL FREE LONDON NHS FOUNDATION TRUST",99,639,0.92929292929292928,4.0404040404040407E-2,57,35,3,2,2,0,0,97,0,0,0,0,2,0]
["QMJ","RRV","UNIVERSITY COLLEGE LONDON HOSPITALS NHS FOUNDATION TRUST",1,438,"*","*","*","*","*","*","*","*","*","*","*","*","*","*","*","*"]
["QMJ","RKE","WHITTINGTON HEALTH NHS TRUST",45,277,0.97777777777777775,2.2222222222222223E-2,6,38,0,1,0,0,0,0,0,45,0,0,0,0]
["QMM","RGP","JAMES PAGET UNIVERSITY HOSPITALS NHS FOUNDATION TRUST",8,148,1,0,"*","*","*","*","*","*","*","*","*","*","*","*","*","*"]
["QMM","RM1","NORFOLK AND NORWICH UNIVERSITY HOSPITALS NHS FOUNDATION TRUST",2,429,"*","*","*","*","*","*","*","*","*","*","*","*","*","*","*","*"]
["QMM","RCX","THE QUEEN ELIZABETH HOSPITAL, KING'S LYNN, NHS FOUNDATION TRUST",9,141,1,0,"*","*","*","*","*","*","*","*","*","*","*","*","*","*"]
["QNC","RJE","UNIVERSITY HOSPITALS OF NORTH MIDLANDS NHS TRUST",4,531,"*","*","*","*","*","*","*","*","*","*","*","*","*","*","*","*"]
["QNQ","RDU","FRIMLEY HEALTH NHS FOUNDATION TRUST",16,493,0.9375,0,14,1,1,0,0,0,4,0,0,12,0,0,0,0]
["QNX","RXC","EAST SUSSEX HEALTHCARE NHS TRUST",1,213,"*","*","*","*","*","*","*","*","*","*","*","*","*","*","*","*"]
["QNX","RYR","UNIVERSITY HOSPITALS SUSSEX NHS FOUNDATION TRUST",81,750,0.96296296296296291,3.7037037037037035E-2,"*","*","*","*","*","*","*","*","*","*","*","*","*","*"]
["QOC","RXW","THE SHREWSBURY AND TELFORD HOSPITAL NHS TRUST",21,328,1,0,21,0,0,0,0,0,0,0,0,21,0,0,0,0]
["QOP","RMC","BOLTON NHS FOUNDATION TRUST",143,484,0.82517482517482521,0.12587412587412589,89,29,6,2,16,1,142,1,0,0,0,0,0,0]
["QOP","R0A","MANCHESTER UNIVERSITY NHS FOUNDATION TRUST",16,1202,0.9375,6.25E-2,14,1,0,1,0,0,0,12,0,4,0,0,0,0]
["QOP","RWJ","STOCKPORT NHS FOUNDATION TRUST",16,292,1,0,16,0,0,0,0,0,0,0,0,16,0,0,0,0]
["QOP","RMP","TAMESIDE AND GLOSSOP INTEGRATED CARE NHS FOUNDATION TRUST",3,161,"*","*","*","*","*","*","*","*","*","*","*","*","*","*","*","*"]
["QOP","RRF","WRIGHTINGTON, WIGAN AND LEIGH NHS FOUNDATION TRUST",55,206,1,0,51,4,0,0,0,0,0,0,0,54,0,0,1,0]
["QOQ","RCD","HARROGATE AND DISTRICT NHS FOUNDATION TRUST",7,153,1,0,7,0,0,0,0,0,0,0,0,7,0,0,0,0]
["QOQ","RWA","HULL UNIVERSITY TEACHING HOSPITALS NHS TRUST",6,392,1,0,5,1,0,0,0,0,0,0,0,6,0,0,0,0]
["QOQ","RJL","NORTHERN LINCOLNSHIRE AND GOOLE NHS FOUNDATION TRUST",93,313,0.93548387096774188,6.4516129032258063E-2,80,7,0,0,6,0,0,0,0,92,0,0,1,0]
["QOQ","RCB","YORK AND SCARBOROUGH TEACHING HOSPITALS NHS FOUNDATION TRUST",37,322,0.94594594594594594,5.4054054054054057E-2,30,5,0,2,0,0,0,0,0,37,0,0,0,0]
["QOX","RN3","GREAT WESTERN HOSPITALS NHS FOUNDATION TRUST",6,328,1,0,"*","*","*","*","*","*","*","*","*","*","*","*","*","*"]
["QOX","RD1","ROYAL UNITED HOSPITALS BATH NHS FOUNDATION TRUST",3,327,"*","*","*","*","*","*","*","*","*","*","*","*","*","*","*","*"]
["QOX","RNZ","SALISBURY NHS FOUNDATION TRUST",0,139,"NA","NA",0,0,0,0,0,0,0,0,0,0,0,0,0,0]
["QPM","RNQ","KETTERING GENERAL HOSPITAL NHS FOUNDATION TRUST",0,270,"NA","NA",0,0,0,0,0,0,0,0,0,0,0,0,0,0]
["QPM","RNS","NORTHAMPTON GENERAL HOSPITAL NHS TRUST",6,375,1,0,6,0,0,0,0,0,0,0,0,6,0,0,0,0]
["QR1","RTE","GLOUCESTERSHIRE HOSPITALS NHS FOUNDATION TRUST",36,67,0.88888888888888884,5.5555555555555552E-2,26,6,2,1,1,0,35,0,0,0,0,0,1,0]
["QRL","RN5","HAMPSHIRE HOSPITALS NHS FOUNDATION TRUST",142,398,0.99295774647887325,0,131,10,1,0,0,0,0,0,0,137,0,0,5,0]
["QRL","R1F","ISLE OF WIGHT NHS TRUST",13,67,1,0,12,1,0,0,0,0,0,0,0,13,0,0,0,0]
["QRL","RHU","PORTSMOUTH HOSPITALS UNIVERSITY NATIONAL HEALTH SERVICE TRUST",7,438,1,0,7,0,0,0,0,0,0,0,0,7,0,0,0,0]
["QRL","RHM","UNIVERSITY HOSPITAL SOUTHAMPTON NHS FOUNDATION TRUST",31,480,0.87096774193548387,9.6774193548387094E-2,25,2,1,1,2,0,0,0,0,0,7,0,24,0]
["QRV","RQM","CHELSEA AND WESTMINSTER HOSPITAL NHS FOUNDATION TRUST",51,155,0.92156862745098034,3.9215686274509803E-2,41,6,2,0,2,0,48,0,0,0,0,0,3,0]
["QRV","RYJ","IMPERIAL COLLEGE HEALTHCARE NHS TRUST",118,688,0.90677966101694918,9.3220338983050849E-2,89,18,0,7,4,0,0,0,37,11,0,0,70,0]
["QRV","R1K","LONDON NORTH WEST UNIVERSITY HEALTHCARE NHS TRUST",1,338,"*","*","*","*","*","*","*","*","*","*","*","*","*","*","*","*"]
["QRV","RAS","THE HILLINGDON HOSPITALS NHS FOUNDATION TRUST",29,309,0.89655172413793105,6.8965517241379309E-2,"*","*","*","*","*","*","*","*","*","*","*","*","*","*"]
["QSL","RH5","SOMERSET NHS FOUNDATION TRUST",9,245,1,0,7,2,0,0,0,0,0,0,0,9,0,0,0,0]
["QSL","RA4","YEOVIL DISTRICT HOSPITAL NHS FOUNDATION TRUST",16,112,1,0,13,3,0,0,0,0,10,6,0,0,0,0,0,0]
["QT1","RX1","NOTTINGHAM UNIVERSITY HOSPITALS NHS TRUST",3,641,"*","*","*","*","*","*","*","*","*","*","*","*","*","*","*","*"]
["QT1","RK5","SHERWOOD FOREST HOSPITALS NHS FOUNDATION TRUST",38,260,0.84210526315789469,0.10526315789473684,27,5,2,2,2,0,38,0,0,0,0,0,0,0]
["QT6","REF","ROYAL CORNWALL HOSPITALS NHS TRUST",20,338,1,0,18,2,0,0,0,0,0,20,0,0,0,0,0,0]
["QU9","RXQ","BUCKINGHAMSHIRE HEALTHCARE NHS TRUST",4,110,"*","*","*","*","*","*","*","*","*","*","*","*","*","*","*","*"]
["QU9","RTH","OXFORD UNIVERSITY HOSPITALS NHS FOUNDATION TRUST",2,426,"*","*","*","*","*","*","*","*","*","*","*","*","*","*","*","*"]
["QU9","RHW","ROYAL BERKSHIRE NHS FOUNDATION TRUST",28,409,1,0,26,2,0,0,0,0,0,0,0,27,0,0,1,0]
["QUA","RNA","THE DUDLEY GROUP NHS FOUNDATION TRUST",1,306,"*","*","*","*","*","*","*","*","*","*","*","*","*","*","*","*"]
["QUA","RL4","THE ROYAL WOLVERHAMPTON NHS TRUST",53,402,0.86792452830188682,0.11320754716981132,38,8,1,3,3,0,53,0,0,0,0,0,0,0]
["QUA","RBK","WALSALL HEALTHCARE NHS TRUST",24,221,0.875,8.3333333333333329E-2,18,3,1,1,1,0,24,0,0,0,0,0,0,0]
["QUE","RGT","CAMBRIDGE UNIVERSITY HOSPITALS NHS FOUNDATION TRUST",28,416,0.9642857142857143,3.5714285714285712E-2,25,2,0,1,0,0,0,27,0,0,0,0,1,0]
["QUE","RGN","NORTH WEST ANGLIA NHS FOUNDATION TRUST",17,511,1,0,16,1,0,0,0,0,0,0,0,12,0,0,5,0]
["QUY","RVJ","NORTH BRISTOL NHS TRUST",80,458,0.9375,2.5000000000000001E-2,60,15,2,1,1,1,80,0,0,0,0,0,0,0]
["QUY","RA7","UNIVERSITY HOSPITALS BRISTOL AND WESTON NHS FOUNDATION TRUST",25,409,1,0,23,2,0,0,0,0,0,0,0,25,0,0,0,0]
["QVV","RBD","DORSET COUNTY HOSPITAL NHS FOUNDATION TRUST",48,114,1,0,47,1,0,0,0,0,48,0,0,0,0,0,0,0]
["QVV","R0D","UNIVERSITY HOSPITALS DORSET NHS FOUNDATION TRUST",132,328,0.93939393939393945,3.0303030303030304E-2,107,17,2,2,2,2,132,0,0,0,0,0,0,0]
["QWE","RJ6","CROYDON HEALTH SERVICES NHS TRUST",24,247,0.79166666666666663,0.16666666666666666,16,3,0,1,3,1,24,0,0,0,0,0,0,0]
["QWE","RVR","EPSOM AND ST HELIER UNIVERSITY HOSPITALS NHS TRUST",27,364,0.96296296296296291,3.7037037037037035E-2,23,3,0,1,0,0,3,3,0,18,0,0,3,0]
["QWE","RAX","KINGSTON HOSPITAL NHS FOUNDATION TRUST",19,384,0.89473684210526316,0.10526315789473684,14,3,0,0,2,0,0,19,0,0,0,0,0,0]
["QWE","RJ7","ST GEORGE'S UNIVERSITY HOSPITALS NHS FOUNDATION TRUST",33,370,0.87878787878787878,0,19,10,4,0,0,0,0,0,0,0,0,0,33,0]
["QWO","RCF","AIREDALE NHS FOUNDATION TRUST",39,159,0.97435897435897434,2.564102564102564E-2,31,7,0,0,1,0,39,0,0,0,0,0,0,0]
["QWO","RAE","BRADFORD TEACHING HOSPITALS NHS FOUNDATION TRUST",0,314,"NA","NA",0,0,0,0,0,0,0,0,0,0,0,0,0,0]
["QWO","RWY","CALDERDALE AND HUDDERSFIELD NHS FOUNDATION TRUST",60,401,0.96666666666666667,0,41,17,2,0,0,0,0,0,0,0,0,0,60,0]
["QWO","RR8","LEEDS TEACHING HOSPITALS NHS TRUST",329,650,0.97264437689969607,1.5197568389057751E-2,278,42,2,2,3,2,145,183,0,0,0,1,0,0]
["QWO","RXF","MID YORKSHIRE HOSPITALS NHS TRUST",124,477,0.9838709677419355,8.0645161290322578E-3,113,9,1,0,1,0,1,0,0,114,0,0,9,0]
["QWU","RLT","GEORGE ELIOT HOSPITAL NHS TRUST",73,163,0.93150684931506844,5.4794520547945202E-2,59,9,1,3,1,0,73,0,0,0,0,0,0,0]
["QWU","RJC","SOUTH WARWICKSHIRE NHS FOUNDATION TRUST",1,269,"*","*","*","*","*","*","*","*","*","*","*","*","*","*","*","*"]
["QWU","RKB","UNIVERSITY HOSPITALS COVENTRY AND WARWICKSHIRE NHS TRUST",2,485,"*","*","*","*","*","*","*","*","*","*","*","*","*","*","*","*"]
["QXU","RTK","ASHFORD AND ST PETER'S HOSPITALS NHS FOUNDATION TRUST",19,263,1,0,14,5,0,0,0,0,19,0,0,0,0,0,0,0]
["QXU","RA2","ROYAL SURREY COUNTY HOSPITAL NHS FOUNDATION TRUST",15,241,1,0,15,0,0,0,0,0,13,0,0,0,0,0,2,0]
["QXU","RTP","SURREY AND SUSSEX HEALTHCARE NHS TRUST",6,373,1,0,6,0,0,0,0,0,0,0,0,6,0,0,0,0]
["QYG","RJN","EAST CHESHIRE NHS TRUST",0,0,"NA","NA",0,0,0,0,0,0,0,0,0,0,0,0,0,0]
["QYG","REP","LIVERPOOL WOMEN'S NHS FOUNDATION TRUST",43,645,0.83720930232558144,4.6511627906976744E-2,29,7,2,0,2,3,0,0,0,0,0,0,0,43]
["QYG","RBT","MID CHESHIRE HOSPITALS NHS FOUNDATION TRUST",6,352,1,0,6,0,0,0,0,0,5,0,0,0,0,0,0,1]
["QYG","RVY","SOUTHPORT AND ORMSKIRK HOSPITAL NHS TRUST",34,178,0.97058823529411764,2.9411764705882353E-2,28,5,0,1,0,0,34,0,0,0,0,0,0,0]
["QYG","RBN","ST HELENS AND KNOWSLEY TEACHING HOSPITALS NHS TRUST",43,323,0.90697674418604646,6.9767441860465115E-2,31,8,1,1,2,0,42,0,0,1,0,0,0,0]
["QYG","RWW","WARRINGTON AND HALTON TEACHING HOSPITALS NHS FOUNDATION TRUST",23,190,0.95652173913043481,0,19,3,1,0,0,0,0,0,0,23,0,0,0,0]
["QYG","RBL","WIRRAL UNIVERSITY TEACHING HOSPITAL NHS FOUNDATION TRUST",35,215,1,0,27,8,0,0,0,0,0,0,0,35,0,0,0,0]

{"sheet":"Sites Q2","index":7,"n_rows":225,"n_cols":14,"rows_kept":225,"cut":false,"hidden":false,"merged":[[8,6,9,6],[8,7,9,7],[8,8,8,13],[8,0,9,0],[8,1,9,1],[8,2,9,2],[8,3,9,3],[8,4,9,4],[8,5,9,5]]}
[]
[]
[]
[]
[]
[null,"   Sort data by:           "]
[]
[]
["STP Code","Trust Code","Trust Name","Site Code","Site Name","Total Responses","Percentage Positive","Percentage Negative","Breakdown of Responses"]
[null,null,null,null,null,null,null,null,"Very Good","Good","Neither Good nor Poor","Poor","Very Poor","Don't Know"]
[null,null,null,null,"England (including Independent Sector providers)",3881,0.93790260242205614,3.8649832517392423E-2,3063,577,74,58,92,17]
[null,null,null,null,"England (excluding Independent Sector providers)",3881,0.93790260242205614,3.8649832517392423E-2,3063,577,74,58,92,17]
[null,null,null,null,"Selection (excluding suppressed data)",{"$f":"SUBTOTAL(9,F14:F299)","v":3881},{"$f":"IFERROR((I13+J13)/SUM(I13:N13), \"-\")","v":0.93662201894805619},{"$f":"IFERROR((L13+M13)/SUM(I13:N13), \"-\")","v":3.8222803005553738E-2},{"$f":"SUBTOTAL(9,I14:I299)","v":2388},{"$f":"SUBTOTAL(9,J14:J299)","v":479},63,47,70,14]
["QE1","RXL","BLACKPOOL TEACHING HOSPITALS NHS FOUNDATION TRUST","RXL01","Blackpool Victoria Hospital",0,"NA","NA",0,0,0,0,0,0]
["QE1","RXR","EAST LANCASHIRE HOSPITALS NHS TRUST","RXR20","Royal Blackburn Hospital",42,0.9285714285714286,7.1428571428571425E-2,32,7,0,2,1,0]
["QE1","RXN","LANCASHIRE TEACHING HOSPITALS NHS FOUNDATION TRUST","RXN01","Chorley and South Ribble Hospital",0,"NA","NA",0,0,0,0,0,0]
["QE1","RXN","LANCASHIRE TEACHING HOSPITALS NHS FOUNDATION TRUST","RXN02","Royal Preston Hospital",9,1,0,8,1,0,0,0,0]
["QE1","RTX","UNIVERSITY HOSPITALS OF MORECAMBE BAY NHS FOUNDATION TRUST","RTXBU","Furness General Hospital",16,0.9375,6.25E-2,"*","*","*","*","*","*"]
["QE1","RTX","UNIVERSITY HOSPITALS OF MORECAMBE BAY NHS FOUNDATION TRUST","RTX02","Royal Lancaster Infirmary",18,1,0,15,3,0,0,0,0]
["QE1","RTX","UNIVERSITY HOSPITALS OF MORECAMBE BAY NHS FOUNDATION TRUST","RTXBW","Westmorland General Hospital",3,"*","*","*","*","*","*","*","*"]
["QF7","RFF","BARNSLEY HOSPITAL NHS FOUNDATION TRUST","RFFAA","Barnsley Hospital NHS Foundation Trust HQ",2,"*","*","*","*","*","*","*","*"]
["QF7","RP5","DONCASTER AND BASSETLAW TEACHING HOSPITALS NHS FOUNDATION TRUST","RP5BA","Bassetlaw Hospital",0,"NA","NA",0,0,0,0,0,0]
["QF7","RP5","DONCASTER AND BASSETLAW TEACHING HOSPITALS NHS FOUNDATION TRUST","RP5DR","Doncaster Royal Infirmary",0,"NA","NA",0,0,0,0,0,0]
["QF7","RP5","DONCASTER AND BASSETLAW TEACHING HOSPITALS NHS FOUNDATION TRUST","RP5XXX","Non-hospital site",0,"NA","NA",0,0,0,0,0,0]
["QF7","RHQ","SHEFFIELD TEACHING HOSPITALS NHS FOUNDATION TRUST","RHQHH","Royal Hallamshire Hospital",82,0.86585365853658536,0.12195121951219512,"*","*","*","*","*","*"]
["QF7","RFR","THE ROTHERHAM NHS FOUNDATION TRUST","RFRPA","Rotherham District General Hospital",3,"*","*","*","*","*","*","*","*"]
["QGH","RWP","WORCESTERSHIRE ACUTE HOSPITALS NHS TRUST","RWP50","Worcestershire Royal Hospital",16,1,0,16,0,0,0,0,0]
["QGH","RLQ","WYE VALLEY NHS TRUST","RLQ01","Hereford County Hospital",1,"*","*","*","*","*","*","*","*"]
["QH8","RAJ","MID AND SOUTH ESSEX NHS FOUNDATION TRUST","RAJ12","BASILDON HOSPITAL",17,1,0,13,4,0,0,0,0]
["QH8","RAJ","MID AND SOUTH ESSEX NHS FOUNDATION TRUST","RAJ32","MID ESSEX HOSPITAL",78,0.85897435897435892,0.10256410256410256,60,7,3,3,5,0]
["QHG","RC9","BEDFORDSHIRE HOSPITALS NHS FOUNDATION TRUST","RC979","BEDFORD HOSPITAL SOUTH WING",10,0.9,0.1,8,1,0,1,0,0]
["QHG","RC9","BEDFORDSHIRE HOSPITALS NHS FOUNDATION TRUST","RC971","Luton and Dunstable Hospital",0,"NA","NA",0,0,0,0,0,0]
["QHG","RD8","MILTON KEYNES UNIVERSITY HOSPITAL NHS FOUNDATION TRUST","RD816","Milton Keynes Hospital",23,0.95652173913043481,0,18,4,0,0,0,1]
["QHL","RQ3","BIRMINGHAM WOMEN'S AND CHILDREN'S NHS FOUNDATION TRUST","RQ370","Birmingham Women's Hospital",2,"*","*","*","*","*","*","*","*"]
["QHL","RRK","UNIVERSITY HOSPITALS BIRMINGHAM NHS FOUNDATION TRUST","RRK98","Good Hope Hospital",32,0.96875,0,24,7,0,0,0,1]
["QHL","RRK","UNIVERSITY HOSPITALS BIRMINGHAM NHS FOUNDATION TRUST","RRK97","Heartlands Hospital",45,0.75555555555555554,0.13333333333333333,23,11,5,1,5,0]
["QHL","RRK","UNIVERSITY HOSPITALS BIRMINGHAM NHS FOUNDATION TRUST","RRK99","Solihull Hospital",0,"NA","NA",0,0,0,0,0,0]
["QHM","RR7","GATESHEAD HEALTH NHS FOUNDATION TRUST","RR7EN","Queen Elizabeth Hospital",5,1,0,"*","*","*","*","*","*"]
["QHM","RNN","NORTH CUMBRIA INTEGRATED CARE NHS FOUNDATION TRUST","RNN62","Cumberland Infirmary",2,"*","*","*","*","*","*","*","*"]
["QHM","RNN","NORTH CUMBRIA INTEGRATED CARE NHS FOUNDATION TRUST","RNNXXX","Non-hospital site",0,"NA","NA",0,0,0,0,0,0]
["QHM","RNN","NORTH CUMBRIA INTEGRATED CARE NHS FOUNDATION TRUST","RNNBX","West Cumberland Hospital",9,1,0,"*","*","*","*","*","*"]
["QHM","RVW","NORTH TEES AND HARTLEPOOL NHS FOUNDATION TRUST","RVWAE","University Hospital Of North Tees",10,1,0,"*","*","*","*","*","*"]
["QHM","RTF","NORTHUMBRIA HEALTHCARE NHS FOUNDATION TRUST","RTFDJ","Alnwick Infirmary",0,"NA","NA",0,0,0,0,0,0]
["QHM","RTF","NORTHUMBRIA HEALTHCARE NHS FOUNDATION TRUST","RTFDH","Berwick Infirmary",0,"NA","NA",0,0,0,0,0,0]
["QHM","RTF","NORTHUMBRIA HEALTHCARE NHS FOUNDATION TRUST","RTFDR","Hexham General Hospital",0,"NA","NA",0,0,0,0,0,0]
["QHM","RTF","NORTHUMBRIA HEALTHCARE NHS FOUNDATION TRUST","RTFXXX","Non-hospital site",1,"*","*","*","*","*","*","*","*"]
["QHM","RTF","NORTHUMBRIA HEALTHCARE NHS FOUNDATION TRUST","RTF86","The Northumbria",47,0.91489361702127658,0,36,7,4,0,0,0]
["QHM","RTR","SOUTH TEES HOSPITALS NHS FOUNDATION TRUST","RTR45","Friarage Hospital Site",0,"NA","NA",0,0,0,0,0,0]
["QHM","RTR","SOUTH TEES HOSPITALS NHS FOUNDATION TRUST","RTRAT","The James Cook University Hospital",0,"NA","NA",0,0,0,0,0,0]
["QHM","R0B","SOUTH TYNESIDE AND SUNDERLAND NHS FOUNDATION TRUST","R0B0Q","South Tyneside District Hospital",0,"NA","NA",0,0,0,0,0,0]
["QHM","R0B","SOUTH TYNESIDE AND SUNDERLAND NHS FOUNDATION TRUST","R0B01","Sunderland Royal Hospital",0,"NA","NA",0,0,0,0,0,0]
["QHM","RTD","THE NEWCASTLE UPON TYNE HOSPITALS NHS FOUNDATION TRUST","RTD02","The Royal Victoria Infirmary",15,1,0,"*","*","*","*","*","*"]
["QJ2","RTG","UNIVERSITY HOSPITALS OF DERBY AND BURTON NHS FOUNDATION TRUST","RTG02","Queens Hospital, Burton Upon Trent",1,"*","*","*","*","*","*","*","*"]
["QJG","RDE","EAST SUFFOLK AND NORTH ESSEX NHS FOUNDATION TRUST","RDEE2","Clacton and District Hospital",0,"NA","NA",0,0,0,0,0,0]
["QJG","RDE","EAST SUFFOLK AND NORTH ESSEX NHS FOUNDATION TRUST","RDEE4","Colchester General Hospital",3,"*","*","*","*","*","*","*","*"]
["QJG","RDE","EAST SUFFOLK AND NORTH ESSEX NHS FOUNDATION TRUST","RDE03","Ipswich Hospital",1,"*","*","*","*","*","*","*","*"]
["QJG","RDE","EAST SUFFOLK AND NORTH ESSEX NHS FOUNDATION TRUST","RDEXXX","Non-hospital site",0,"NA","NA",0,0,0,0,0,0]
["QJG","RGR","WEST SUFFOLK NHS FOUNDATION TRUST","RGR50","West Suffolk Hospital",0,"NA","NA",0,0,0,0,0,0]
["QJK","RBZ","NORTHERN DEVON HEALTHCARE NHS TRUST","RBZ12","North Devon District Hospital",0,"NA","NA",0,0,0,0,0,0]
["QJK","RH8","ROYAL DEVON AND EXETER NHS FOUNDATION TRUST","RH8XXX","Non-hospital site",0,"NA","NA",0,0,0,0,0,0]
["QJK","RH8","ROYAL DEVON AND EXETER NHS FOUNDATION TRUST","RH801","Royal Devon and Exeter Hospital (Wonford)",0,"NA","NA",0,0,0,0,0,0]
["QJK","RH8","ROYAL DEVON AND EXETER NHS FOUNDATION TRUST","RH853","Tiverton and District Hospital",0,"NA","NA",0,0,0,0,0,0]
["QJK","RA9","TORBAY AND SOUTH DEVON NHS FOUNDATION TRUST","RA957","Newton Abbot Community Hospital",0,"NA","NA",0,0,0,0,0,0]
["QJK","RA9","TORBAY AND SOUTH DEVON NHS FOUNDATION TRUST","RA9XXX","Non-hospital site",0,"NA","NA",0,0,0,0,0,0]
["QJK","RA9","TORBAY AND SOUTH DEVON NHS FOUNDATION TRUST","RA901","Torbay Hospital",2,"*","*","*","*","*","*","*","*"]
["QJK","RK9","UNIVERSITY HOSPITALS PLYMOUTH NHS TRUST","RK950","Derriford Hospital",6,0.83333333333333337,0,5,0,0,0,0,1]
["QJK","RK9","UNIVERSITY HOSPITALS PLYMOUTH NHS TRUST","RK9XXX","Non-hospital site",0,"NA","NA",0,0,0,0,0,0]
["QJM","RWD","UNITED LINCOLNSHIRE HOSPITALS NHS TRUST","RWDLP","Grantham and District Hospital",0,"NA","NA",0,0,0,0,0,0]
["QJM","RWD","UNITED LINCOLNSHIRE HOSPITALS NHS TRUST","RWDDA","Lincoln County Hospital",23,1,0,21,2,0,0,0,0]
["QJM","RWD","UNITED LINCOLNSHIRE HOSPITALS NHS TRUST","RWDLA","Pilgrim Hospital",0,"NA","NA",0,0,0,0,0,0]
["QK1","RWE","UNIVERSITY HOSPITALS OF LEICESTER NHS TRUST","RWEAK","Leicester General Hospital",41,1,0,34,7,0,0,0,0]
["QK1","RWE","UNIVERSITY HOSPITALS OF LEICESTER NHS TRUST","RWEAA","Leicester Royal Infirmary",76,0.97368421052631582,1.3157894736842105E-2,56,18,1,0,1,0]
["QK1","RWE","UNIVERSITY HOSPITALS OF LEICESTER NHS TRUST","RWEXXX","Non-hospital site",113,0.96460176991150437,1.7699115044247787E-2,93,16,0,1,1,2]
["QK1","RWE","UNIVERSITY HOSPITALS OF LEICESTER NHS TRUST","RWE10","St Mary's Hospital",9,1,0,9,0,0,0,0,0]
["QKK","RJ1","GUY'S AND ST THOMAS' NHS FOUNDATION TRUST","RJ1XXX","Non-hospital site",0,"NA","NA",0,0,0,0,0,0]
["QKK","RJ1","GUY'S AND ST THOMAS' NHS FOUNDATION TRUST","RJ122","St Thomas' Hospital",35,0.94285714285714284,0,26,7,2,0,0,0]
["QKK","RJZ","KING'S COLLEGE HOSPITAL NHS FOUNDATION TRUST","RJZ01","King's College Hospital (Denmark Hill)",36,0.75,0.1388888888888889,13,14,4,4,1,0]
["QKK","RJZ","KING'S COLLEGE HOSPITAL NHS FOUNDATION TRUST","RJZ30","Princess Royal University Hospital",44,0.90909090909090906,0,25,15,4,0,0,0]
["QKK","RJ2","LEWISHAM AND GREENWICH NHS TRUST","RJ231","Queen Elizabeth Hospital",2,"*","*","*","*","*","*","*","*"]
["QKK","RJ2","LEWISHAM AND GREENWICH NHS TRUST","RJ224","University Hospital Lewisham",2,"*","*","*","*","*","*","*","*"]
["QKS","RN7","DARTFORD AND GRAVESHAM NHS TRUST","RN707","Darent Valley Hospital",0,"NA","NA",0,0,0,0,0,0]
["QKS","RWF","MAIDSTONE AND TUNBRIDGE WELLS NHS TRUST","RWF08","Crowborough Birthing Centre",0,"NA","NA",0,0,0,0,0,0]
["QKS","RWF","MAIDSTONE AND TUNBRIDGE WELLS NHS TRUST","RWF03","Maidstone District General Hospital",8,1,0,8,0,0,0,0,0]
["QKS","RWF","MAIDSTONE AND TUNBRIDGE WELLS NHS TRUST","RWFXXX","Non-hospital site",0,"NA","NA",0,0,0,0,0,0]
["QKS","RWF","MAIDSTONE AND TUNBRIDGE WELLS NHS TRUST","RWFTW","The Tunbridge Wells Hospital",5,1,0,4,1,0,0,0,0]
["QKS","RPA","MEDWAY NHS FOUNDATION TRUST","RPA02","Medway Maritime Hospital",85,1,0,85,0,0,0,0,0]
["QM7","RWH","EAST AND NORTH HERTFORDSHIRE NHS TRUST","RWH01","Lister Hospital",88,0.95454545454545459,2.2727272727272728E-2,"*","*","*","*","*","*"]
["QM7","RWH","EAST AND NORTH HERTFORDSHIRE NHS TRUST","RWHXXX","Non-hospital site",2,"*","*","*","*","*","*","*","*"]
["QM7","RQW","THE PRINCESS ALEXANDRA HOSPITAL NHS TRUST","RQWG0","Princess Alexandra Hospital",15,0.8,6.6666666666666666E-2,9,3,2,1,0,0]
["QM7","RWG","WEST HERTFORDSHIRE TEACHING HOSPITALS NHS TRUST","RWG02","Watford General Hospital",24,0.95833333333333337,4.1666666666666664E-2,20,3,0,0,1,0]
["QMF","RF4","BARKING, HAVERING AND REDBRIDGE UNIVERSITY HOSPITALS NHS TRUST","RF4QH","Queen's Hospital",34,0.94117647058823528,2.9411764705882353E-2,32,0,1,0,1,0]
["QMF","R1H","BARTS HEALTH NHS TRUST","R1HNH","Newham General Hospital",29,0.86206896551724133,0.10344827586206896,"*","*","*","*","*","*"]
["QMF","R1H","BARTS HEALTH NHS TRUST","R1H12","The Royal London Hospital",2,"*","*","*","*","*","*","*","*"]
["QMF","R1H","BARTS HEALTH NHS TRUST","R1HKH","Whipps Cross University Hospital",52,0.94230769230769229,1.9230769230769232E-2,40,9,2,0,1,0]
["QMF","RQX","HOMERTON UNIVERSITY HOSPITAL NHS FOUNDATION TRUST","RQXM1","Homerton University Hospital",66,0.93939393939393945,4.5454545454545456E-2,57,5,1,1,2,0]
["QMJ","RAP","NORTH MIDDLESEX UNIVERSITY HOSPITAL NHS TRUST","RAPNM","North Middlesex Hospital",0,"NA","NA",0,0,0,0,0,0]
["QMJ","RAL","ROYAL FREE LONDON NHS FOUNDATION TRUST","RAL26","Barnet Hospital",47,0.97872340425531912,2.1276595744680851E-2,28,18,0,0,1,0]
["QMJ","RAL","ROYAL FREE LONDON NHS FOUNDATION TRUST","RAL01","Royal Free Hospital",52,0.88461538461538458,5.7692307692307696E-2,29,17,3,2,1,0]
["QMJ","RRV","UNIVERSITY COLLEGE LONDON HOSPITALS NHS FOUNDATION TRUST","RRV03","University College Hospital",1,"*","*","*","*","*","*","*","*"]
["QMJ","RKE","WHITTINGTON HEALTH NHS TRUST","RKEXXX","Non-hospital site",0,"NA","NA",0,0,0,0,0,0]
["QMJ","RKE","WHITTINGTON HEALTH NHS TRUST","RKEQ4","The Whittington Hospital",45,0.97777777777777775,2.2222222222222223E-2,6,38,0,1,0,0]
["QMM","RGP","JAMES PAGET UNIVERSITY HOSPITALS NHS FOUNDATION TRUST","RGP75","James Paget University Hospital",8,1,0,"*","*","*","*","*","*"]
["QMM","RM1","NORFOLK AND NORWICH UNIVERSITY HOSPITALS NHS FOUNDATION TRUST","RM102","Norfolk and Norwich University Hospital",2,"*","*","*","*","*","*","*","*"]
["QMM","RCX","THE QUEEN ELIZABETH HOSPITAL, KING'S LYNN, NHS FOUNDATION TRUST","RCXXXX","Non-hospital site",0,"NA","NA",0,0,0,0,0,0]
["QMM","RCX","THE QUEEN ELIZABETH HOSPITAL, KING'S LYNN, NHS FOUNDATION TRUST","RCX70","The Queen Elizabeth Hospital",9,1,0,"*","*","*","*","*","*"]
["QNC","RJE","UNIVERSITY HOSPITALS OF NORTH MIDLANDS NHS TRUST","RJE09","County Hospital",0,"NA","NA",0,0,0,0,0,0]
["QNC","RJE","UNIVERSITY HOSPITALS OF NORTH MIDLANDS NHS TRUST","RJEXXX","Non-hospital site",0,"NA","NA",0,0,0,0,0,0]
["QNC","RJE","UNIVERSITY HOSPITALS OF NORTH MIDLANDS NHS TRUST","RJE01","Royal Stoke University Hospital",4,"*","*","*","*","*","*","*","*"]
["QNQ","RDU","FRIMLEY HEALTH NHS FOUNDATION TRUST","RDU01","Frimley Park Hospital",14,0.9285714285714286,0,"*","*","*","*","*","*"]
["QNQ","RDU","FRIMLEY HEALTH NHS FOUNDATION TRUST","RDU50","Wexham Park Hospital",2,"*","*","*","*","*","*","*","*"]
["QNX","RXC","EAST SUSSEX HEALTHCARE NHS TRUST","RXC01","Conquest Hospital",1,"*","*","*","*","*","*","*","*"]
["QNX","RXC","EAST SUSSEX HEALTHCARE NHS TRUST","RXC02","Eastbourne District General Hospital",0,"NA","NA",0,0,0,0,0,0]
["QNX","RXC","EAST SUSSEX HEALTHCARE NHS TRUST","RXCXXX","Non-hospital site",0,"NA","NA",0,0,0,0,0,0]
["QNX","RYR","UNIVERSITY HOSPITALS SUSSEX NHS FOUNDATION TRUST","RYRXXX","Non-hospital site",0,"NA","NA",0,0,0,0,0,0]
["QNX","RYR","UNIVERSITY HOSPITALS SUSSEX NHS FOUNDATION TRUST","N6J7V","Princess Royal Hospital",6,1,0,"*","*","*","*","*","*"]
["QNX","RYR","UNIVERSITY HOSPITALS SUSSEX NHS FOUNDATION TRUST","E0A3H","Royal Sussex County Hospital",37,0.94594594594594594,5.4054054054054057E-2,"*","*","*","*","*","*"]
["QNX","RYR","UNIVERSITY HOSPITALS SUSSEX NHS FOUNDATION TRUST","RYR16","St Richard's Hospital",13,1,0,11,2,0,0,0,0]
["QNX","RYR","UNIVERSITY HOSPITALS SUSSEX NHS FOUNDATION TRUST","RYR18","Worthing Hospital",25,0.96,0.04,21,3,0,0,1,0]
["QOC","RXW","THE SHREWSBURY AND TELFORD HOSPITAL NHS TRUST","RXWMB","Bridgnorth Hospital (Maternity)",0,"NA","NA",0,0,0,0,0,0]
["QOC","RXW","THE SHREWSBURY AND TELFORD HOSPITAL NHS TRUST","RXWML","Ludlow Hospital (Maternity)",0,"NA","NA",0,0,0,0,0,0]
["QOC","RXW","THE SHREWSBURY AND TELFORD HOSPITAL NHS TRUST","RXWXXX","Non-hospital site",0,"NA","NA",0,0,0,0,0,0]
["QOC","RXW","THE SHREWSBURY AND TELFORD HOSPITAL NHS TRUST","RXWMJ","Robert Jones & Agnes Hunt Orthopaedic & District Hospital",0,"NA","NA",0,0,0,0,0,0]
["QOC","RXW","THE SHREWSBURY AND TELFORD HOSPITAL NHS TRUST","RXWAS","Royal Shrewsbury Hospital",0,"NA","NA",0,0,0,0,0,0]
["QOC","RXW","THE SHREWSBURY AND TELFORD HOSPITAL NHS TRUST","RXWAT","The Princess Royal Hospital",21,1,0,21,0,0,0,0,0]
["QOP","RMC","BOLTON NHS FOUNDATION TRUST","RMC01","Royal Bolton Hospital",143,0.82517482517482521,0.12587412587412589,89,29,6,2,16,1]
["QOP","R0A","MANCHESTER UNIVERSITY NHS FOUNDATION TRUST","R0A05","St Mary's Hospital",16,0.9375,6.25E-2,14,1,0,1,0,0]
["QOP","RWJ","STOCKPORT NHS FOUNDATION TRUST","RWJ09","Stepping Hill Hospital",16,1,0,16,0,0,0,0,0]
["QOP","RMP","TAMESIDE AND GLOSSOP INTEGRATED CARE NHS FOUNDATION TRUST","RMP01","Tameside General Hospital",3,"*","*","*","*","*","*","*","*"]
["QOP","RRF","WRIGHTINGTON, WIGAN AND LEIGH NHS FOUNDATION TRUST","RRF02","Royal Albert Edward Infirmary",55,1,0,51,4,0,0,0,0]
["QOQ","RCD","HARROGATE AND DISTRICT NHS FOUNDATION TRUST","RCD01","Harrogate District Hospital",7,1,0,7,0,0,0,0,0]
["QOQ","RWA","HULL UNIVERSITY TEACHING HOSPITALS NHS TRUST","RWA01","Hull Royal Infirmary",6,1,0,5,1,0,0,0,0]
["QOQ","RJL","NORTHERN LINCOLNSHIRE AND GOOLE NHS FOUNDATION TRUST","RJL30","Diana, Princess Of Wales Hospital",90,0.93333333333333335,6.6666666666666666E-2,"*","*","*","*","*","*"]
["QOQ","RJL","NORTHERN LINCOLNSHIRE AND GOOLE NHS FOUNDATION TRUST","RJL32","Scunthorpe General Hospital",3,"*","*","*","*","*","*","*","*"]
["QOQ","RCB","YORK AND SCARBOROUGH TEACHING HOSPITALS NHS FOUNDATION TRUST","RCBCA","Scarborough General Hospital",36,0.94444444444444442,5.5555555555555552E-2,"*","*","*","*","*","*"]
["QOQ","RCB","YORK AND SCARBOROUGH TEACHING HOSPITALS NHS FOUNDATION TRUST","RCB55","York Hospital",1,"*","*","*","*","*","*","*","*"]
["QOX","RN3","GREAT WESTERN HOSPITALS NHS FOUNDATION TRUST","RN3XXX","Non-hospital site",0,"NA","NA",0,0,0,0,0,0]
["QOX","RN3","GREAT WESTERN HOSPITALS NHS FOUNDATION TRUST","RN325","The Great Western Hospital",6,1,0,"*","*","*","*","*","*"]
["QOX","RD1","ROYAL UNITED HOSPITALS BATH NHS FOUNDATION TRUST","RD102","Chippenham Community Hospital",1,"*","*","*","*","*","*","*","*"]
["QOX","RD1","ROYAL UNITED HOSPITALS BATH NHS FOUNDATION TRUST","RD121","Frome Community Hospital",2,"*","*","*","*","*","*","*","*"]
["QOX","RD1","ROYAL UNITED HOSPITALS BATH NHS FOUNDATION TRUST","RD1XXX","Non Hospital Site",0,"NA","NA",0,0,0,0,0,0]
["QOX","RD1","ROYAL UNITED HOSPITALS BATH NHS FOUNDATION TRUST","RD129","Paulton Memorial Hospital",0,"NA","NA",0,0,0,0,0,0]
["QOX","RD1","ROYAL UNITED HOSPITALS BATH NHS FOUNDATION TRUST","RD130","Princess Anne Wing RUH",0,"NA","NA",0,0,0,0,0,0]
["QOX","RNZ","SALISBURY NHS FOUNDATION TRUST","RNZXXX","Non-hospital site",0,"NA","NA",0,0,0,0,0,0]
["QOX","RNZ","SALISBURY NHS FOUNDATION TRUST","RNZ02","Salisbury District Hospital",0,"NA","NA",0,0,0,0,0,0]
["QPM","RNQ","KETTERING GENERAL HOSPITAL NHS FOUNDATION TRUST","RNQ51","Kettering General Hospital",0,"NA","NA",0,0,0,0,0,0]
["QPM","RNS","NORTHAMPTON GENERAL HOSPITAL NHS TRUST","RNS01","Northampton General Hospital (Acute)",6,1,0,6,0,0,0,0,0]
["QR1","RTE","GLOUCESTERSHIRE HOSPITALS NHS FOUNDATION TRUST","RTE03","Gloucestershire Royal Hospital",30,0.9,6.6666666666666666E-2,22,5,1,1,1,0]
["QR1","RTE","GLOUCESTERSHIRE HOSPITALS NHS FOUNDATION TRUST","RTE27","Stroud Maternity Hospital",6,0.83333333333333337,0,4,1,1,0,0,0]
["QRL","RN5","HAMPSHIRE HOSPITALS NHS FOUNDATION TRUST","RN542","Andover War Memorial Hospital",3,"*","*","*","*","*","*","*","*"]
["QRL","RN5","HAMPSHIRE HOSPITALS NHS FOUNDATION TRUST","RN506","Basingstoke and North Hampshire Hospital",137,0.99270072992700731,0,"*","*","*","*","*","*"]
["QRL","RN5","HAMPSHIRE HOSPITALS NHS FOUNDATION TRUST","RN541","Royal Hampshire County Hospital",2,"*","*","*","*","*","*","*","*"]
["QRL","R1F","ISLE OF WIGHT NHS TRUST","R1F01","St Mary's Hospital",13,1,0,12,1,0,0,0,0]
["QRL","RHU","PORTSMOUTH HOSPITALS UNIVERSITY NATIONAL HEALTH SERVICE TRUST","RHU10","Gosport War Memorial Hospital",0,"NA","NA",0,0,0,0,0,0]
["QRL","RHU","PORTSMOUTH HOSPITALS UNIVERSITY NATIONAL HEALTH SERVICE TRUST","RHU04","Petersfield Community Hospital",0,"NA","NA",0,0,0,0,0,0]
["QRL","RHU","PORTSMOUTH HOSPITALS UNIVERSITY NATIONAL HEALTH SERVICE TRUST","RHU03","Queen Alexandra Hospital",7,1,0,7,0,0,0,0,0]
["QRL","RHU","PORTSMOUTH HOSPITALS UNIVERSITY NATIONAL HEALTH SERVICE TRUST","RHU02","St Mary's Hospital",0,"NA","NA",0,0,0,0,0,0]
["QRL","RHM","UNIVERSITY HOSPITAL SOUTHAMPTON NHS FOUNDATION TRUST","RHM12","Princess Anne Hospital",31,0.87096774193548387,9.6774193548387094E-2,25,2,1,1,2,0]
["QRV","RQM","CHELSEA AND WESTMINSTER HOSPITAL NHS FOUNDATION TRUST","RQM01","Chelsea and Westminster Hospital",34,0.94117647058823528,5.8823529411764705E-2,27,5,0,0,2,0]
["QRV","RQM","CHELSEA AND WESTMINSTER HOSPITAL NHS FOUNDATION TRUST","RQM91","West Middlesex University Hospital",17,0.88235294117647056,0,14,1,2,0,0,0]
["QRV","RYJ","IMPERIAL COLLEGE HEALTHCARE NHS TRUST","RYJ04","Queen Charlotte's Hospital",60,0.9,0.1,49,5,0,5,1,0]
["QRV","RYJ","IMPERIAL COLLEGE HEALTHCARE NHS TRUST","RYJ01","St Mary's Hospital (HQ)",58,0.91379310344827591,8.6206896551724144E-2,40,13,0,2,3,0]
["QRV","R1K","LONDON NORTH WEST UNIVERSITY HEALTHCARE NHS TRUST","R1K01","Northwick Park Hospital",1,"*","*","*","*","*","*","*","*"]
["QRV","RAS","THE HILLINGDON HOSPITALS NHS FOUNDATION TRUST","RAS01","Hillingdon Hospital",28,0.8928571428571429,7.1428571428571425E-2,"*","*","*","*","*","*"]
["QRV","RAS","THE HILLINGDON HOSPITALS NHS FOUNDATION TRUST","RASXXX","Non-hospital site",1,"*","*","*","*","*","*","*","*"]
["QSL","RH5","SOMERSET NHS FOUNDATION TRUST","RH5K6","Bridgwater Hospital",0,"NA","NA",0,0,0,0,0,0]
["QSL","RH5","SOMERSET NHS FOUNDATION TRUST","RH5A8","MUSGROVE PARK HOSPITAL",3,"*","*","*","*","*","*","*","*"]
["QSL","RH5","SOMERSET NHS FOUNDATION TRUST","RH5XXXX","Non-hospital site home/in-transit births",6,1,0,5,1,0,0,0,0]
["QSL","RA4","YEOVIL DISTRICT HOSPITAL NHS FOUNDATION TRUST","RA430","Yeovil District Hospital",16,1,0,13,3,0,0,0,0]
["QT1","RX1","NOTTINGHAM UNIVERSITY HOSPITALS NHS TRUST","RX1XXX","Non-hospital site",0,"NA","NA",0,0,0,0,0,0]
["QT1","RX1","NOTTINGHAM UNIVERSITY HOSPITALS NHS TRUST","RX1CC","Nottingham University Hospitals NHS Trust - City Campus",1,"*","*","*","*","*","*","*","*"]
["QT1","RX1","NOTTINGHAM UNIVERSITY HOSPITALS NHS TRUST","RX1RA","Nottingham University Hospitals NHS Trust - Queen's Medical Centre Campus",2,"*","*","*","*","*","*","*","*"]
["QT1","RK5","SHERWOOD FOREST HOSPITALS NHS FOUNDATION TRUST","RK5BC","King's Mill Hospital",38,0.84210526315789469,0.10526315789473684,27,5,2,2,2,0]
["QT1","RK5","SHERWOOD FOREST HOSPITALS NHS FOUNDATION TRUST","RK5XXX","Non-hospital site",0,"NA","NA",0,0,0,0,0,0]
["QT6","REF","ROYAL CORNWALL HOSPITALS NHS TRUST","REFXXX","Non-hospital site",1,"*","*","*","*","*","*","*","*"]
["QT6","REF","ROYAL CORNWALL HOSPITALS NHS TRUST","REF12","Royal Cornwall Hospital (Treliske)",19,1,0,"*","*","*","*","*","*"]
["QU9","RXQ","BUCKINGHAMSHIRE HEALTHCARE NHS TRUST","RXQ02","Stoke Mandeville Hospital",4,"*","*","*","*","*","*","*","*"]
["QU9","RTH","OXFORD UNIVERSITY HOSPITALS NHS FOUNDATION TRUST","RTH05","Horton General Hospital",0,"NA","NA",0,0,0,0,0,0]
["QU9","RTH","OXFORD UNIVERSITY HOSPITALS NHS FOUNDATION TRUST","RTH08","John Radcliffe Hospital",2,"*","*","*","*","*","*","*","*"]
["QU9","RTH","OXFORD UNIVERSITY HOSPITALS NHS FOUNDATION TRUST","RTH16","Wallingford Community Hospital",0,"NA","NA",0,0,0,0,0,0]
["QU9","RHW","ROYAL BERKSHIRE NHS FOUNDATION TRUST","RHW01","Royal Berkshire Hospital",28,1,0,26,2,0,0,0,0]
["QUA","RNA","THE DUDLEY GROUP NHS FOUNDATION TRUST","RNA01","Russells Hall Hospital",1,"*","*","*","*","*","*","*","*"]
["QUA","RL4","THE ROYAL WOLVERHAMPTON NHS TRUST","RL403","New Cross Hospital",53,0.86792452830188682,0.11320754716981132,38,8,1,3,3,0]
["QUA","RBK","WALSALL HEALTHCARE NHS TRUST","RBK02","Manor Hospital",24,0.875,8.3333333333333329E-2,18,3,1,1,1,0]
["QUE","RGT","CAMBRIDGE UNIVERSITY HOSPITALS NHS FOUNDATION TRUST","RGT32","Rosie Hospital",28,0.9642857142857143,3.5714285714285712E-2,25,2,0,1,0,0]
["QUE","RGN","NORTH WEST ANGLIA NHS FOUNDATION TRUST","RGN90","Hinchingbrooke Hospital",17,1,0,16,1,0,0,0,0]
["QUE","RGN","NORTH WEST ANGLIA NHS FOUNDATION TRUST","RGN80","Peterborough City Hospital",0,"NA","NA",0,0,0,0,0,0]
["QUY","RVJ","NORTH BRISTOL NHS TRUST","RVJ21","Cossham Hospital",1,"*","*","*","*","*","*","*","*"]
["QUY","RVJ","NORTH BRISTOL NHS TRUST","RVJXXX","Non-hospital site",0,"NA","NA",0,0,0,0,0,0]
["QUY","RVJ","NORTH BRISTOL NHS TRUST","RVJ01","Southmead Hospital",79,0.93670886075949367,2.5316455696202531E-2,"*","*","*","*","*","*"]
["QUY","RA7","UNIVERSITY HOSPITALS BRISTOL AND WESTON NHS FOUNDATION TRUST","RA707","St Michael's Hospital",25,1,0,23,2,0,0,0,0]
["QVV","RBD","DORSET COUNTY HOSPITAL NHS FOUNDATION TRUST","RBD01","Dorset County Hospital",48,1,0,47,1,0,0,0,0]
["QVV","R0D","UNIVERSITY HOSPITALS DORSET NHS FOUNDATION TRUST","R0D01","Poole Hospital",132,0.93939393939393945,3.0303030303030304E-2,107,17,2,2,2,2]
["QVV","R0D","UNIVERSITY HOSPITALS DORSET NHS FOUNDATION TRUST","R0D02","Royal Bournemouth Hospital",0,"NA","NA",0,0,0,0,0,0]
["QWE","RJ6","CROYDON HEALTH SERVICES NHS TRUST","RJ611","Croydon University Hospital",24,0.79166666666666663,0.16666666666666666,16,3,0,1,3,1]
["QWE","RVR","EPSOM AND ST HELIER UNIVERSITY HOSPITALS NHS TRUST","RVR50","Epsom Hospital",8,1,0,"*","*","*","*","*","*"]
["QWE","RVR","EPSOM AND ST HELIER UNIVERSITY HOSPITALS NHS TRUST","RVRXXX","Non-hospital site",2,"*","*","*","*","*","*","*","*"]
["QWE","RVR","EPSOM AND ST HELIER UNIVERSITY HOSPITALS NHS TRUST","RVR05","St Helier Hospital",17,0.94117647058823528,5.8823529411764705E-2,15,1,0,1,0,0]
["QWE","RAX","KINGSTON HOSPITAL NHS FOUNDATION TRUST","RAX01","Kingston Hospital",19,0.89473684210526316,0.10526315789473684,14,3,0,0,2,0]
["QWE","RJ7","ST GEORGE'S UNIVERSITY HOSPITALS NHS FOUNDATION TRUST","RJ701","St George's Hospital (Tooting)",33,0.87878787878787878,0,19,10,4,0,0,0]
["QWO","RCF","AIREDALE NHS FOUNDATION TRUST","RCF22","Airedale General Hospital",39,0.97435897435897434,2.564102564102564E-2,31,7,0,0,1,0]
["QWO","RAE","BRADFORD TEACHING HOSPITALS NHS FOUNDATION TRUST","RAE01","Bradford Royal Infirmary",0,"NA","NA",0,0,0,0,0,0]
["QWO","RWY","CALDERDALE AND HUDDERSFIELD NHS FOUNDATION TRUST","RWY02","Calderdale Royal Hospital",60,0.96666666666666667,0,41,17,2,0,0,0]
["QWO","RR8","LEEDS TEACHING HOSPITALS NHS TRUST","RR801","Leeds General Infirmary",125,0.96799999999999997,1.6E-2,111,10,0,1,1,2]
["QWO","RR8","LEEDS TEACHING HOSPITALS NHS TRUST","RR8XXX","Non-hospital site",0,"NA","NA",0,0,0,0,0,0]
["QWO","RR8","LEEDS TEACHING HOSPITALS NHS TRUST","RR813","St James's University Hospital",204,0.97549019607843135,1.4705882352941176E-2,167,32,2,1,2,0]
["QWO","RXF","MID YORKSHIRE HOSPITALS NHS TRUST","RXF10","Dewsbury and District Hospital",12,1,0,"*","*","*","*","*","*"]
["QWO","RXF","MID YORKSHIRE HOSPITALS NHS TRUST","RXFXXX","Non-hospital site",1,"*","*","*","*","*","*","*","*"]
["QWO","RXF","MID YORKSHIRE HOSPITALS NHS TRUST","RXF05","Pinderfields General Hospital",111,0.98198198198198194,9.0090090090090089E-3,101,8,1,0,1,0]
["QWO","RXF","MID YORKSHIRE HOSPITALS NHS TRUST","RXF03","Pontefract General Infirmary",0,"NA","NA",0,0,0,0,0,0]
["QWU","RLT","GEORGE ELIOT HOSPITAL NHS TRUST","RLT01","George Eliot Hospital - Acute Services",73,0.93150684931506844,5.4794520547945202E-2,59,9,1,3,1,0]
["QWU","RJC","SOUTH WARWICKSHIRE NHS FOUNDATION TRUST","RJCXXX","Non-hospital site",0,"NA","NA",0,0,0,0,0,0]
["QWU","RJC","SOUTH WARWICKSHIRE NHS FOUNDATION TRUST","RJC02","Warwick Hospital",1,"*","*","*","*","*","*","*","*"]
["QWU","RKB","UNIVERSITY HOSPITALS COVENTRY AND WARWICKSHIRE NHS TRUST","RKB03","Hospital Of St Cross",0,"NA","NA",0,0,0,0,0,0]
["QWU","RKB","UNIVERSITY HOSPITALS COVENTRY AND WARWICKSHIRE NHS TRUST","RKBXXX","Non-hospital site",0,"NA","NA",0,0,0,0,0,0]
["QWU","RKB","UNIVERSITY HOSPITALS COVENTRY AND WARWICKSHIRE NHS TRUST","RKB01","University Hospital (Coventry)",2,"*","*","*","*","*","*","*","*"]
["QXU","RTK","ASHFORD AND ST PETER'S HOSPITALS NHS FOUNDATION TRUST","RTK01","St Peter's Hospital",19,1,0,14,5,0,0,0,0]
["QXU","RA2","ROYAL SURREY COUNTY HOSPITAL NHS FOUNDATION TRUST","RA201","Royal Surrey County Hospital",15,1,0,15,0,0,0,0,0]
["QXU","RTP","SURREY AND SUSSEX HEALTHCARE NHS TRUST","RTP04","East Surrey Hospital",6,1,0,6,0,0,0,0,0]
["QYG","RJN","EAST CHESHIRE NHS TRUST","RJN71","Macclesfield District General Hospital",0,"NA","NA",0,0,0,0,0,0]
["QYG","REP","LIVERPOOL WOMEN'S NHS FOUNDATION TRUST","REP01","Liverpool Womens Hospital",43,0.83720930232558144,4.6511627906976744E-2,29,7,2,0,2,3]
["QYG","RBT","MID CHESHIRE HOSPITALS NHS FOUNDATION TRUST","RBT20","Leighton Hospital",6,1,0,6,0,0,0,0,0]
["QYG","RVY","SOUTHPORT AND ORMSKIRK HOSPITAL NHS TRUST","RVY02","Ormskirk and District General Hospital",34,0.97058823529411764,2.9411764705882353E-2,28,5,0,1,0,0]
["QYG","RBN","ST HELENS AND KNOWSLEY TEACHING HOSPITALS NHS TRUST","RBN01","Whiston Hospital",43,0.90697674418604646,6.9767441860465115E-2,31,8,1,1,2,0]
["QYG","RWW","WARRINGTON AND HALTON TEACHING HOSPITALS NHS FOUNDATION TRUST","RWWWH","Warrington Hospital",23,0.95652173913043481,0,19,3,1,0,0,0]
["QYG","RBL","WIRRAL UNIVERSITY TEACHING HOSPITAL NHS FOUNDATION TRUST","RBL14","Arrowe Park Hospital",35,1,0,27,8,0,0,0,0]

{"sheet":"STP Q3","index":8,"n_rows":55,"n_cols":11,"rows_kept":55,"cut":false,"hidden":false,"merged":[[8,0,9,0],[8,1,9,1],[8,2,9,2],[8,3,9,3],[8,4,9,4],[8,5,8,10]]}
[]
[]
[]
[]
[]
[null,"   Sort data by:           "]
[]
[]
["STP Code","STP Name","Total Responses","Percentage Positive","Percentage Negative","Breakdown of Responses"]
[null,null,null,null,null,"Very Good","Good","Neither Good nor Poor","Poor","Very Poor","Don't Know"]
[null,"England (including Independent Sector providers)",4352,0.91130514705882348,4.250919117647059E-2,3087,879,152,86,99,49]
[null,"England (excluding Independent Sector providers)",4352,0.91130514705882348,4.250919117647059E-2,3087,879,152,86,99,49]
[null,"Selection (excluding suppressed data)",{"$f":"SUBTOTAL(9,C14:C400)","v":4352},{"$f":"IFERROR((F13+G13)/SUM(F13:K13), \"-\")","v":0.90595207420767843},{"$f":"IFERROR((I13+J13)/SUM(F13:K13), \"-\")","v":4.5606802370523059E-2},{"$f":"SUBTOTAL(9,F14:F400)","v":2736},780,144,83,94,44]
["QE1","HEALTHIER LANCASHIRE AND SOUTH CUMBRIA",148,0.85810810810810811,4.72972972972973E-2,96,31,8,2,5,6]
["QF7","SOUTH YORKSHIRE AND BASSETLAW STP",97,0.89690721649484539,8.247422680412371E-2,77,10,2,4,4,0]
["QGH","HEREFORDSHIRE AND WORCESTERSHIRE STP",10,1,0,10,0,0,0,0,0]
["QH8","MID AND SOUTH ESSEX STP",74,0.83783783783783783,0.10810810810810811,52,10,4,3,5,0]
["QHG","BEDFORDSHIRE, LUTON AND MILTON KEYNES STP",198,0.9494949494949495,2.0202020202020204E-2,"*","*","*","*","*","*"]
["QHL","BIRMINGHAM AND SOLIHULL STP",3,"*","*","*","*","*","*","*","*"]
["QHM","CUMBRIA AND NORTH EAST STP",175,0.96571428571428575,0,"*","*","*","*","*","*"]
["QJ2","JOINED UP CARE DERBYSHIRE STP",1,"*","*","*","*","*","*","*","*"]
["QJG","SUFFOLK AND NORTH EAST ESSEX ICS",20,0.9,0.05,13,5,1,1,0,0]
["QJK","DEVON STP",136,0.73529411764705888,0,71,29,36,0,0,0]
["QJM","LINCOLNSHIRE STP",26,1,0,24,2,0,0,0,0]
["QK1","LEICESTER, LEICESTERSHIRE AND RUTLAND STP",214,0.96261682242990654,9.3457943925233638E-3,148,58,6,1,1,0]
["QKK","OUR HEALTHIER SOUTH EAST LONDON STP",71,0.76056338028169013,0.12676056338028169,33,21,6,2,7,2]
["QKS","KENT AND MEDWAY STP",106,0.95283018867924529,1.8867924528301886E-2,88,13,3,2,0,0]
["QM7","HERTFORDSHIRE AND WEST ESSEX STP",145,0.93103448275862066,3.4482758620689655E-2,99,36,5,5,0,0]
["QMF","EAST LONDON HEALTH & CARE PARTNERSHIP (STP)",116,0.89655172413793105,5.1724137931034482E-2,68,36,6,3,3,0]
["QMJ","NORTH LONDON PARTNERS IN HEALTH & CARE (STP)",146,0.91095890410958902,2.7397260273972601E-2,67,66,9,2,2,0]
["QMM","NORFOLK AND WAVENEY HEALTH & CARE PARTNERSHIP (STP)",62,0.967741935483871,3.2258064516129031E-2,"*","*","*","*","*","*"]
["QNC","STAFFORDSHIRE & STOKE ON TRENT STP",1,"*","*","*","*","*","*","*","*"]
["QNQ","FRIMLEY HEALTH & CARE (STP)",59,0.89830508474576276,5.0847457627118647E-2,39,14,3,1,2,0]
["QNX","SUSSEX HEALTH AND CARE PARTNERSHIP",81,0.98765432098765427,1.2345679012345678E-2,71,9,0,0,1,0]
["QOC","SHROPSHIRE AND TELFORD AND WREKIN STP",5,1,0,5,0,0,0,0,0]
["QOP","GREATER MANCHESTER HEALTH & SOCIAL CARE PARTNERSHIP",140,0.90714285714285714,6.4285714285714279E-2,105,22,3,2,7,1]
["QOQ","HUMBER, COAST AND VALE STP",150,0.95333333333333337,0.04,123,20,0,3,3,1]
["QOX","BATH AND NORTH EAST SOMERSET, SWINDON AND WILTSHIRE STP",145,0.96551724137931039,6.8965517241379309E-3,96,44,3,0,1,1]
["QPM","NORTHAMPTONSHIRE STP",46,0.95652173913043481,4.3478260869565216E-2,41,3,0,2,0,0]
["QR1","GLOUCESTERSHIRE STP",34,0.79411764705882348,2.9411764705882353E-2,21,6,5,0,1,1]
["QRL","HAMPSHIRE AND THE ISLE OF WIGHT STP",194,0.93814432989690721,2.0618556701030927E-2,153,29,4,2,2,4]
["QRV","NORTH WEST LONDON HEALTH & CARE PARTNERSHIP (STP)",343,0.84548104956268222,9.0379008746355682E-2,227,63,8,14,17,14]
["QSL","SOMERSET STP",53,1,0,48,5,0,0,0,0]
["QT1","NOTTINGHAM AND NOTTINGHAMSHIRE HEALTH AND CARE STP",29,0.93103448275862066,3.4482758620689655E-2,"*","*","*","*","*","*"]
["QT6","CORNWALL AND THE ISLES OF SCILLY HEALTH & SOCIAL CARE PARTNERSHIP (STP)",2,"*","*","*","*","*","*","*","*"]
["QU9","BUCKINGHAMSHIRE, OXFORDSHIRE AND BERKSHIRE WEST STP",40,0.9,0.05,26,10,2,1,1,0]
["QUA","THE BLACK COUNTRY AND WEST BIRMINGHAM STP",69,0.79710144927536231,0.17391304347826086,45,10,2,5,7,0]
["QUE","CAMBRIDGESHIRE AND PETERBOROUGH STP",199,0.95477386934673369,1.0050251256281407E-2,162,28,6,1,1,1]
["QUY","BRISTOL, NORTH SOMERSET AND SOUTH GLOUCESTERSHIRE STP",121,0.90082644628099173,7.43801652892562E-2,83,26,3,5,4,0]
["QVV","DORSET STP",160,0.88124999999999998,0.05,114,27,2,3,5,9]
["QWE","SOUTH WEST LONDON HEALTH & CARE PARTNERSHIP (STP)",90,0.8666666666666667,4.4444444444444446E-2,59,19,8,2,2,0]
["QWO","WEST YORKSHIRE AND HARROGATE HEALTH & CARE PARTNERSHIP (STP)",356,0.93258426966292129,4.49438202247191E-2,256,76,6,6,10,2]
["QWU","COVENTRY AND WARWICKSHIRE STP",55,0.81818181818181823,0.10909090909090909,35,10,2,5,1,2]
["QXU","SURREY HEARTLANDS HEALTH & CARE PARTNERSHIP (STP)",23,1,0,19,4,0,0,0,0]
["QYG","CHESHIRE AND MERSEYSIDE STP",209,0.9569377990430622,3.8277511961722487E-2,162,38,1,6,2,0]

{"sheet":"Trusts Q3","index":9,"n_rows":129,"n_cols":20,"rows_kept":129,"cut":false,"hidden":false,"merged":[[8,6,8,11],[8,12,8,19],[8,0,9,0],[8,1,9,1],[8,2,9,2],[8,3,9,3],[8,4,9,4],[8,5,9,5]]}
[]
[]
[]
[]
[]
[null,"   Sort data by:           "]
[]
[]
["STP Code","Trust Code","Trust Name","Total Responses","Percentage Positive","Percentage Negative","Breakdown of Responses",null,null,null,null,null,"Mode of Collection"]
[null,null,null,null,null,null,"Very Good","Good","Neither Good nor Poor","Poor","Very Poor","Don't Know","Mode SMS","Mode Electronic Discharge","Mode Electronic Home","Mode Paper Discharge","Mode Paper Home","Mode Telephone","Mode Online","Mode Other"]
[null,null,"England (including Independent Sector providers)",4352,0.91130514705882348,4.250919117647059E-2,3087,879,152,86,99,49,1252,1154,37,1434,14,12,375,74]
[null,null,"England (excluding Independent Sector providers)",4352,0.91130514705882348,4.250919117647059E-2,3087,879,152,86,99,49,1252,1154,37,1434,14,12,375,74]
[null,null,"Selection (excluding suppressed data)",{"$f":"SUBTOTAL(9,D14:D299)","v":4352},{"$f":"IFERROR((G13+H13)/SUM(G13:L13), \"-\")","v":0.90480109739368997},{"$f":"IFERROR((J13+K13)/SUM(G13:L13), \"-\")","v":4.4170096021947873E-2},{"$f":"SUBTOTAL(9,G14:G299)","v":2554},744,142,75,86,44,1058,841,37,1288,14,0,335,72]
["QE1","RXL","BLACKPOOL TEACHING HOSPITALS NHS FOUNDATION TRUST",35,0.88571428571428568,5.7142857142857141E-2,22,9,2,0,2,0,0,0,0,35,0,0,0,0]
["QE1","RXR","EAST LANCASHIRE HOSPITALS NHS TRUST",78,0.82051282051282048,5.128205128205128E-2,48,16,4,2,2,6,38,0,0,1,0,0,39,0]
["QE1","RXN","LANCASHIRE TEACHING HOSPITALS NHS FOUNDATION TRUST",13,0.92307692307692313,0,9,3,1,0,0,0,13,0,0,0,0,0,0,0]
["QE1","RTX","UNIVERSITY HOSPITALS OF MORECAMBE BAY NHS FOUNDATION TRUST",22,0.90909090909090906,4.5454545454545456E-2,17,3,1,0,1,0,22,0,0,0,0,0,0,0]
["QF7","RFF","BARNSLEY HOSPITAL NHS FOUNDATION TRUST",1,"*","*","*","*","*","*","*","*","*","*","*","*","*","*","*","*"]
["QF7","RP5","DONCASTER AND BASSETLAW TEACHING HOSPITALS NHS FOUNDATION TRUST",5,1,0,5,0,0,0,0,0,0,0,0,5,0,0,0,0]
["QF7","RHQ","SHEFFIELD TEACHING HOSPITALS NHS FOUNDATION TRUST",47,0.78723404255319152,0.1702127659574468,31,6,2,4,4,0,46,0,0,0,0,0,1,0]
["QF7","RFR","THE ROTHERHAM NHS FOUNDATION TRUST",44,1,0,"*","*","*","*","*","*","*","*","*","*","*","*","*","*"]
["QGH","RWP","WORCESTERSHIRE ACUTE HOSPITALS NHS TRUST",5,1,0,5,0,0,0,0,0,0,5,0,0,0,0,0,0]
["QGH","RLQ","WYE VALLEY NHS TRUST",5,1,0,5,0,0,0,0,0,0,0,0,0,0,0,5,0]
["QH8","RAJ","MID AND SOUTH ESSEX NHS FOUNDATION TRUST",74,0.83783783783783783,0.10810810810810811,52,10,4,3,5,0,70,0,0,0,0,0,0,4]
["QHG","RC9","BEDFORDSHIRE HOSPITALS NHS FOUNDATION TRUST",173,0.95375722543352603,1.7341040462427744E-2,"*","*","*","*","*","*","*","*","*","*","*","*","*","*"]
["QHG","RD8","MILTON KEYNES UNIVERSITY HOSPITAL NHS FOUNDATION TRUST",25,0.92,0.04,"*","*","*","*","*","*","*","*","*","*","*","*","*","*"]
["QHL","RQ3","BIRMINGHAM WOMEN'S AND CHILDREN'S NHS FOUNDATION TRUST",3,"*","*","*","*","*","*","*","*","*","*","*","*","*","*","*","*"]
["QHL","RRK","UNIVERSITY HOSPITALS BIRMINGHAM NHS FOUNDATION TRUST",0,"NA","NA",0,0,0,0,0,0,0,0,0,0,0,0,0,0]
["QHM","RXP","COUNTY DURHAM AND DARLINGTON NHS FOUNDATION TRUST",8,1,0,7,1,0,0,0,0,0,0,0,8,0,0,0,0]
["QHM","RR7","GATESHEAD HEALTH NHS FOUNDATION TRUST",5,1,0,"*","*","*","*","*","*","*","*","*","*","*","*","*","*"]
["QHM","RNN","NORTH CUMBRIA INTEGRATED CARE NHS FOUNDATION TRUST",11,1,0,"*","*","*","*","*","*","*","*","*","*","*","*","*","*"]
["QHM","RVW","NORTH TEES AND HARTLEPOOL NHS FOUNDATION TRUST",1,"*","*","*","*","*","*","*","*","*","*","*","*","*","*","*","*"]
["QHM","RTF","NORTHUMBRIA HEALTHCARE NHS FOUNDATION TRUST",48,0.91666666666666663,0,37,7,4,0,0,0,37,0,0,11,0,0,0,0]
["QHM","RTR","SOUTH TEES HOSPITALS NHS FOUNDATION TRUST",89,0.97752808988764039,0,66,21,0,0,0,2,4,85,0,0,0,0,0,0]
["QHM","R0B","SOUTH TYNESIDE AND SUNDERLAND NHS FOUNDATION TRUST",0,"NA","NA",0,0,0,0,0,0,0,0,0,0,0,0,0,0]
["QHM","RTD","THE NEWCASTLE UPON TYNE HOSPITALS NHS FOUNDATION TRUST",13,1,0,13,0,0,0,0,0,0,0,0,9,0,0,4,0]
["QJ2","RTG","UNIVERSITY HOSPITALS OF DERBY AND BURTON NHS FOUNDATION TRUST",1,"*","*","*","*","*","*","*","*","*","*","*","*","*","*","*","*"]
["QJG","RDE","EAST SUFFOLK AND NORTH ESSEX NHS FOUNDATION TRUST",7,0.7142857142857143,0.14285714285714285,4,1,1,1,0,0,0,0,0,4,0,0,3,0]
["QJG","RGR","WEST SUFFOLK NHS FOUNDATION TRUST",13,1,0,9,4,0,0,0,0,0,0,0,0,0,0,13,0]
["QJK","RBZ","NORTHERN DEVON HEALTHCARE NHS TRUST",7,1,0,7,0,0,0,0,0,0,0,0,7,0,0,0,0]
["QJK","RH8","ROYAL DEVON AND EXETER NHS FOUNDATION TRUST",36,5.5555555555555552E-2,0,0,2,34,0,0,0,0,0,0,36,0,0,0,0]
["QJK","RA9","TORBAY AND SOUTH DEVON NHS FOUNDATION TRUST",7,1,0,5,2,0,0,0,0,0,0,0,0,7,0,0,0]
["QJK","RK9","UNIVERSITY HOSPITALS PLYMOUTH NHS TRUST",86,0.97674418604651159,0,59,25,2,0,0,0,0,82,0,4,0,0,0,0]
["QJM","RWD","UNITED LINCOLNSHIRE HOSPITALS NHS TRUST",26,1,0,24,2,0,0,0,0,0,0,0,26,0,0,0,0]
["QK1","RWE","UNIVERSITY HOSPITALS OF LEICESTER NHS TRUST",214,0.96261682242990654,9.3457943925233638E-3,148,58,6,1,1,0,0,214,0,0,0,0,0,0]
["QKK","RJ1","GUY'S AND ST THOMAS' NHS FOUNDATION TRUST",35,0.7142857142857143,0.14285714285714285,13,12,3,1,4,2,0,0,0,28,0,0,7,0]
["QKK","RJZ","KING'S COLLEGE HOSPITAL NHS FOUNDATION TRUST",33,0.78787878787878785,0.12121212121212122,18,8,3,1,3,0,33,0,0,0,0,0,0,0]
["QKK","RJ2","LEWISHAM AND GREENWICH NHS TRUST",3,"*","*","*","*","*","*","*","*","*","*","*","*","*","*","*","*"]
["QKS","RN7","DARTFORD AND GRAVESHAM NHS TRUST",21,0.95238095238095233,0,18,2,1,0,0,0,0,21,0,0,0,0,0,0]
["QKS","RWF","MAIDSTONE AND TUNBRIDGE WELLS NHS TRUST",46,0.93478260869565222,2.1739130434782608E-2,38,5,2,1,0,0,0,0,0,0,0,0,46,0]
["QKS","RPA","MEDWAY NHS FOUNDATION TRUST",39,0.97435897435897434,2.564102564102564E-2,32,6,0,1,0,0,0,0,0,39,0,0,0,0]
["QM7","RWH","EAST AND NORTH HERTFORDSHIRE NHS TRUST",86,0.94186046511627908,3.4883720930232558E-2,59,22,2,3,0,0,0,86,0,0,0,0,0,0]
["QM7","RQW","THE PRINCESS ALEXANDRA HOSPITAL NHS TRUST",15,0.8,6.6666666666666666E-2,9,3,2,1,0,0,0,0,0,0,0,0,0,15]
["QM7","RWG","WEST HERTFORDSHIRE TEACHING HOSPITALS NHS TRUST",44,0.95454545454545459,2.2727272727272728E-2,31,11,1,1,0,0,0,44,0,0,0,0,0,0]
["QMF","RF4","BARKING, HAVERING AND REDBRIDGE UNIVERSITY HOSPITALS NHS TRUST",21,0.90476190476190477,9.5238095238095233E-2,16,3,0,1,1,0,0,0,0,21,0,0,0,0]
["QMF","R1H","BARTS HEALTH NHS TRUST",75,0.89333333333333331,5.3333333333333337E-2,37,30,4,2,2,0,8,0,0,59,0,0,8,0]
["QMF","RQX","HOMERTON UNIVERSITY HOSPITAL NHS FOUNDATION TRUST",20,0.9,0,15,3,2,0,0,0,20,0,0,0,0,0,0,0]
["QMJ","RAP","NORTH MIDDLESEX UNIVERSITY HOSPITAL NHS TRUST",16,0.8125,0,7,6,3,0,0,0,0,16,0,0,0,0,0,0]
["QMJ","RAL","ROYAL FREE LONDON NHS FOUNDATION TRUST",85,0.89411764705882357,3.5294117647058823E-2,54,22,6,1,2,0,0,83,0,0,0,0,2,0]
["QMJ","RKE","WHITTINGTON HEALTH NHS TRUST",45,0.97777777777777775,2.2222222222222223E-2,6,38,0,1,0,0,0,0,0,45,0,0,0,0]
["QMM","RGP","JAMES PAGET UNIVERSITY HOSPITALS NHS FOUNDATION TRUST",8,1,0,"*","*","*","*","*","*","*","*","*","*","*","*","*","*"]
["QMM","RM1","NORFOLK AND NORWICH UNIVERSITY HOSPITALS NHS FOUNDATION TRUST",42,0.95238095238095233,4.7619047619047616E-2,30,10,0,1,1,0,0,0,0,0,0,0,42,0]
["QMM","RCX","THE QUEEN ELIZABETH HOSPITAL, KING'S LYNN, NHS FOUNDATION TRUST",12,1,0,"*","*","*","*","*","*","*","*","*","*","*","*","*","*"]
["QNC","RJE","UNIVERSITY HOSPITALS OF NORTH MIDLANDS NHS TRUST",1,"*","*","*","*","*","*","*","*","*","*","*","*","*","*","*","*"]
["QNQ","RDU","FRIMLEY HEALTH NHS FOUNDATION TRUST",59,0.89830508474576276,5.0847457627118647E-2,39,14,3,1,2,0,34,1,0,24,0,0,0,0]
["QNX","RXC","EAST SUSSEX HEALTHCARE NHS TRUST",1,"*","*","*","*","*","*","*","*","*","*","*","*","*","*","*","*"]
["QNX","RYR","UNIVERSITY HOSPITALS SUSSEX NHS FOUNDATION TRUST",80,0.98750000000000004,1.2500000000000001E-2,"*","*","*","*","*","*","*","*","*","*","*","*","*","*"]
["QOC","RXW","THE SHREWSBURY AND TELFORD HOSPITAL NHS TRUST",5,1,0,5,0,0,0,0,0,0,0,0,5,0,0,0,0]
["QOP","RMC","BOLTON NHS FOUNDATION TRUST",49,0.77551020408163263,0.16326530612244897,28,10,2,2,6,1,49,0,0,0,0,0,0,0]
["QOP","R0A","MANCHESTER UNIVERSITY NHS FOUNDATION TRUST",29,0.96551724137931039,0,23,5,1,0,0,0,0,29,0,0,0,0,0,0]
["QOP","RWJ","STOCKPORT NHS FOUNDATION TRUST",32,0.96875,3.125E-2,28,3,0,0,1,0,0,0,0,32,0,0,0,0]
["QOP","RMP","TAMESIDE AND GLOSSOP INTEGRATED CARE NHS FOUNDATION TRUST",1,"*","*","*","*","*","*","*","*","*","*","*","*","*","*","*","*"]
["QOP","RRF","WRIGHTINGTON, WIGAN AND LEIGH NHS FOUNDATION TRUST",29,1,0,25,4,0,0,0,0,0,0,0,29,0,0,0,0]
["QOQ","RCD","HARROGATE AND DISTRICT NHS FOUNDATION TRUST",7,0.8571428571428571,0.14285714285714285,6,0,0,1,0,0,0,0,0,7,0,0,0,0]
["QOQ","RWA","HULL UNIVERSITY TEACHING HOSPITALS NHS TRUST",11,1,0,7,4,0,0,0,0,0,0,0,11,0,0,0,0]
["QOQ","RJL","NORTHERN LINCOLNSHIRE AND GOOLE NHS FOUNDATION TRUST",30,0.8666666666666667,0.1,24,2,0,0,3,1,0,0,0,29,0,0,1,0]
["QOQ","RCB","YORK AND SCARBOROUGH TEACHING HOSPITALS NHS FOUNDATION TRUST",102,0.98039215686274506,1.9607843137254902E-2,86,14,0,2,0,0,0,0,0,102,0,0,0,0]
["QOX","RN3","GREAT WESTERN HOSPITALS NHS FOUNDATION TRUST",122,0.96721311475409832,8.1967213114754103E-3,"*","*","*","*","*","*","*","*","*","*","*","*","*","*"]
["QOX","RD1","ROYAL UNITED HOSPITALS BATH NHS FOUNDATION TRUST",3,"*","*","*","*","*","*","*","*","*","*","*","*","*","*","*","*"]
["QOX","RNZ","SALISBURY NHS FOUNDATION TRUST",20,1,0,16,4,0,0,0,0,0,0,0,10,0,0,10,0]
["QPM","RNQ","KETTERING GENERAL HOSPITAL NHS FOUNDATION TRUST",1,"*","*","*","*","*","*","*","*","*","*","*","*","*","*","*","*"]
["QPM","RNS","NORTHAMPTON GENERAL HOSPITAL NHS TRUST",45,0.9555555555555556,4.4444444444444446E-2,"*","*","*","*","*","*","*","*","*","*","*","*","*","*"]
["QR1","RTE","GLOUCESTERSHIRE HOSPITALS NHS FOUNDATION TRUST",34,0.79411764705882348,2.9411764705882353E-2,21,6,5,0,1,1,34,0,0,0,0,0,0,0]
["QRL","RN5","HAMPSHIRE HOSPITALS NHS FOUNDATION TRUST",130,0.96153846153846156,7.6923076923076927E-3,108,17,3,1,0,1,0,0,0,130,0,0,0,0]
["QRL","R1F","ISLE OF WIGHT NHS TRUST",10,0.9,0,8,1,0,0,0,1,0,0,0,10,0,0,0,0]
["QRL","RHU","PORTSMOUTH HOSPITALS UNIVERSITY NATIONAL HEALTH SERVICE TRUST",23,1,0,22,1,0,0,0,0,0,0,0,23,0,0,0,0]
["QRL","RHM","UNIVERSITY HOSPITAL SOUTHAMPTON NHS FOUNDATION TRUST",31,0.80645161290322576,9.6774193548387094E-2,15,10,1,1,2,2,0,0,0,0,7,0,24,0]
["QRV","RQM","CHELSEA AND WESTMINSTER HOSPITAL NHS FOUNDATION TRUST",157,0.85987261146496818,0.10828025477707007,111,24,4,8,9,1,141,0,0,0,0,0,16,0]
["QRV","RYJ","IMPERIAL COLLEGE HEALTHCARE NHS TRUST",117,0.76068376068376065,9.4017094017094016E-2,66,23,4,4,7,13,0,0,37,10,0,0,70,0]
["QRV","R1K","LONDON NORTH WEST UNIVERSITY HEALTHCARE NHS TRUST",30,1,0,21,9,0,0,0,0,0,0,0,30,0,0,0,0]
["QRV","RAS","THE HILLINGDON HOSPITALS NHS FOUNDATION TRUST",39,0.92307692307692313,7.6923076923076927E-2,29,7,0,2,1,0,0,0,0,15,0,0,24,0]
["QSL","RH5","SOMERSET NHS FOUNDATION TRUST",8,1,0,7,1,0,0,0,0,0,0,0,8,0,0,0,0]
["QSL","RA4","YEOVIL DISTRICT HOSPITAL NHS FOUNDATION TRUST",45,1,0,41,4,0,0,0,0,10,35,0,0,0,0,0,0]
["QT1","RX1","NOTTINGHAM UNIVERSITY HOSPITALS NHS TRUST",15,0.93333333333333335,0,"*","*","*","*","*","*","*","*","*","*","*","*","*","*"]
["QT1","RK5","SHERWOOD FOREST HOSPITALS NHS FOUNDATION TRUST",14,0.9285714285714286,7.1428571428571425E-2,"*","*","*","*","*","*","*","*","*","*","*","*","*","*"]
["QT6","REF","ROYAL CORNWALL HOSPITALS NHS TRUST",2,"*","*","*","*","*","*","*","*","*","*","*","*","*","*","*","*"]
["QU9","RXQ","BUCKINGHAMSHIRE HEALTHCARE NHS TRUST",19,0.84210526315789469,0.10526315789473684,10,6,1,1,1,0,19,0,0,0,0,0,0,0]
["QU9","RTH","OXFORD UNIVERSITY HOSPITALS NHS FOUNDATION TRUST",2,"*","*","*","*","*","*","*","*","*","*","*","*","*","*","*","*"]
["QU9","RHW","ROYAL BERKSHIRE NHS FOUNDATION TRUST",19,1,0,15,4,0,0,0,0,1,0,0,18,0,0,0,0]
["QUA","RNA","THE DUDLEY GROUP NHS FOUNDATION TRUST",1,"*","*","*","*","*","*","*","*","*","*","*","*","*","*","*","*"]
["QUA","RL4","THE ROYAL WOLVERHAMPTON NHS TRUST",55,0.8,0.16363636363636364,36,8,2,3,6,0,55,0,0,0,0,0,0,0]
["QUA","RBK","WALSALL HEALTHCARE NHS TRUST",13,0.76923076923076927,0.23076923076923078,8,2,0,2,1,0,11,2,0,0,0,0,0,0]
["QUE","RGT","CAMBRIDGE UNIVERSITY HOSPITALS NHS FOUNDATION TRUST",112,0.9285714285714286,8.9285714285714281E-3,84,20,6,0,1,1,0,100,0,3,0,0,9,0]
["QUE","RGN","NORTH WEST ANGLIA NHS FOUNDATION TRUST",87,0.9885057471264368,1.1494252873563218E-2,78,8,0,1,0,0,0,0,0,87,0,0,0,0]
["QUY","RVJ","NORTH BRISTOL NHS TRUST",101,0.88118811881188119,8.9108910891089105E-2,65,24,3,5,4,0,101,0,0,0,0,0,0,0]
["QUY","RA7","UNIVERSITY HOSPITALS BRISTOL AND WESTON NHS FOUNDATION TRUST",20,1,0,18,2,0,0,0,0,0,0,0,20,0,0,0,0]
["QVV","RBD","DORSET COUNTY HOSPITAL NHS FOUNDATION TRUST",34,0.97058823529411764,0,31,2,0,0,0,1,34,0,0,0,0,0,0,0]
["QVV","R0D","UNIVERSITY HOSPITALS DORSET NHS FOUNDATION TRUST",126,0.8571428571428571,6.3492063492063489E-2,83,25,2,3,5,8,125,0,0,0,0,0,1,0]
["QWE","RJ6","CROYDON HEALTH SERVICES NHS TRUST",31,0.87096774193548387,0.12903225806451613,19,8,0,2,2,0,31,0,0,0,0,0,0,0]
["QWE","RVR","EPSOM AND ST HELIER UNIVERSITY HOSPITALS NHS TRUST",19,0.78947368421052633,0,10,5,4,0,0,0,0,0,0,17,0,0,2,0]
["QWE","RAX","KINGSTON HOSPITAL NHS FOUNDATION TRUST",19,0.89473684210526316,0,16,1,2,0,0,0,0,19,0,0,0,0,0,0]
["QWE","RJ7","ST GEORGE'S UNIVERSITY HOSPITALS NHS FOUNDATION TRUST",21,0.90476190476190477,0,14,5,2,0,0,0,0,19,0,1,0,0,1,0]
["QWO","RAE","BRADFORD TEACHING HOSPITALS NHS FOUNDATION TRUST",3,"*","*","*","*","*","*","*","*","*","*","*","*","*","*","*","*"]
["QWO","RWY","CALDERDALE AND HUDDERSFIELD NHS FOUNDATION TRUST",3,"*","*","*","*","*","*","*","*","*","*","*","*","*","*","*","*"]
["QWO","RR8","LEEDS TEACHING HOSPITALS NHS TRUST",122,0.88524590163934425,9.0163934426229511E-2,"*","*","*","*","*","*","*","*","*","*","*","*","*","*"]
["QWO","RXF","MID YORKSHIRE HOSPITALS NHS TRUST",228,0.96052631578947367,1.7543859649122806E-2,161,58,4,1,3,1,0,0,0,223,0,0,5,0]
["QWU","RLT","GEORGE ELIOT HOSPITAL NHS TRUST",51,0.84313725490196079,7.8431372549019607E-2,33,10,2,3,1,2,51,0,0,0,0,0,0,0]
["QWU","RJC","SOUTH WARWICKSHIRE NHS FOUNDATION TRUST",1,"*","*","*","*","*","*","*","*","*","*","*","*","*","*","*","*"]
["QWU","RKB","UNIVERSITY HOSPITALS COVENTRY AND WARWICKSHIRE NHS TRUST",3,"*","*","*","*","*","*","*","*","*","*","*","*","*","*","*","*"]
["QXU","RTK","ASHFORD AND ST PETER'S HOSPITALS NHS FOUNDATION TRUST",0,"NA","NA",0,0,0,0,0,0,0,0,0,0,0,0,0,0]
["QXU","RA2","ROYAL SURREY COUNTY HOSPITAL NHS FOUNDATION TRUST",0,"NA","NA",0,0,0,0,0,0,0,0,0,0,0,0,0,0]
["QXU","RTP","SURREY AND SUSSEX HEALTHCARE NHS TRUST",23,1,0,19,4,0,0,0,0,0,0,0,22,0,0,1,0]
["QYG","RJN","EAST CHESHIRE NHS TRUST",0,"NA","NA",0,0,0,0,0,0,0,0,0,0,0,0,0,0]
["QYG","REP","LIVERPOOL WOMEN'S NHS FOUNDATION TRUST",51,0.88235294117647056,9.8039215686274508E-2,31,14,1,3,2,0,0,0,0,0,0,0,0,51]
["QYG","RBT","MID CHESHIRE HOSPITALS NHS FOUNDATION TRUST",36,0.97222222222222221,2.7777777777777776E-2,28,7,0,1,0,0,34,0,0,0,0,0,0,2]
["QYG","RVY","SOUTHPORT AND ORMSKIRK HOSPITAL NHS TRUST",23,0.91304347826086951,8.6956521739130432E-2,17,4,0,2,0,0,22,0,0,0,0,0,1,0]
["QYG","RBN","ST HELENS AND KNOWSLEY TEACHING HOSPITALS NHS TRUST",21,1,0,20,1,0,0,0,0,15,0,0,6,0,0,0,0]
["QYG","RWW","WARRINGTON AND HALTON TEACHING HOSPITALS NHS FOUNDATION TRUST",43,1,0,39,4,0,0,0,0,0,0,0,43,0,0,0,0]
["QYG","RBL","WIRRAL UNIVERSITY TEACHING HOSPITAL NHS FOUNDATION TRUST",35,1,0,27,8,0,0,0,0,0,0,0,35,0,0,0,0]

{"sheet":"Sites Q3","index":10,"n_rows":182,"n_cols":14,"rows_kept":182,"cut":false,"hidden":false,"merged":[[8,6,9,6],[8,7,9,7],[8,8,8,13],[8,0,9,0],[8,1,9,1],[8,2,9,2],[8,3,9,3],[8,4,9,4],[8,5,9,5]]}
[]
[]
[]
[]
[]
[null,"   Sort data by:           "]
[]
[]
["STP Code","Trust Code","Trust Name","Site Code","Site Name","Total Responses","Percentage Positive","Percentage Negatvie","Breakdown of Responses"]
[null,null,null,null,null,null,null,null,"Very Good","Good","Neither Good nor Poor","Poor","Very Poor","Don't Know"]
[null,null,null,null,"England (including Independent Sector providers)",4352,0.91130514705882348,4.250919117647059E-2,3087,879,152,86,99,49]
[null,null,null,null,"England (excluding Independent Sector providers)",4352,0.91130514705882348,4.250919117647059E-2,3087,879,152,86,99,49]
[null,null,null,null,"Selection (excluding suppressed data)",{"$f":"SUBTOTAL(9,F14:F298)","v":4352},{"$f":"IFERROR((I13+J13)/SUM(I13:N13), \"-\")","v":0.9069373942470389},{"$f":"IFERROR((L13+M13)/SUM(I13:N13), \"-\")","v":4.2865200225606317E-2},{"$f":"SUBTOTAL(9,I14:I298)","v":2498},718,134,69,83,44]
["QE1","RXL","BLACKPOOL TEACHING HOSPITALS NHS FOUNDATION TRUST","RXL01","Blackpool Victoria Hospital",35,0.88571428571428568,5.7142857142857141E-2,22,9,2,0,2,0]
["QE1","RXR","EAST LANCASHIRE HOSPITALS NHS TRUST","RXR20","Royal Blackburn Hospital",78,0.82051282051282048,5.128205128205128E-2,48,16,4,2,2,6]
["QE1","RXN","LANCASHIRE TEACHING HOSPITALS NHS FOUNDATION TRUST","RXN01","Chorley and South Ribble Hospital",0,"NA","NA",0,0,0,0,0,0]
["QE1","RXN","LANCASHIRE TEACHING HOSPITALS NHS FOUNDATION TRUST","RXN02","Royal Preston Hospital",13,0.92307692307692313,0,9,3,1,0,0,0]
["QE1","RTX","UNIVERSITY HOSPITALS OF MORECAMBE BAY NHS FOUNDATION TRUST","RTXBU","Furness General Hospital",5,0.8,0.2,3,1,0,0,1,0]
["QE1","RTX","UNIVERSITY HOSPITALS OF MORECAMBE BAY NHS FOUNDATION TRUST","RTX02","Royal Lancaster Infirmary",17,0.94117647058823528,0,14,2,1,0,0,0]
["QF7","RFF","BARNSLEY HOSPITAL NHS FOUNDATION TRUST","RFFAA","Barnsley Hospital NHS Foundation Trust HQ",1,"*","*","*","*","*","*","*","*"]
["QF7","RP5","DONCASTER AND BASSETLAW TEACHING HOSPITALS NHS FOUNDATION TRUST","RP5BA","Bassetlaw Hospital",0,"NA","NA",0,0,0,0,0,0]
["QF7","RP5","DONCASTER AND BASSETLAW TEACHING HOSPITALS NHS FOUNDATION TRUST","RP5DR","Doncaster Royal Infirmary",5,1,0,5,0,0,0,0,0]
["QF7","RHQ","SHEFFIELD TEACHING HOSPITALS NHS FOUNDATION TRUST","RHQHH","Royal Hallamshire Hospital",47,0.78723404255319152,0.1702127659574468,31,6,2,4,4,0]
["QF7","RFR","THE ROTHERHAM NHS FOUNDATION TRUST","RFRPA","Rotherham District General Hospital",44,1,0,"*","*","*","*","*","*"]
["QGH","RWP","WORCESTERSHIRE ACUTE HOSPITALS NHS TRUST","RWP50","Worcestershire Royal Hospital",5,1,0,5,0,0,0,0,0]
["QGH","RLQ","WYE VALLEY NHS TRUST","RLQ01","Hereford County Hospital",5,1,0,5,0,0,0,0,0]
["QH8","RAJ","MID AND SOUTH ESSEX NHS FOUNDATION TRUST","RAJ12","BASILDON HOSPITAL",39,0.92307692307692313,5.128205128205128E-2,31,5,1,0,2,0]
["QH8","RAJ","MID AND SOUTH ESSEX NHS FOUNDATION TRUST","RAJ32","MID ESSEX HOSPITAL",35,0.74285714285714288,0.17142857142857143,21,5,3,3,3,0]
["QHG","RC9","BEDFORDSHIRE HOSPITALS NHS FOUNDATION TRUST","RC979","BEDFORD HOSPITAL SOUTH WING",18,1,0,"*","*","*","*","*","*"]
["QHG","RC9","BEDFORDSHIRE HOSPITALS NHS FOUNDATION TRUST","RC971","Luton and Dunstable Hospital",155,0.94838709677419353,1.935483870967742E-2,"*","*","*","*","*","*"]
["QHG","RD8","MILTON KEYNES UNIVERSITY HOSPITAL NHS FOUNDATION TRUST","RD816","Milton Keynes Hospital",25,0.92,0.04,"*","*","*","*","*","*"]
["QHL","RQ3","BIRMINGHAM WOMEN'S AND CHILDREN'S NHS FOUNDATION TRUST","RQ370","Birmingham Women's Hospital",3,"*","*","*","*","*","*","*","*"]
["QHL","RRK","UNIVERSITY HOSPITALS BIRMINGHAM NHS FOUNDATION TRUST","RRK98","Good Hope Hospital",0,"NA","NA",0,0,0,0,0,0]
["QHL","RRK","UNIVERSITY HOSPITALS BIRMINGHAM NHS FOUNDATION TRUST","RRK97","Heartlands Hospital",0,"NA","NA",0,0,0,0,0,0]
["QHL","RRK","UNIVERSITY HOSPITALS BIRMINGHAM NHS FOUNDATION TRUST","RRK99","Solihull Hospital",0,"NA","NA",0,0,0,0,0,0]
["QHM","RXP","COUNTY DURHAM AND DARLINGTON NHS FOUNDATION TRUST","RXPCP","University Hospital Of North Durham",8,1,0,7,1,0,0,0,0]
["QHM","RR7","GATESHEAD HEALTH NHS FOUNDATION TRUST","RR7EN","Queen Elizabeth Hospital",5,1,0,"*","*","*","*","*","*"]
["QHM","RNN","NORTH CUMBRIA INTEGRATED CARE NHS FOUNDATION TRUST","RNN62","Cumberland Infirmary",2,"*","*","*","*","*","*","*","*"]
["QHM","RNN","NORTH CUMBRIA INTEGRATED CARE NHS FOUNDATION TRUST","RNNBX","West Cumberland Hospital",9,1,0,"*","*","*","*","*","*"]
["QHM","RVW","NORTH TEES AND HARTLEPOOL NHS FOUNDATION TRUST","RVWAE","University Hospital Of North Tees",1,"*","*","*","*","*","*","*","*"]
["QHM","RTF","NORTHUMBRIA HEALTHCARE NHS FOUNDATION TRUST","RTFDJ","Alnwick Infirmary",0,"NA","NA",0,0,0,0,0,0]
["QHM","RTF","NORTHUMBRIA HEALTHCARE NHS FOUNDATION TRUST","RTFDR","Hexham General Hospital",0,"NA","NA",0,0,0,0,0,0]
["QHM","RTF","NORTHUMBRIA HEALTHCARE NHS FOUNDATION TRUST","RTFXXX","Non-hospital site",1,"*","*","*","*","*","*","*","*"]
["QHM","RTF","NORTHUMBRIA HEALTHCARE NHS FOUNDATION TRUST","RTF86","The Northumbria",47,0.91489361702127658,0,36,7,4,0,0,0]
["QHM","RTR","SOUTH TEES HOSPITALS NHS FOUNDATION TRUST","RTR45","Friarage Hospital Site",0,"NA","NA",0,0,0,0,0,0]
["QHM","RTR","SOUTH TEES HOSPITALS NHS FOUNDATION TRUST","RTRAT","The James Cook University Hospital",89,0.97752808988764039,0,66,21,0,0,0,2]
["QHM","R0B","SOUTH TYNESIDE AND SUNDERLAND NHS FOUNDATION TRUST","R0BXXX","Non-hospital site",0,"NA","NA",0,0,0,0,0,0]
["QHM","R0B","SOUTH TYNESIDE AND SUNDERLAND NHS FOUNDATION TRUST","R0B0Q","South Tyneside District Hospital",0,"NA","NA",0,0,0,0,0,0]
["QHM","R0B","SOUTH TYNESIDE AND SUNDERLAND NHS FOUNDATION TRUST","R0B01","Sunderland Royal Hospital",0,"NA","NA",0,0,0,0,0,0]
["QHM","RTD","THE NEWCASTLE UPON TYNE HOSPITALS NHS FOUNDATION TRUST","RTD02","The Royal Victoria Infirmary",13,1,0,13,0,0,0,0,0]
["QJ2","RTG","UNIVERSITY HOSPITALS OF DERBY AND BURTON NHS FOUNDATION TRUST","RTG02","Queens Hospital, Burton Upon Trent",1,"*","*","*","*","*","*","*","*"]
["QJG","RDE","EAST SUFFOLK AND NORTH ESSEX NHS FOUNDATION TRUST","RDEE4","Colchester General Hospital",6,0.83333333333333337,0.16666666666666666,"*","*","*","*","*","*"]
["QJG","RDE","EAST SUFFOLK AND NORTH ESSEX NHS FOUNDATION TRUST","RDE03","Ipswich Hospital",1,"*","*","*","*","*","*","*","*"]
["QJG","RGR","WEST SUFFOLK NHS FOUNDATION TRUST","RGR50","West Suffolk Hospital",13,1,0,9,4,0,0,0,0]
["QJK","RBZ","NORTHERN DEVON HEALTHCARE NHS TRUST","RBZ12","North Devon District Hospital",7,1,0,7,0,0,0,0,0]
["QJK","RH8","ROYAL DEVON AND EXETER NHS FOUNDATION TRUST","RH801","Royal Devon and Exeter Hospital (Wonford)",36,5.5555555555555552E-2,0,0,2,34,0,0,0]
["QJK","RA9","TORBAY AND SOUTH DEVON NHS FOUNDATION TRUST","RA901","Torbay Hospital",7,1,0,5,2,0,0,0,0]
["QJK","RK9","UNIVERSITY HOSPITALS PLYMOUTH NHS TRUST","RK950","Derriford Hospital",86,0.97674418604651159,0,59,25,2,0,0,0]
["QJM","RWD","UNITED LINCOLNSHIRE HOSPITALS NHS TRUST","RWDLP","Grantham and District Hospital",0,"NA","NA",0,0,0,0,0,0]
["QJM","RWD","UNITED LINCOLNSHIRE HOSPITALS NHS TRUST","RWDDA","Lincoln County Hospital",26,1,0,24,2,0,0,0,0]
["QJM","RWD","UNITED LINCOLNSHIRE HOSPITALS NHS TRUST","RWDLA","Pilgrim Hospital",0,"NA","NA",0,0,0,0,0,0]
["QK1","RWE","UNIVERSITY HOSPITALS OF LEICESTER NHS TRUST","RWEAK","Leicester General Hospital",65,1,0,57,8,0,0,0,0]
["QK1","RWE","UNIVERSITY HOSPITALS OF LEICESTER NHS TRUST","RWEAA","Leicester Royal Infirmary",137,0.94160583941605835,1.4598540145985401E-2,79,50,6,1,1,0]
["QK1","RWE","UNIVERSITY HOSPITALS OF LEICESTER NHS TRUST","RWE10","St Mary's Hospital",12,1,0,12,0,0,0,0,0]
["QKK","RJ1","GUY'S AND ST THOMAS' NHS FOUNDATION TRUST","RJ122","St Thomas' Hospital",35,0.7142857142857143,0.14285714285714285,13,12,3,1,4,2]
["QKK","RJZ","KING'S COLLEGE HOSPITAL NHS FOUNDATION TRUST","RJZ01","King's College Hospital (Denmark Hill)",20,0.85,0.05,12,5,2,0,1,0]
["QKK","RJZ","KING'S COLLEGE HOSPITAL NHS FOUNDATION TRUST","RJZ30","Princess Royal University Hospital",13,0.69230769230769229,0.23076923076923078,6,3,1,1,2,0]
["QKK","RJ2","LEWISHAM AND GREENWICH NHS TRUST","RJ231","Queen Elizabeth Hospital",2,"*","*","*","*","*","*","*","*"]
["QKK","RJ2","LEWISHAM AND GREENWICH NHS TRUST","RJ224","University Hospital Lewisham",1,"*","*","*","*","*","*","*","*"]
["QKS","RN7","DARTFORD AND GRAVESHAM NHS TRUST","RN707","Darent Valley Hospital",21,0.95238095238095233,0,18,2,1,0,0,0]
["QKS","RWF","MAIDSTONE AND TUNBRIDGE WELLS NHS TRUST","RWFTW","The Tunbridge Wells Hospital",46,0.93478260869565222,2.1739130434782608E-2,38,5,2,1,0,0]
["QKS","RPA","MEDWAY NHS FOUNDATION TRUST","RPA02","Medway Maritime Hospital",39,0.97435897435897434,2.564102564102564E-2,32,6,0,1,0,0]
["QM7","RWH","EAST AND NORTH HERTFORDSHIRE NHS TRUST","RWH01","Lister Hospital",86,0.94186046511627908,3.4883720930232558E-2,59,22,2,3,0,0]
["QM7","RQW","THE PRINCESS ALEXANDRA HOSPITAL NHS TRUST","RQWG0","Princess Alexandra Hospital",15,0.8,6.6666666666666666E-2,9,3,2,1,0,0]
["QM7","RWG","WEST HERTFORDSHIRE TEACHING HOSPITALS NHS TRUST","RWG02","Watford General Hospital",44,0.95454545454545459,2.2727272727272728E-2,31,11,1,1,0,0]
["QMF","RF4","BARKING, HAVERING AND REDBRIDGE UNIVERSITY HOSPITALS NHS TRUST","RF4QH","Queen's Hospital",21,0.90476190476190477,9.5238095238095233E-2,16,3,0,1,1,0]
["QMF","R1H","BARTS HEALTH NHS TRUST","R1HNH","Newham General Hospital",15,0.8,0.13333333333333333,8,4,1,0,2,0]
["QMF","R1H","BARTS HEALTH NHS TRUST","R1H12","The Royal London Hospital",10,0.8,0.1,5,3,1,1,0,0]
["QMF","R1H","BARTS HEALTH NHS TRUST","R1HKH","Whipps Cross University Hospital",50,0.94,0.02,24,23,2,1,0,0]
["QMF","RQX","HOMERTON UNIVERSITY HOSPITAL NHS FOUNDATION TRUST","RQXM1","Homerton University Hospital",20,0.9,0,15,3,2,0,0,0]
["QMJ","RAP","NORTH MIDDLESEX UNIVERSITY HOSPITAL NHS TRUST","RAPNM","North Middlesex Hospital",16,0.8125,0,7,6,3,0,0,0]
["QMJ","RAL","ROYAL FREE LONDON NHS FOUNDATION TRUST","RAL26","Barnet Hospital",37,0.91891891891891897,2.7027027027027029E-2,25,9,2,1,0,0]
["QMJ","RAL","ROYAL FREE LONDON NHS FOUNDATION TRUST","RAL01","Royal Free Hospital",48,0.875,4.1666666666666664E-2,29,13,4,0,2,0]
["QMJ","RKE","WHITTINGTON HEALTH NHS TRUST","RKEXXX","Non-hospital site",0,"NA","NA",0,0,0,0,0,0]
["QMJ","RKE","WHITTINGTON HEALTH NHS TRUST","RKEQ4","The Whittington Hospital",45,0.97777777777777775,2.2222222222222223E-2,6,38,0,1,0,0]
["QMM","RGP","JAMES PAGET UNIVERSITY HOSPITALS NHS FOUNDATION TRUST","RGP75","James Paget University Hospital",8,1,0,"*","*","*","*","*","*"]
["QMM","RM1","NORFOLK AND NORWICH UNIVERSITY HOSPITALS NHS FOUNDATION TRUST","RM102","Norfolk and Norwich University Hospital",42,0.95238095238095233,4.7619047619047616E-2,30,10,0,1,1,0]
["QMM","RCX","THE QUEEN ELIZABETH HOSPITAL, KING'S LYNN, NHS FOUNDATION TRUST","RCX70","The Queen Elizabeth Hospital",12,1,0,"*","*","*","*","*","*"]
["QNC","RJE","UNIVERSITY HOSPITALS OF NORTH MIDLANDS NHS TRUST","RJE01","Royal Stoke University Hospital",1,"*","*","*","*","*","*","*","*"]
["QNQ","RDU","FRIMLEY HEALTH NHS FOUNDATION TRUST","RDU01","Frimley Park Hospital",54,0.92592592592592593,3.7037037037037035E-2,37,13,2,1,1,0]
["QNQ","RDU","FRIMLEY HEALTH NHS FOUNDATION TRUST","RDU50","Wexham Park Hospital",5,0.6,0.2,2,1,1,0,1,0]
["QNX","RXC","EAST SUSSEX HEALTHCARE NHS TRUST","RXC01","Conquest Hospital",1,"*","*","*","*","*","*","*","*"]
["QNX","RXC","EAST SUSSEX HEALTHCARE NHS TRUST","RXC02","Eastbourne District General Hospital",0,"NA","NA",0,0,0,0,0,0]
["QNX","RYR","UNIVERSITY HOSPITALS SUSSEX NHS FOUNDATION TRUST","N6J7V","Princess Royal Hospital",25,1,0,"*","*","*","*","*","*"]
["QNX","RYR","UNIVERSITY HOSPITALS SUSSEX NHS FOUNDATION TRUST","E0A3H","Royal Sussex County Hospital",17,1,0,"*","*","*","*","*","*"]
["QNX","RYR","UNIVERSITY HOSPITALS SUSSEX NHS FOUNDATION TRUST","RYR16","St Richard's Hospital",13,1,0,11,2,0,0,0,0]
["QNX","RYR","UNIVERSITY HOSPITALS SUSSEX NHS FOUNDATION TRUST","RYR18","Worthing Hospital",25,0.96,0.04,21,3,0,0,1,0]
["QOC","RXW","THE SHREWSBURY AND TELFORD HOSPITAL NHS TRUST","RXWMB","Bridgnorth Hospital (Maternity)",0,"NA","NA",0,0,0,0,0,0]
["QOC","RXW","THE SHREWSBURY AND TELFORD HOSPITAL NHS TRUST","RXWML","Ludlow Hospital (Maternity)",0,"NA","NA",0,0,0,0,0,0]
["QOC","RXW","THE SHREWSBURY AND TELFORD HOSPITAL NHS TRUST","RXWMJ","Robert Jones & Agnes Hunt Orthopaedic & District Hospital",0,"NA","NA",0,0,0,0,0,0]
["QOC","RXW","THE SHREWSBURY AND TELFORD HOSPITAL NHS TRUST","RXWAS","Royal Shrewsbury Hospital",0,"NA","NA",0,0,0,0,0,0]
["QOC","RXW","THE SHREWSBURY AND TELFORD HOSPITAL NHS TRUST","RXWAT","The Princess Royal Hospital",5,1,0,5,0,0,0,0,0]
["QOP","RMC","BOLTON NHS FOUNDATION TRUST","RMC01","Royal Bolton Hospital",49,0.77551020408163263,0.16326530612244897,28,10,2,2,6,1]
["QOP","R0A","MANCHESTER UNIVERSITY NHS FOUNDATION TRUST","R0A05","St Mary's Hospital",29,0.96551724137931039,0,23,5,1,0,0,0]
["QOP","RWJ","STOCKPORT NHS FOUNDATION TRUST","RWJ09","Stepping Hill Hospital",32,0.96875,3.125E-2,28,3,0,0,1,0]
["QOP","RMP","TAMESIDE AND GLOSSOP INTEGRATED CARE NHS FOUNDATION TRUST","RMP01","Tameside General Hospital",1,"*","*","*","*","*","*","*","*"]
["QOP","RRF","WRIGHTINGTON, WIGAN AND LEIGH NHS FOUNDATION TRUST","RRF02","Royal Albert Edward Infirmary",29,1,0,25,4,0,0,0,0]
["QOQ","RCD","HARROGATE AND DISTRICT NHS FOUNDATION TRUST","RCD01","Harrogate District Hospital",7,0.8571428571428571,0.14285714285714285,6,0,0,1,0,0]
["QOQ","RWA","HULL UNIVERSITY TEACHING HOSPITALS NHS TRUST","RWA01","Hull Royal Infirmary",11,1,0,7,4,0,0,0,0]
["QOQ","RJL","NORTHERN LINCOLNSHIRE AND GOOLE NHS FOUNDATION TRUST","RJL32","Scunthorpe General Hospital",30,0.8666666666666667,0.1,24,2,0,0,3,1]
["QOQ","RCB","YORK AND SCARBOROUGH TEACHING HOSPITALS NHS FOUNDATION TRUST","RCBCA","Scarborough General Hospital",41,0.97560975609756095,2.4390243902439025E-2,36,4,0,1,0,0]
["QOQ","RCB","YORK AND SCARBOROUGH TEACHING HOSPITALS NHS FOUNDATION TRUST","RCB55","York Hospital",61,0.98360655737704916,1.6393442622950821E-2,50,10,0,1,0,0]
["QOX","RN3","GREAT WESTERN HOSPITALS NHS FOUNDATION TRUST","RN325","The Great Western Hospital",122,0.96721311475409832,8.1967213114754103E-3,"*","*","*","*","*","*"]
["QOX","RD1","ROYAL UNITED HOSPITALS BATH NHS FOUNDATION TRUST","RD130","Princess Anne Wing RUH",3,"*","*","*","*","*","*","*","*"]
["QOX","RNZ","SALISBURY NHS FOUNDATION TRUST","RNZ02","Salisbury District Hospital",20,1,0,16,4,0,0,0,0]
["QPM","RNQ","KETTERING GENERAL HOSPITAL NHS FOUNDATION TRUST","RNQ51","Kettering General Hospital",1,"*","*","*","*","*","*","*","*"]
["QPM","RNS","NORTHAMPTON GENERAL HOSPITAL NHS TRUST","RNS01","Northampton General Hospital (Acute)",45,0.9555555555555556,4.4444444444444446E-2,"*","*","*","*","*","*"]
["QR1","RTE","GLOUCESTERSHIRE HOSPITALS NHS FOUNDATION TRUST","RTE03","Gloucestershire Royal Hospital",34,0.79411764705882348,2.9411764705882353E-2,21,6,5,0,1,1]
["QR1","RTE","GLOUCESTERSHIRE HOSPITALS NHS FOUNDATION TRUST","RTE27","Stroud Maternity Hospital",0,"NA","NA",0,0,0,0,0,0]
["QRL","RN5","HAMPSHIRE HOSPITALS NHS FOUNDATION TRUST","RN506","Basingstoke and North Hampshire Hospital",130,0.96153846153846156,7.6923076923076927E-3,108,17,3,1,0,1]
["QRL","RN5","HAMPSHIRE HOSPITALS NHS FOUNDATION TRUST","RN541","Royal Hampshire County Hospital",0,"NA","NA",0,0,0,0,0,0]
["QRL","R1F","ISLE OF WIGHT NHS TRUST","R1F01","St Mary's Hospital",10,0.9,0,8,1,0,0,0,1]
["QRL","RHU","PORTSMOUTH HOSPITALS UNIVERSITY NATIONAL HEALTH SERVICE TRUST","RHU10","Gosport War Memorial Hospital",0,"NA","NA",0,0,0,0,0,0]
["QRL","RHU","PORTSMOUTH HOSPITALS UNIVERSITY NATIONAL HEALTH SERVICE TRUST","RHU04","Petersfield Community Hospital",1,"*","*","*","*","*","*","*","*"]
["QRL","RHU","PORTSMOUTH HOSPITALS UNIVERSITY NATIONAL HEALTH SERVICE TRUST","RHU03","Queen Alexandra Hospital",0,"NA","NA",0,0,0,0,0,0]
["QRL","RHU","PORTSMOUTH HOSPITALS UNIVERSITY NATIONAL HEALTH SERVICE TRUST","RHU02","St Mary's Hospital",22,1,0,21,1,0,0,0,0]
["QRL","RHM","UNIVERSITY HOSPITAL SOUTHAMPTON NHS FOUNDATION TRUST","RHM12","Princess Anne Hospital",31,0.80645161290322576,9.6774193548387094E-2,15,10,1,1,2,2]
["QRV","RQM","CHELSEA AND WESTMINSTER HOSPITAL NHS FOUNDATION TRUST","RQM01","Chelsea and Westminster Hospital",82,0.8902439024390244,8.5365853658536592E-2,57,16,2,3,4,0]
["QRV","RQM","CHELSEA AND WESTMINSTER HOSPITAL NHS FOUNDATION TRUST","RQM91","West Middlesex University Hospital",75,0.82666666666666666,0.13333333333333333,54,8,2,5,5,1]
["QRV","RYJ","IMPERIAL COLLEGE HEALTHCARE NHS TRUST","RYJ04","Queen Charlotte's Hospital",60,0.78333333333333333,6.6666666666666666E-2,37,10,2,2,2,7]
["QRV","RYJ","IMPERIAL COLLEGE HEALTHCARE NHS TRUST","RYJ01","St Mary's Hospital (HQ)",57,0.73684210526315785,0.12280701754385964,29,13,2,2,5,6]
["QRV","R1K","LONDON NORTH WEST UNIVERSITY HEALTHCARE NHS TRUST","R1K01","Northwick Park Hospital",30,1,0,21,9,0,0,0,0]
["QRV","RAS","THE HILLINGDON HOSPITALS NHS FOUNDATION TRUST","RAS01","Hillingdon Hospital",39,0.92307692307692313,7.6923076923076927E-2,29,7,0,2,1,0]
["QSL","RH5","SOMERSET NHS FOUNDATION TRUST","RH5K6","Bridgwater Hospital",0,"NA","NA",0,0,0,0,0,0]
["QSL","RH5","SOMERSET NHS FOUNDATION TRUST","RH5A8","MUSGROVE PARK HOSPITAL",6,1,0,"*","*","*","*","*","*"]
["QSL","RH5","SOMERSET NHS FOUNDATION TRUST","RH5XXXX","Non-hospital site home/in-transit births",2,"*","*","*","*","*","*","*","*"]
["QSL","RA4","YEOVIL DISTRICT HOSPITAL NHS FOUNDATION TRUST","RA430","Yeovil District Hospital",45,1,0,41,4,0,0,0,0]
["QT1","RX1","NOTTINGHAM UNIVERSITY HOSPITALS NHS TRUST","RX1CC","Nottingham University Hospitals NHS Trust - City Campus",1,"*","*","*","*","*","*","*","*"]
["QT1","RX1","NOTTINGHAM UNIVERSITY HOSPITALS NHS TRUST","RX1RA","Nottingham University Hospitals NHS Trust - Queen's Medical Centre Campus",14,0.9285714285714286,0,"*","*","*","*","*","*"]
["QT1","RK5","SHERWOOD FOREST HOSPITALS NHS FOUNDATION TRUST","RK5BC","King's Mill Hospital",14,0.9285714285714286,7.1428571428571425E-2,"*","*","*","*","*","*"]
["QT6","REF","ROYAL CORNWALL HOSPITALS NHS TRUST","REF12","Royal Cornwall Hospital (Treliske)",2,"*","*","*","*","*","*","*","*"]
["QU9","RXQ","BUCKINGHAMSHIRE HEALTHCARE NHS TRUST","RXQ02","Stoke Mandeville Hospital",19,0.84210526315789469,0.10526315789473684,10,6,1,1,1,0]
["QU9","RTH","OXFORD UNIVERSITY HOSPITALS NHS FOUNDATION TRUST","RTH05","Horton General Hospital",0,"NA","NA",0,0,0,0,0,0]
["QU9","RTH","OXFORD UNIVERSITY HOSPITALS NHS FOUNDATION TRUST","RTH08","John Radcliffe Hospital",2,"*","*","*","*","*","*","*","*"]
["QU9","RTH","OXFORD UNIVERSITY HOSPITALS NHS FOUNDATION TRUST","RTH16","Wallingford Community Hospital",0,"NA","NA",0,0,0,0,0,0]
["QU9","RHW","ROYAL BERKSHIRE NHS FOUNDATION TRUST","RHW01","Royal Berkshire Hospital",19,1,0,15,4,0,0,0,0]
["QUA","RNA","THE DUDLEY GROUP NHS FOUNDATION TRUST","RNA01","Russells Hall Hospital",1,"*","*","*","*","*","*","*","*"]
["QUA","RL4","THE ROYAL WOLVERHAMPTON NHS TRUST","RL403","New Cross Hospital",55,0.8,0.16363636363636364,36,8,2,3,6,0]
["QUA","RBK","WALSALL HEALTHCARE NHS TRUST","RBK02","Manor Hospital",13,0.76923076923076927,0.23076923076923078,8,2,0,2,1,0]
["QUE","RGT","CAMBRIDGE UNIVERSITY HOSPITALS NHS FOUNDATION TRUST","RGT32","Rosie Hospital",112,0.9285714285714286,8.9285714285714281E-3,84,20,6,0,1,1]
["QUE","RGN","NORTH WEST ANGLIA NHS FOUNDATION TRUST","RGN90","Hinchingbrooke Hospital",87,0.9885057471264368,1.1494252873563218E-2,78,8,0,1,0,0]
["QUE","RGN","NORTH WEST ANGLIA NHS FOUNDATION TRUST","RGN80","Peterborough City Hospital",0,"NA","NA",0,0,0,0,0,0]
["QUY","RVJ","NORTH BRISTOL NHS TRUST","RVJ21","Cossham Hospital",1,"*","*","*","*","*","*","*","*"]
["QUY","RVJ","NORTH BRISTOL NHS TRUST","RVJ01","Southmead Hospital",100,0.88,0.09,"*","*","*","*","*","*"]
["QUY","RA7","UNIVERSITY HOSPITALS BRISTOL AND WESTON NHS FOUNDATION TRUST","RA707","St Michael's Hospital",20,1,0,18,2,0,0,0,0]
["QVV","RBD","DORSET COUNTY HOSPITAL NHS FOUNDATION TRUST","RBD01","Dorset County Hospital",34,0.97058823529411764,0,31,2,0,0,0,1]
["QVV","R0D","UNIVERSITY HOSPITALS DORSET NHS FOUNDATION TRUST","R0D01","Poole Hospital",126,0.8571428571428571,6.3492063492063489E-2,83,25,2,3,5,8]
["QVV","R0D","UNIVERSITY HOSPITALS DORSET NHS FOUNDATION TRUST","R0D02","Royal Bournemouth Hospital",0,"NA","NA",0,0,0,0,0,0]
["QWE","RJ6","CROYDON HEALTH SERVICES NHS TRUST","RJ611","Croydon University Hospital",31,0.87096774193548387,0.12903225806451613,19,8,0,2,2,0]
["QWE","RVR","EPSOM AND ST HELIER UNIVERSITY HOSPITALS NHS TRUST","RVR50","Epsom Hospital",4,"*","*","*","*","*","*","*","*"]
["QWE","RVR","EPSOM AND ST HELIER UNIVERSITY HOSPITALS NHS TRUST","RVR05","St Helier Hospital",15,0.73333333333333328,0,"*","*","*","*","*","*"]
["QWE","RAX","KINGSTON HOSPITAL NHS FOUNDATION TRUST","RAX01","Kingston Hospital",19,0.89473684210526316,0,16,1,2,0,0,0]
["QWE","RJ7","ST GEORGE'S UNIVERSITY HOSPITALS NHS FOUNDATION TRUST","RJ701","St George's Hospital (Tooting)",21,0.90476190476190477,0,14,5,2,0,0,0]
["QWO","RAE","BRADFORD TEACHING HOSPITALS NHS FOUNDATION TRUST","RAE01","Bradford Royal Infirmary",3,"*","*","*","*","*","*","*","*"]
["QWO","RWY","CALDERDALE AND HUDDERSFIELD NHS FOUNDATION TRUST","RWY02","Calderdale Royal Hospital",2,"*","*","*","*","*","*","*","*"]
["QWO","RWY","CALDERDALE AND HUDDERSFIELD NHS FOUNDATION TRUST","RWY01","Huddersfield Royal Infirmary",1,"*","*","*","*","*","*","*","*"]
["QWO","RR8","LEEDS TEACHING HOSPITALS NHS TRUST","RR801","Leeds General Infirmary",60,0.8666666666666667,0.1,"*","*","*","*","*","*"]
["QWO","RR8","LEEDS TEACHING HOSPITALS NHS TRUST","RR813","St James's University Hospital",62,0.90322580645161288,8.0645161290322578E-2,"*","*","*","*","*","*"]
["QWO","RXF","MID YORKSHIRE HOSPITALS NHS TRUST","RXF05","Pinderfields General Hospital",228,0.96052631578947367,1.7543859649122806E-2,161,58,4,1,3,1]
["QWU","RLT","GEORGE ELIOT HOSPITAL NHS TRUST","RLT01","George Eliot Hospital - Acute Services",51,0.84313725490196079,7.8431372549019607E-2,33,10,2,3,1,2]
["QWU","RJC","SOUTH WARWICKSHIRE NHS FOUNDATION TRUST","RJC02","Warwick Hospital",1,"*","*","*","*","*","*","*","*"]
["QWU","RKB","UNIVERSITY HOSPITALS COVENTRY AND WARWICKSHIRE NHS TRUST","RKB01","University Hospital (Coventry)",3,"*","*","*","*","*","*","*","*"]
["QXU","RTK","ASHFORD AND ST PETER'S HOSPITALS NHS FOUNDATION TRUST","RTK02","Ashford Hospital",0,"NA","NA",0,0,0,0,0,0]
["QXU","RA2","ROYAL SURREY COUNTY HOSPITAL NHS FOUNDATION TRUST","RA201","Royal Surrey County Hospital",0,"NA","NA",0,0,0,0,0,0]
["QXU","RTP","SURREY AND SUSSEX HEALTHCARE NHS TRUST","RTP04","East Surrey Hospital",23,1,0,19,4,0,0,0,0]
["QYG","RJN","EAST CHESHIRE NHS TRUST","RJN71","Macclesfield District General Hospital",0,"NA","NA",0,0,0,0,0,0]
["QYG","REP","LIVERPOOL WOMEN'S NHS FOUNDATION TRUST","REP01","Liverpool Womens Hospital",51,0.88235294117647056,9.8039215686274508E-2,31,14,1,3,2,0]
["QYG","RBT","MID CHESHIRE HOSPITALS NHS FOUNDATION TRUST","RBT20","Leighton Hospital",36,0.97222222222222221,2.7777777777777776E-2,28,7,0,1,0,0]
["QYG","RVY","SOUTHPORT AND ORMSKIRK HOSPITAL NHS TRUST","RVY02","Ormskirk and District General Hospital",23,0.91304347826086951,8.6956521739130432E-2,17,4,0,2,0,0]
["QYG","RBN","ST HELENS AND KNOWSLEY TEACHING HOSPITALS NHS TRUST","RBN01","Whiston Hospital",21,1,0,20,1,0,0,0,0]
["QYG","RWW","WARRINGTON AND HALTON TEACHING HOSPITALS NHS FOUNDATION TRUST","RWWWH","Warrington Hospital",43,1,0,39,4,0,0,0,0]
["QYG","RBL","WIRRAL UNIVERSITY TEACHING HOSPITAL NHS FOUNDATION TRUST","RBL14","Arrowe Park Hospital",35,1,0,27,8,0,0,0,0]

{"sheet":"STP Q4","index":11,"n_rows":55,"n_cols":11,"rows_kept":55,"cut":false,"hidden":false,"merged":[[8,0,9,0],[8,1,9,1],[8,2,9,2],[8,3,9,3],[8,4,9,4],[8,5,8,10]]}
[]
[]
[]
[]
[]
[null,"   Sort data by:           "]
[]
[]
["STP Code","STP Name","Total Responses","Percentage Positive","Percentage Negative","Breakdown of Responses"]
[null,null,null,null,null,"Very Good","Good","Neither Good nor Poor","Poor","Very Poor","Don't Know"]
[null,"England (including Independent Sector providers)",953,0.8824763903462749,5.9811122770199371E-2,698,143,42,27,30,13]
[null,"England (excluding Independent Sector providers)",953,0.8824763903462749,5.9811122770199371E-2,698,143,42,27,30,13]
[null,"Selection (excluding suppressed data)",{"$f":"SUBTOTAL(9,C14:C400)","v":953},{"$f":"IFERROR((F13+G13)/SUM(F13:K13), \"-\")","v":0.88409371146732429},{"$f":"IFERROR((I13+J13)/SUM(F13:K13), \"-\")","v":5.4254007398273733E-2},{"$f":"SUBTOTAL(9,F14:F400)","v":593},124,37,22,22,13]
["QE1","HEALTHIER LANCASHIRE AND SOUTH CUMBRIA",58,0.86206896551724133,3.4482758620689655E-2,42,8,5,1,1,1]
["QF7","SOUTH YORKSHIRE AND BASSETLAW STP",41,0.73170731707317072,0.24390243902439024,"*","*","*","*","*","*"]
["QGH","HEREFORDSHIRE AND WORCESTERSHIRE STP",3,"*","*","*","*","*","*","*","*"]
["QH8","MID AND SOUTH ESSEX STP",0,"NA","NA",0,0,0,0,0,0]
["QHG","BEDFORDSHIRE, LUTON AND MILTON KEYNES STP",29,1,0,24,5,0,0,0,0]
["QHL","BIRMINGHAM AND SOLIHULL STP",0,"NA","NA","*","*","*","*","*","*"]
["QHM","CUMBRIA AND NORTH EAST STP",1,"*","*","*","*","*","*","*","*"]
["QJ2","JOINED UP CARE DERBYSHIRE STP",1,"*","*","*","*","*","*","*","*"]
["QJG","SUFFOLK AND NORTH EAST ESSEX ICS",28,1,0,25,3,0,0,0,0]
["QJK","DEVON STP",7,0.8571428571428571,0.14285714285714285,5,1,0,1,0,0]
["QJM","LINCOLNSHIRE STP",0,"NA","NA",0,0,0,0,0,0]
["QK1","LEICESTER, LEICESTERSHIRE AND RUTLAND STP",43,0.95348837209302328,0,39,2,2,0,0,0]
["QKK","OUR HEALTHIER SOUTH EAST LONDON STP",14,1,0,"*","*","*","*","*","*"]
["QKS","KENT AND MEDWAY STP",2,"*","*","*","*","*","*","*","*"]
["QM7","HERTFORDSHIRE AND WEST ESSEX STP",3,"*","*","*","*","*","*","*","*"]
["QMF","EAST LONDON HEALTH & CARE PARTNERSHIP (STP)",123,0.82113821138211385,8.943089430894309E-2,75,26,5,5,6,6]
["QMJ","NORTH LONDON PARTNERS IN HEALTH & CARE (STP)",9,0.66666666666666663,0.22222222222222221,"*","*","*","*","*","*"]
["QMM","NORFOLK AND WAVENEY HEALTH & CARE PARTNERSHIP (STP)",1,"*","*","*","*","*","*","*","*"]
["QNC","STAFFORDSHIRE & STOKE ON TRENT STP",4,"*","*","*","*","*","*","*","*"]
["QNQ","FRIMLEY HEALTH & CARE (STP)",6,1,0,6,0,0,0,0,0]
["QNX","SUSSEX HEALTH AND CARE PARTNERSHIP",21,0.90476190476190477,4.7619047619047616E-2,14,5,1,1,0,0]
["QOP","GREATER MANCHESTER HEALTH & SOCIAL CARE PARTNERSHIP",47,0.74468085106382975,0.14893617021276595,33,2,5,4,3,0]
["QOQ","HUMBER, COAST AND VALE STP",21,1,0,20,1,0,0,0,0]
["QOC","SHROPSHIRE AND TELFORD AND WREKIN STP",0,"NA","NA",0,0,0,0,0,0]
["QOX","BATH AND NORTH EAST SOMERSET, SWINDON AND WILTSHIRE STP",7,1,0,"*","*","*","*","*","*"]
["QPM","NORTHAMPTONSHIRE STP",1,"*","*","*","*","*","*","*","*"]
["QR1","GLOUCESTERSHIRE STP",0,"NA","NA",0,0,0,0,0,0]
["QRL","HAMPSHIRE AND THE ISLE OF WIGHT STP",55,0.81818181818181823,7.2727272727272724E-2,28,17,3,3,1,3]
["QRV","NORTH WEST LONDON HEALTH & CARE PARTNERSHIP (STP)",36,0.97222222222222221,0,"*","*","*","*","*","*"]
["QSL","SOMERSET STP",4,"*","*","*","*","*","*","*","*"]
["QT1","NOTTINGHAM AND NOTTINGHAMSHIRE HEALTH AND CARE STP",13,1,0,"*","*","*","*","*","*"]
["QT6","CORNWALL AND THE ISLES OF SCILLY HEALTH & SOCIAL CARE PARTNERSHIP (STP)",2,"*","*","*","*","*","*","*","*"]
["QU9","BUCKINGHAMSHIRE, OXFORDSHIRE AND BERKSHIRE WEST STP",23,0.73913043478260865,0.13043478260869565,10,7,3,2,1,0]
["QUA","THE BLACK COUNTRY AND WEST BIRMINGHAM STP",54,0.85185185185185186,7.407407407407407E-2,38,8,3,0,4,1]
["QUE","CAMBRIDGESHIRE AND PETERBOROUGH STP",11,1,0,11,0,0,0,0,0]
["QUY","BRISTOL, NORTH SOMERSET AND SOUTH GLOUCESTERSHIRE STP",79,0.94936708860759489,2.5316455696202531E-2,59,16,1,1,1,1]
["QVV","DORSET STP",56,0.8571428571428571,8.9285714285714288E-2,38,10,2,3,2,1]
["QWE","SOUTH WEST LONDON HEALTH & CARE PARTNERSHIP (STP)",14,1,0,13,1,0,0,0,0]
["QWO","WEST YORKSHIRE AND HARROGATE HEALTH & CARE PARTNERSHIP (STP)",45,0.93333333333333335,2.2222222222222223E-2,40,2,2,0,1,0]
["QWU","COVENTRY AND WARWICKSHIRE STP",20,0.95,0,15,4,1,0,0,0]
["QXU","SURREY HEARTLANDS HEALTH & CARE PARTNERSHIP (STP)",40,0.97499999999999998,0,35,4,1,0,0,0]
["QYG","CHESHIRE AND MERSEYSIDE STP",31,0.80645161290322576,9.6774193548387094E-2,23,2,3,1,2,0]

{"sheet":"Trusts Q4","index":12,"n_rows":132,"n_cols":20,"rows_kept":132,"cut":false,"hidden":false,"merged":[[8,6,8,11],[8,12,8,19],[8,0,9,0],[8,1,9,1],[8,2,9,2],[8,3,9,3],[8,4,9,4],[8,5,9,5]]}
[]
[]
[]
[]
[]
[null,"   Sort data by:           "]
[]
[]
["STP Code","Trust Code","Trust Name","Total Responses","Percentage Positive","Percentage Negative","Breakdown of Responses",null,null,null,null,null,"Mode of Collection"]
[null,null,null,null,null,null,"Very Good","Good","Neither Good nor Poor","Poor","Very Poor","Don't Know","Mode SMS","Mode Electronic Discharge","Mode Electronic Home","Mode Paper Discharge","Mode Paper Home","Mode Telephone","Mode Online","Mode Other"]
[null,null,"England (including Independent Sector providers)",953,0.8824763903462749,5.9811122770199371E-2,698,143,42,27,30,13,519,13,0,261,17,0,111,32]
[null,null,"England (excluding Independent Sector providers)",953,0.8824763903462749,5.9811122770199371E-2,698,143,42,27,30,13,519,13,0,261,17,0,111,32]
[null,null,"Selection (excluding suppressed data)",{"$f":"SUBTOTAL(9,D14:D299)","v":953},{"$f":"IFERROR((G13+H13)/SUM(G13:L13), \"-\")","v":0.88720770288858319},{"$f":"IFERROR((J13+K13)/SUM(G13:L13), \"-\")","v":5.364511691884457E-2},{"$f":"SUBTOTAL(9,G14:G299)","v":532},113,36,21,18,7,468,5,0,163,3,0,56,32]
["QE1","RXL","BLACKPOOL TEACHING HOSPITALS NHS FOUNDATION TRUST",0,"NA","NA",0,0,0,0,0,0,0,0,0,0,0,0,0,0]
["QE1","RXR","EAST LANCASHIRE HOSPITALS NHS TRUST",36,0.83333333333333337,5.5555555555555552E-2,25,5,3,1,1,1,36,0,0,0,0,0,0,0]
["QE1","RXN","LANCASHIRE TEACHING HOSPITALS NHS FOUNDATION TRUST",22,0.90909090909090906,0,17,3,2,0,0,0,22,0,0,0,0,0,0,0]
["QE1","RTX","UNIVERSITY HOSPITALS OF MORECAMBE BAY NHS FOUNDATION TRUST",0,"NA","NA",0,0,0,0,0,0,0,0,0,0,0,0,0,0]
["QF7","RFF","BARNSLEY HOSPITAL NHS FOUNDATION TRUST",0,"NA","NA",0,0,0,0,0,0,0,0,0,0,0,0,0,0]
["QF7","RP5","DONCASTER AND BASSETLAW TEACHING HOSPITALS NHS FOUNDATION TRUST",0,"NA","NA",0,0,0,0,0,0,0,0,0,0,0,0,0,0]
["QF7","RHQ","SHEFFIELD TEACHING HOSPITALS NHS FOUNDATION TRUST",39,0.71794871794871795,0.25641025641025639,"*","*","*","*","*","*","*","*","*","*","*","*","*","*"]
["QF7","RFR","THE ROTHERHAM NHS FOUNDATION TRUST",2,"*","*","*","*","*","*","*","*","*","*","*","*","*","*","*","*"]
["QGH","RWP","WORCESTERSHIRE ACUTE HOSPITALS NHS TRUST",0,"NA","NA",0,0,0,0,0,0,0,0,0,0,0,0,0,0]
["QGH","RLQ","WYE VALLEY NHS TRUST",3,"*","*","*","*","*","*","*","*","*","*","*","*","*","*","*","*"]
["QH8","RAJ","MID AND SOUTH ESSEX NHS FOUNDATION TRUST",0,"NA","NA",0,0,0,0,0,0,0,0,0,0,0,0,0,0]
["QHG","RC9","BEDFORDSHIRE HOSPITALS NHS FOUNDATION TRUST",4,"*","*","*","*","*","*","*","*","*","*","*","*","*","*","*","*"]
["QHG","RD8","MILTON KEYNES UNIVERSITY HOSPITAL NHS FOUNDATION TRUST",25,1,0,20,5,0,0,0,0,24,0,0,1,0,0,0,0]
["QHL","RQ3","BIRMINGHAM WOMEN'S AND CHILDREN'S NHS FOUNDATION TRUST",0,"NA","NA",0,0,0,0,0,0,0,0,0,0,0,0,0,0]
["QHL","RRK","UNIVERSITY HOSPITALS BIRMINGHAM NHS FOUNDATION TRUST",0,"NA","NA",0,0,0,0,0,0,0,0,0,0,0,0,0,0]
["QHM","RXP","COUNTY DURHAM AND DARLINGTON NHS FOUNDATION TRUST",0,"NA","NA",0,0,0,0,0,0,0,0,0,0,0,0,0,0]
["QHM","RR7","GATESHEAD HEALTH NHS FOUNDATION TRUST",0,"NA","NA",0,0,0,0,0,0,0,0,0,0,0,0,0,0]
["QHM","RNN","NORTH CUMBRIA INTEGRATED CARE NHS FOUNDATION TRUST",0,"NA","NA",0,0,0,0,0,0,0,0,0,0,0,0,0,0]
["QHM","RVW","NORTH TEES AND HARTLEPOOL NHS FOUNDATION TRUST",0,"NA","NA",0,0,0,0,0,0,0,0,0,0,0,0,0,0]
["QHM","RTF","NORTHUMBRIA HEALTHCARE NHS FOUNDATION TRUST",0,"NA","NA",0,0,0,0,0,0,0,0,0,0,0,0,0,0]
["QHM","RTR","SOUTH TEES HOSPITALS NHS FOUNDATION TRUST",1,"*","*","*","*","*","*","*","*","*","*","*","*","*","*","*","*"]
["QHM","R0B","SOUTH TYNESIDE AND SUNDERLAND NHS FOUNDATION TRUST",0,"NA","NA",0,0,0,0,0,0,0,0,0,0,0,0,0,0]
["QHM","RTD","THE NEWCASTLE UPON TYNE HOSPITALS NHS FOUNDATION TRUST",0,"NA","NA",0,0,0,0,0,0,0,0,0,0,0,0,0,0]
["QJ2","RTG","UNIVERSITY HOSPITALS OF DERBY AND BURTON NHS FOUNDATION TRUST",1,"*","*","*","*","*","*","*","*","*","*","*","*","*","*","*","*"]
["QJG","RDE","EAST SUFFOLK AND NORTH ESSEX NHS FOUNDATION TRUST",3,"*","*","*","*","*","*","*","*","*","*","*","*","*","*","*","*"]
["QJG","RGR","WEST SUFFOLK NHS FOUNDATION TRUST",25,1,0,"*","*","*","*","*","*","*","*","*","*","*","*","*","*"]
["QJK","RBZ","NORTHERN DEVON HEALTHCARE NHS TRUST",4,"*","*","*","*","*","*","*","*","*","*","*","*","*","*","*","*"]
["QJK","RH8","ROYAL DEVON AND EXETER NHS FOUNDATION TRUST",0,"NA","NA",0,0,0,0,0,0,0,0,0,0,0,0,0,0]
["QJK","RA9","TORBAY AND SOUTH DEVON NHS FOUNDATION TRUST",1,"*","*","*","*","*","*","*","*","*","*","*","*","*","*","*","*"]
["QJK","RK9","UNIVERSITY HOSPITALS PLYMOUTH NHS TRUST",2,"*","*","*","*","*","*","*","*","*","*","*","*","*","*","*","*"]
["QJM","RWD","UNITED LINCOLNSHIRE HOSPITALS NHS TRUST",0,"NA","NA",0,0,0,0,0,0,0,0,0,0,0,0,0,0]
["QK1","RWE","UNIVERSITY HOSPITALS OF LEICESTER NHS TRUST",43,0.95348837209302328,0,39,2,2,0,0,0,0,0,0,43,0,0,0,0]
["QKK","RJ1","GUY'S AND ST THOMAS' NHS FOUNDATION TRUST",14,1,0,"*","*","*","*","*","*","*","*","*","*","*","*","*","*"]
["QKK","RJZ","KING'S COLLEGE HOSPITAL NHS FOUNDATION TRUST",0,"NA","NA",0,0,0,0,0,0,0,0,0,0,0,0,0,0]
["QKK","RJ2","LEWISHAM AND GREENWICH NHS TRUST",0,"NA","NA",0,0,0,0,0,0,0,0,0,0,0,0,0,0]
["QKS","RN7","DARTFORD AND GRAVESHAM NHS TRUST",0,"NA","NA",0,0,0,0,0,0,0,0,0,0,0,0,0,0]
["QKS","RVV","EAST KENT HOSPITALS UNIVERSITY NHS FOUNDATION TRUST",0,"NA","NA",0,0,0,0,0,0,0,0,0,0,0,0,0,0]
["QKS","RWF","MAIDSTONE AND TUNBRIDGE WELLS NHS TRUST",2,"*","*","*","*","*","*","*","*","*","*","*","*","*","*","*","*"]
["QKS","RPA","MEDWAY NHS FOUNDATION TRUST",0,"NA","NA",0,0,0,0,0,0,0,0,0,0,0,0,0,0]
["QM7","RWH","EAST AND NORTH HERTFORDSHIRE NHS TRUST",2,"*","*","*","*","*","*","*","*","*","*","*","*","*","*","*","*"]
["QM7","RQW","THE PRINCESS ALEXANDRA HOSPITAL NHS TRUST",0,"NA","NA",0,0,0,0,0,0,0,0,0,0,0,0,0,0]
["QM7","RWG","WEST HERTFORDSHIRE TEACHING HOSPITALS NHS TRUST",1,"*","*","*","*","*","*","*","*","*","*","*","*","*","*","*","*"]
["QMF","RF4","BARKING, HAVERING AND REDBRIDGE UNIVERSITY HOSPITALS NHS TRUST",46,0.78260869565217395,8.6956521739130432E-2,"*","*","*","*","*","*","*","*","*","*","*","*","*","*"]
["QMF","R1H","BARTS HEALTH NHS TRUST",1,"*","*","*","*","*","*","*","*","*","*","*","*","*","*","*","*"]
["QMF","RQX","HOMERTON UNIVERSITY HOSPITAL NHS FOUNDATION TRUST",76,0.84210526315789469,9.2105263157894732E-2,47,17,5,5,2,0,76,0,0,0,0,0,0,0]
["QMJ","RAP","NORTH MIDDLESEX UNIVERSITY HOSPITAL NHS TRUST",0,"NA","NA",0,0,0,0,0,0,0,0,0,0,0,0,0,0]
["QMJ","RAL","ROYAL FREE LONDON NHS FOUNDATION TRUST",9,0.66666666666666663,0.22222222222222221,"*","*","*","*","*","*","*","*","*","*","*","*","*","*"]
["QMJ","RRV","UNIVERSITY COLLEGE LONDON HOSPITALS NHS FOUNDATION TRUST",0,"NA","NA",0,0,0,0,0,0,0,0,0,0,0,0,0,0]
["QMJ","RKE","WHITTINGTON HEALTH NHS TRUST",0,"NA","NA",0,0,0,0,0,0,0,0,0,0,0,0,0,0]
["QMM","RGP","JAMES PAGET UNIVERSITY HOSPITALS NHS FOUNDATION TRUST",0,"NA","NA",0,0,0,0,0,0,0,0,0,0,0,0,0,0]
["QMM","RM1","NORFOLK AND NORWICH UNIVERSITY HOSPITALS NHS FOUNDATION TRUST",0,"NA","NA",0,0,0,0,0,0,0,0,0,0,0,0,0,0]
["QMM","RCX","THE QUEEN ELIZABETH HOSPITAL, KING'S LYNN, NHS FOUNDATION TRUST",1,"*","*","*","*","*","*","*","*","*","*","*","*","*","*","*","*"]
["QNC","RJE","UNIVERSITY HOSPITALS OF NORTH MIDLANDS NHS TRUST",4,"*","*","*","*","*","*","*","*","*","*","*","*","*","*","*","*"]
["QNQ","RDU","FRIMLEY HEALTH NHS FOUNDATION TRUST",6,1,0,6,0,0,0,0,0,0,0,0,6,0,0,0,0]
["QNX","RXC","EAST SUSSEX HEALTHCARE NHS TRUST",0,"NA","NA",0,0,0,0,0,0,0,0,0,0,0,0,0,0]
["QNX","RYR","UNIVERSITY HOSPITALS SUSSEX NHS FOUNDATION TRUST",21,0.90476190476190477,4.7619047619047616E-2,14,5,1,1,0,0,21,0,0,0,0,0,0,0]
["QOC","RXW","THE SHREWSBURY AND TELFORD HOSPITAL NHS TRUST",0,"NA","NA",0,0,0,0,0,0,0,0,0,0,0,0,0,0]
["QOP","RMC","BOLTON NHS FOUNDATION TRUST",45,0.73333333333333328,0.15555555555555556,31,2,5,4,3,0,44,1,0,0,0,0,0,0]
["QOP","R0A","MANCHESTER UNIVERSITY NHS FOUNDATION TRUST",0,"NA","NA",0,0,0,0,0,0,0,0,0,0,0,0,0,0]
["QOP","RWJ","STOCKPORT NHS FOUNDATION TRUST",2,"*","*","*","*","*","*","*","*","*","*","*","*","*","*","*","*"]
["QOP","RMP","TAMESIDE AND GLOSSOP INTEGRATED CARE NHS FOUNDATION TRUST",0,"NA","NA",0,0,0,0,0,0,0,0,0,0,0,0,0,0]
["QOP","RRF","WRIGHTINGTON, WIGAN AND LEIGH NHS FOUNDATION TRUST",0,"NA","NA",0,0,0,0,0,0,0,0,0,0,0,0,0,0]
["QOQ","RCD","HARROGATE AND DISTRICT NHS FOUNDATION TRUST",0,"NA","NA",0,0,0,0,0,0,0,0,0,0,0,0,0,0]
["QOQ","RWA","HULL UNIVERSITY TEACHING HOSPITALS NHS TRUST",0,"NA","NA",0,0,0,0,0,0,0,0,0,0,0,0,0,0]
["QOQ","RJL","NORTHERN LINCOLNSHIRE AND GOOLE NHS FOUNDATION TRUST",0,"NA","NA",0,0,0,0,0,0,0,0,0,0,0,0,0,0]
["QOQ","RCB","YORK AND SCARBOROUGH TEACHING HOSPITALS NHS FOUNDATION TRUST",21,1,0,20,1,0,0,0,0,7,0,0,14,0,0,0,0]
["QOX","RN3","GREAT WESTERN HOSPITALS NHS FOUNDATION TRUST",0,"NA","NA",0,0,0,0,0,0,0,0,0,0,0,0,0,0]
["QOX","RD1","ROYAL UNITED HOSPITALS BATH NHS FOUNDATION TRUST",6,1,0,"*","*","*","*","*","*","*","*","*","*","*","*","*","*"]
["QOX","RNZ","SALISBURY NHS FOUNDATION TRUST",1,"*","*","*","*","*","*","*","*","*","*","*","*","*","*","*","*"]
["QPM","RNQ","KETTERING GENERAL HOSPITAL NHS FOUNDATION TRUST",0,"NA","NA",0,0,0,0,0,0,0,0,0,0,0,0,0,0]
["QPM","RNS","NORTHAMPTON GENERAL HOSPITAL NHS TRUST",1,"*","*","*","*","*","*","*","*","*","*","*","*","*","*","*","*"]
["QR1","RTE","GLOUCESTERSHIRE HOSPITALS NHS FOUNDATION TRUST",0,"NA","NA",0,0,0,0,0,0,0,0,0,0,0,0,0,0]
["QRL","RN5","HAMPSHIRE HOSPITALS NHS FOUNDATION TRUST",2,"*","*","*","*","*","*","*","*","*","*","*","*","*","*","*","*"]
["QRL","R1F","ISLE OF WIGHT NHS TRUST",0,"NA","NA",0,0,0,0,0,0,0,0,0,0,0,0,0,0]
["QRL","RHU","PORTSMOUTH HOSPITALS UNIVERSITY NATIONAL HEALTH SERVICE TRUST",26,0.96153846153846156,0,21,4,1,0,0,0,0,0,0,26,0,0,0,0]
["QRL","RHM","UNIVERSITY HOSPITAL SOUTHAMPTON NHS FOUNDATION TRUST",27,0.66666666666666663,0.14814814814814814,5,13,2,3,1,3,0,0,0,0,3,0,24,0]
["QRV","RQM","CHELSEA AND WESTMINSTER HOSPITAL NHS FOUNDATION TRUST",1,"*","*","*","*","*","*","*","*","*","*","*","*","*","*","*","*"]
["QRV","RYJ","IMPERIAL COLLEGE HEALTHCARE NHS TRUST",21,1,0,19,2,0,0,0,0,0,0,0,0,0,0,21,0]
["QRV","R1K","LONDON NORTH WEST UNIVERSITY HEALTHCARE NHS TRUST",0,"NA","NA",0,0,0,0,0,0,0,0,0,0,0,0,0,0]
["QRV","RAS","THE HILLINGDON HOSPITALS NHS FOUNDATION TRUST",14,0.9285714285714286,0,"*","*","*","*","*","*","*","*","*","*","*","*","*","*"]
["QSL","RH5","SOMERSET NHS FOUNDATION TRUST",0,"NA","NA",0,0,0,0,0,0,0,0,0,0,0,0,0,0]
["QSL","RA4","YEOVIL DISTRICT HOSPITAL NHS FOUNDATION TRUST",4,"*","*","*","*","*","*","*","*","*","*","*","*","*","*","*","*"]
["QT1","RX1","NOTTINGHAM UNIVERSITY HOSPITALS NHS TRUST",13,1,0,"*","*","*","*","*","*","*","*","*","*","*","*","*","*"]
["QT1","RK5","SHERWOOD FOREST HOSPITALS NHS FOUNDATION TRUST",0,"NA","NA",0,0,0,0,0,0,0,0,0,0,0,0,0,0]
["QT6","REF","ROYAL CORNWALL HOSPITALS NHS TRUST",2,"*","*","*","*","*","*","*","*","*","*","*","*","*","*","*","*"]
["QU9","RXQ","BUCKINGHAMSHIRE HEALTHCARE NHS TRUST",23,0.73913043478260865,0.13043478260869565,10,7,3,2,1,0,23,0,0,0,0,0,0,0]
["QU9","RTH","OXFORD UNIVERSITY HOSPITALS NHS FOUNDATION TRUST",0,"NA","NA",0,0,0,0,0,0,0,0,0,0,0,0,0,0]
["QU9","RHW","ROYAL BERKSHIRE NHS FOUNDATION TRUST",0,"NA","NA",0,0,0,0,0,0,0,0,0,0,0,0,0,0]
["QUA","RNA","THE DUDLEY GROUP NHS FOUNDATION TRUST",0,"NA","NA",0,0,0,0,0,0,0,0,0,0,0,0,0,0]
["QUA","RL4","THE ROYAL WOLVERHAMPTON NHS TRUST",43,0.86046511627906974,6.9767441860465115E-2,29,8,2,0,3,1,43,0,0,0,0,0,0,0]
["QUA","RBK","WALSALL HEALTHCARE NHS TRUST",11,0.81818181818181823,9.0909090909090912E-2,9,0,1,0,1,0,11,0,0,0,0,0,0,0]
["QUE","RGT","CAMBRIDGE UNIVERSITY HOSPITALS NHS FOUNDATION TRUST",1,"*","*","*","*","*","*","*","*","*","*","*","*","*","*","*","*"]
["QUE","RGN","NORTH WEST ANGLIA NHS FOUNDATION TRUST",10,1,0,"*","*","*","*","*","*","*","*","*","*","*","*","*","*"]
["QUY","RVJ","NORTH BRISTOL NHS TRUST",58,0.93103448275862066,3.4482758620689655E-2,42,12,1,1,1,1,58,0,0,0,0,0,0,0]
["QUY","RA7","UNIVERSITY HOSPITALS BRISTOL AND WESTON NHS FOUNDATION TRUST",21,1,0,17,4,0,0,0,0,0,0,0,21,0,0,0,0]
["QVV","RBD","DORSET COUNTY HOSPITAL NHS FOUNDATION TRUST",8,0.5,0.25,3,1,1,1,1,1,8,0,0,0,0,0,0,0]
["QVV","R0D","UNIVERSITY HOSPITALS DORSET NHS FOUNDATION TRUST",48,0.91666666666666663,6.25E-2,35,9,1,2,1,0,48,0,0,0,0,0,0,0]
["QWE","RJ6","CROYDON HEALTH SERVICES NHS TRUST",0,"NA","NA",0,0,0,0,0,0,0,0,0,0,0,0,0,0]
["QWE","RVR","EPSOM AND ST HELIER UNIVERSITY HOSPITALS NHS TRUST",5,1,0,5,0,0,0,0,0,0,0,0,4,0,0,1,0]
["QWE","RAX","KINGSTON HOSPITAL NHS FOUNDATION TRUST",9,1,0,8,1,0,0,0,0,0,4,0,0,0,0,5,0]
["QWE","RJ7","ST GEORGE'S UNIVERSITY HOSPITALS NHS FOUNDATION TRUST",0,"NA","NA",0,0,0,0,0,0,0,0,0,0,0,0,0,0]
["QWO","RCF","AIREDALE NHS FOUNDATION TRUST",0,"NA","NA",0,0,0,0,0,0,0,0,0,0,0,0,0,0]
["QWO","RAE","BRADFORD TEACHING HOSPITALS NHS FOUNDATION TRUST",0,"NA","NA",0,0,0,0,0,0,0,0,0,0,0,0,0,0]
["QWO","RWY","CALDERDALE AND HUDDERSFIELD NHS FOUNDATION TRUST",3,"*","*","*","*","*","*","*","*","*","*","*","*","*","*","*","*"]
["QWO","RR8","LEEDS TEACHING HOSPITALS NHS TRUST",0,"NA","NA",0,0,0,0,0,0,0,0,0,0,0,0,0,0]
["QWO","RXF","MID YORKSHIRE HOSPITALS NHS TRUST",42,0.9285714285714286,2.3809523809523808E-2,37,2,2,0,1,0,0,0,0,37,0,0,5,0]
["QWU","RLT","GEORGE ELIOT HOSPITAL NHS TRUST",20,0.95,0,15,4,1,0,0,0,20,0,0,0,0,0,0,0]
["QWU","RJC","SOUTH WARWICKSHIRE NHS FOUNDATION TRUST",0,"NA","NA",0,0,0,0,0,0,0,0,0,0,0,0,0,0]
["QWU","RKB","UNIVERSITY HOSPITALS COVENTRY AND WARWICKSHIRE NHS TRUST",0,"NA","NA",0,0,0,0,0,0,0,0,0,0,0,0,0,0]
["QXU","RTK","ASHFORD AND ST PETER'S HOSPITALS NHS FOUNDATION TRUST",0,"NA","NA",0,0,0,0,0,0,0,0,0,0,0,0,0,0]
["QXU","RA2","ROYAL SURREY COUNTY HOSPITAL NHS FOUNDATION TRUST",27,1,0,26,1,0,0,0,0,27,0,0,0,0,0,0,0]
["QXU","RTP","SURREY AND SUSSEX HEALTHCARE NHS TRUST",13,0.92307692307692313,0,9,3,1,0,0,0,0,0,0,1,0,0,0,12]
["QYG","RJN","EAST CHESHIRE NHS TRUST",0,"NA","NA",0,0,0,0,0,0,0,0,0,0,0,0,0,0]
["QYG","REP","LIVERPOOL WOMEN'S NHS FOUNDATION TRUST",20,0.8,0.1,15,1,2,0,2,0,0,0,0,0,0,0,0,20]
["QYG","RBT","MID CHESHIRE HOSPITALS NHS FOUNDATION TRUST",0,"NA","NA",0,0,0,0,0,0,0,0,0,0,0,0,0,0]
["QYG","RVY","SOUTHPORT AND ORMSKIRK HOSPITAL NHS TRUST",1,"*","*","*","*","*","*","*","*","*","*","*","*","*","*","*","*"]
["QYG","RBN","ST HELENS AND KNOWSLEY TEACHING HOSPITALS NHS TRUST",10,0.9,0.1,8,1,0,1,0,0,0,0,0,10,0,0,0,0]
["QYG","RWW","WARRINGTON AND HALTON TEACHING HOSPITALS NHS FOUNDATION TRUST",0,"NA","NA",0,0,0,0,0,0,0,0,0,0,0,0,0,0]
["QYG","RBL","WIRRAL UNIVERSITY TEACHING HOSPITAL NHS FOUNDATION TRUST",0,"NA","NA",0,0,0,0,0,0,0,0,0,0,0,0,0,0]

{"sheet":"BSQ1","index":13,"n_rows":175,"n_cols":33,"rows_kept":175,"cut":false,"hidden":true,"merged":[]}
[null,"Sort","Region (LO)","Region (LO)","Trusts","Trusts","Sites","Sites",null,"Sort ranges:","Sort range…","Sort range…","Sort range…","Reference Region List:","Code…","Name…","Linked Region List:","Code…","Name…","Reference Lists:","Code…","Code…","Name…","Code…","Name…","Trusts Linked Lists:","Code…","Name…","Site Linked Lists:","Code…","Name…","Code…","Name…"]
["Region (LO)",1,1,1,"-","-","-","-",null,null,"STP Code","STP Code","STP Code",null,"QE1","LANCASHIRE AND SOUTH CUMBRIA ICS",null,"QE1","LANCASHIRE AND SOUTH CUMBRIA ICS",null,"QE1","RXL","BLACKPOOL TEACHING HOSPITALS NHS FOUNDATION TRUST","RXL01","Blackpool Victoria Hospital",null,"R0A","AIREDALE NHS FOUNDATION TRUST",null,"R0A","AIREDALE NHS FOUNDATION TRUST","R0A05","Airedale General Hospital"]
["Trusts",1,1,1,1,1,"-","-",null,null,"STP Name","Trust Code","Trust Code",null,"QF7","SOUTH YORKSHIRE AND BASSETLAW STP",null,"QF7","SOUTH YORKSHIRE AND BASSETLAW STP",null,"QE1","RXR","EAST LANCASHIRE HOSPITALS NHS TRUST","RXR20","Royal Blackburn Hospital",null,"R0B","ASHFORD AND ST PETER'S HOSPITALS NHS FOUNDATION TRUST",null,"R0B","ASHFORD AND ST PETER'S HOSPITALS NHS FOUNDATION TRUST","R0B01","Alexandra Hospital"]
["Sites",1,1,1,1,1,1,1,null,null,"Total Responses","Trust Name","Trust Name",null,"QGH","HEREFORDSHIRE AND WORCESTERSHIRE STP",null,"QGH","HEREFORDSHIRE AND WORCESTERSHIRE STP",null,"QE1","RXN","LANCASHIRE TEACHING HOSPITALS NHS FOUNDATION TRUST","RXN01","Chorley and South Ribble Hospital",null,"R0D","BARKING, HAVERING AND REDBRIDGE UNIVERSITY HOSPITALS NHS TRUST",null,"R0D","BARKING, HAVERING AND REDBRIDGE UNIVERSITY HOSPITALS NHS TRUST","R0B0Q","Andover War Memorial Hospital"]
[null,null,null,null,null,null,null,null,null,null,"Percentage Positive","Total Responses","Site Code",null,"QH8","MID AND SOUTH ESSEX STP",null,"QH8","MID AND SOUTH ESSEX STP",null,"QE1","RXN","LANCASHIRE TEACHING HOSPITALS NHS FOUNDATION TRUST","RXN02","Royal Preston Hospital",null,"R1F","BARNSLEY HOSPITAL NHS FOUNDATION TRUST",null,"R1F","BARNSLEY HOSPITAL NHS FOUNDATION TRUST","R0BXXX","Arrowe Park Hospital"]
[null,null,null,null,null,null,null,null,null,null,"Percentage Negative","Percentage Positive","Site Name",null,"QHG","BEDFORDSHIRE, LUTON AND MILTON KEYNES STP",null,"QHG","BEDFORDSHIRE, LUTON AND MILTON KEYNES STP",null,"QF7","RFF","BARNSLEY HOSPITAL NHS FOUNDATION TRUST","RFFAA","Barnsley Hospital NHS Foundation Trust HQ",null,"R1H","BARTS HEALTH NHS TRUST",null,"R1H","BARTS HEALTH NHS TRUST","R0D01","Ashford Hospital"]
[null,null,null,null,null,null,null,null,null,null,"Very Good","Percentage Negative","Total Responses",null,"QHL","BIRMINGHAM AND SOLIHULL STP",null,"QHL","BIRMINGHAM AND SOLIHULL STP",null,"QF7","RP5","DONCASTER AND BASSETLAW TEACHING HOSPITALS NHS FOUNDATION TRUST","RP5BA","Bassetlaw Hospital",null,"R1K","BEDFORDSHIRE HOSPITALS NHS FOUNDATION TRUST",null,"R1K","BEDFORDSHIRE HOSPITALS NHS FOUNDATION TRUST","R0D02","Barnet Hospital"]
[null,null,null,null,null,null,null,null,null,null,"Good","Very Good","Percentage Positive",null,"QHM","CUMBRIA AND NORTH EAST STP",null,"QHM","CUMBRIA AND NORTH EAST STP",null,"QF7","RP5","DONCASTER AND BASSETLAW TEACHING HOSPITALS NHS FOUNDATION TRUST","RP5DR","Doncaster Royal Infirmary",null,"RA2","BIRMINGHAM WOMEN'S AND CHILDREN'S NHS FOUNDATION TRUST",null,"RA2","BIRMINGHAM WOMEN'S AND CHILDREN'S NHS FOUNDATION TRUST","R1F01","Barnsley Hospital NHS Foundation Trust HQ"]
[null,null,null,null,null,null,null,null,null,null,"Neither Good nor Poor","Good","Percentage Negative",null,"QJ2","JOINED UP CARE DERBYSHIRE STP",null,"QJ2","JOINED UP CARE DERBYSHIRE STP",null,"QF7","RP5","DONCASTER AND BASSETLAW TEACHING HOSPITALS NHS FOUNDATION TRUST","RP5XXX","Non-hospital site",null,"RA4","BLACKPOOL TEACHING HOSPITALS NHS FOUNDATION TRUST",null,"RA4","BLACKPOOL TEACHING HOSPITALS NHS FOUNDATION TRUST","R1H12","BASILDON HOSPITAL"]
[null,null,null,null,null,null,null,null,null,null,"Poor","Neither Good nor Poor","Very Good",null,"QJG","SUFFOLK AND NORTH EAST ESSEX ICS",null,"QJG","SUFFOLK AND NORTH EAST ESSEX ICS",null,"QF7","RHQ","SHEFFIELD TEACHING HOSPITALS NHS FOUNDATION TRUST","RHQHH","Royal Hallamshire Hospital",null,"RA7","BOLTON NHS FOUNDATION TRUST",null,"RA7","BOLTON NHS FOUNDATION TRUST","R1HKH","Basingstoke and North Hampshire Hospital"]
[null,null,null,null,null,null,null,null,null,null,"Very Poor","Poor","Good",null,"QJK","DEVON STP",null,"QJK","DEVON STP",null,"QF7","RFR","THE ROTHERHAM NHS FOUNDATION TRUST","RFRPA","Rotherham District General Hospital",null,"RA9","BRADFORD TEACHING HOSPITALS NHS FOUNDATION TRUST",null,"RA9","BRADFORD TEACHING HOSPITALS NHS FOUNDATION TRUST","R1HNH","Bassetlaw Hospital"]
[null,null,null,null,null,null,null,null,null,null,"Don't Know","Very Poor","Neither Good nor Poor",null,"QJM","LINCOLNSHIRE STP",null,"QJM","LINCOLNSHIRE STP",null,"QGH","RWP","WORCESTERSHIRE ACUTE HOSPITALS NHS TRUST","RWP01","Alexandra Hospital",null,"RAE","BUCKINGHAMSHIRE HEALTHCARE NHS TRUST",null,"RAE","BUCKINGHAMSHIRE HEALTHCARE NHS TRUST","R1K01","BEDFORD HOSPITAL SOUTH WING"]
[null,null,null,null,null,null,null,null,null,null,null,"Don't Know","Poor",null,"QK1","LEICESTER, LEICESTERSHIRE AND RUTLAND STP",null,"QK1","LEICESTER, LEICESTERSHIRE AND RUTLAND STP",null,"QGH","RWP","WORCESTERSHIRE ACUTE HOSPITALS NHS TRUST","RWP31","Kidderminster Hospital",null,"RAJ","CALDERDALE AND HUDDERSFIELD NHS FOUNDATION TRUST",null,"RAJ","CALDERDALE AND HUDDERSFIELD NHS FOUNDATION TRUST","R1K02","Birmingham Women's Hospital"]
[null,null,null,null,null,null,null,null,null,null,null,"Mode SMS","Very Poor",null,"QKK","OUR HEALTHIER SOUTH EAST LONDON STP",null,"QKK","OUR HEALTHIER SOUTH EAST LONDON STP",null,"QGH","RWP","WORCESTERSHIRE ACUTE HOSPITALS NHS TRUST","RWP50","Worcestershire Royal Hospital",null,"RAL","CAMBRIDGE UNIVERSITY HOSPITALS NHS FOUNDATION TRUST",null,"RAL","CAMBRIDGE UNIVERSITY HOSPITALS NHS FOUNDATION TRUST","RA201","Blackpool Victoria Hospital"]
[null,null,null,null,null,null,null,null,null,null,null,"Mode Electronic Discharge","Don't Know",null,"QKS","KENT AND MEDWAY STP",null,"QKS","KENT AND MEDWAY STP",null,"QGH","RLQ","WYE VALLEY NHS TRUST","RLQ01","Hereford County Hospital",null,"RAP","CHELSEA AND WESTMINSTER HOSPITAL NHS FOUNDATION TRUST",null,"RAP","CHELSEA AND WESTMINSTER HOSPITAL NHS FOUNDATION TRUST","RA430","Bradford Royal Infirmary"]
[null,null,null,null,null,null,null,null,null,null,null,"Mode Electronic Home",null,null,"QM7","HERTFORDSHIRE AND WEST ESSEX STP",null,"QM7","HERTFORDSHIRE AND WEST ESSEX STP",null,"QH8","RAJ","MID AND SOUTH ESSEX NHS FOUNDATION TRUST","RAJ12","BASILDON HOSPITAL",null,"RAS","CROYDON HEALTH SERVICES NHS TRUST",null,"RAS","CROYDON HEALTH SERVICES NHS TRUST","RA707","Bridgwater Hospital"]
[null,null,null,null,null,null,null,null,null,null,null,"Mode Paper Discharge",null,null,"QMF","EAST LONDON HEALTH & CARE PARTNERSHIP (STP)",null,"QMF","EAST LONDON HEALTH & CARE PARTNERSHIP (STP)",null,"QHG","RC9","BEDFORDSHIRE HOSPITALS NHS FOUNDATION TRUST","RC979","BEDFORD HOSPITAL SOUTH WING",null,"RAX","DARTFORD AND GRAVESHAM NHS TRUST",null,"RAX","DARTFORD AND GRAVESHAM NHS TRUST","RA901","Calderdale Royal Hospital"]
[null,null,null,null,null,null,null,null,null,null,null,"Mode Paper Home",null,null,"QMJ","NORTH LONDON PARTNERS IN HEALTH & CARE (STP)",null,"QMJ","NORTH LONDON PARTNERS IN HEALTH & CARE (STP)",null,"QHG","RC9","BEDFORDSHIRE HOSPITALS NHS FOUNDATION TRUST","RC971","Luton and Dunstable Hospital",null,"RBD","DONCASTER AND BASSETLAW TEACHING HOSPITALS NHS FOUNDATION TRUST",null,"RBD","DONCASTER AND BASSETLAW TEACHING HOSPITALS NHS FOUNDATION TRUST","RAE01","Central Middlesex Hospital"]
[null,null,null,null,null,null,null,null,null,null,null,"Mode Telephone",null,null,"QMM","NORFOLK AND WAVENEY HEALTH & CARE PARTNERSHIP (STP)",null,"QMM","NORFOLK AND WAVENEY HEALTH & CARE PARTNERSHIP (STP)",null,"QHG","RD8","MILTON KEYNES UNIVERSITY HOSPITAL NHS FOUNDATION TRUST","RD816","Milton Keynes Hospital",null,"RBK","DORSET COUNTY HOSPITAL NHS FOUNDATION TRUST",null,"RBK","DORSET COUNTY HOSPITAL NHS FOUNDATION TRUST","RAEXXX","Chelsea and Westminster Hospital"]
[null,null,null,null,null,null,null,null,null,null,null,"Mode Online",null,null,"QNC","STAFFORDSHIRE & STOKE ON TRENT STP",null,"QNC","STAFFORDSHIRE & STOKE ON TRENT STP",null,"QHL","RQ3","BIRMINGHAM WOMEN'S AND CHILDREN'S NHS FOUNDATION TRUST","RQ370","Birmingham Women's Hospital",null,"RBL","EAST AND NORTH HERTFORDSHIRE NHS TRUST",null,"RBL","EAST AND NORTH HERTFORDSHIRE NHS TRUST","RAJ12","Chorley and South Ribble Hospital"]
[null,null,null,null,null,null,null,null,null,null,null,"Mode Other",null,null,"QNQ","FRIMLEY HEALTH & CARE (STP)",null,"QNQ","FRIMLEY HEALTH & CARE (STP)",null,"QHL","RRK","UNIVERSITY HOSPITALS BIRMINGHAM NHS FOUNDATION TRUST","RRK98","Good Hope Hospital",null,"RBN","EAST CHESHIRE NHS TRUST",null,"RBN","EAST CHESHIRE NHS TRUST","RAL01","Colchester General Hospital"]
[null,null,null,null,null,null,null,null,null,null,null,null,null,null,"QNX","SUSSEX HEALTH AND CARE PARTNERSHIP",null,"QNX","SUSSEX HEALTH AND CARE PARTNERSHIP",null,"QHL","RRK","UNIVERSITY HOSPITALS BIRMINGHAM NHS FOUNDATION TRUST","RRK97","Heartlands Hospital",null,"RBT","EAST KENT HOSPITALS UNIVERSITY NHS FOUNDATION TRUST",null,"RBT","EAST KENT HOSPITALS UNIVERSITY NHS FOUNDATION TRUST","RAL26","Conquest Hospital"]
[null,null,null,null,null,null,null,null,null,null,null,null,null,null,"QOC","SHROPSHIRE AND TELFORD AND WREKIN STP",null,"QOC","SHROPSHIRE AND TELFORD AND WREKIN STP",null,"QHL","RRK","UNIVERSITY HOSPITALS BIRMINGHAM NHS FOUNDATION TRUST","RRK99","Solihull Hospital",null,"RBZ","EAST LANCASHIRE HOSPITALS NHS TRUST",null,"RBZ","EAST LANCASHIRE HOSPITALS NHS TRUST","RAPNM","County Hospital"]
[null,null,null,null,null,null,null,null,null,null,null,null,null,null,"QOP","GREATER MANCHESTER HEALTH & SOCIAL CARE PARTNERSHIP",null,"QOP","GREATER MANCHESTER HEALTH & SOCIAL CARE PARTNERSHIP",null,"QHM","RR7","GATESHEAD HEALTH NHS FOUNDATION TRUST","RR7EN","Queen Elizabeth Hospital",null,"RC9","EAST SUFFOLK AND NORTH ESSEX NHS FOUNDATION TRUST",null,"RC9","EAST SUFFOLK AND NORTH ESSEX NHS FOUNDATION TRUST","RAS01","Coventry and Warwickshire Hospital"]
[null,null,null,null,null,null,null,null,null,null,null,null,null,null,"QOQ","HUMBER, COAST AND VALE STP",null,"QOQ","HUMBER, COAST AND VALE STP",null,"QHM","RNN","NORTH CUMBRIA INTEGRATED CARE NHS FOUNDATION TRUST","RNNXXX","Non-hospital site",null,"RCD","EAST SUSSEX HEALTHCARE NHS TRUST",null,"RCD","EAST SUSSEX HEALTHCARE NHS TRUST","RAX01","Croydon University Hospital"]
[null,null,null,null,null,null,null,null,null,null,null,null,null,null,"QOX","BATH AND NORTH EAST SOMERSET, SWINDON AND WILTSHIRE STP",null,"QOX","BATH AND NORTH EAST SOMERSET, SWINDON AND WILTSHIRE STP",null,"QHM","RVW","NORTH TEES AND HARTLEPOOL NHS FOUNDATION TRUST","RVWXXX","Non-hospital site",null,"RCF","EPSOM AND ST HELIER UNIVERSITY HOSPITALS NHS TRUST",null,"RCF","EPSOM AND ST HELIER UNIVERSITY HOSPITALS NHS TRUST","RBD01","Darent Valley Hospital"]
[null,null,null,null,null,null,null,null,null,null,null,null,null,null,"QPM","NORTHAMPTONSHIRE STP",null,"QPM","NORTHAMPTONSHIRE STP",null,"QHM","RVW","NORTH TEES AND HARTLEPOOL NHS FOUNDATION TRUST","RVWAE","University Hospital Of North Tees",null,"RCX","FRIMLEY HEALTH NHS FOUNDATION TRUST",null,"RCX","FRIMLEY HEALTH NHS FOUNDATION TRUST","RBK02","Derriford Hospital"]
[null,null,null,null,null,null,null,null,null,null,null,null,null,null,"QR1","GLOUCESTERSHIRE STP",null,"QR1","GLOUCESTERSHIRE STP",null,"QHM","RTR","SOUTH TEES HOSPITALS NHS FOUNDATION TRUST","RTR45","Friarage Hospital Site",null,"RD1","GATESHEAD HEALTH NHS FOUNDATION TRUST",null,"RD1","GATESHEAD HEALTH NHS FOUNDATION TRUST","RBL14","Dewsbury and District Hospital"]
[null,null,null,null,null,null,null,null,null,null,null,null,null,null,"QRL","HAMPSHIRE AND THE ISLE OF WIGHT STP",null,"QRL","HAMPSHIRE AND THE ISLE OF WIGHT STP",null,"QHM","RTR","SOUTH TEES HOSPITALS NHS FOUNDATION TRUST","RTRAT","The James Cook University Hospital",null,"RD8","GEORGE ELIOT HOSPITAL NHS TRUST",null,"RD8","GEORGE ELIOT HOSPITAL NHS TRUST","RBN01","Diana, Princess Of Wales Hospital"]
[null,null,null,null,null,null,null,null,null,null,null,null,null,null,"QRV","NORTH WEST LONDON HEALTH & CARE PARTNERSHIP (STP)",null,"QRV","NORTH WEST LONDON HEALTH & CARE PARTNERSHIP (STP)",null,"QHM","R0B","SOUTH TYNESIDE AND SUNDERLAND NHS FOUNDATION TRUST","R0BXXX","Non-hospital site",null,"RDE","GLOUCESTERSHIRE HOSPITALS NHS FOUNDATION TRUST",null,"RDE","GLOUCESTERSHIRE HOSPITALS NHS FOUNDATION TRUST","RBT20","Doncaster Royal Infirmary"]
[null,null,null,null,null,null,null,null,null,null,null,null,null,null,"QSL","SOMERSET STP",null,"QSL","SOMERSET STP",null,"QHM","R0B","SOUTH TYNESIDE AND SUNDERLAND NHS FOUNDATION TRUST","R0B0Q","South Tyneside District Hospital",null,"RDU","GREAT WESTERN HOSPITALS NHS FOUNDATION TRUST",null,"RDU","GREAT WESTERN HOSPITALS NHS FOUNDATION TRUST","RBZ12","Dorset County Hospital"]
[null,null,null,null,null,null,null,null,null,null,null,null,null,null,"QT1","NOTTINGHAM AND NOTTINGHAMSHIRE HEALTH AND CARE STP",null,"QT1","NOTTINGHAM AND NOTTINGHAMSHIRE HEALTH AND CARE STP",null,"QHM","R0B","SOUTH TYNESIDE AND SUNDERLAND NHS FOUNDATION TRUST","R0B01","Sunderland Royal Hospital",null,"REF","GUY'S AND ST THOMAS' NHS FOUNDATION TRUST",null,"REF","GUY'S AND ST THOMAS' NHS FOUNDATION TRUST","RC971","East Surrey Hospital"]
[null,null,null,null,null,null,null,null,null,null,null,null,null,null,"QT6","CORNWALL AND THE ISLES OF SCILLY HEALTH & SOCIAL CARE PARTNERSHIP (STP)",null,"QT6","CORNWALL AND THE ISLES OF SCILLY HEALTH & SOCIAL CARE PARTNERSHIP (STP)",null,"QHM","RTD","THE NEWCASTLE UPON TYNE HOSPITALS NHS FOUNDATION TRUST","RTD02","The Royal Victoria Infirmary",null,"REP","HAMPSHIRE HOSPITALS NHS FOUNDATION TRUST",null,"REP","HAMPSHIRE HOSPITALS NHS FOUNDATION TRUST","RC979","Eastbourne District General Hospital"]
[null,null,null,null,null,null,null,null,null,null,null,null,null,null,"QU9","BUCKINGHAMSHIRE, OXFORDSHIRE AND BERKSHIRE WEST STP",null,"QU9","BUCKINGHAMSHIRE, OXFORDSHIRE AND BERKSHIRE WEST STP",null,"QJ2","RTG","UNIVERSITY HOSPITALS OF DERBY AND BURTON NHS FOUNDATION TRUST","RTG02","Queens Hospital, Burton Upon Trent",null,"RF4","HARROGATE AND DISTRICT NHS FOUNDATION TRUST",null,"RF4","HARROGATE AND DISTRICT NHS FOUNDATION TRUST","RCD01","Epsom Hospital"]
[null,null,null,null,null,null,null,null,null,null,null,null,null,null,"QUA","THE BLACK COUNTRY AND WEST BIRMINGHAM STP",null,"QUA","THE BLACK COUNTRY AND WEST BIRMINGHAM STP",null,"QJG","RDE","EAST SUFFOLK AND NORTH ESSEX NHS FOUNDATION TRUST","RDEE4","Colchester General Hospital",null,"RFF","HOMERTON UNIVERSITY HOSPITAL NHS FOUNDATION TRUST",null,"RFF","HOMERTON UNIVERSITY HOSPITAL NHS FOUNDATION TRUST","RCF22","Friarage Hospital Site"]
[null,null,null,null,null,null,null,null,null,null,null,null,null,null,"QUE","CAMBRIDGESHIRE AND PETERBOROUGH STP",null,"QUE","CAMBRIDGESHIRE AND PETERBOROUGH STP",null,"QJG","RDE","EAST SUFFOLK AND NORTH ESSEX NHS FOUNDATION TRUST","RDE03","Ipswich Hospital",null,"RFR","HULL UNIVERSITY TEACHING HOSPITALS NHS TRUST",null,"RFR","HULL UNIVERSITY TEACHING HOSPITALS NHS TRUST","RCX66","Frimley Park Hospital"]
[null,null,null,null,null,null,null,null,null,null,null,null,null,null,"QUY","BRISTOL, NORTH SOMERSET AND SOUTH GLOUCESTERSHIRE STP",null,"QUY","BRISTOL, NORTH SOMERSET AND SOUTH GLOUCESTERSHIRE STP",null,"QJG","RGR","WEST SUFFOLK NHS FOUNDATION TRUST","RGR50","West Suffolk Hospital",null,"RGN","IMPERIAL COLLEGE HEALTHCARE NHS TRUST",null,"RGN","IMPERIAL COLLEGE HEALTHCARE NHS TRUST","RCX70","George Eliot Hospital - Acute Services"]
[null,null,null,null,null,null,null,null,null,null,null,null,null,null,"QVV","DORSET STP",null,"QVV","DORSET STP",null,"QJK","RBZ","NORTHERN DEVON HEALTHCARE NHS TRUST","RBZ12","North Devon District Hospital",null,"RGP","ISLE OF WIGHT NHS TRUST",null,"RGP","ISLE OF WIGHT NHS TRUST","RCXXXX","Gloucestershire Royal Hospital"]
[null,null,null,null,null,null,null,null,null,null,null,null,null,null,"QWE","SOUTH WEST LONDON HEALTH & CARE PARTNERSHIP (STP)",null,"QWE","SOUTH WEST LONDON HEALTH & CARE PARTNERSHIP (STP)",null,"QJK","RH8","ROYAL DEVON AND EXETER NHS FOUNDATION TRUST","RH854","Honiton Hospital - RH 854",null,"RGR","JAMES PAGET UNIVERSITY HOSPITALS NHS FOUNDATION TRUST",null,"RGR","JAMES PAGET UNIVERSITY HOSPITALS NHS FOUNDATION TRUST","RD108","Good Hope Hospital"]
[null,null,null,null,null,null,null,null,null,null,null,null,null,null,"QWO","WEST YORKSHIRE AND HARROGATE HEALTH & CARE PARTNERSHIP (STP)",null,"QWO","WEST YORKSHIRE AND HARROGATE HEALTH & CARE PARTNERSHIP (STP)",null,"QJK","RH8","ROYAL DEVON AND EXETER NHS FOUNDATION TRUST","RH801","Royal Devon and Exeter Hospital (Wonford)",null,"RGT","KETTERING GENERAL HOSPITAL NHS FOUNDATION TRUST",null,"RGT","KETTERING GENERAL HOSPITAL NHS FOUNDATION TRUST","RD816","Gosport War Memorial Hospital"]
[null,null,null,null,null,null,null,null,null,null,null,null,null,null,"QWU","COVENTRY AND WARWICKSHIRE STP",null,"QWU","COVENTRY AND WARWICKSHIRE STP",null,"QJK","RA9","TORBAY AND SOUTH DEVON NHS FOUNDATION TRUST","RA901","Torbay Hospital",null,"RH5","KING'S COLLEGE HOSPITAL NHS FOUNDATION TRUST",null,"RH5","KING'S COLLEGE HOSPITAL NHS FOUNDATION TRUST","RDE03","Grantham and District Hospital"]
[null,null,null,null,null,null,null,null,null,null,null,null,null,null,"QXU","SURREY HEARTLANDS HEALTH & CARE PARTNERSHIP (STP)",null,"QXU","SURREY HEARTLANDS HEALTH & CARE PARTNERSHIP (STP)",null,"QJK","RK9","UNIVERSITY HOSPITALS PLYMOUTH NHS TRUST","RK950","Derriford Hospital",null,"RH8","KINGSTON HOSPITAL NHS FOUNDATION TRUST",null,"RH8","KINGSTON HOSPITAL NHS FOUNDATION TRUST","RDEE4","Harrogate District Hospital"]
[null,null,null,null,null,null,null,null,null,null,null,null,null,null,"QYG","CHESHIRE AND MERSEYSIDE STP",null,"QYG","CHESHIRE AND MERSEYSIDE STP",null,"QJK","RK9","UNIVERSITY HOSPITALS PLYMOUTH NHS TRUST","RK9XXX","Non-hospital site",null,"RHM","LANCASHIRE TEACHING HOSPITALS NHS FOUNDATION TRUST",null,"RHM","LANCASHIRE TEACHING HOSPITALS NHS FOUNDATION TRUST","RDU01","Heartlands Hospital"]
[null,null,null,null,null,null,null,null,null,null,null,null,null,null,"zIS1","Independent Sector Provider",null,"zIS1","Independent Sector Provider",null,"QJM","RWD","UNITED LINCOLNSHIRE HOSPITALS NHS TRUST","RWDLP","Grantham and District Hospital",null,"RHQ","LEEDS TEACHING HOSPITALS NHS TRUST",null,"RHQ","LEEDS TEACHING HOSPITALS NHS TRUST","REF12","Hereford County Hospital"]
[null,null,null,null,null,null,null,null,null,null,null,null,null,null,null,null,null,null,null,null,"QJM","RWD","UNITED LINCOLNSHIRE HOSPITALS NHS TRUST","RWDDA","Lincoln County Hospital",null,"RHU","LEWISHAM AND GREENWICH NHS TRUST",null,"RHU","LEWISHAM AND GREENWICH NHS TRUST","REFXXX","Hillingdon Hospital"]
[null,null,null,null,null,null,null,null,null,null,null,null,null,null,null,null,null,null,null,null,"QJM","RWD","UNITED LINCOLNSHIRE HOSPITALS NHS TRUST","RWDLA","Pilgrim Hospital",null,"RHW","LIVERPOOL WOMEN'S NHS FOUNDATION TRUST",null,"RHW","LIVERPOOL WOMEN'S NHS FOUNDATION TRUST","REP01","Hinchingbrooke Hospital"]
[null,null,null,null,null,null,null,null,null,null,null,null,null,null,null,null,null,null,null,null,"QK1","RWE","UNIVERSITY HOSPITALS OF LEICESTER NHS TRUST","RWEAK","Leicester General Hospital",null,"RJ1","LONDON NORTH WEST UNIVERSITY HEALTHCARE NHS TRUST",null,"RJ1","LONDON NORTH WEST UNIVERSITY HEALTHCARE NHS TRUST","RF4XXX","Homerton University Hospital"]
[null,null,null,null,null,null,null,null,null,null,null,null,null,null,null,null,null,null,null,null,"QK1","RWE","UNIVERSITY HOSPITALS OF LEICESTER NHS TRUST","RWEAA","Leicester Royal Infirmary",null,"RJ2","MAIDSTONE AND TUNBRIDGE WELLS NHS TRUST",null,"RJ2","MAIDSTONE AND TUNBRIDGE WELLS NHS TRUST","RFFAA","Honiton Hospital - RH 854"]
[null,null,null,null,null,null,null,null,null,null,null,null,null,null,null,null,null,null,null,null,"QK1","RWE","UNIVERSITY HOSPITALS OF LEICESTER NHS TRUST","RWEXXX","Non-hospital site",null,"RJ6","MANCHESTER UNIVERSITY NHS FOUNDATION TRUST",null,"RJ6","MANCHESTER UNIVERSITY NHS FOUNDATION TRUST","RFRPA","Horton General Hospital"]
[null,null,null,null,null,null,null,null,null,null,null,null,null,null,null,null,null,null,null,null,"QKK","RJ1","GUY'S AND ST THOMAS' NHS FOUNDATION TRUST","RJ122","St Thomas' Hospital",null,"RJ7","MEDWAY NHS FOUNDATION TRUST",null,"RJ7","MEDWAY NHS FOUNDATION TRUST","RGN80","Hospital Of St Cross"]
[null,null,null,null,null,null,null,null,null,null,null,null,null,null,null,null,null,null,null,null,"QKK","RJZ","KING'S COLLEGE HOSPITAL NHS FOUNDATION TRUST","RJZ01","King's College Hospital (Denmark Hill)",null,"RJC","MID AND SOUTH ESSEX NHS FOUNDATION TRUST",null,"RJC","MID AND SOUTH ESSEX NHS FOUNDATION TRUST","RGN90","Huddersfield Royal Infirmary"]
[null,null,null,null,null,null,null,null,null,null,null,null,null,null,null,null,null,null,null,null,"QKK","RJZ","KING'S COLLEGE HOSPITAL NHS FOUNDATION TRUST","RJZ30","Princess Royal University Hospital",null,"RJE","MID CHESHIRE HOSPITALS NHS FOUNDATION TRUST",null,"RJE","MID CHESHIRE HOSPITALS NHS FOUNDATION TRUST","RGP75","Hull Royal Infirmary"]
[null,null,null,null,null,null,null,null,null,null,null,null,null,null,null,null,null,null,null,null,"QKK","RJ2","LEWISHAM AND GREENWICH NHS TRUST","RJ2XXX","Non-hospital site",null,"RJL","MID YORKSHIRE HOSPITALS NHS TRUST",null,"RJL","MID YORKSHIRE HOSPITALS NHS TRUST","RGR50","Ipswich Hospital"]
[null,null,null,null,null,null,null,null,null,null,null,null,null,null,null,null,null,null,null,null,"QKK","RJ2","LEWISHAM AND GREENWICH NHS TRUST","RJ231","Queen Elizabeth Hospital",null,"RJN","MILTON KEYNES UNIVERSITY HOSPITAL NHS FOUNDATION TRUST",null,"RJN","MILTON KEYNES UNIVERSITY HOSPITAL NHS FOUNDATION TRUST","RGT32","James Paget University Hospital"]
[null,null,null,null,null,null,null,null,null,null,null,null,null,null,null,null,null,null,null,null,"QKK","RJ2","LEWISHAM AND GREENWICH NHS TRUST","RJ224","University Hospital Lewisham",null,"RJZ","NORFOLK AND NORWICH UNIVERSITY HOSPITALS NHS FOUNDATION TRUST",null,"RJZ","NORFOLK AND NORWICH UNIVERSITY HOSPITALS NHS FOUNDATION TRUST","RH5A8","John Radcliffe Hospital"]
[null,null,null,null,null,null,null,null,null,null,null,null,null,null,null,null,null,null,null,null,"QKS","RN7","DARTFORD AND GRAVESHAM NHS TRUST","RN707","Darent Valley Hospital",null,"RK5","NORTH BRISTOL NHS TRUST",null,"RK5","NORTH BRISTOL NHS TRUST","RH5K6","Kettering General Hospital"]
[null,null,null,null,null,null,null,null,null,null,null,null,null,null,null,null,null,null,null,null,"QKS","RVV","EAST KENT HOSPITALS UNIVERSITY NHS FOUNDATION TRUST","RVV01","William Harvey Hospital (Ashford)",null,"RK9","NORTH CUMBRIA INTEGRATED CARE NHS FOUNDATION TRUST",null,"RK9","NORTH CUMBRIA INTEGRATED CARE NHS FOUNDATION TRUST","RH5XXX","Kidderminster Hospital"]
[null,null,null,null,null,null,null,null,null,null,null,null,null,null,null,null,null,null,null,null,"QKS","RWF","MAIDSTONE AND TUNBRIDGE WELLS NHS TRUST","RWF03","Maidstone District General Hospital",null,"RKB","NORTH MIDDLESEX UNIVERSITY HOSPITAL NHS TRUST",null,"RKB","NORTH MIDDLESEX UNIVERSITY HOSPITAL NHS TRUST","RH801","King's College Hospital (Denmark Hill)"]
[null,null,null,null,null,null,null,null,null,null,null,null,null,null,null,null,null,null,null,null,"QKS","RWF","MAIDSTONE AND TUNBRIDGE WELLS NHS TRUST","RWFXXX","Non-hospital site",null,"RKE","NORTH TEES AND HARTLEPOOL NHS FOUNDATION TRUST",null,"RKE","NORTH TEES AND HARTLEPOOL NHS FOUNDATION TRUST","RH854","King's Mill Hospital"]
[null,null,null,null,null,null,null,null,null,null,null,null,null,null,null,null,null,null,null,null,"QKS","RWF","MAIDSTONE AND TUNBRIDGE WELLS NHS TRUST","RWFTW","The Tunbridge Wells Hospital",null,"RL4","NORTH WEST ANGLIA NHS FOUNDATION TRUST",null,"RL4","NORTH WEST ANGLIA NHS FOUNDATION TRUST","RHM12","Kingston Hospital"]
[null,null,null,null,null,null,null,null,null,null,null,null,null,null,null,null,null,null,null,null,"QKS","RPA","MEDWAY NHS FOUNDATION TRUST","RPA02","Medway Maritime Hospital",null,"RLQ","NORTHAMPTON GENERAL HOSPITAL NHS TRUST",null,"RLQ","NORTHAMPTON GENERAL HOSPITAL NHS TRUST","RHQHH","Leicester General Hospital"]
[null,null,null,null,null,null,null,null,null,null,null,null,null,null,null,null,null,null,null,null,"QM7","RWH","EAST AND NORTH HERTFORDSHIRE NHS TRUST","RWH01","Lister Hospital",null,"RLT","NORTHERN DEVON HEALTHCARE NHS TRUST",null,"RLT","NORTHERN DEVON HEALTHCARE NHS TRUST","RHU02","Leicester Royal Infirmary"]
[null,null,null,null,null,null,null,null,null,null,null,null,null,null,null,null,null,null,null,null,"QM7","RWH","EAST AND NORTH HERTFORDSHIRE NHS TRUST","RWHXXX","Non-hospital site",null,"RM1","NORTHERN LINCOLNSHIRE AND GOOLE NHS FOUNDATION TRUST",null,"RM1","NORTHERN LINCOLNSHIRE AND GOOLE NHS FOUNDATION TRUST","RHU03","Leighton Hospital"]
[null,null,null,null,null,null,null,null,null,null,null,null,null,null,null,null,null,null,null,null,"QM7","RWG","WEST HERTFORDSHIRE TEACHING HOSPITALS NHS TRUST","RWG02","Watford General Hospital",null,"RMC","NOTTINGHAM UNIVERSITY HOSPITALS NHS TRUST",null,"RMC","NOTTINGHAM UNIVERSITY HOSPITALS NHS TRUST","RHU04","Lincoln County Hospital"]
[null,null,null,null,null,null,null,null,null,null,null,null,null,null,null,null,null,null,null,null,"QMF","RF4","BARKING, HAVERING AND REDBRIDGE UNIVERSITY HOSPITALS NHS TRUST","RF4XXX","Non-hospital site",null,"RMP","OXFORD UNIVERSITY HOSPITALS NHS FOUNDATION TRUST",null,"RMP","OXFORD UNIVERSITY HOSPITALS NHS FOUNDATION TRUST","RHU10","Lister Hospital"]
[null,null,null,null,null,null,null,null,null,null,null,null,null,null,null,null,null,null,null,null,"QMF","R1H","BARTS HEALTH NHS TRUST","R1HNH","Newham General Hospital",null,"RN3","PORTSMOUTH HOSPITALS UNIVERSITY NATIONAL HEALTH SERVICE TRUST",null,"RN3","PORTSMOUTH HOSPITALS UNIVERSITY NATIONAL HEALTH SERVICE TRUST","RHW01","Liverpool Womens Hospital"]
[null,null,null,null,null,null,null,null,null,null,null,null,null,null,null,null,null,null,null,null,"QMF","R1H","BARTS HEALTH NHS TRUST","R1H12","The Royal London Hospital",null,"RN5","ROYAL BERKSHIRE NHS FOUNDATION TRUST",null,"RN5","ROYAL BERKSHIRE NHS FOUNDATION TRUST","RJ122","Luton and Dunstable Hospital"]
[null,null,null,null,null,null,null,null,null,null,null,null,null,null,null,null,null,null,null,null,"QMF","R1H","BARTS HEALTH NHS TRUST","R1HKH","Whipps Cross University Hospital",null,"RN7","ROYAL CORNWALL HOSPITALS NHS TRUST",null,"RN7","ROYAL CORNWALL HOSPITALS NHS TRUST","RJ224","Macclesfield District General Hospital"]
[null,null,null,null,null,null,null,null,null,null,null,null,null,null,null,null,null,null,null,null,"QMF","RQX","HOMERTON UNIVERSITY HOSPITAL NHS FOUNDATION TRUST","RQXM1","Homerton University Hospital",null,"RNA","ROYAL DEVON AND EXETER NHS FOUNDATION TRUST",null,"RNA","ROYAL DEVON AND EXETER NHS FOUNDATION TRUST","RJ231","Maidstone District General Hospital"]
[null,null,null,null,null,null,null,null,null,null,null,null,null,null,null,null,null,null,null,null,"QMJ","RAP","NORTH MIDDLESEX UNIVERSITY HOSPITAL NHS TRUST","RAPNM","North Middlesex Hospital",null,"RNN","ROYAL FREE LONDON NHS FOUNDATION TRUST",null,"RNN","ROYAL FREE LONDON NHS FOUNDATION TRUST","RJ2XXX","Manor Hospital"]
[null,null,null,null,null,null,null,null,null,null,null,null,null,null,null,null,null,null,null,null,"QMJ","RAL","ROYAL FREE LONDON NHS FOUNDATION TRUST","RAL26","Barnet Hospital",null,"RNQ","ROYAL SURREY COUNTY HOSPITAL NHS FOUNDATION TRUST",null,"RNQ","ROYAL SURREY COUNTY HOSPITAL NHS FOUNDATION TRUST","RJ611","Medway Maritime Hospital"]
[null,null,null,null,null,null,null,null,null,null,null,null,null,null,null,null,null,null,null,null,"QMJ","RAL","ROYAL FREE LONDON NHS FOUNDATION TRUST","RAL01","Royal Free Hospital",null,"RNS","ROYAL UNITED HOSPITALS BATH NHS FOUNDATION TRUST",null,"RNS","ROYAL UNITED HOSPITALS BATH NHS FOUNDATION TRUST","RJ701","Milton Keynes Hospital"]
[null,null,null,null,null,null,null,null,null,null,null,null,null,null,null,null,null,null,null,null,"QMJ","RKE","WHITTINGTON HEALTH NHS TRUST","RKEXXX","Non-hospital site",null,"RNZ","SALISBURY NHS FOUNDATION TRUST",null,"RNZ","SALISBURY NHS FOUNDATION TRUST","RJCXXX","MUSGROVE PARK HOSPITAL"]
[null,null,null,null,null,null,null,null,null,null,null,null,null,null,null,null,null,null,null,null,"QMJ","RKE","WHITTINGTON HEALTH NHS TRUST","RKEQ4","The Whittington Hospital",null,"RP5","SHEFFIELD TEACHING HOSPITALS NHS FOUNDATION TRUST",null,"RP5","SHEFFIELD TEACHING HOSPITALS NHS FOUNDATION TRUST","RJE01","New Cross Hospital"]
[null,null,null,null,null,null,null,null,null,null,null,null,null,null,null,null,null,null,null,null,"QMM","RGP","JAMES PAGET UNIVERSITY HOSPITALS NHS FOUNDATION TRUST","RGP75","James Paget University Hospital",null,"RPA","SHERWOOD FOREST HOSPITALS NHS FOUNDATION TRUST",null,"RPA","SHERWOOD FOREST HOSPITALS NHS FOUNDATION TRUST","RJE09","Newham General Hospital"]
[null,null,null,null,null,null,null,null,null,null,null,null,null,null,null,null,null,null,null,null,"QMM","RM1","NORFOLK AND NORWICH UNIVERSITY HOSPITALS NHS FOUNDATION TRUST","RM102","Norfolk and Norwich University Hospital",null,"RQ3","SOMERSET NHS FOUNDATION TRUST",null,"RQ3","SOMERSET NHS FOUNDATION TRUST","RJL30","Non-hospital site"]
[null,null,null,null,null,null,null,null,null,null,null,null,null,null,null,null,null,null,null,null,"QMM","RCX","THE QUEEN ELIZABETH HOSPITAL, KING'S LYNN, NHS FOUNDATION TRUST","RCXXXX","Non-hospital site",null,"RQM","SOUTH TEES HOSPITALS NHS FOUNDATION TRUST",null,"RQM","SOUTH TEES HOSPITALS NHS FOUNDATION TRUST","RJL32","Non-hospital site"]
[null,null,null,null,null,null,null,null,null,null,null,null,null,null,null,null,null,null,null,null,"QMM","RCX","THE QUEEN ELIZABETH HOSPITAL, KING'S LYNN, NHS FOUNDATION TRUST","RCX66","North Cambridgeshire Hospital",null,"RQX","SOUTH TYNESIDE AND SUNDERLAND NHS FOUNDATION TRUST",null,"RQX","SOUTH TYNESIDE AND SUNDERLAND NHS FOUNDATION TRUST","RJN71","Non-hospital site"]
[null,null,null,null,null,null,null,null,null,null,null,null,null,null,null,null,null,null,null,null,"QMM","RCX","THE QUEEN ELIZABETH HOSPITAL, KING'S LYNN, NHS FOUNDATION TRUST","RCX70","The Queen Elizabeth Hospital",null,"RR7","SOUTH WARWICKSHIRE NHS FOUNDATION TRUST",null,"RR7","SOUTH WARWICKSHIRE NHS FOUNDATION TRUST","RJZ01","Non-hospital site"]
[null,null,null,null,null,null,null,null,null,null,null,null,null,null,null,null,null,null,null,null,"QNC","RJE","UNIVERSITY HOSPITALS OF NORTH MIDLANDS NHS TRUST","RJE09","County Hospital",null,"RR8","SOUTHPORT AND ORMSKIRK HOSPITAL NHS TRUST",null,"RR8","SOUTHPORT AND ORMSKIRK HOSPITAL NHS TRUST","RJZ30","Non-hospital site"]
[null,null,null,null,null,null,null,null,null,null,null,null,null,null,null,null,null,null,null,null,"QNC","RJE","UNIVERSITY HOSPITALS OF NORTH MIDLANDS NHS TRUST","RJE01","Royal Stoke University Hospital",null,"RRF","ST GEORGE'S UNIVERSITY HOSPITALS NHS FOUNDATION TRUST",null,"RRF","ST GEORGE'S UNIVERSITY HOSPITALS NHS FOUNDATION TRUST","RK5BC","Non-hospital site"]
[null,null,null,null,null,null,null,null,null,null,null,null,null,null,null,null,null,null,null,null,"QNQ","RDU","FRIMLEY HEALTH NHS FOUNDATION TRUST","RDU01","Frimley Park Hospital",null,"RRK","ST HELENS AND KNOWSLEY TEACHING HOSPITALS NHS TRUST",null,"RRK","ST HELENS AND KNOWSLEY TEACHING HOSPITALS NHS TRUST","RK950","Non-hospital site"]
[null,null,null,null,null,null,null,null,null,null,null,null,null,null,null,null,null,null,null,null,"QNX","RXC","EAST SUSSEX HEALTHCARE NHS TRUST","RXC01","Conquest Hospital",null,"RTD","STOCKPORT NHS FOUNDATION TRUST",null,"RTD","STOCKPORT NHS FOUNDATION TRUST","RK9XXX","Non-hospital site"]
[null,null,null,null,null,null,null,null,null,null,null,null,null,null,null,null,null,null,null,null,"QNX","RXC","EAST SUSSEX HEALTHCARE NHS TRUST","RXC02","Eastbourne District General Hospital",null,"RTE","SURREY AND SUSSEX HEALTHCARE NHS TRUST",null,"RTE","SURREY AND SUSSEX HEALTHCARE NHS TRUST","RKB02","Non-hospital site"]
[null,null,null,null,null,null,null,null,null,null,null,null,null,null,null,null,null,null,null,null,"QNX","RXC","EAST SUSSEX HEALTHCARE NHS TRUST","RXCXXX","Non-hospital site",null,"RTG","TAMESIDE AND GLOSSOP INTEGRATED CARE NHS FOUNDATION TRUST",null,"RTG","TAMESIDE AND GLOSSOP INTEGRATED CARE NHS FOUNDATION TRUST","RKB03","Non-hospital site"]
[null,null,null,null,null,null,null,null,null,null,null,null,null,null,null,null,null,null,null,null,"QNX","RYR","UNIVERSITY HOSPITALS SUSSEX NHS FOUNDATION TRUST","RYR18","Worthing Hospital",null,"RTH","THE DUDLEY GROUP NHS FOUNDATION TRUST",null,"RTH","THE DUDLEY GROUP NHS FOUNDATION TRUST","RKBXXX","Non-hospital site"]
[null,null,null,null,null,null,null,null,null,null,null,null,null,null,null,null,null,null,null,null,"QOC","RXW","THE SHREWSBURY AND TELFORD HOSPITAL NHS TRUST","RXWXXX","Non-hospital site",null,"RTK","THE HILLINGDON HOSPITALS NHS FOUNDATION TRUST",null,"RTK","THE HILLINGDON HOSPITALS NHS FOUNDATION TRUST","RKEQ4","Non-hospital site"]
[null,null,null,null,null,null,null,null,null,null,null,null,null,null,null,null,null,null,null,null,"QOP","RMC","BOLTON NHS FOUNDATION TRUST","RMC01","Royal Bolton Hospital",null,"RTP","THE NEWCASTLE UPON TYNE HOSPITALS NHS FOUNDATION TRUST",null,"RTP","THE NEWCASTLE UPON TYNE HOSPITALS NHS FOUNDATION TRUST","RKEXXX","Non-hospital site"]
[null,null,null,null,null,null,null,null,null,null,null,null,null,null,null,null,null,null,null,null,"QOP","R0A","MANCHESTER UNIVERSITY NHS FOUNDATION TRUST","R0A05","St Mary's Hospital",null,"RTR","THE QUEEN ELIZABETH HOSPITAL, KING'S LYNN, NHS FOUNDATION TRUST",null,"RTR","THE QUEEN ELIZABETH HOSPITAL, KING'S LYNN, NHS FOUNDATION TRUST","RL403","Non-hospital site"]
[null,null,null,null,null,null,null,null,null,null,null,null,null,null,null,null,null,null,null,null,"QOP","RWJ","STOCKPORT NHS FOUNDATION TRUST","RWJ09","Stepping Hill Hospital",null,"RVJ","THE ROTHERHAM NHS FOUNDATION TRUST",null,"RVJ","THE ROTHERHAM NHS FOUNDATION TRUST","RLQ01","Non-hospital site"]
[null,null,null,null,null,null,null,null,null,null,null,null,null,null,null,null,null,null,null,null,"QOP","RMP","TAMESIDE AND GLOSSOP INTEGRATED CARE NHS FOUNDATION TRUST","RMP01","Tameside General Hospital",null,"RVR","THE ROYAL WOLVERHAMPTON NHS TRUST",null,"RVR","THE ROYAL WOLVERHAMPTON NHS TRUST","RLT01","Non-hospital site"]
[null,null,null,null,null,null,null,null,null,null,null,null,null,null,null,null,null,null,null,null,"QOP","RRF","WRIGHTINGTON, WIGAN AND LEIGH NHS FOUNDATION TRUST","RRF02","Royal Albert Edward Infirmary",null,"RVV","THE SHREWSBURY AND TELFORD HOSPITAL NHS TRUST",null,"RVV","THE SHREWSBURY AND TELFORD HOSPITAL NHS TRUST","RM102","Non-hospital site"]
[null,null,null,null,null,null,null,null,null,null,null,null,null,null,null,null,null,null,null,null,"QOQ","RCD","HARROGATE AND DISTRICT NHS FOUNDATION TRUST","RCD01","Harrogate District Hospital",null,"RVW","TORBAY AND SOUTH DEVON NHS FOUNDATION TRUST",null,"RVW","TORBAY AND SOUTH DEVON NHS FOUNDATION TRUST","RMC01","Non-hospital site"]
[null,null,null,null,null,null,null,null,null,null,null,null,null,null,null,null,null,null,null,null,"QOQ","RWA","HULL UNIVERSITY TEACHING HOSPITALS NHS TRUST","RWA01","Hull Royal Infirmary",null,"RVY","UNITED LINCOLNSHIRE HOSPITALS NHS TRUST",null,"RVY","UNITED LINCOLNSHIRE HOSPITALS NHS TRUST","RMP01","Non-hospital site"]
[null,null,null,null,null,null,null,null,null,null,null,null,null,null,null,null,null,null,null,null,"QOQ","RJL","NORTHERN LINCOLNSHIRE AND GOOLE NHS FOUNDATION TRUST","RJL30","Diana, Princess Of Wales Hospital",null,"RWA","UNIVERSITY HOSPITAL SOUTHAMPTON NHS FOUNDATION TRUST",null,"RWA","UNIVERSITY HOSPITAL SOUTHAMPTON NHS FOUNDATION TRUST","RN325","Non-hospital site"]
[null,null,null,null,null,null,null,null,null,null,null,null,null,null,null,null,null,null,null,null,"QOQ","RJL","NORTHERN LINCOLNSHIRE AND GOOLE NHS FOUNDATION TRUST","RJL32","Scunthorpe General Hospital",null,"RWD","UNIVERSITY HOSPITALS BIRMINGHAM NHS FOUNDATION TRUST",null,"RWD","UNIVERSITY HOSPITALS BIRMINGHAM NHS FOUNDATION TRUST","RN506","Non-hospital site"]
[null,null,null,null,null,null,null,null,null,null,null,null,null,null,null,null,null,null,null,null,"QOX","RN3","GREAT WESTERN HOSPITALS NHS FOUNDATION TRUST","RN325","The Great Western Hospital",null,"RWE","UNIVERSITY HOSPITALS BRISTOL AND WESTON NHS FOUNDATION TRUST",null,"RWE","UNIVERSITY HOSPITALS BRISTOL AND WESTON NHS FOUNDATION TRUST","RN541","Non-hospital site"]
[null,null,null,null,null,null,null,null,null,null,null,null,null,null,null,null,null,null,null,null,"QOX","RD1","ROYAL UNITED HOSPITALS BATH NHS FOUNDATION TRUST","RD108","Trowbridge Community Hospital",null,"RWF","UNIVERSITY HOSPITALS COVENTRY AND WARWICKSHIRE NHS TRUST",null,"RWF","UNIVERSITY HOSPITALS COVENTRY AND WARWICKSHIRE NHS TRUST","RN542","Norfolk and Norwich University Hospital"]
[null,null,null,null,null,null,null,null,null,null,null,null,null,null,null,null,null,null,null,null,"QOX","RNZ","SALISBURY NHS FOUNDATION TRUST","RNZ02","Salisbury District Hospital",null,"RWG","UNIVERSITY HOSPITALS DORSET NHS FOUNDATION TRUST",null,"RWG","UNIVERSITY HOSPITALS DORSET NHS FOUNDATION TRUST","RN707","North Cambridgeshire Hospital"]
[null,null,null,null,null,null,null,null,null,null,null,null,null,null,null,null,null,null,null,null,"QPM","RNQ","KETTERING GENERAL HOSPITAL NHS FOUNDATION TRUST","RNQ51","Kettering General Hospital",null,"RWH","UNIVERSITY HOSPITALS OF DERBY AND BURTON NHS FOUNDATION TRUST",null,"RWH","UNIVERSITY HOSPITALS OF DERBY AND BURTON NHS FOUNDATION TRUST","RNA01","North Devon District Hospital"]
[null,null,null,null,null,null,null,null,null,null,null,null,null,null,null,null,null,null,null,null,"QPM","RNS","NORTHAMPTON GENERAL HOSPITAL NHS TRUST","RNS01","Northampton General Hospital (Acute)",null,"RWJ","UNIVERSITY HOSPITALS OF LEICESTER NHS TRUST",null,"RWJ","UNIVERSITY HOSPITALS OF LEICESTER NHS TRUST","RNNXXX","North Middlesex Hospital"]
[null,null,null,null,null,null,null,null,null,null,null,null,null,null,null,null,null,null,null,null,"QR1","RTE","GLOUCESTERSHIRE HOSPITALS NHS FOUNDATION TRUST","RTE03","Gloucestershire Royal Hospital",null,"RWP","UNIVERSITY HOSPITALS OF NORTH MIDLANDS NHS TRUST",null,"RWP","UNIVERSITY HOSPITALS OF NORTH MIDLANDS NHS TRUST","RNQ51","Northampton General Hospital (Acute)"]
[null,null,null,null,null,null,null,null,null,null,null,null,null,null,null,null,null,null,null,null,"QR1","RTE","GLOUCESTERSHIRE HOSPITALS NHS FOUNDATION TRUST","RTE27","Stroud Maternity Hospital",null,"RWW","UNIVERSITY HOSPITALS PLYMOUTH NHS TRUST",null,"RWW","UNIVERSITY HOSPITALS PLYMOUTH NHS TRUST","RNS01","Northwick Park Hospital"]
[null,null,null,null,null,null,null,null,null,null,null,null,null,null,null,null,null,null,null,null,"QRL","RN5","HAMPSHIRE HOSPITALS NHS FOUNDATION TRUST","RN542","Andover War Memorial Hospital",null,"RWY","UNIVERSITY HOSPITALS SUSSEX NHS FOUNDATION TRUST",null,"RWY","UNIVERSITY HOSPITALS SUSSEX NHS FOUNDATION TRUST","RNZ02","Ormskirk and District General Hospital"]
[null,null,null,null,null,null,null,null,null,null,null,null,null,null,null,null,null,null,null,null,"QRL","RN5","HAMPSHIRE HOSPITALS NHS FOUNDATION TRUST","RN506","Basingstoke and North Hampshire Hospital",null,"RX1","WALSALL HEALTHCARE NHS TRUST",null,"RX1","WALSALL HEALTHCARE NHS TRUST","RP5BA","Peterborough City Hospital"]
[null,null,null,null,null,null,null,null,null,null,null,null,null,null,null,null,null,null,null,null,"QRL","RN5","HAMPSHIRE HOSPITALS NHS FOUNDATION TRUST","RN541","Royal Hampshire County Hospital",null,"RXC","WARRINGTON AND HALTON TEACHING HOSPITALS NHS FOUNDATION TRUST",null,"RXC","WARRINGTON AND HALTON TEACHING HOSPITALS NHS FOUNDATION TRUST","RP5DR","Petersfield Community Hospital"]
[null,null,null,null,null,null,null,null,null,null,null,null,null,null,null,null,null,null,null,null,"QRL","R1F","ISLE OF WIGHT NHS TRUST","R1F01","St Mary's Hospital",null,"RXF","WEST HERTFORDSHIRE TEACHING HOSPITALS NHS TRUST",null,"RXF","WEST HERTFORDSHIRE TEACHING HOSPITALS NHS TRUST","RP5XXX","Pilgrim Hospital"]
[null,null,null,null,null,null,null,null,null,null,null,null,null,null,null,null,null,null,null,null,"QRL","RHU","PORTSMOUTH HOSPITALS UNIVERSITY NATIONAL HEALTH SERVICE TRUST","RHU10","Gosport War Memorial Hospital",null,"RXL","WEST SUFFOLK NHS FOUNDATION TRUST",null,"RXL","WEST SUFFOLK NHS FOUNDATION TRUST","RPA02","Pinderfields General Hospital"]
[null,null,null,null,null,null,null,null,null,null,null,null,null,null,null,null,null,null,null,null,"QRL","RHU","PORTSMOUTH HOSPITALS UNIVERSITY NATIONAL HEALTH SERVICE TRUST","RHU04","Petersfield Community Hospital",null,"RXN","WHITTINGTON HEALTH NHS TRUST",null,"RXN","WHITTINGTON HEALTH NHS TRUST","RQ370","Pontefract General Infirmary"]
[null,null,null,null,null,null,null,null,null,null,null,null,null,null,null,null,null,null,null,null,"QRL","RHU","PORTSMOUTH HOSPITALS UNIVERSITY NATIONAL HEALTH SERVICE TRUST","RHU03","Queen Alexandra Hospital",null,"RXQ","WIRRAL UNIVERSITY TEACHING HOSPITAL NHS FOUNDATION TRUST",null,"RXQ","WIRRAL UNIVERSITY TEACHING HOSPITAL NHS FOUNDATION TRUST","RQM01","Poole Hospital"]
[null,null,null,null,null,null,null,null,null,null,null,null,null,null,null,null,null,null,null,null,"QRL","RHU","PORTSMOUTH HOSPITALS UNIVERSITY NATIONAL HEALTH SERVICE TRUST","RHU02","St Mary's Hospital",null,"RXR","WORCESTERSHIRE ACUTE HOSPITALS NHS TRUST",null,"RXR","WORCESTERSHIRE ACUTE HOSPITALS NHS TRUST","RQM91","Princess Anne Hospital"]
[null,null,null,null,null,null,null,null,null,null,null,null,null,null,null,null,null,null,null,null,"QRL","RHM","UNIVERSITY HOSPITAL SOUTHAMPTON NHS FOUNDATION TRUST","RHM12","Princess Anne Hospital",null,"RXW","WRIGHTINGTON, WIGAN AND LEIGH NHS FOUNDATION TRUST",null,"RXW","WRIGHTINGTON, WIGAN AND LEIGH NHS FOUNDATION TRUST","RQXM1","Princess Royal University Hospital"]
[null,null,null,null,null,null,null,null,null,null,null,null,null,null,null,null,null,null,null,null,"QRV","RQM","CHELSEA AND WESTMINSTER HOSPITAL NHS FOUNDATION TRUST","RQM01","Chelsea and Westminster Hospital",null,"RYJ","WYE VALLEY NHS TRUST",null,"RYJ","WYE VALLEY NHS TRUST","RR7EN","Queen Alexandra Hospital"]
[null,null,null,null,null,null,null,null,null,null,null,null,null,null,null,null,null,null,null,null,"QRV","RQM","CHELSEA AND WESTMINSTER HOSPITAL NHS FOUNDATION TRUST","RQM91","West Middlesex University Hospital",null,"RYR","YEOVIL DISTRICT HOSPITAL NHS FOUNDATION TRUST",null,"RYR","YEOVIL DISTRICT HOSPITAL NHS FOUNDATION TRUST","RR813","Queen Charlotte's Hospital"]
[null,null,null,null,null,null,null,null,null,null,null,null,null,null,null,null,null,null,null,null,"QRV","RYJ","IMPERIAL COLLEGE HEALTHCARE NHS TRUST","RYJ04","Queen Charlotte's Hospital",null,null,null,null,null,null,"RR8XXX","Queen Elizabeth Hospital"]
[null,null,null,null,null,null,null,null,null,null,null,null,null,null,null,null,null,null,null,null,"QRV","RYJ","IMPERIAL COLLEGE HEALTHCARE NHS TRUST","RYJ01","St Mary's Hospital (HQ)",null,null,null,null,null,null,"RRF02","Queen Elizabeth Hospital"]
[null,null,null,null,null,null,null,null,null,null,null,null,null,null,null,null,null,null,null,null,"QRV","R1K","LONDON NORTH WEST UNIVERSITY HEALTHCARE NHS TRUST","R1K02","Central Middlesex Hospital",null,null,null,null,null,null,"RRK97","Queens Hospital, Burton Upon Trent"]
[null,null,null,null,null,null,null,null,null,null,null,null,null,null,null,null,null,null,null,null,"QRV","R1K","LONDON NORTH WEST UNIVERSITY HEALTHCARE NHS TRUST","R1K01","Northwick Park Hospital",null,null,null,null,null,null,"RRK98","Rosie Hospital"]
[null,null,null,null,null,null,null,null,null,null,null,null,null,null,null,null,null,null,null,null,"QRV","RAS","THE HILLINGDON HOSPITALS NHS FOUNDATION TRUST","RAS01","Hillingdon Hospital",null,null,null,null,null,null,"RRK99","Rotherham District General Hospital"]
[null,null,null,null,null,null,null,null,null,null,null,null,null,null,null,null,null,null,null,null,"QSL","RH5","SOMERSET NHS FOUNDATION TRUST","RH5K6","Bridgwater Hospital",null,null,null,null,null,null,"RTD02","Royal Albert Edward Infirmary"]
[null,null,null,null,null,null,null,null,null,null,null,null,null,null,null,null,null,null,null,null,"QSL","RH5","SOMERSET NHS FOUNDATION TRUST","RH5A8","MUSGROVE PARK HOSPITAL",null,null,null,null,null,null,"RTE03","Royal Berkshire Hospital"]
[null,null,null,null,null,null,null,null,null,null,null,null,null,null,null,null,null,null,null,null,"QSL","RH5","SOMERSET NHS FOUNDATION TRUST","RH5XXX","WiC MIU - RH5XXX",null,null,null,null,null,null,"RTE27","Royal Blackburn Hospital"]
[null,null,null,null,null,null,null,null,null,null,null,null,null,null,null,null,null,null,null,null,"QSL","RA4","YEOVIL DISTRICT HOSPITAL NHS FOUNDATION TRUST","RA430","Yeovil District Hospital",null,null,null,null,null,null,"RTG02","Royal Bolton Hospital"]
[null,null,null,null,null,null,null,null,null,null,null,null,null,null,null,null,null,null,null,null,"QT1","RX1","NOTTINGHAM UNIVERSITY HOSPITALS NHS TRUST","RX1XXX","Non-hospital site",null,null,null,null,null,null,"RTH05","Royal Bournemouth Hospital"]
[null,null,null,null,null,null,null,null,null,null,null,null,null,null,null,null,null,null,null,null,"QT1","RK5","SHERWOOD FOREST HOSPITALS NHS FOUNDATION TRUST","RK5BC","King's Mill Hospital",null,null,null,null,null,null,"RTH08","Royal Cornwall Hospital (Treliske)"]
[null,null,null,null,null,null,null,null,null,null,null,null,null,null,null,null,null,null,null,null,"QT6","REF","ROYAL CORNWALL HOSPITALS NHS TRUST","REFXXX","Non-hospital site",null,null,null,null,null,null,"RTK02","Royal Devon and Exeter Hospital (Wonford)"]
[null,null,null,null,null,null,null,null,null,null,null,null,null,null,null,null,null,null,null,null,"QT6","REF","ROYAL CORNWALL HOSPITALS NHS TRUST","REF12","Royal Cornwall Hospital (Treliske)",null,null,null,null,null,null,"RTP04","Royal Free Hospital"]
[null,null,null,null,null,null,null,null,null,null,null,null,null,null,null,null,null,null,null,null,"QU9","RXQ","BUCKINGHAMSHIRE HEALTHCARE NHS TRUST","RXQ02","Stoke Mandeville Hospital",null,null,null,null,null,null,"RTR45","Royal Hallamshire Hospital"]
[null,null,null,null,null,null,null,null,null,null,null,null,null,null,null,null,null,null,null,null,"QU9","RXQ","BUCKINGHAMSHIRE HEALTHCARE NHS TRUST","RXQ50","Wycombe Hospital",null,null,null,null,null,null,"RTRAT","Royal Hampshire County Hospital"]
[null,null,null,null,null,null,null,null,null,null,null,null,null,null,null,null,null,null,null,null,"QU9","RTH","OXFORD UNIVERSITY HOSPITALS NHS FOUNDATION TRUST","RTH05","Horton General Hospital",null,null,null,null,null,null,"RVJ01","Royal Preston Hospital"]
[null,null,null,null,null,null,null,null,null,null,null,null,null,null,null,null,null,null,null,null,"QU9","RTH","OXFORD UNIVERSITY HOSPITALS NHS FOUNDATION TRUST","RTH08","John Radcliffe Hospital",null,null,null,null,null,null,"RVR05","Royal Stoke University Hospital"]
[null,null,null,null,null,null,null,null,null,null,null,null,null,null,null,null,null,null,null,null,"QU9","RHW","ROYAL BERKSHIRE NHS FOUNDATION TRUST","RHW01","Royal Berkshire Hospital",null,null,null,null,null,null,"RVR50","Royal Surrey County Hospital"]
[null,null,null,null,null,null,null,null,null,null,null,null,null,null,null,null,null,null,null,null,"QUA","RNA","THE DUDLEY GROUP NHS FOUNDATION TRUST","RNA01","Russells Hall Hospital",null,null,null,null,null,null,"RVRXXX","Russells Hall Hospital"]
[null,null,null,null,null,null,null,null,null,null,null,null,null,null,null,null,null,null,null,null,"QUA","RL4","THE ROYAL WOLVERHAMPTON NHS TRUST","RL403","New Cross Hospital",null,null,null,null,null,null,"RVV01","Salisbury District Hospital"]
[null,null,null,null,null,null,null,null,null,null,null,null,null,null,null,null,null,null,null,null,"QUA","RBK","WALSALL HEALTHCARE NHS TRUST","RBK02","Manor Hospital",null,null,null,null,null,null,"RVWAE","Scunthorpe General Hospital"]
[null,null,null,null,null,null,null,null,null,null,null,null,null,null,null,null,null,null,null,null,"QUE","RGT","CAMBRIDGE UNIVERSITY HOSPITALS NHS FOUNDATION TRUST","RGT32","Rosie Hospital",null,null,null,null,null,null,"RVWXXX","Solihull Hospital"]
[null,null,null,null,null,null,null,null,null,null,null,null,null,null,null,null,null,null,null,null,"QUE","RGN","NORTH WEST ANGLIA NHS FOUNDATION TRUST","RGN90","Hinchingbrooke Hospital",null,null,null,null,null,null,"RVY02","South Tyneside District Hospital"]
[null,null,null,null,null,null,null,null,null,null,null,null,null,null,null,null,null,null,null,null,"QUE","RGN","NORTH WEST ANGLIA NHS FOUNDATION TRUST","RGN80","Peterborough City Hospital",null,null,null,null,null,null,"RWA01","Southmead Hospital"]
[null,null,null,null,null,null,null,null,null,null,null,null,null,null,null,null,null,null,null,null,"QUY","RVJ","NORTH BRISTOL NHS TRUST","RVJ01","Southmead Hospital",null,null,null,null,null,null,"RWDDA","St George's Hospital (Tooting)"]
[null,null,null,null,null,null,null,null,null,null,null,null,null,null,null,null,null,null,null,null,"QUY","RA7","UNIVERSITY HOSPITALS BRISTOL AND WESTON NHS FOUNDATION TRUST","RA707","St Michael's Hospital",null,null,null,null,null,null,"RWDLA","St Helier Hospital"]
[null,null,null,null,null,null,null,null,null,null,null,null,null,null,null,null,null,null,null,null,"QVV","RBD","DORSET COUNTY HOSPITAL NHS FOUNDATION TRUST","RBD01","Dorset County Hospital",null,null,null,null,null,null,"RWDLP","St James's University Hospital"]
[null,null,null,null,null,null,null,null,null,null,null,null,null,null,null,null,null,null,null,null,"QVV","R0D","UNIVERSITY HOSPITALS DORSET NHS FOUNDATION TRUST","R0D01","Poole Hospital",null,null,null,null,null,null,"RWEAA","St Mary's Hospital"]
[null,null,null,null,null,null,null,null,null,null,null,null,null,null,null,null,null,null,null,null,"QVV","R0D","UNIVERSITY HOSPITALS DORSET NHS FOUNDATION TRUST","R0D02","Royal Bournemouth Hospital",null,null,null,null,null,null,"RWEAK","St Mary's Hospital"]
[null,null,null,null,null,null,null,null,null,null,null,null,null,null,null,null,null,null,null,null,"QWE","RJ6","CROYDON HEALTH SERVICES NHS TRUST","RJ611","Croydon University Hospital",null,null,null,null,null,null,"RWEXXX","St Mary's Hospital"]
[null,null,null,null,null,null,null,null,null,null,null,null,null,null,null,null,null,null,null,null,"QWE","RVR","EPSOM AND ST HELIER UNIVERSITY HOSPITALS NHS TRUST","RVR50","Epsom Hospital",null,null,null,null,null,null,"RWF03","St Mary's Hospital (HQ)"]
[null,null,null,null,null,null,null,null,null,null,null,null,null,null,null,null,null,null,null,null,"QWE","RVR","EPSOM AND ST HELIER UNIVERSITY HOSPITALS NHS TRUST","RVRXXX","Non-hospital site",null,null,null,null,null,null,"RWFTW","St Michael's Hospital"]
[null,null,null,null,null,null,null,null,null,null,null,null,null,null,null,null,null,null,null,null,"QWE","RVR","EPSOM AND ST HELIER UNIVERSITY HOSPITALS NHS TRUST","RVR05","St Helier Hospital",null,null,null,null,null,null,"RWFXXX","St Thomas' Hospital"]
[null,null,null,null,null,null,null,null,null,null,null,null,null,null,null,null,null,null,null,null,"QWE","RAX","KINGSTON HOSPITAL NHS FOUNDATION TRUST","RAX01","Kingston Hospital",null,null,null,null,null,null,"RWG02","Stepping Hill Hospital"]
[null,null,null,null,null,null,null,null,null,null,null,null,null,null,null,null,null,null,null,null,"QWE","RJ7","ST GEORGE'S UNIVERSITY HOSPITALS NHS FOUNDATION TRUST","RJ701","St George's Hospital (Tooting)",null,null,null,null,null,null,"RWH01","Stoke Mandeville Hospital"]
[null,null,null,null,null,null,null,null,null,null,null,null,null,null,null,null,null,null,null,null,"QWO","RCF","AIREDALE NHS FOUNDATION TRUST","RCF22","Airedale General Hospital",null,null,null,null,null,null,"RWHXXX","Stroud Maternity Hospital"]
[null,null,null,null,null,null,null,null,null,null,null,null,null,null,null,null,null,null,null,null,"QWO","RAE","BRADFORD TEACHING HOSPITALS NHS FOUNDATION TRUST","RAE01","Bradford Royal Infirmary",null,null,null,null,null,null,"RWJ09","Sunderland Royal Hospital"]
[null,null,null,null,null,null,null,null,null,null,null,null,null,null,null,null,null,null,null,null,"QWO","RAE","BRADFORD TEACHING HOSPITALS NHS FOUNDATION TRUST","RAEXXX","Non-hospital site",null,null,null,null,null,null,"RWP01","Tameside General Hospital"]
[null,null,null,null,null,null,null,null,null,null,null,null,null,null,null,null,null,null,null,null,"QWO","RWY","CALDERDALE AND HUDDERSFIELD NHS FOUNDATION TRUST","RWY02","Calderdale Royal Hospital",null,null,null,null,null,null,"RWP31","The Great Western Hospital"]
[null,null,null,null,null,null,null,null,null,null,null,null,null,null,null,null,null,null,null,null,"QWO","RWY","CALDERDALE AND HUDDERSFIELD NHS FOUNDATION TRUST","RWY01","Huddersfield Royal Infirmary",null,null,null,null,null,null,"RWP50","The James Cook University Hospital"]
[null,null,null,null,null,null,null,null,null,null,null,null,null,null,null,null,null,null,null,null,"QWO","RWY","CALDERDALE AND HUDDERSFIELD NHS FOUNDATION TRUST","RWYXXX","Non-hospital site",null,null,null,null,null,null,"RWWWH","The Queen Elizabeth Hospital"]
[null,null,null,null,null,null,null,null,null,null,null,null,null,null,null,null,null,null,null,null,"QWO","RR8","LEEDS TEACHING HOSPITALS NHS TRUST","RR8XXX","Non-hospital site",null,null,null,null,null,null,"RWY01","The Royal London Hospital"]
[null,null,null,null,null,null,null,null,null,null,null,null,null,null,null,null,null,null,null,null,"QWO","RR8","LEEDS TEACHING HOSPITALS NHS TRUST","RR813","St James's University Hospital",null,null,null,null,null,null,"RWY02","The Royal Victoria Infirmary"]
[null,null,null,null,null,null,null,null,null,null,null,null,null,null,null,null,null,null,null,null,"QWO","RXF","MID YORKSHIRE HOSPITALS NHS TRUST","RXF10","Dewsbury and District Hospital",null,null,null,null,null,null,"RWYXXX","The Tunbridge Wells Hospital"]
[null,null,null,null,null,null,null,null,null,null,null,null,null,null,null,null,null,null,null,null,"QWO","RXF","MID YORKSHIRE HOSPITALS NHS TRUST","RXF05","Pinderfields General Hospital",null,null,null,null,null,null,"RX1XXX","The Whittington Hospital"]
[null,null,null,null,null,null,null,null,null,null,null,null,null,null,null,null,null,null,null,null,"QWO","RXF","MID YORKSHIRE HOSPITALS NHS TRUST","RXF03","Pontefract General Infirmary",null,null,null,null,null,null,"RXC01","Torbay Hospital"]
[null,null,null,null,null,null,null,null,null,null,null,null,null,null,null,null,null,null,null,null,"QWU","RLT","GEORGE ELIOT HOSPITAL NHS TRUST","RLT01","George Eliot Hospital - Acute Services",null,null,null,null,null,null,"RXC02","Trowbridge Community Hospital"]
[null,null,null,null,null,null,null,null,null,null,null,null,null,null,null,null,null,null,null,null,"QWU","RJC","SOUTH WARWICKSHIRE NHS FOUNDATION TRUST","RJCXXX","Non-hospital site",null,null,null,null,null,null,"RXCXXX","University Hospital Lewisham"]
[null,null,null,null,null,null,null,null,null,null,null,null,null,null,null,null,null,null,null,null,"QWU","RKB","UNIVERSITY HOSPITALS COVENTRY AND WARWICKSHIRE NHS TRUST","RKB02","Coventry and Warwickshire Hospital",null,null,null,null,null,null,"RXF03","University Hospital Of North Tees"]
[null,null,null,null,null,null,null,null,null,null,null,null,null,null,null,null,null,null,null,null,"QWU","RKB","UNIVERSITY HOSPITALS COVENTRY AND WARWICKSHIRE NHS TRUST","RKB03","Hospital Of St Cross",null,null,null,null,null,null,"RXF05","Warrington Hospital"]
[null,null,null,null,null,null,null,null,null,null,null,null,null,null,null,null,null,null,null,null,"QWU","RKB","UNIVERSITY HOSPITALS COVENTRY AND WARWICKSHIRE NHS TRUST","RKBXXX","Non-hospital site",null,null,null,null,null,null,"RXF10","Watford General Hospital"]
[null,null,null,null,null,null,null,null,null,null,null,null,null,null,null,null,null,null,null,null,"QXU","RTK","ASHFORD AND ST PETER'S HOSPITALS NHS FOUNDATION TRUST","RTK02","Ashford Hospital",null,null,null,null,null,null,"RXL01","West Middlesex University Hospital"]
[null,null,null,null,null,null,null,null,null,null,null,null,null,null,null,null,null,null,null,null,"QXU","RA2","ROYAL SURREY COUNTY HOSPITAL NHS FOUNDATION TRUST","RA201","Royal Surrey County Hospital",null,null,null,null,null,null,"RXN01","West Suffolk Hospital"]
[null,null,null,null,null,null,null,null,null,null,null,null,null,null,null,null,null,null,null,null,"QXU","RTP","SURREY AND SUSSEX HEALTHCARE NHS TRUST","RTP04","East Surrey Hospital",null,null,null,null,null,null,"RXN02","Whipps Cross University Hospital"]
[null,null,null,null,null,null,null,null,null,null,null,null,null,null,null,null,null,null,null,null,"QYG","RJN","EAST CHESHIRE NHS TRUST","RJN71","Macclesfield District General Hospital",null,null,null,null,null,null,"RXQ02","Whiston Hospital"]
[null,null,null,null,null,null,null,null,null,null,null,null,null,null,null,null,null,null,null,null,"QYG","REP","LIVERPOOL WOMEN'S NHS FOUNDATION TRUST","REP01","Liverpool Womens Hospital",null,null,null,null,null,null,"RXQ50","WiC MIU - RH5XXX"]
[null,null,null,null,null,null,null,null,null,null,null,null,null,null,null,null,null,null,null,null,"QYG","RBT","MID CHESHIRE HOSPITALS NHS FOUNDATION TRUST","RBT20","Leighton Hospital",null,null,null,null,null,null,"RXR20","William Harvey Hospital (Ashford)"]
[null,null,null,null,null,null,null,null,null,null,null,null,null,null,null,null,null,null,null,null,"QYG","RVY","SOUTHPORT AND ORMSKIRK HOSPITAL NHS TRUST","RVY02","Ormskirk and District General Hospital",null,null,null,null,null,null,"RXWXXX","Worcestershire Royal Hospital"]
[null,null,null,null,null,null,null,null,null,null,null,null,null,null,null,null,null,null,null,null,"QYG","RBN","ST HELENS AND KNOWSLEY TEACHING HOSPITALS NHS TRUST","RBN01","Whiston Hospital",null,null,null,null,null,null,"RYJ01","Worthing Hospital"]
[null,null,null,null,null,null,null,null,null,null,null,null,null,null,null,null,null,null,null,null,"QYG","RWW","WARRINGTON AND HALTON TEACHING HOSPITALS NHS FOUNDATION TRUST","RWWWH","Warrington Hospital",null,null,null,null,null,null,"RYJ04","Wycombe Hospital"]
[null,null,null,null,null,null,null,null,null,null,null,null,null,null,null,null,null,null,null,null,"QYG","RBL","WIRRAL UNIVERSITY TEACHING HOSPITAL NHS FOUNDATION TRUST","RBL14","Arrowe Park Hospital",null,null,null,null,null,null,"RYR18","Yeovil District Hospital"]

{"sheet":"BSQ2","index":14,"n_rows":213,"n_cols":33,"rows_kept":213,"cut":false,"hidden":true,"merged":[]}
[null,"Sort","Region (LO)","Region (LO)","Trusts","Trusts","Sites","Sites",null,"Sort ranges:","Sort range…","Sort range…","Sort range…","Reference Region List:","Code…","Name…","Linked Region List:","Code…","Name…","Reference Lists:","Code…","Code…","Name…","Code…","Name…","Trusts Linked Lists:","Code…","Name…","Site Linked Lists:","Code…","Name…","Code…","Name…"]
["Region (LO)",1,1,1,"-","-","-","-",null,null,"STP Code","STP Code","STP Code",null,"QE1","LANCASHIRE AND SOUTH CUMBRIA ICS",null,"QE1","LANCASHIRE AND SOUTH CUMBRIA ICS",null,"QE1","RXL","BLACKPOOL TEACHING HOSPITALS NHS FOUNDATION TRUST","RXL01","Blackpool Victoria Hospital",null,"R0A","AIREDALE NHS FOUNDATION TRUST",null,"R0A","AIREDALE NHS FOUNDATION TRUST","E0A3H","Airedale General Hospital"]
["Trusts",1,1,1,1,1,"-","-",null,null,"STP Name","Trust Code","Trust Code",null,"QF7","SOUTH YORKSHIRE AND BASSETLAW STP",null,"QF7","SOUTH YORKSHIRE AND BASSETLAW STP",null,"QE1","RXR","EAST LANCASHIRE HOSPITALS NHS TRUST","RXR20","Royal Blackburn Hospital",null,"R0B","ASHFORD AND ST PETER'S HOSPITALS NHS FOUNDATION TRUST",null,"R0B","ASHFORD AND ST PETER'S HOSPITALS NHS FOUNDATION TRUST","N6J7V","Alnwick Infirmary"]
["Sites",1,1,1,1,1,1,1,null,null,"Total Responses","Trust Name","Trust Name",null,"QGH","HEREFORDSHIRE AND WORCESTERSHIRE STP",null,"QGH","HEREFORDSHIRE AND WORCESTERSHIRE STP",null,"QE1","RXN","LANCASHIRE TEACHING HOSPITALS NHS FOUNDATION TRUST","RXN01","Chorley and South Ribble Hospital",null,"R0D","BARKING, HAVERING AND REDBRIDGE UNIVERSITY HOSPITALS NHS TRUST",null,"R0D","BARKING, HAVERING AND REDBRIDGE UNIVERSITY HOSPITALS NHS TRUST","R0A05","Andover War Memorial Hospital"]
[null,null,null,null,null,null,null,null,null,null,"Total Eligible","Total Responses","Site Code",null,"QH8","MID AND SOUTH ESSEX STP",null,"QH8","MID AND SOUTH ESSEX STP",null,"QE1","RXN","LANCASHIRE TEACHING HOSPITALS NHS FOUNDATION TRUST","RXN02","Royal Preston Hospital",null,"R1F","BARNSLEY HOSPITAL NHS FOUNDATION TRUST",null,"R1F","BARNSLEY HOSPITAL NHS FOUNDATION TRUST","R0B01","Arrowe Park Hospital"]
[null,null,null,null,null,null,null,null,null,null,"Percentage Positive","Total Eligible","Site Name",null,"QHG","BEDFORDSHIRE, LUTON AND MILTON KEYNES STP",null,"QHG","BEDFORDSHIRE, LUTON AND MILTON KEYNES STP",null,"QE1","RTX","UNIVERSITY HOSPITALS OF MORECAMBE BAY NHS FOUNDATION TRUST","RTXBU","Furness General Hospital",null,"R1H","BARTS HEALTH NHS TRUST",null,"R1H","BARTS HEALTH NHS TRUST","R0B0Q","Barnet Hospital"]
[null,null,null,null,null,null,null,null,null,null,"Percentage Negative","Percentage Positive","Total Responses",null,"QHL","BIRMINGHAM AND SOLIHULL STP",null,"QHL","BIRMINGHAM AND SOLIHULL STP",null,"QE1","RTX","UNIVERSITY HOSPITALS OF MORECAMBE BAY NHS FOUNDATION TRUST","RTX02","Royal Lancaster Infirmary",null,"R1K","BEDFORDSHIRE HOSPITALS NHS FOUNDATION TRUST",null,"R1K","BEDFORDSHIRE HOSPITALS NHS FOUNDATION TRUST","R0D01","Barnsley Hospital NHS Foundation Trust HQ"]
[null,null,null,null,null,null,null,null,null,null,"Very Good","Percentage Negative","Total Eligible",null,"QHM","CUMBRIA AND NORTH EAST STP",null,"QHM","CUMBRIA AND NORTH EAST STP",null,"QE1","RTX","UNIVERSITY HOSPITALS OF MORECAMBE BAY NHS FOUNDATION TRUST","RTXBW","Westmorland General Hospital",null,"RA2","BIRMINGHAM WOMEN'S AND CHILDREN'S NHS FOUNDATION TRUST",null,"RA2","BIRMINGHAM WOMEN'S AND CHILDREN'S NHS FOUNDATION TRUST","R0D02","BASILDON HOSPITAL"]
[null,null,null,null,null,null,null,null,null,null,"Good","Very Good","Response Rate",null,"QJ2","JOINED UP CARE DERBYSHIRE STP",null,"QJ2","JOINED UP CARE DERBYSHIRE STP",null,"QF7","RFF","BARNSLEY HOSPITAL NHS FOUNDATION TRUST","RFFAA","Barnsley Hospital NHS Foundation Trust HQ",null,"RA4","BLACKPOOL TEACHING HOSPITALS NHS FOUNDATION TRUST",null,"RA4","BLACKPOOL TEACHING HOSPITALS NHS FOUNDATION TRUST","R1F01","Basingstoke and North Hampshire Hospital"]
[null,null,null,null,null,null,null,null,null,null,"Neither Good nor Poor","Good","Percentage Positive",null,"QJG","SUFFOLK AND NORTH EAST ESSEX ICS",null,"QJG","SUFFOLK AND NORTH EAST ESSEX ICS",null,"QF7","RP5","DONCASTER AND BASSETLAW TEACHING HOSPITALS NHS FOUNDATION TRUST","RP5BA","Bassetlaw Hospital",null,"RA7","BOLTON NHS FOUNDATION TRUST",null,"RA7","BOLTON NHS FOUNDATION TRUST","R1H12","Bassetlaw Hospital"]
[null,null,null,null,null,null,null,null,null,null,"Poor","Neither Good nor Poor","Percentage Negative",null,"QJK","DEVON STP",null,"QJK","DEVON STP",null,"QF7","RP5","DONCASTER AND BASSETLAW TEACHING HOSPITALS NHS FOUNDATION TRUST","RP5DR","Doncaster Royal Infirmary",null,"RA9","BRADFORD TEACHING HOSPITALS NHS FOUNDATION TRUST",null,"RA9","BRADFORD TEACHING HOSPITALS NHS FOUNDATION TRUST","R1HKH","BEDFORD HOSPITAL SOUTH WING"]
[null,null,null,null,null,null,null,null,null,null,"Very Poor","Poor","Very Good",null,"QJM","LINCOLNSHIRE STP",null,"QJM","LINCOLNSHIRE STP",null,"QF7","RP5","DONCASTER AND BASSETLAW TEACHING HOSPITALS NHS FOUNDATION TRUST","RP5XXX","Non-hospital site",null,"RAE","BUCKINGHAMSHIRE HEALTHCARE NHS TRUST",null,"RAE","BUCKINGHAMSHIRE HEALTHCARE NHS TRUST","R1HNH","Berwick Infirmary"]
[null,null,null,null,null,null,null,null,null,null,"Don't Know","Very Poor","Good",null,"QK1","LEICESTER, LEICESTERSHIRE AND RUTLAND STP",null,"QK1","LEICESTER, LEICESTERSHIRE AND RUTLAND STP",null,"QF7","RHQ","SHEFFIELD TEACHING HOSPITALS NHS FOUNDATION TRUST","RHQHH","Royal Hallamshire Hospital",null,"RAJ","CALDERDALE AND HUDDERSFIELD NHS FOUNDATION TRUST",null,"RAJ","CALDERDALE AND HUDDERSFIELD NHS FOUNDATION TRUST","R1K01","Birmingham Women's Hospital"]
[null,null,null,null,null,null,null,null,null,null,null,"Don't Know","Neither Good nor Poor",null,"QKK","OUR HEALTHIER SOUTH EAST LONDON STP",null,"QKK","OUR HEALTHIER SOUTH EAST LONDON STP",null,"QF7","RFR","THE ROTHERHAM NHS FOUNDATION TRUST","RFRPA","Rotherham District General Hospital",null,"RAL","CAMBRIDGE UNIVERSITY HOSPITALS NHS FOUNDATION TRUST",null,"RAL","CAMBRIDGE UNIVERSITY HOSPITALS NHS FOUNDATION TRUST","RA201","Blackpool Victoria Hospital"]
[null,null,null,null,null,null,null,null,null,null,null,"Mode SMS","Poor",null,"QKS","KENT AND MEDWAY STP",null,"QKS","KENT AND MEDWAY STP",null,"QGH","RWP","WORCESTERSHIRE ACUTE HOSPITALS NHS TRUST","RWP50","Worcestershire Royal Hospital",null,"RAP","CHELSEA AND WESTMINSTER HOSPITAL NHS FOUNDATION TRUST",null,"RAP","CHELSEA AND WESTMINSTER HOSPITAL NHS FOUNDATION TRUST","RA430","Bradford Royal Infirmary"]
[null,null,null,null,null,null,null,null,null,null,null,"Mode Electronic Discharge","Very Poor",null,"QM7","HERTFORDSHIRE AND WEST ESSEX STP",null,"QM7","HERTFORDSHIRE AND WEST ESSEX STP",null,"QGH","RLQ","WYE VALLEY NHS TRUST","RLQ01","Hereford County Hospital",null,"RAS","CROYDON HEALTH SERVICES NHS TRUST",null,"RAS","CROYDON HEALTH SERVICES NHS TRUST","RA707","Bridgnorth Hospital (Maternity)"]
[null,null,null,null,null,null,null,null,null,null,null,"Mode Electronic Home","Don't Know",null,"QMF","EAST LONDON HEALTH & CARE PARTNERSHIP (STP)",null,"QMF","EAST LONDON HEALTH & CARE PARTNERSHIP (STP)",null,"QH8","RAJ","MID AND SOUTH ESSEX NHS FOUNDATION TRUST","RAJ12","BASILDON HOSPITAL",null,"RAX","DARTFORD AND GRAVESHAM NHS TRUST",null,"RAX","DARTFORD AND GRAVESHAM NHS TRUST","RA901","Bridgwater Hospital"]
[null,null,null,null,null,null,null,null,null,null,null,"Mode Paper Discharge",null,null,"QMJ","NORTH LONDON PARTNERS IN HEALTH & CARE (STP)",null,"QMJ","NORTH LONDON PARTNERS IN HEALTH & CARE (STP)",null,"QH8","RAJ","MID AND SOUTH ESSEX NHS FOUNDATION TRUST","RAJ32","MID ESSEX HOSPITAL",null,"RBD","DONCASTER AND BASSETLAW TEACHING HOSPITALS NHS FOUNDATION TRUST",null,"RBD","DONCASTER AND BASSETLAW TEACHING HOSPITALS NHS FOUNDATION TRUST","RA957","Calderdale Royal Hospital"]
[null,null,null,null,null,null,null,null,null,null,null,"Mode Paper Home",null,null,"QMM","NORFOLK AND WAVENEY HEALTH & CARE PARTNERSHIP (STP)",null,"QMM","NORFOLK AND WAVENEY HEALTH & CARE PARTNERSHIP (STP)",null,"QHG","RC9","BEDFORDSHIRE HOSPITALS NHS FOUNDATION TRUST","RC979","BEDFORD HOSPITAL SOUTH WING",null,"RBK","DORSET COUNTY HOSPITAL NHS FOUNDATION TRUST",null,"RBK","DORSET COUNTY HOSPITAL NHS FOUNDATION TRUST","RA9XXX","Chelsea and Westminster Hospital"]
[null,null,null,null,null,null,null,null,null,null,null,"Mode Telephone",null,null,"QNC","STAFFORDSHIRE & STOKE ON TRENT STP",null,"QNC","STAFFORDSHIRE & STOKE ON TRENT STP",null,"QHG","RC9","BEDFORDSHIRE HOSPITALS NHS FOUNDATION TRUST","RC971","Luton and Dunstable Hospital",null,"RBL","EAST AND NORTH HERTFORDSHIRE NHS TRUST",null,"RBL","EAST AND NORTH HERTFORDSHIRE NHS TRUST","RAE01","Chippenham Community Hospital"]
[null,null,null,null,null,null,null,null,null,null,null,"Mode Online",null,null,"QNQ","FRIMLEY HEALTH & CARE (STP)",null,"QNQ","FRIMLEY HEALTH & CARE (STP)",null,"QHG","RD8","MILTON KEYNES UNIVERSITY HOSPITAL NHS FOUNDATION TRUST","RD816","Milton Keynes Hospital",null,"RBN","EAST CHESHIRE NHS TRUST",null,"RBN","EAST CHESHIRE NHS TRUST","RAJ12","Chorley and South Ribble Hospital"]
[null,null,null,null,null,null,null,null,null,null,null,"Mode Other",null,null,"QNX","SUSSEX HEALTH AND CARE PARTNERSHIP",null,"QNX","SUSSEX HEALTH AND CARE PARTNERSHIP",null,"QHL","RQ3","BIRMINGHAM WOMEN'S AND CHILDREN'S NHS FOUNDATION TRUST","RQ370","Birmingham Women's Hospital",null,"RBT","EAST LANCASHIRE HOSPITALS NHS TRUST",null,"RBT","EAST LANCASHIRE HOSPITALS NHS TRUST","RAJ32","Clacton and District Hospital"]
[null,null,null,null,null,null,null,null,null,null,null,null,null,null,"QOC","SHROPSHIRE AND TELFORD AND WREKIN STP",null,"QOC","SHROPSHIRE AND TELFORD AND WREKIN STP",null,"QHL","RRK","UNIVERSITY HOSPITALS BIRMINGHAM NHS FOUNDATION TRUST","RRK98","Good Hope Hospital",null,"RBZ","EAST SUFFOLK AND NORTH ESSEX NHS FOUNDATION TRUST",null,"RBZ","EAST SUFFOLK AND NORTH ESSEX NHS FOUNDATION TRUST","RAL01","Colchester General Hospital"]
[null,null,null,null,null,null,null,null,null,null,null,null,null,null,"QOP","GREATER MANCHESTER HEALTH & SOCIAL CARE PARTNERSHIP",null,"QOP","GREATER MANCHESTER HEALTH & SOCIAL CARE PARTNERSHIP",null,"QHL","RRK","UNIVERSITY HOSPITALS BIRMINGHAM NHS FOUNDATION TRUST","RRK97","Heartlands Hospital",null,"RC9","EAST SUSSEX HEALTHCARE NHS TRUST",null,"RC9","EAST SUSSEX HEALTHCARE NHS TRUST","RAL26","Conquest Hospital"]
[null,null,null,null,null,null,null,null,null,null,null,null,null,null,"QOQ","HUMBER, COAST AND VALE STP",null,"QOQ","HUMBER, COAST AND VALE STP",null,"QHL","RRK","UNIVERSITY HOSPITALS BIRMINGHAM NHS FOUNDATION TRUST","RRK99","Solihull Hospital",null,"RCB","EPSOM AND ST HELIER UNIVERSITY HOSPITALS NHS TRUST",null,"RCB","EPSOM AND ST HELIER UNIVERSITY HOSPITALS NHS TRUST","RAPNM","Cossham Hospital"]
[null,null,null,null,null,null,null,null,null,null,null,null,null,null,"QOX","BATH AND NORTH EAST SOMERSET, SWINDON AND WILTSHIRE STP",null,"QOX","BATH AND NORTH EAST SOMERSET, SWINDON AND WILTSHIRE STP",null,"QHM","RR7","GATESHEAD HEALTH NHS FOUNDATION TRUST","RR7EN","Queen Elizabeth Hospital",null,"RCD","FRIMLEY HEALTH NHS FOUNDATION TRUST",null,"RCD","FRIMLEY HEALTH NHS FOUNDATION TRUST","RAS01","County Hospital"]
[null,null,null,null,null,null,null,null,null,null,null,null,null,null,"QPM","NORTHAMPTONSHIRE STP",null,"QPM","NORTHAMPTONSHIRE STP",null,"QHM","RNN","NORTH CUMBRIA INTEGRATED CARE NHS FOUNDATION TRUST","RNN62","Cumberland Infirmary",null,"RCF","GATESHEAD HEALTH NHS FOUNDATION TRUST",null,"RCF","GATESHEAD HEALTH NHS FOUNDATION TRUST","RASXXX","Crowborough Birthing Centre"]
[null,null,null,null,null,null,null,null,null,null,null,null,null,null,"QR1","GLOUCESTERSHIRE STP",null,"QR1","GLOUCESTERSHIRE STP",null,"QHM","RNN","NORTH CUMBRIA INTEGRATED CARE NHS FOUNDATION TRUST","RNNXXX","Non-hospital site",null,"RCX","GEORGE ELIOT HOSPITAL NHS TRUST",null,"RCX","GEORGE ELIOT HOSPITAL NHS TRUST","RAX01","Croydon University Hospital"]
[null,null,null,null,null,null,null,null,null,null,null,null,null,null,"QRL","HAMPSHIRE AND THE ISLE OF WIGHT STP",null,"QRL","HAMPSHIRE AND THE ISLE OF WIGHT STP",null,"QHM","RNN","NORTH CUMBRIA INTEGRATED CARE NHS FOUNDATION TRUST","RNNBX","West Cumberland Hospital",null,"RD1","GLOUCESTERSHIRE HOSPITALS NHS FOUNDATION TRUST",null,"RD1","GLOUCESTERSHIRE HOSPITALS NHS FOUNDATION TRUST","RBD01","Cumberland Infirmary"]
[null,null,null,null,null,null,null,null,null,null,null,null,null,null,"QRV","NORTH WEST LONDON HEALTH & CARE PARTNERSHIP (STP)",null,"QRV","NORTH WEST LONDON HEALTH & CARE PARTNERSHIP (STP)",null,"QHM","RVW","NORTH TEES AND HARTLEPOOL NHS FOUNDATION TRUST","RVWAE","University Hospital Of North Tees",null,"RD8","GREAT WESTERN HOSPITALS NHS FOUNDATION TRUST",null,"RD8","GREAT WESTERN HOSPITALS NHS FOUNDATION TRUST","RBK02","Darent Valley Hospital"]
[null,null,null,null,null,null,null,null,null,null,null,null,null,null,"QSL","SOMERSET STP",null,"QSL","SOMERSET STP",null,"QHM","RTF","NORTHUMBRIA HEALTHCARE NHS FOUNDATION TRUST","RTFDJ","Alnwick Infirmary",null,"RDE","GUY'S AND ST THOMAS' NHS FOUNDATION TRUST",null,"RDE","GUY'S AND ST THOMAS' NHS FOUNDATION TRUST","RBL14","Derriford Hospital"]
[null,null,null,null,null,null,null,null,null,null,null,null,null,null,"QT1","NOTTINGHAM AND NOTTINGHAMSHIRE HEALTH AND CARE STP",null,"QT1","NOTTINGHAM AND NOTTINGHAMSHIRE HEALTH AND CARE STP",null,"QHM","RTF","NORTHUMBRIA HEALTHCARE NHS FOUNDATION TRUST","RTFDH","Berwick Infirmary",null,"RDU","HAMPSHIRE HOSPITALS NHS FOUNDATION TRUST",null,"RDU","HAMPSHIRE HOSPITALS NHS FOUNDATION TRUST","RBN01","Dewsbury and District Hospital"]
[null,null,null,null,null,null,null,null,null,null,null,null,null,null,"QT6","CORNWALL AND THE ISLES OF SCILLY HEALTH & SOCIAL CARE PARTNERSHIP (STP)",null,"QT6","CORNWALL AND THE ISLES OF SCILLY HEALTH & SOCIAL CARE PARTNERSHIP (STP)",null,"QHM","RTF","NORTHUMBRIA HEALTHCARE NHS FOUNDATION TRUST","RTFDR","Hexham General Hospital",null,"REF","HARROGATE AND DISTRICT NHS FOUNDATION TRUST",null,"REF","HARROGATE AND DISTRICT NHS FOUNDATION TRUST","RBT20","Diana, Princess Of Wales Hospital"]
[null,null,null,null,null,null,null,null,null,null,null,null,null,null,"QU9","BUCKINGHAMSHIRE, OXFORDSHIRE AND BERKSHIRE WEST STP",null,"QU9","BUCKINGHAMSHIRE, OXFORDSHIRE AND BERKSHIRE WEST STP",null,"QHM","RTF","NORTHUMBRIA HEALTHCARE NHS FOUNDATION TRUST","RTFXXX","Non-hospital site",null,"REP","HOMERTON UNIVERSITY HOSPITAL NHS FOUNDATION TRUST",null,"REP","HOMERTON UNIVERSITY HOSPITAL NHS FOUNDATION TRUST","RBZ12","Doncaster Royal Infirmary"]
[null,null,null,null,null,null,null,null,null,null,null,null,null,null,"QUA","THE BLACK COUNTRY AND WEST BIRMINGHAM STP",null,"QUA","THE BLACK COUNTRY AND WEST BIRMINGHAM STP",null,"QHM","RTF","NORTHUMBRIA HEALTHCARE NHS FOUNDATION TRUST","RTF86","The Northumbria",null,"RF4","HULL UNIVERSITY TEACHING HOSPITALS NHS TRUST",null,"RF4","HULL UNIVERSITY TEACHING HOSPITALS NHS TRUST","RC971","Dorset County Hospital"]
[null,null,null,null,null,null,null,null,null,null,null,null,null,null,"QUE","CAMBRIDGESHIRE AND PETERBOROUGH STP",null,"QUE","CAMBRIDGESHIRE AND PETERBOROUGH STP",null,"QHM","RTR","SOUTH TEES HOSPITALS NHS FOUNDATION TRUST","RTR45","Friarage Hospital Site",null,"RFF","IMPERIAL COLLEGE HEALTHCARE NHS TRUST",null,"RFF","IMPERIAL COLLEGE HEALTHCARE NHS TRUST","RC979","East Surrey Hospital"]
[null,null,null,null,null,null,null,null,null,null,null,null,null,null,"QUY","BRISTOL, NORTH SOMERSET AND SOUTH GLOUCESTERSHIRE STP",null,"QUY","BRISTOL, NORTH SOMERSET AND SOUTH GLOUCESTERSHIRE STP",null,"QHM","RTR","SOUTH TEES HOSPITALS NHS FOUNDATION TRUST","RTRAT","The James Cook University Hospital",null,"RFR","ISLE OF WIGHT NHS TRUST",null,"RFR","ISLE OF WIGHT NHS TRUST","RCB55","Eastbourne District General Hospital"]
[null,null,null,null,null,null,null,null,null,null,null,null,null,null,"QVV","DORSET STP",null,"QVV","DORSET STP",null,"QHM","R0B","SOUTH TYNESIDE AND SUNDERLAND NHS FOUNDATION TRUST","R0B0Q","South Tyneside District Hospital",null,"RGN","JAMES PAGET UNIVERSITY HOSPITALS NHS FOUNDATION TRUST",null,"RGN","JAMES PAGET UNIVERSITY HOSPITALS NHS FOUNDATION TRUST","RCBCA","Epsom Hospital"]
[null,null,null,null,null,null,null,null,null,null,null,null,null,null,"QWE","SOUTH WEST LONDON HEALTH & CARE PARTNERSHIP (STP)",null,"QWE","SOUTH WEST LONDON HEALTH & CARE PARTNERSHIP (STP)",null,"QHM","R0B","SOUTH TYNESIDE AND SUNDERLAND NHS FOUNDATION TRUST","R0B01","Sunderland Royal Hospital",null,"RGP","KETTERING GENERAL HOSPITAL NHS FOUNDATION TRUST",null,"RGP","KETTERING GENERAL HOSPITAL NHS FOUNDATION TRUST","RCD01","Friarage Hospital Site"]
[null,null,null,null,null,null,null,null,null,null,null,null,null,null,"QWO","WEST YORKSHIRE AND HARROGATE HEALTH & CARE PARTNERSHIP (STP)",null,"QWO","WEST YORKSHIRE AND HARROGATE HEALTH & CARE PARTNERSHIP (STP)",null,"QHM","RTD","THE NEWCASTLE UPON TYNE HOSPITALS NHS FOUNDATION TRUST","RTD02","The Royal Victoria Infirmary",null,"RGR","KING'S COLLEGE HOSPITAL NHS FOUNDATION TRUST",null,"RGR","KING'S COLLEGE HOSPITAL NHS FOUNDATION TRUST","RCF22","Frimley Park Hospital"]
[null,null,null,null,null,null,null,null,null,null,null,null,null,null,"QWU","COVENTRY AND WARWICKSHIRE STP",null,"QWU","COVENTRY AND WARWICKSHIRE STP",null,"QJ2","RTG","UNIVERSITY HOSPITALS OF DERBY AND BURTON NHS FOUNDATION TRUST","RTG02","Queens Hospital, Burton Upon Trent",null,"RGT","KINGSTON HOSPITAL NHS FOUNDATION TRUST",null,"RGT","KINGSTON HOSPITAL NHS FOUNDATION TRUST","RCX70","Frome Community Hospital"]
[null,null,null,null,null,null,null,null,null,null,null,null,null,null,"QXU","SURREY HEARTLANDS HEALTH & CARE PARTNERSHIP (STP)",null,"QXU","SURREY HEARTLANDS HEALTH & CARE PARTNERSHIP (STP)",null,"QJG","RDE","EAST SUFFOLK AND NORTH ESSEX NHS FOUNDATION TRUST","RDEE2","Clacton and District Hospital",null,"RH5","LANCASHIRE TEACHING HOSPITALS NHS FOUNDATION TRUST",null,"RH5","LANCASHIRE TEACHING HOSPITALS NHS FOUNDATION TRUST","RCXXXX","Furness General Hospital"]
[null,null,null,null,null,null,null,null,null,null,null,null,null,null,"QYG","CHESHIRE AND MERSEYSIDE STP",null,"QYG","CHESHIRE AND MERSEYSIDE STP",null,"QJG","RDE","EAST SUFFOLK AND NORTH ESSEX NHS FOUNDATION TRUST","RDEE4","Colchester General Hospital",null,"RH8","LEEDS TEACHING HOSPITALS NHS TRUST",null,"RH8","LEEDS TEACHING HOSPITALS NHS TRUST","RD102","George Eliot Hospital - Acute Services"]
[null,null,null,null,null,null,null,null,null,null,null,null,null,null,null,null,null,null,null,null,"QJG","RDE","EAST SUFFOLK AND NORTH ESSEX NHS FOUNDATION TRUST","RDE03","Ipswich Hospital",null,"RHM","LEWISHAM AND GREENWICH NHS TRUST",null,"RHM","LEWISHAM AND GREENWICH NHS TRUST","RD121","Gloucestershire Royal Hospital"]
[null,null,null,null,null,null,null,null,null,null,null,null,null,null,null,null,null,null,null,null,"QJG","RDE","EAST SUFFOLK AND NORTH ESSEX NHS FOUNDATION TRUST","RDEXXX","Non-hospital site",null,"RHQ","LIVERPOOL WOMEN'S NHS FOUNDATION TRUST",null,"RHQ","LIVERPOOL WOMEN'S NHS FOUNDATION TRUST","RD129","Good Hope Hospital"]
[null,null,null,null,null,null,null,null,null,null,null,null,null,null,null,null,null,null,null,null,"QJG","RGR","WEST SUFFOLK NHS FOUNDATION TRUST","RGR50","West Suffolk Hospital",null,"RHU","LONDON NORTH WEST UNIVERSITY HEALTHCARE NHS TRUST",null,"RHU","LONDON NORTH WEST UNIVERSITY HEALTHCARE NHS TRUST","RD130","Gosport War Memorial Hospital"]
[null,null,null,null,null,null,null,null,null,null,null,null,null,null,null,null,null,null,null,null,"QJK","RBZ","NORTHERN DEVON HEALTHCARE NHS TRUST","RBZ12","North Devon District Hospital",null,"RHW","MAIDSTONE AND TUNBRIDGE WELLS NHS TRUST",null,"RHW","MAIDSTONE AND TUNBRIDGE WELLS NHS TRUST","RD1XXX","Grantham and District Hospital"]
[null,null,null,null,null,null,null,null,null,null,null,null,null,null,null,null,null,null,null,null,"QJK","RH8","ROYAL DEVON AND EXETER NHS FOUNDATION TRUST","RH8XXX","Non-hospital site",null,"RJ1","MANCHESTER UNIVERSITY NHS FOUNDATION TRUST",null,"RJ1","MANCHESTER UNIVERSITY NHS FOUNDATION TRUST","RD816","Harrogate District Hospital"]
[null,null,null,null,null,null,null,null,null,null,null,null,null,null,null,null,null,null,null,null,"QJK","RH8","ROYAL DEVON AND EXETER NHS FOUNDATION TRUST","RH801","Royal Devon and Exeter Hospital (Wonford)",null,"RJ2","MEDWAY NHS FOUNDATION TRUST",null,"RJ2","MEDWAY NHS FOUNDATION TRUST","RDE03","Heartlands Hospital"]
[null,null,null,null,null,null,null,null,null,null,null,null,null,null,null,null,null,null,null,null,"QJK","RH8","ROYAL DEVON AND EXETER NHS FOUNDATION TRUST","RH853","Tiverton and District Hospital",null,"RJ6","MID AND SOUTH ESSEX NHS FOUNDATION TRUST",null,"RJ6","MID AND SOUTH ESSEX NHS FOUNDATION TRUST","RDEE2","Hereford County Hospital"]
[null,null,null,null,null,null,null,null,null,null,null,null,null,null,null,null,null,null,null,null,"QJK","RA9","TORBAY AND SOUTH DEVON NHS FOUNDATION TRUST","RA957","Newton Abbot Community Hospital",null,"RJ7","MID CHESHIRE HOSPITALS NHS FOUNDATION TRUST",null,"RJ7","MID CHESHIRE HOSPITALS NHS FOUNDATION TRUST","RDEE4","Hexham General Hospital"]
[null,null,null,null,null,null,null,null,null,null,null,null,null,null,null,null,null,null,null,null,"QJK","RA9","TORBAY AND SOUTH DEVON NHS FOUNDATION TRUST","RA9XXX","Non-hospital site",null,"RJC","MID YORKSHIRE HOSPITALS NHS TRUST",null,"RJC","MID YORKSHIRE HOSPITALS NHS TRUST","RDEXXX","Hillingdon Hospital"]
[null,null,null,null,null,null,null,null,null,null,null,null,null,null,null,null,null,null,null,null,"QJK","RA9","TORBAY AND SOUTH DEVON NHS FOUNDATION TRUST","RA901","Torbay Hospital",null,"RJE","MILTON KEYNES UNIVERSITY HOSPITAL NHS FOUNDATION TRUST",null,"RJE","MILTON KEYNES UNIVERSITY HOSPITAL NHS FOUNDATION TRUST","RDU01","Hinchingbrooke Hospital"]
[null,null,null,null,null,null,null,null,null,null,null,null,null,null,null,null,null,null,null,null,"QJK","RK9","UNIVERSITY HOSPITALS PLYMOUTH NHS TRUST","RK950","Derriford Hospital",null,"RJL","NORFOLK AND NORWICH UNIVERSITY HOSPITALS NHS FOUNDATION TRUST",null,"RJL","NORFOLK AND NORWICH UNIVERSITY HOSPITALS NHS FOUNDATION TRUST","RDU50","Homerton University Hospital"]
[null,null,null,null,null,null,null,null,null,null,null,null,null,null,null,null,null,null,null,null,"QJK","RK9","UNIVERSITY HOSPITALS PLYMOUTH NHS TRUST","RK9XXX","Non-hospital site",null,"RJN","NORTH BRISTOL NHS TRUST",null,"RJN","NORTH BRISTOL NHS TRUST","REF12","Horton General Hospital"]
[null,null,null,null,null,null,null,null,null,null,null,null,null,null,null,null,null,null,null,null,"QJM","RWD","UNITED LINCOLNSHIRE HOSPITALS NHS TRUST","RWDLP","Grantham and District Hospital",null,"RJZ","NORTH CUMBRIA INTEGRATED CARE NHS FOUNDATION TRUST",null,"RJZ","NORTH CUMBRIA INTEGRATED CARE NHS FOUNDATION TRUST","REFXXX","Hospital Of St Cross"]
[null,null,null,null,null,null,null,null,null,null,null,null,null,null,null,null,null,null,null,null,"QJM","RWD","UNITED LINCOLNSHIRE HOSPITALS NHS TRUST","RWDDA","Lincoln County Hospital",null,"RK5","NORTH MIDDLESEX UNIVERSITY HOSPITAL NHS TRUST",null,"RK5","NORTH MIDDLESEX UNIVERSITY HOSPITAL NHS TRUST","REP01","Hull Royal Infirmary"]
[null,null,null,null,null,null,null,null,null,null,null,null,null,null,null,null,null,null,null,null,"QJM","RWD","UNITED LINCOLNSHIRE HOSPITALS NHS TRUST","RWDLA","Pilgrim Hospital",null,"RK9","NORTH TEES AND HARTLEPOOL NHS FOUNDATION TRUST",null,"RK9","NORTH TEES AND HARTLEPOOL NHS FOUNDATION TRUST","RF4QH","Ipswich Hospital"]
[null,null,null,null,null,null,null,null,null,null,null,null,null,null,null,null,null,null,null,null,"QK1","RWE","UNIVERSITY HOSPITALS OF LEICESTER NHS TRUST","RWEAK","Leicester General Hospital",null,"RKB","NORTH WEST ANGLIA NHS FOUNDATION TRUST",null,"RKB","NORTH WEST ANGLIA NHS FOUNDATION TRUST","RFFAA","James Paget University Hospital"]
[null,null,null,null,null,null,null,null,null,null,null,null,null,null,null,null,null,null,null,null,"QK1","RWE","UNIVERSITY HOSPITALS OF LEICESTER NHS TRUST","RWEAA","Leicester Royal Infirmary",null,"RKE","NORTHAMPTON GENERAL HOSPITAL NHS TRUST",null,"RKE","NORTHAMPTON GENERAL HOSPITAL NHS TRUST","RFRPA","John Radcliffe Hospital"]
[null,null,null,null,null,null,null,null,null,null,null,null,null,null,null,null,null,null,null,null,"QK1","RWE","UNIVERSITY HOSPITALS OF LEICESTER NHS TRUST","RWEXXX","Non-hospital site",null,"RL4","NORTHERN DEVON HEALTHCARE NHS TRUST",null,"RL4","NORTHERN DEVON HEALTHCARE NHS TRUST","RGN80","Kettering General Hospital"]
[null,null,null,null,null,null,null,null,null,null,null,null,null,null,null,null,null,null,null,null,"QK1","RWE","UNIVERSITY HOSPITALS OF LEICESTER NHS TRUST","RWE10","St Mary's Hospital",null,"RLQ","NORTHERN LINCOLNSHIRE AND GOOLE NHS FOUNDATION TRUST",null,"RLQ","NORTHERN LINCOLNSHIRE AND GOOLE NHS FOUNDATION TRUST","RGN90","King's College Hospital (Denmark Hill)"]
[null,null,null,null,null,null,null,null,null,null,null,null,null,null,null,null,null,null,null,null,"QKK","RJ1","GUY'S AND ST THOMAS' NHS FOUNDATION TRUST","RJ1XXX","Non-hospital site",null,"RLT","NORTHUMBRIA HEALTHCARE NHS FOUNDATION TRUST",null,"RLT","NORTHUMBRIA HEALTHCARE NHS FOUNDATION TRUST","RGP75","King's Mill Hospital"]
[null,null,null,null,null,null,null,null,null,null,null,null,null,null,null,null,null,null,null,null,"QKK","RJ1","GUY'S AND ST THOMAS' NHS FOUNDATION TRUST","RJ122","St Thomas' Hospital",null,"RM1","NOTTINGHAM UNIVERSITY HOSPITALS NHS TRUST",null,"RM1","NOTTINGHAM UNIVERSITY HOSPITALS NHS TRUST","RGR50","Kingston Hospital"]
[null,null,null,null,null,null,null,null,null,null,null,null,null,null,null,null,null,null,null,null,"QKK","RJZ","KING'S COLLEGE HOSPITAL NHS FOUNDATION TRUST","RJZ01","King's College Hospital (Denmark Hill)",null,"RMC","OXFORD UNIVERSITY HOSPITALS NHS FOUNDATION TRUST",null,"RMC","OXFORD UNIVERSITY HOSPITALS NHS FOUNDATION TRUST","RGT32","Leeds General Infirmary"]
[null,null,null,null,null,null,null,null,null,null,null,null,null,null,null,null,null,null,null,null,"QKK","RJZ","KING'S COLLEGE HOSPITAL NHS FOUNDATION TRUST","RJZ30","Princess Royal University Hospital",null,"RMP","PORTSMOUTH HOSPITALS UNIVERSITY NATIONAL HEALTH SERVICE TRUST",null,"RMP","PORTSMOUTH HOSPITALS UNIVERSITY NATIONAL HEALTH SERVICE TRUST","RH5A8","Leicester General Hospital"]
[null,null,null,null,null,null,null,null,null,null,null,null,null,null,null,null,null,null,null,null,"QKK","RJ2","LEWISHAM AND GREENWICH NHS TRUST","RJ231","Queen Elizabeth Hospital",null,"RN3","ROYAL BERKSHIRE NHS FOUNDATION TRUST",null,"RN3","ROYAL BERKSHIRE NHS FOUNDATION TRUST","RH5K6","Leicester Royal Infirmary"]
[null,null,null,null,null,null,null,null,null,null,null,null,null,null,null,null,null,null,null,null,"QKK","RJ2","LEWISHAM AND GREENWICH NHS TRUST","RJ224","University Hospital Lewisham",null,"RN5","ROYAL CORNWALL HOSPITALS NHS TRUST",null,"RN5","ROYAL CORNWALL HOSPITALS NHS TRUST","RH5XXXX","Leighton Hospital"]
[null,null,null,null,null,null,null,null,null,null,null,null,null,null,null,null,null,null,null,null,"QKS","RN7","DARTFORD AND GRAVESHAM NHS TRUST","RN707","Darent Valley Hospital",null,"RN7","ROYAL DEVON AND EXETER NHS FOUNDATION TRUST",null,"RN7","ROYAL DEVON AND EXETER NHS FOUNDATION TRUST","RH801","Lincoln County Hospital"]
[null,null,null,null,null,null,null,null,null,null,null,null,null,null,null,null,null,null,null,null,"QKS","RWF","MAIDSTONE AND TUNBRIDGE WELLS NHS TRUST","RWF08","Crowborough Birthing Centre",null,"RNA","ROYAL FREE LONDON NHS FOUNDATION TRUST",null,"RNA","ROYAL FREE LONDON NHS FOUNDATION TRUST","RH853","Lister Hospital"]
[null,null,null,null,null,null,null,null,null,null,null,null,null,null,null,null,null,null,null,null,"QKS","RWF","MAIDSTONE AND TUNBRIDGE WELLS NHS TRUST","RWF03","Maidstone District General Hospital",null,"RNN","ROYAL SURREY COUNTY HOSPITAL NHS FOUNDATION TRUST",null,"RNN","ROYAL SURREY COUNTY HOSPITAL NHS FOUNDATION TRUST","RH8XXX","Liverpool Womens Hospital"]
[null,null,null,null,null,null,null,null,null,null,null,null,null,null,null,null,null,null,null,null,"QKS","RWF","MAIDSTONE AND TUNBRIDGE WELLS NHS TRUST","RWFXXX","Non-hospital site",null,"RNQ","ROYAL UNITED HOSPITALS BATH NHS FOUNDATION TRUST",null,"RNQ","ROYAL UNITED HOSPITALS BATH NHS FOUNDATION TRUST","RHM12","Ludlow Hospital (Maternity)"]
[null,null,null,null,null,null,null,null,null,null,null,null,null,null,null,null,null,null,null,null,"QKS","RWF","MAIDSTONE AND TUNBRIDGE WELLS NHS TRUST","RWFTW","The Tunbridge Wells Hospital",null,"RNS","SALISBURY NHS FOUNDATION TRUST",null,"RNS","SALISBURY NHS FOUNDATION TRUST","RHQHH","Luton and Dunstable Hospital"]
[null,null,null,null,null,null,null,null,null,null,null,null,null,null,null,null,null,null,null,null,"QKS","RPA","MEDWAY NHS FOUNDATION TRUST","RPA02","Medway Maritime Hospital",null,"RNZ","SHEFFIELD TEACHING HOSPITALS NHS FOUNDATION TRUST",null,"RNZ","SHEFFIELD TEACHING HOSPITALS NHS FOUNDATION TRUST","RHU02","Macclesfield District General Hospital"]
[null,null,null,null,null,null,null,null,null,null,null,null,null,null,null,null,null,null,null,null,"QM7","RWH","EAST AND NORTH HERTFORDSHIRE NHS TRUST","RWH01","Lister Hospital",null,"RP5","SHERWOOD FOREST HOSPITALS NHS FOUNDATION TRUST",null,"RP5","SHERWOOD FOREST HOSPITALS NHS FOUNDATION TRUST","RHU03","Maidstone District General Hospital"]
[null,null,null,null,null,null,null,null,null,null,null,null,null,null,null,null,null,null,null,null,"QM7","RWH","EAST AND NORTH HERTFORDSHIRE NHS TRUST","RWHXXX","Non-hospital site",null,"RPA","SOMERSET NHS FOUNDATION TRUST",null,"RPA","SOMERSET NHS FOUNDATION TRUST","RHU04","Manor Hospital"]
[null,null,null,null,null,null,null,null,null,null,null,null,null,null,null,null,null,null,null,null,"QM7","RQW","THE PRINCESS ALEXANDRA HOSPITAL NHS TRUST","RQWG0","Princess Alexandra Hospital",null,"RQ3","SOUTH TEES HOSPITALS NHS FOUNDATION TRUST",null,"RQ3","SOUTH TEES HOSPITALS NHS FOUNDATION TRUST","RHU10","Medway Maritime Hospital"]
[null,null,null,null,null,null,null,null,null,null,null,null,null,null,null,null,null,null,null,null,"QM7","RWG","WEST HERTFORDSHIRE TEACHING HOSPITALS NHS TRUST","RWG02","Watford General Hospital",null,"RQM","SOUTH TYNESIDE AND SUNDERLAND NHS FOUNDATION TRUST",null,"RQM","SOUTH TYNESIDE AND SUNDERLAND NHS FOUNDATION TRUST","RHW01","MID ESSEX HOSPITAL"]
[null,null,null,null,null,null,null,null,null,null,null,null,null,null,null,null,null,null,null,null,"QMF","RF4","BARKING, HAVERING AND REDBRIDGE UNIVERSITY HOSPITALS NHS TRUST","RF4QH","Queen's Hospital",null,"RQW","SOUTH WARWICKSHIRE NHS FOUNDATION TRUST",null,"RQW","SOUTH WARWICKSHIRE NHS FOUNDATION TRUST","RJ122","Milton Keynes Hospital"]
[null,null,null,null,null,null,null,null,null,null,null,null,null,null,null,null,null,null,null,null,"QMF","R1H","BARTS HEALTH NHS TRUST","R1HNH","Newham General Hospital",null,"RQX","SOUTHPORT AND ORMSKIRK HOSPITAL NHS TRUST",null,"RQX","SOUTHPORT AND ORMSKIRK HOSPITAL NHS TRUST","RJ1XXX","MUSGROVE PARK HOSPITAL"]
[null,null,null,null,null,null,null,null,null,null,null,null,null,null,null,null,null,null,null,null,"QMF","R1H","BARTS HEALTH NHS TRUST","R1H12","The Royal London Hospital",null,"RR7","ST GEORGE'S UNIVERSITY HOSPITALS NHS FOUNDATION TRUST",null,"RR7","ST GEORGE'S UNIVERSITY HOSPITALS NHS FOUNDATION TRUST","RJ224","New Cross Hospital"]
[null,null,null,null,null,null,null,null,null,null,null,null,null,null,null,null,null,null,null,null,"QMF","R1H","BARTS HEALTH NHS TRUST","R1HKH","Whipps Cross University Hospital",null,"RR8","ST HELENS AND KNOWSLEY TEACHING HOSPITALS NHS TRUST",null,"RR8","ST HELENS AND KNOWSLEY TEACHING HOSPITALS NHS TRUST","RJ231","Newham General Hospital"]
[null,null,null,null,null,null,null,null,null,null,null,null,null,null,null,null,null,null,null,null,"QMF","RQX","HOMERTON UNIVERSITY HOSPITAL NHS FOUNDATION TRUST","RQXM1","Homerton University Hospital",null,"RRF","STOCKPORT NHS FOUNDATION TRUST",null,"RRF","STOCKPORT NHS FOUNDATION TRUST","RJ611","Newton Abbot Community Hospital"]
[null,null,null,null,null,null,null,null,null,null,null,null,null,null,null,null,null,null,null,null,"QMJ","RAP","NORTH MIDDLESEX UNIVERSITY HOSPITAL NHS TRUST","RAPNM","North Middlesex Hospital",null,"RRK","SURREY AND SUSSEX HEALTHCARE NHS TRUST",null,"RRK","SURREY AND SUSSEX HEALTHCARE NHS TRUST","RJ701","Non Hospital Site"]
[null,null,null,null,null,null,null,null,null,null,null,null,null,null,null,null,null,null,null,null,"QMJ","RAL","ROYAL FREE LONDON NHS FOUNDATION TRUST","RAL26","Barnet Hospital",null,"RRV","TAMESIDE AND GLOSSOP INTEGRATED CARE NHS FOUNDATION TRUST",null,"RRV","TAMESIDE AND GLOSSOP INTEGRATED CARE NHS FOUNDATION TRUST","RJC02","Non-hospital site"]
[null,null,null,null,null,null,null,null,null,null,null,null,null,null,null,null,null,null,null,null,"QMJ","RAL","ROYAL FREE LONDON NHS FOUNDATION TRUST","RAL01","Royal Free Hospital",null,"RTD","THE DUDLEY GROUP NHS FOUNDATION TRUST",null,"RTD","THE DUDLEY GROUP NHS FOUNDATION TRUST","RJCXXX","Non-hospital site"]
[null,null,null,null,null,null,null,null,null,null,null,null,null,null,null,null,null,null,null,null,"QMJ","RRV","UNIVERSITY COLLEGE LONDON HOSPITALS NHS FOUNDATION TRUST","RRV03","University College Hospital",null,"RTE","THE HILLINGDON HOSPITALS NHS FOUNDATION TRUST",null,"RTE","THE HILLINGDON HOSPITALS NHS FOUNDATION TRUST","RJE01","Non-hospital site"]
[null,null,null,null,null,null,null,null,null,null,null,null,null,null,null,null,null,null,null,null,"QMJ","RKE","WHITTINGTON HEALTH NHS TRUST","RKEXXX","Non-hospital site",null,"RTF","THE NEWCASTLE UPON TYNE HOSPITALS NHS FOUNDATION TRUST",null,"RTF","THE NEWCASTLE UPON TYNE HOSPITALS NHS FOUNDATION TRUST","RJE09","Non-hospital site"]
[null,null,null,null,null,null,null,null,null,null,null,null,null,null,null,null,null,null,null,null,"QMJ","RKE","WHITTINGTON HEALTH NHS TRUST","RKEQ4","The Whittington Hospital",null,"RTG","THE PRINCESS ALEXANDRA HOSPITAL NHS TRUST",null,"RTG","THE PRINCESS ALEXANDRA HOSPITAL NHS TRUST","RJEXXX","Non-hospital site"]
[null,null,null,null,null,null,null,null,null,null,null,null,null,null,null,null,null,null,null,null,"QMM","RGP","JAMES PAGET UNIVERSITY HOSPITALS NHS FOUNDATION TRUST","RGP75","James Paget University Hospital",null,"RTH","THE QUEEN ELIZABETH HOSPITAL, KING'S LYNN, NHS FOUNDATION TRUST",null,"RTH","THE QUEEN ELIZABETH HOSPITAL, KING'S LYNN, NHS FOUNDATION TRUST","RJL30","Non-hospital site"]
[null,null,null,null,null,null,null,null,null,null,null,null,null,null,null,null,null,null,null,null,"QMM","RM1","NORFOLK AND NORWICH UNIVERSITY HOSPITALS NHS FOUNDATION TRUST","RM102","Norfolk and Norwich University Hospital",null,"RTK","THE ROTHERHAM NHS FOUNDATION TRUST",null,"RTK","THE ROTHERHAM NHS FOUNDATION TRUST","RJL32","Non-hospital site"]
[null,null,null,null,null,null,null,null,null,null,null,null,null,null,null,null,null,null,null,null,"QMM","RCX","THE QUEEN ELIZABETH HOSPITAL, KING'S LYNN, NHS FOUNDATION TRUST","RCXXXX","Non-hospital site",null,"RTP","THE ROYAL WOLVERHAMPTON NHS TRUST",null,"RTP","THE ROYAL WOLVERHAMPTON NHS TRUST","RJN71","Non-hospital site"]
[null,null,null,null,null,null,null,null,null,null,null,null,null,null,null,null,null,null,null,null,"QMM","RCX","THE QUEEN ELIZABETH HOSPITAL, KING'S LYNN, NHS FOUNDATION TRUST","RCX70","The Queen Elizabeth Hospital",null,"RTR","THE SHREWSBURY AND TELFORD HOSPITAL NHS TRUST",null,"RTR","THE SHREWSBURY AND TELFORD HOSPITAL NHS TRUST","RJZ01","Non-hospital site"]
[null,null,null,null,null,null,null,null,null,null,null,null,null,null,null,null,null,null,null,null,"QNC","RJE","UNIVERSITY HOSPITALS OF NORTH MIDLANDS NHS TRUST","RJE09","County Hospital",null,"RTX","TORBAY AND SOUTH DEVON NHS FOUNDATION TRUST",null,"RTX","TORBAY AND SOUTH DEVON NHS FOUNDATION TRUST","RJZ30","Non-hospital site"]
[null,null,null,null,null,null,null,null,null,null,null,null,null,null,null,null,null,null,null,null,"QNC","RJE","UNIVERSITY HOSPITALS OF NORTH MIDLANDS NHS TRUST","RJEXXX","Non-hospital site",null,"RVJ","UNITED LINCOLNSHIRE HOSPITALS NHS TRUST",null,"RVJ","UNITED LINCOLNSHIRE HOSPITALS NHS TRUST","RK5BC","Non-hospital site"]
[null,null,null,null,null,null,null,null,null,null,null,null,null,null,null,null,null,null,null,null,"QNC","RJE","UNIVERSITY HOSPITALS OF NORTH MIDLANDS NHS TRUST","RJE01","Royal Stoke University Hospital",null,"RVR","UNIVERSITY COLLEGE LONDON HOSPITALS NHS FOUNDATION TRUST",null,"RVR","UNIVERSITY COLLEGE LONDON HOSPITALS NHS FOUNDATION TRUST","RK5XXX","Non-hospital site"]
[null,null,null,null,null,null,null,null,null,null,null,null,null,null,null,null,null,null,null,null,"QNQ","RDU","FRIMLEY HEALTH NHS FOUNDATION TRUST","RDU01","Frimley Park Hospital",null,"RVW","UNIVERSITY HOSPITAL SOUTHAMPTON NHS FOUNDATION TRUST",null,"RVW","UNIVERSITY HOSPITAL SOUTHAMPTON NHS FOUNDATION TRUST","RK950","Non-hospital site"]
[null,null,null,null,null,null,null,null,null,null,null,null,null,null,null,null,null,null,null,null,"QNQ","RDU","FRIMLEY HEALTH NHS FOUNDATION TRUST","RDU50","Wexham Park Hospital",null,"RVY","UNIVERSITY HOSPITALS BIRMINGHAM NHS FOUNDATION TRUST",null,"RVY","UNIVERSITY HOSPITALS BIRMINGHAM NHS FOUNDATION TRUST","RK9XXX","Non-hospital site"]
[null,null,null,null,null,null,null,null,null,null,null,null,null,null,null,null,null,null,null,null,"QNX","RXC","EAST SUSSEX HEALTHCARE NHS TRUST","RXC01","Conquest Hospital",null,"RWA","UNIVERSITY HOSPITALS BRISTOL AND WESTON NHS FOUNDATION TRUST",null,"RWA","UNIVERSITY HOSPITALS BRISTOL AND WESTON NHS FOUNDATION TRUST","RKB01","Non-hospital site"]
[null,null,null,null,null,null,null,null,null,null,null,null,null,null,null,null,null,null,null,null,"QNX","RXC","EAST SUSSEX HEALTHCARE NHS TRUST","RXC02","Eastbourne District General Hospital",null,"RWD","UNIVERSITY HOSPITALS COVENTRY AND WARWICKSHIRE NHS TRUST",null,"RWD","UNIVERSITY HOSPITALS COVENTRY AND WARWICKSHIRE NHS TRUST","RKB03","Non-hospital site"]
[null,null,null,null,null,null,null,null,null,null,null,null,null,null,null,null,null,null,null,null,"QNX","RXC","EAST SUSSEX HEALTHCARE NHS TRUST","RXCXXX","Non-hospital site",null,"RWE","UNIVERSITY HOSPITALS DORSET NHS FOUNDATION TRUST",null,"RWE","UNIVERSITY HOSPITALS DORSET NHS FOUNDATION TRUST","RKBXXX","Non-hospital site"]
[null,null,null,null,null,null,null,null,null,null,null,null,null,null,null,null,null,null,null,null,"QNX","RYR","UNIVERSITY HOSPITALS SUSSEX NHS FOUNDATION TRUST","RYRXXX","Non-hospital site",null,"RWF","UNIVERSITY HOSPITALS OF DERBY AND BURTON NHS FOUNDATION TRUST",null,"RWF","UNIVERSITY HOSPITALS OF DERBY AND BURTON NHS FOUNDATION TRUST","RKEQ4","Non-hospital site"]
[null,null,null,null,null,null,null,null,null,null,null,null,null,null,null,null,null,null,null,null,"QNX","RYR","UNIVERSITY HOSPITALS SUSSEX NHS FOUNDATION TRUST","N6J7V","Princess Royal Hospital",null,"RWG","UNIVERSITY HOSPITALS OF LEICESTER NHS TRUST",null,"RWG","UNIVERSITY HOSPITALS OF LEICESTER NHS TRUST","RKEXXX","Non-hospital site"]
[null,null,null,null,null,null,null,null,null,null,null,null,null,null,null,null,null,null,null,null,"QNX","RYR","UNIVERSITY HOSPITALS SUSSEX NHS FOUNDATION TRUST","E0A3H","Royal Sussex County Hospital",null,"RWH","UNIVERSITY HOSPITALS OF MORECAMBE BAY NHS FOUNDATION TRUST",null,"RWH","UNIVERSITY HOSPITALS OF MORECAMBE BAY NHS FOUNDATION TRUST","RL403","Non-hospital site"]
[null,null,null,null,null,null,null,null,null,null,null,null,null,null,null,null,null,null,null,null,"QNX","RYR","UNIVERSITY HOSPITALS SUSSEX NHS FOUNDATION TRUST","RYR16","St Richard's Hospital",null,"RWJ","UNIVERSITY HOSPITALS OF NORTH MIDLANDS NHS TRUST",null,"RWJ","UNIVERSITY HOSPITALS OF NORTH MIDLANDS NHS TRUST","RLQ01","Non-hospital site"]
[null,null,null,null,null,null,null,null,null,null,null,null,null,null,null,null,null,null,null,null,"QNX","RYR","UNIVERSITY HOSPITALS SUSSEX NHS FOUNDATION TRUST","RYR18","Worthing Hospital",null,"RWP","UNIVERSITY HOSPITALS PLYMOUTH NHS TRUST",null,"RWP","UNIVERSITY HOSPITALS PLYMOUTH NHS TRUST","RLT01","Non-hospital site"]
[null,null,null,null,null,null,null,null,null,null,null,null,null,null,null,null,null,null,null,null,"QOC","RXW","THE SHREWSBURY AND TELFORD HOSPITAL NHS TRUST","RXWMB","Bridgnorth Hospital (Maternity)",null,"RWW","UNIVERSITY HOSPITALS SUSSEX NHS FOUNDATION TRUST",null,"RWW","UNIVERSITY HOSPITALS SUSSEX NHS FOUNDATION TRUST","RM102","Non-hospital site"]
[null,null,null,null,null,null,null,null,null,null,null,null,null,null,null,null,null,null,null,null,"QOC","RXW","THE SHREWSBURY AND TELFORD HOSPITAL NHS TRUST","RXWML","Ludlow Hospital (Maternity)",null,"RWY","WALSALL HEALTHCARE NHS TRUST",null,"RWY","WALSALL HEALTHCARE NHS TRUST","RMC01","Non-hospital site"]
[null,null,null,null,null,null,null,null,null,null,null,null,null,null,null,null,null,null,null,null,"QOC","RXW","THE SHREWSBURY AND TELFORD HOSPITAL NHS TRUST","RXWXXX","Non-hospital site",null,"RX1","WARRINGTON AND HALTON TEACHING HOSPITALS NHS FOUNDATION TRUST",null,"RX1","WARRINGTON AND HALTON TEACHING HOSPITALS NHS FOUNDATION TRUST","RMP01","Non-hospital site"]
[null,null,null,null,null,null,null,null,null,null,null,null,null,null,null,null,null,null,null,null,"QOC","RXW","THE SHREWSBURY AND TELFORD HOSPITAL NHS TRUST","RXWMJ","Robert Jones & Agnes Hunt Orthopaedic & District Hospital",null,"RXC","WEST HERTFORDSHIRE TEACHING HOSPITALS NHS TRUST",null,"RXC","WEST HERTFORDSHIRE TEACHING HOSPITALS NHS TRUST","RN325","Non-hospital site"]
[null,null,null,null,null,null,null,null,null,null,null,null,null,null,null,null,null,null,null,null,"QOC","RXW","THE SHREWSBURY AND TELFORD HOSPITAL NHS TRUST","RXWAS","Royal Shrewsbury Hospital",null,"RXF","WEST SUFFOLK NHS FOUNDATION TRUST",null,"RXF","WEST SUFFOLK NHS FOUNDATION TRUST","RN3XXX","Non-hospital site"]
[null,null,null,null,null,null,null,null,null,null,null,null,null,null,null,null,null,null,null,null,"QOC","RXW","THE SHREWSBURY AND TELFORD HOSPITAL NHS TRUST","RXWAT","The Princess Royal Hospital",null,"RXL","WHITTINGTON HEALTH NHS TRUST",null,"RXL","WHITTINGTON HEALTH NHS TRUST","RN506","Non-hospital site"]
[null,null,null,null,null,null,null,null,null,null,null,null,null,null,null,null,null,null,null,null,"QOP","RMC","BOLTON NHS FOUNDATION TRUST","RMC01","Royal Bolton Hospital",null,"RXN","WIRRAL UNIVERSITY TEACHING HOSPITAL NHS FOUNDATION TRUST",null,"RXN","WIRRAL UNIVERSITY TEACHING HOSPITAL NHS FOUNDATION TRUST","RN541","Non-hospital site"]
[null,null,null,null,null,null,null,null,null,null,null,null,null,null,null,null,null,null,null,null,"QOP","R0A","MANCHESTER UNIVERSITY NHS FOUNDATION TRUST","R0A05","St Mary's Hospital",null,"RXQ","WORCESTERSHIRE ACUTE HOSPITALS NHS TRUST",null,"RXQ","WORCESTERSHIRE ACUTE HOSPITALS NHS TRUST","RN542","Non-hospital site home/in-transit births"]
[null,null,null,null,null,null,null,null,null,null,null,null,null,null,null,null,null,null,null,null,"QOP","RWJ","STOCKPORT NHS FOUNDATION TRUST","RWJ09","Stepping Hill Hospital",null,"RXR","WRIGHTINGTON, WIGAN AND LEIGH NHS FOUNDATION TRUST",null,"RXR","WRIGHTINGTON, WIGAN AND LEIGH NHS FOUNDATION TRUST","RN707","Norfolk and Norwich University Hospital"]
[null,null,null,null,null,null,null,null,null,null,null,null,null,null,null,null,null,null,null,null,"QOP","RMP","TAMESIDE AND GLOSSOP INTEGRATED CARE NHS FOUNDATION TRUST","RMP01","Tameside General Hospital",null,"RXW","WYE VALLEY NHS TRUST",null,"RXW","WYE VALLEY NHS TRUST","RNA01","North Devon District Hospital"]
[null,null,null,null,null,null,null,null,null,null,null,null,null,null,null,null,null,null,null,null,"QOP","RRF","WRIGHTINGTON, WIGAN AND LEIGH NHS FOUNDATION TRUST","RRF02","Royal Albert Edward Infirmary",null,"RYJ","YEOVIL DISTRICT HOSPITAL NHS FOUNDATION TRUST",null,"RYJ","YEOVIL DISTRICT HOSPITAL NHS FOUNDATION TRUST","RNN62","North Middlesex Hospital"]
[null,null,null,null,null,null,null,null,null,null,null,null,null,null,null,null,null,null,null,null,"QOQ","RCD","HARROGATE AND DISTRICT NHS FOUNDATION TRUST","RCD01","Harrogate District Hospital",null,"RYR","YORK AND SCARBOROUGH TEACHING HOSPITALS NHS FOUNDATION TRUST",null,"RYR","YORK AND SCARBOROUGH TEACHING HOSPITALS NHS FOUNDATION TRUST","RNNBX","Northampton General Hospital (Acute)"]
[null,null,null,null,null,null,null,null,null,null,null,null,null,null,null,null,null,null,null,null,"QOQ","RWA","HULL UNIVERSITY TEACHING HOSPITALS NHS TRUST","RWA01","Hull Royal Infirmary",null,null,null,null,null,null,"RNNXXX","Northwick Park Hospital"]
[null,null,null,null,null,null,null,null,null,null,null,null,null,null,null,null,null,null,null,null,"QOQ","RJL","NORTHERN LINCOLNSHIRE AND GOOLE NHS FOUNDATION TRUST","RJL30","Diana, Princess Of Wales Hospital",null,null,null,null,null,null,"RNQ51","Nottingham University Hospitals NHS Trust - City Campus"]
[null,null,null,null,null,null,null,null,null,null,null,null,null,null,null,null,null,null,null,null,"QOQ","RJL","NORTHERN LINCOLNSHIRE AND GOOLE NHS FOUNDATION TRUST","RJL32","Scunthorpe General Hospital",null,null,null,null,null,null,"RNS01","Nottingham University Hospitals NHS Trust - Queen's Medical Centre Campus"]
[null,null,null,null,null,null,null,null,null,null,null,null,null,null,null,null,null,null,null,null,"QOQ","RCB","YORK AND SCARBOROUGH TEACHING HOSPITALS NHS FOUNDATION TRUST","RCBCA","Scarborough General Hospital",null,null,null,null,null,null,"RNZ02","Ormskirk and District General Hospital"]
[null,null,null,null,null,null,null,null,null,null,null,null,null,null,null,null,null,null,null,null,"QOQ","RCB","YORK AND SCARBOROUGH TEACHING HOSPITALS NHS FOUNDATION TRUST","RCB55","York Hospital",null,null,null,null,null,null,"RNZXXX","Paulton Memorial Hospital"]
[null,null,null,null,null,null,null,null,null,null,null,null,null,null,null,null,null,null,null,null,"QOX","RN3","GREAT WESTERN HOSPITALS NHS FOUNDATION TRUST","RN3XXX","Non-hospital site",null,null,null,null,null,null,"RP5BA","Peterborough City Hospital"]
[null,null,null,null,null,null,null,null,null,null,null,null,null,null,null,null,null,null,null,null,"QOX","RN3","GREAT WESTERN HOSPITALS NHS FOUNDATION TRUST","RN325","The Great Western Hospital",null,null,null,null,null,null,"RP5DR","Petersfield Community Hospital"]
[null,null,null,null,null,null,null,null,null,null,null,null,null,null,null,null,null,null,null,null,"QOX","RD1","ROYAL UNITED HOSPITALS BATH NHS FOUNDATION TRUST","RD102","Chippenham Community Hospital",null,null,null,null,null,null,"RP5XXX","Pilgrim Hospital"]
[null,null,null,null,null,null,null,null,null,null,null,null,null,null,null,null,null,null,null,null,"QOX","RD1","ROYAL UNITED HOSPITALS BATH NHS FOUNDATION TRUST","RD121","Frome Community Hospital",null,null,null,null,null,null,"RPA02","Pinderfields General Hospital"]
[null,null,null,null,null,null,null,null,null,null,null,null,null,null,null,null,null,null,null,null,"QOX","RD1","ROYAL UNITED HOSPITALS BATH NHS FOUNDATION TRUST","RD1XXX","Non Hospital Site",null,null,null,null,null,null,"RQ370","Pontefract General Infirmary"]
[null,null,null,null,null,null,null,null,null,null,null,null,null,null,null,null,null,null,null,null,"QOX","RD1","ROYAL UNITED HOSPITALS BATH NHS FOUNDATION TRUST","RD129","Paulton Memorial Hospital",null,null,null,null,null,null,"RQM01","Poole Hospital"]
[null,null,null,null,null,null,null,null,null,null,null,null,null,null,null,null,null,null,null,null,"QOX","RD1","ROYAL UNITED HOSPITALS BATH NHS FOUNDATION TRUST","RD130","Princess Anne Wing RUH",null,null,null,null,null,null,"RQM91","Princess Alexandra Hospital"]
[null,null,null,null,null,null,null,null,null,null,null,null,null,null,null,null,null,null,null,null,"QOX","RNZ","SALISBURY NHS FOUNDATION TRUST","RNZXXX","Non-hospital site",null,null,null,null,null,null,"RQWG0","Princess Anne Hospital"]
[null,null,null,null,null,null,null,null,null,null,null,null,null,null,null,null,null,null,null,null,"QOX","RNZ","SALISBURY NHS FOUNDATION TRUST","RNZ02","Salisbury District Hospital",null,null,null,null,null,null,"RQXM1","Princess Anne Wing RUH"]
[null,null,null,null,null,null,null,null,null,null,null,null,null,null,null,null,null,null,null,null,"QPM","RNQ","KETTERING GENERAL HOSPITAL NHS FOUNDATION TRUST","RNQ51","Kettering General Hospital",null,null,null,null,null,null,"RR7EN","Princess Royal Hospital"]
[null,null,null,null,null,null,null,null,null,null,null,null,null,null,null,null,null,null,null,null,"QPM","RNS","NORTHAMPTON GENERAL HOSPITAL NHS TRUST","RNS01","Northampton General Hospital (Acute)",null,null,null,null,null,null,"RR801","Princess Royal University Hospital"]
[null,null,null,null,null,null,null,null,null,null,null,null,null,null,null,null,null,null,null,null,"QR1","RTE","GLOUCESTERSHIRE HOSPITALS NHS FOUNDATION TRUST","RTE03","Gloucestershire Royal Hospital",null,null,null,null,null,null,"RR813","Queen Alexandra Hospital"]
[null,null,null,null,null,null,null,null,null,null,null,null,null,null,null,null,null,null,null,null,"QR1","RTE","GLOUCESTERSHIRE HOSPITALS NHS FOUNDATION TRUST","RTE27","Stroud Maternity Hospital",null,null,null,null,null,null,"RR8XXX","Queen Charlotte's Hospital"]
[null,null,null,null,null,null,null,null,null,null,null,null,null,null,null,null,null,null,null,null,"QRL","RN5","HAMPSHIRE HOSPITALS NHS FOUNDATION TRUST","RN542","Andover War Memorial Hospital",null,null,null,null,null,null,"RRF02","Queen Elizabeth Hospital"]
[null,null,null,null,null,null,null,null,null,null,null,null,null,null,null,null,null,null,null,null,"QRL","RN5","HAMPSHIRE HOSPITALS NHS FOUNDATION TRUST","RN506","Basingstoke and North Hampshire Hospital",null,null,null,null,null,null,"RRK97","Queen Elizabeth Hospital"]
[null,null,null,null,null,null,null,null,null,null,null,null,null,null,null,null,null,null,null,null,"QRL","RN5","HAMPSHIRE HOSPITALS NHS FOUNDATION TRUST","RN541","Royal Hampshire County Hospital",null,null,null,null,null,null,"RRK98","Queen's Hospital"]
[null,null,null,null,null,null,null,null,null,null,null,null,null,null,null,null,null,null,null,null,"QRL","R1F","ISLE OF WIGHT NHS TRUST","R1F01","St Mary's Hospital",null,null,null,null,null,null,"RRK99","Queens Hospital, Burton Upon Trent"]
[null,null,null,null,null,null,null,null,null,null,null,null,null,null,null,null,null,null,null,null,"QRL","RHU","PORTSMOUTH HOSPITALS UNIVERSITY NATIONAL HEALTH SERVICE TRUST","RHU10","Gosport War Memorial Hospital",null,null,null,null,null,null,"RRV03","Robert Jones & Agnes Hunt Orthopaedic & District Hospital"]
[null,null,null,null,null,null,null,null,null,null,null,null,null,null,null,null,null,null,null,null,"QRL","RHU","PORTSMOUTH HOSPITALS UNIVERSITY NATIONAL HEALTH SERVICE TRUST","RHU04","Petersfield Community Hospital",null,null,null,null,null,null,"RTD02","Rosie Hospital"]
[null,null,null,null,null,null,null,null,null,null,null,null,null,null,null,null,null,null,null,null,"QRL","RHU","PORTSMOUTH HOSPITALS UNIVERSITY NATIONAL HEALTH SERVICE TRUST","RHU03","Queen Alexandra Hospital",null,null,null,null,null,null,"RTE03","Rotherham District General Hospital"]
[null,null,null,null,null,null,null,null,null,null,null,null,null,null,null,null,null,null,null,null,"QRL","RHU","PORTSMOUTH HOSPITALS UNIVERSITY NATIONAL HEALTH SERVICE TRUST","RHU02","St Mary's Hospital",null,null,null,null,null,null,"RTE27","Royal Albert Edward Infirmary"]
[null,null,null,null,null,null,null,null,null,null,null,null,null,null,null,null,null,null,null,null,"QRL","RHM","UNIVERSITY HOSPITAL SOUTHAMPTON NHS FOUNDATION TRUST","RHM12","Princess Anne Hospital",null,null,null,null,null,null,"RTF86","Royal Berkshire Hospital"]
[null,null,null,null,null,null,null,null,null,null,null,null,null,null,null,null,null,null,null,null,"QRV","RQM","CHELSEA AND WESTMINSTER HOSPITAL NHS FOUNDATION TRUST","RQM01","Chelsea and Westminster Hospital",null,null,null,null,null,null,"RTFDH","Royal Blackburn Hospital"]
[null,null,null,null,null,null,null,null,null,null,null,null,null,null,null,null,null,null,null,null,"QRV","RQM","CHELSEA AND WESTMINSTER HOSPITAL NHS FOUNDATION TRUST","RQM91","West Middlesex University Hospital",null,null,null,null,null,null,"RTFDJ","Royal Bolton Hospital"]
[null,null,null,null,null,null,null,null,null,null,null,null,null,null,null,null,null,null,null,null,"QRV","RYJ","IMPERIAL COLLEGE HEALTHCARE NHS TRUST","RYJ04","Queen Charlotte's Hospital",null,null,null,null,null,null,"RTFDR","Royal Bournemouth Hospital"]
[null,null,null,null,null,null,null,null,null,null,null,null,null,null,null,null,null,null,null,null,"QRV","RYJ","IMPERIAL COLLEGE HEALTHCARE NHS TRUST","RYJ01","St Mary's Hospital (HQ)",null,null,null,null,null,null,"RTFXXX","Royal Cornwall Hospital (Treliske)"]
[null,null,null,null,null,null,null,null,null,null,null,null,null,null,null,null,null,null,null,null,"QRV","R1K","LONDON NORTH WEST UNIVERSITY HEALTHCARE NHS TRUST","R1K01","Northwick Park Hospital",null,null,null,null,null,null,"RTG02","Royal Devon and Exeter Hospital (Wonford)"]
[null,null,null,null,null,null,null,null,null,null,null,null,null,null,null,null,null,null,null,null,"QRV","RAS","THE HILLINGDON HOSPITALS NHS FOUNDATION TRUST","RAS01","Hillingdon Hospital",null,null,null,null,null,null,"RTH05","Royal Free Hospital"]
[null,null,null,null,null,null,null,null,null,null,null,null,null,null,null,null,null,null,null,null,"QRV","RAS","THE HILLINGDON HOSPITALS NHS FOUNDATION TRUST","RASXXX","Non-hospital site",null,null,null,null,null,null,"RTH08","Royal Hallamshire Hospital"]
[null,null,null,null,null,null,null,null,null,null,null,null,null,null,null,null,null,null,null,null,"QSL","RH5","SOMERSET NHS FOUNDATION TRUST","RH5K6","Bridgwater Hospital",null,null,null,null,null,null,"RTH16","Royal Hampshire County Hospital"]
[null,null,null,null,null,null,null,null,null,null,null,null,null,null,null,null,null,null,null,null,"QSL","RH5","SOMERSET NHS FOUNDATION TRUST","RH5A8","MUSGROVE PARK HOSPITAL",null,null,null,null,null,null,"RTK01","Royal Lancaster Infirmary"]
[null,null,null,null,null,null,null,null,null,null,null,null,null,null,null,null,null,null,null,null,"QSL","RH5","SOMERSET NHS FOUNDATION TRUST","RH5XXXX","Non-hospital site home/in-transit births",null,null,null,null,null,null,"RTP04","Royal Preston Hospital"]
[null,null,null,null,null,null,null,null,null,null,null,null,null,null,null,null,null,null,null,null,"QSL","RA4","YEOVIL DISTRICT HOSPITAL NHS FOUNDATION TRUST","RA430","Yeovil District Hospital",null,null,null,null,null,null,"RTR45","Royal Shrewsbury Hospital"]
[null,null,null,null,null,null,null,null,null,null,null,null,null,null,null,null,null,null,null,null,"QT1","RX1","NOTTINGHAM UNIVERSITY HOSPITALS NHS TRUST","RX1XXX","Non-hospital site",null,null,null,null,null,null,"RTRAT","Royal Stoke University Hospital"]
[null,null,null,null,null,null,null,null,null,null,null,null,null,null,null,null,null,null,null,null,"QT1","RX1","NOTTINGHAM UNIVERSITY HOSPITALS NHS TRUST","RX1CC","Nottingham University Hospitals NHS Trust - City Campus",null,null,null,null,null,null,"RTX02","Royal Surrey County Hospital"]
[null,null,null,null,null,null,null,null,null,null,null,null,null,null,null,null,null,null,null,null,"QT1","RX1","NOTTINGHAM UNIVERSITY HOSPITALS NHS TRUST","RX1RA","Nottingham University Hospitals NHS Trust - Queen's Medical Centre Campus",null,null,null,null,null,null,"RTXBU","Royal Sussex County Hospital"]
[null,null,null,null,null,null,null,null,null,null,null,null,null,null,null,null,null,null,null,null,"QT1","RK5","SHERWOOD FOREST HOSPITALS NHS FOUNDATION TRUST","RK5BC","King's Mill Hospital",null,null,null,null,null,null,"RTXBW","Russells Hall Hospital"]
[null,null,null,null,null,null,null,null,null,null,null,null,null,null,null,null,null,null,null,null,"QT1","RK5","SHERWOOD FOREST HOSPITALS NHS FOUNDATION TRUST","RK5XXX","Non-hospital site",null,null,null,null,null,null,"RVJ01","Salisbury District Hospital"]
[null,null,null,null,null,null,null,null,null,null,null,null,null,null,null,null,null,null,null,null,"QT6","REF","ROYAL CORNWALL HOSPITALS NHS TRUST","REFXXX","Non-hospital site",null,null,null,null,null,null,"RVJ21","Scarborough General Hospital"]
[null,null,null,null,null,null,null,null,null,null,null,null,null,null,null,null,null,null,null,null,"QT6","REF","ROYAL CORNWALL HOSPITALS NHS TRUST","REF12","Royal Cornwall Hospital (Treliske)",null,null,null,null,null,null,"RVJXXX","Scunthorpe General Hospital"]
[null,null,null,null,null,null,null,null,null,null,null,null,null,null,null,null,null,null,null,null,"QU9","RXQ","BUCKINGHAMSHIRE HEALTHCARE NHS TRUST","RXQ02","Stoke Mandeville Hospital",null,null,null,null,null,null,"RVR05","Solihull Hospital"]
[null,null,null,null,null,null,null,null,null,null,null,null,null,null,null,null,null,null,null,null,"QU9","RTH","OXFORD UNIVERSITY HOSPITALS NHS FOUNDATION TRUST","RTH05","Horton General Hospital",null,null,null,null,null,null,"RVR50","South Tyneside District Hospital"]
[null,null,null,null,null,null,null,null,null,null,null,null,null,null,null,null,null,null,null,null,"QU9","RTH","OXFORD UNIVERSITY HOSPITALS NHS FOUNDATION TRUST","RTH08","John Radcliffe Hospital",null,null,null,null,null,null,"RVRXXX","Southmead Hospital"]
[null,null,null,null,null,null,null,null,null,null,null,null,null,null,null,null,null,null,null,null,"QU9","RTH","OXFORD UNIVERSITY HOSPITALS NHS FOUNDATION TRUST","RTH16","Wallingford Community Hospital",null,null,null,null,null,null,"RVWAE","St George's Hospital (Tooting)"]
[null,null,null,null,null,null,null,null,null,null,null,null,null,null,null,null,null,null,null,null,"QU9","RHW","ROYAL BERKSHIRE NHS FOUNDATION TRUST","RHW01","Royal Berkshire Hospital",null,null,null,null,null,null,"RVY02","St Helier Hospital"]
[null,null,null,null,null,null,null,null,null,null,null,null,null,null,null,null,null,null,null,null,"QUA","RNA","THE DUDLEY GROUP NHS FOUNDATION TRUST","RNA01","Russells Hall Hospital",null,null,null,null,null,null,"RWA01","St James's University Hospital"]
[null,null,null,null,null,null,null,null,null,null,null,null,null,null,null,null,null,null,null,null,"QUA","RL4","THE ROYAL WOLVERHAMPTON NHS TRUST","RL403","New Cross Hospital",null,null,null,null,null,null,"RWDDA","St Mary's Hospital"]
[null,null,null,null,null,null,null,null,null,null,null,null,null,null,null,null,null,null,null,null,"QUA","RBK","WALSALL HEALTHCARE NHS TRUST","RBK02","Manor Hospital",null,null,null,null,null,null,"RWDLA","St Mary's Hospital"]
[null,null,null,null,null,null,null,null,null,null,null,null,null,null,null,null,null,null,null,null,"QUE","RGT","CAMBRIDGE UNIVERSITY HOSPITALS NHS FOUNDATION TRUST","RGT32","Rosie Hospital",null,null,null,null,null,null,"RWDLP","St Mary's Hospital"]
[null,null,null,null,null,null,null,null,null,null,null,null,null,null,null,null,null,null,null,null,"QUE","RGN","NORTH WEST ANGLIA NHS FOUNDATION TRUST","RGN90","Hinchingbrooke Hospital",null,null,null,null,null,null,"RWE10","St Mary's Hospital"]
[null,null,null,null,null,null,null,null,null,null,null,null,null,null,null,null,null,null,null,null,"QUE","RGN","NORTH WEST ANGLIA NHS FOUNDATION TRUST","RGN80","Peterborough City Hospital",null,null,null,null,null,null,"RWEAA","St Mary's Hospital (HQ)"]
[null,null,null,null,null,null,null,null,null,null,null,null,null,null,null,null,null,null,null,null,"QUY","RVJ","NORTH BRISTOL NHS TRUST","RVJ21","Cossham Hospital",null,null,null,null,null,null,"RWEAK","St Michael's Hospital"]
[null,null,null,null,null,null,null,null,null,null,null,null,null,null,null,null,null,null,null,null,"QUY","RVJ","NORTH BRISTOL NHS TRUST","RVJXXX","Non-hospital site",null,null,null,null,null,null,"RWEXXX","St Peter's Hospital"]
[null,null,null,null,null,null,null,null,null,null,null,null,null,null,null,null,null,null,null,null,"QUY","RVJ","NORTH BRISTOL NHS TRUST","RVJ01","Southmead Hospital",null,null,null,null,null,null,"RWF03","St Richard's Hospital"]
[null,null,null,null,null,null,null,null,null,null,null,null,null,null,null,null,null,null,null,null,"QUY","RA7","UNIVERSITY HOSPITALS BRISTOL AND WESTON NHS FOUNDATION TRUST","RA707","St Michael's Hospital",null,null,null,null,null,null,"RWF08","St Thomas' Hospital"]
[null,null,null,null,null,null,null,null,null,null,null,null,null,null,null,null,null,null,null,null,"QVV","RBD","DORSET COUNTY HOSPITAL NHS FOUNDATION TRUST","RBD01","Dorset County Hospital",null,null,null,null,null,null,"RWFTW","Stepping Hill Hospital"]
[null,null,null,null,null,null,null,null,null,null,null,null,null,null,null,null,null,null,null,null,"QVV","R0D","UNIVERSITY HOSPITALS DORSET NHS FOUNDATION TRUST","R0D01","Poole Hospital",null,null,null,null,null,null,"RWFXXX","Stoke Mandeville Hospital"]
[null,null,null,null,null,null,null,null,null,null,null,null,null,null,null,null,null,null,null,null,"QVV","R0D","UNIVERSITY HOSPITALS DORSET NHS FOUNDATION TRUST","R0D02","Royal Bournemouth Hospital",null,null,null,null,null,null,"RWG02","Stroud Maternity Hospital"]
[null,null,null,null,null,null,null,null,null,null,null,null,null,null,null,null,null,null,null,null,"QWE","RJ6","CROYDON HEALTH SERVICES NHS TRUST","RJ611","Croydon University Hospital",null,null,null,null,null,null,"RWH01","Sunderland Royal Hospital"]
[null,null,null,null,null,null,null,null,null,null,null,null,null,null,null,null,null,null,null,null,"QWE","RVR","EPSOM AND ST HELIER UNIVERSITY HOSPITALS NHS TRUST","RVR50","Epsom Hospital",null,null,null,null,null,null,"RWHXXX","Tameside General Hospital"]
[null,null,null,null,null,null,null,null,null,null,null,null,null,null,null,null,null,null,null,null,"QWE","RVR","EPSOM AND ST HELIER UNIVERSITY HOSPITALS NHS TRUST","RVRXXX","Non-hospital site",null,null,null,null,null,null,"RWJ09","The Great Western Hospital"]
[null,null,null,null,null,null,null,null,null,null,null,null,null,null,null,null,null,null,null,null,"QWE","RVR","EPSOM AND ST HELIER UNIVERSITY HOSPITALS NHS TRUST","RVR05","St Helier Hospital",null,null,null,null,null,null,"RWP50","The James Cook University Hospital"]
[null,null,null,null,null,null,null,null,null,null,null,null,null,null,null,null,null,null,null,null,"QWE","RAX","KINGSTON HOSPITAL NHS FOUNDATION TRUST","RAX01","Kingston Hospital",null,null,null,null,null,null,"RWWWH","The Northumbria"]
[null,null,null,null,null,null,null,null,null,null,null,null,null,null,null,null,null,null,null,null,"QWE","RJ7","ST GEORGE'S UNIVERSITY HOSPITALS NHS FOUNDATION TRUST","RJ701","St George's Hospital (Tooting)",null,null,null,null,null,null,"RWY02","The Princess Royal Hospital"]
[null,null,null,null,null,null,null,null,null,null,null,null,null,null,null,null,null,null,null,null,"QWO","RCF","AIREDALE NHS FOUNDATION TRUST","RCF22","Airedale General Hospital",null,null,null,null,null,null,"RX1CC","The Queen Elizabeth Hospital"]
[null,null,null,null,null,null,null,null,null,null,null,null,null,null,null,null,null,null,null,null,"QWO","RAE","BRADFORD TEACHING HOSPITALS NHS FOUNDATION TRUST","RAE01","Bradford Royal Infirmary",null,null,null,null,null,null,"RX1RA","The Royal London Hospital"]
[null,null,null,null,null,null,null,null,null,null,null,null,null,null,null,null,null,null,null,null,"QWO","RWY","CALDERDALE AND HUDDERSFIELD NHS FOUNDATION TRUST","RWY02","Calderdale Royal Hospital",null,null,null,null,null,null,"RX1XXX","The Royal Victoria Infirmary"]
[null,null,null,null,null,null,null,null,null,null,null,null,null,null,null,null,null,null,null,null,"QWO","RR8","LEEDS TEACHING HOSPITALS NHS TRUST","RR801","Leeds General Infirmary",null,null,null,null,null,null,"RXC01","The Tunbridge Wells Hospital"]
[null,null,null,null,null,null,null,null,null,null,null,null,null,null,null,null,null,null,null,null,"QWO","RR8","LEEDS TEACHING HOSPITALS NHS TRUST","RR8XXX","Non-hospital site",null,null,null,null,null,null,"RXC02","The Whittington Hospital"]
[null,null,null,null,null,null,null,null,null,null,null,null,null,null,null,null,null,null,null,null,"QWO","RR8","LEEDS TEACHING HOSPITALS NHS TRUST","RR813","St James's University Hospital",null,null,null,null,null,null,"RXCXXX","Tiverton and District Hospital"]
[null,null,null,null,null,null,null,null,null,null,null,null,null,null,null,null,null,null,null,null,"QWO","RXF","MID YORKSHIRE HOSPITALS NHS TRUST","RXF10","Dewsbury and District Hospital",null,null,null,null,null,null,"RXF03","Torbay Hospital"]
[null,null,null,null,null,null,null,null,null,null,null,null,null,null,null,null,null,null,null,null,"QWO","RXF","MID YORKSHIRE HOSPITALS NHS TRUST","RXFXXX","Non-hospital site",null,null,null,null,null,null,"RXF05","University College Hospital"]
[null,null,null,null,null,null,null,null,null,null,null,null,null,null,null,null,null,null,null,null,"QWO","RXF","MID YORKSHIRE HOSPITALS NHS TRUST","RXF05","Pinderfields General Hospital",null,null,null,null,null,null,"RXF10","University Hospital (Coventry)"]
[null,null,null,null,null,null,null,null,null,null,null,null,null,null,null,null,null,null,null,null,"QWO","RXF","MID YORKSHIRE HOSPITALS NHS TRUST","RXF03","Pontefract General Infirmary",null,null,null,null,null,null,"RXFXXX","University Hospital Lewisham"]
[null,null,null,null,null,null,null,null,null,null,null,null,null,null,null,null,null,null,null,null,"QWU","RLT","GEORGE ELIOT HOSPITAL NHS TRUST","RLT01","George Eliot Hospital - Acute Services",null,null,null,null,null,null,"RXL01","University Hospital Of North Tees"]
[null,null,null,null,null,null,null,null,null,null,null,null,null,null,null,null,null,null,null,null,"QWU","RJC","SOUTH WARWICKSHIRE NHS FOUNDATION TRUST","RJCXXX","Non-hospital site",null,null,null,null,null,null,"RXN01","Wallingford Community Hospital"]
[null,null,null,null,null,null,null,null,null,null,null,null,null,null,null,null,null,null,null,null,"QWU","RJC","SOUTH WARWICKSHIRE NHS FOUNDATION TRUST","RJC02","Warwick Hospital",null,null,null,null,null,null,"RXN02","Warrington Hospital"]
[null,null,null,null,null,null,null,null,null,null,null,null,null,null,null,null,null,null,null,null,"QWU","RKB","UNIVERSITY HOSPITALS COVENTRY AND WARWICKSHIRE NHS TRUST","RKB03","Hospital Of St Cross",null,null,null,null,null,null,"RXQ02","Warwick Hospital"]
[null,null,null,null,null,null,null,null,null,null,null,null,null,null,null,null,null,null,null,null,"QWU","RKB","UNIVERSITY HOSPITALS COVENTRY AND WARWICKSHIRE NHS TRUST","RKBXXX","Non-hospital site",null,null,null,null,null,null,"RXR20","Watford General Hospital"]
[null,null,null,null,null,null,null,null,null,null,null,null,null,null,null,null,null,null,null,null,"QWU","RKB","UNIVERSITY HOSPITALS COVENTRY AND WARWICKSHIRE NHS TRUST","RKB01","University Hospital (Coventry)",null,null,null,null,null,null,"RXWAS","West Cumberland Hospital"]
[null,null,null,null,null,null,null,null,null,null,null,null,null,null,null,null,null,null,null,null,"QXU","RTK","ASHFORD AND ST PETER'S HOSPITALS NHS FOUNDATION TRUST","RTK01","St Peter's Hospital",null,null,null,null,null,null,"RXWAT","West Middlesex University Hospital"]
[null,null,null,null,null,null,null,null,null,null,null,null,null,null,null,null,null,null,null,null,"QXU","RA2","ROYAL SURREY COUNTY HOSPITAL NHS FOUNDATION TRUST","RA201","Royal Surrey County Hospital",null,null,null,null,null,null,"RXWMB","West Suffolk Hospital"]
[null,null,null,null,null,null,null,null,null,null,null,null,null,null,null,null,null,null,null,null,"QXU","RTP","SURREY AND SUSSEX HEALTHCARE NHS TRUST","RTP04","East Surrey Hospital",null,null,null,null,null,null,"RXWMJ","Westmorland General Hospital"]
[null,null,null,null,null,null,null,null,null,null,null,null,null,null,null,null,null,null,null,null,"QYG","RJN","EAST CHESHIRE NHS TRUST","RJN71","Macclesfield District General Hospital",null,null,null,null,null,null,"RXWML","Wexham Park Hospital"]
[null,null,null,null,null,null,null,null,null,null,null,null,null,null,null,null,null,null,null,null,"QYG","REP","LIVERPOOL WOMEN'S NHS FOUNDATION TRUST","REP01","Liverpool Womens Hospital",null,null,null,null,null,null,"RXWXXX","Whipps Cross University Hospital"]
[null,null,null,null,null,null,null,null,null,null,null,null,null,null,null,null,null,null,null,null,"QYG","RBT","MID CHESHIRE HOSPITALS NHS FOUNDATION TRUST","RBT20","Leighton Hospital",null,null,null,null,null,null,"RYJ01","Whiston Hospital"]
[null,null,null,null,null,null,null,null,null,null,null,null,null,null,null,null,null,null,null,null,"QYG","RVY","SOUTHPORT AND ORMSKIRK HOSPITAL NHS TRUST","RVY02","Ormskirk and District General Hospital",null,null,null,null,null,null,"RYJ04","Worcestershire Royal Hospital"]
[null,null,null,null,null,null,null,null,null,null,null,null,null,null,null,null,null,null,null,null,"QYG","RBN","ST HELENS AND KNOWSLEY TEACHING HOSPITALS NHS TRUST","RBN01","Whiston Hospital",null,null,null,null,null,null,"RYR16","Worthing Hospital"]
[null,null,null,null,null,null,null,null,null,null,null,null,null,null,null,null,null,null,null,null,"QYG","RWW","WARRINGTON AND HALTON TEACHING HOSPITALS NHS FOUNDATION TRUST","RWWWH","Warrington Hospital",null,null,null,null,null,null,"RYR18","Yeovil District Hospital"]
[null,null,null,null,null,null,null,null,null,null,null,null,null,null,null,null,null,null,null,null,"QYG","RBL","WIRRAL UNIVERSITY TEACHING HOSPITAL NHS FOUNDATION TRUST","RBL14","Arrowe Park Hospital",null,null,null,null,null,null,"RYRXXX","York Hospital"]

{"sheet":"BSQ3","index":15,"n_rows":170,"n_cols":33,"rows_kept":170,"cut":false,"hidden":true,"merged":[]}
[null,"Sort","Region (LO)","Region (LO)","Trusts","Trusts","Sites","Sites",null,"Sort ranges:","Sort range…","Sort range…","Sort range…","Reference Region List:","Code…","Name…","Linked Region List:","Code…","Name…","Reference Lists:","Code…","Code…","Name…","Code…","Name…","Trusts Linked Lists:","Code…","Name…","Site Linked Lists:","Code…","Name…","Code…","Name…"]
["Region (LO)",1,1,1,"-","-","-","-",null,null,"STP Code","STP Code","STP Code",null,"QE1","LANCASHIRE AND SOUTH CUMBRIA ICS",null,"QE1","LANCASHIRE AND SOUTH CUMBRIA ICS",null,"QE1","RXL","BLACKPOOL TEACHING HOSPITALS NHS FOUNDATION TRUST","RXL01","Blackpool Victoria Hospital",null,"R0A","ASHFORD AND ST PETER'S HOSPITALS NHS FOUNDATION TRUST",null,"R0A","ASHFORD AND ST PETER'S HOSPITALS NHS FOUNDATION TRUST","E0A3H","Alnwick Infirmary"]
["Trusts",1,1,1,1,1,"-","-",null,null,"STP Name","Trust Code","Trust Code",null,"QF7","SOUTH YORKSHIRE AND BASSETLAW STP",null,"QF7","SOUTH YORKSHIRE AND BASSETLAW STP",null,"QE1","RXR","EAST LANCASHIRE HOSPITALS NHS TRUST","RXR20","Royal Blackburn Hospital",null,"R0B","BARKING, HAVERING AND REDBRIDGE UNIVERSITY HOSPITALS NHS TRUST",null,"R0B","BARKING, HAVERING AND REDBRIDGE UNIVERSITY HOSPITALS NHS TRUST","N6J7V","Arrowe Park Hospital"]
["Sites",1,1,1,1,1,1,1,null,null,"Total Responses","Trust Name","Trust Name",null,"QGH","HEREFORDSHIRE AND WORCESTERSHIRE STP",null,"QGH","HEREFORDSHIRE AND WORCESTERSHIRE STP",null,"QE1","RXN","LANCASHIRE TEACHING HOSPITALS NHS FOUNDATION TRUST","RXN01","Chorley and South Ribble Hospital",null,"R0D","BARNSLEY HOSPITAL NHS FOUNDATION TRUST",null,"R0D","BARNSLEY HOSPITAL NHS FOUNDATION TRUST","R0A05","Ashford Hospital"]
[null,null,null,null,null,null,null,null,null,null,"Percentage Positive","Total Responses","Site Code",null,"QH8","MID AND SOUTH ESSEX STP",null,"QH8","MID AND SOUTH ESSEX STP",null,"QE1","RXN","LANCASHIRE TEACHING HOSPITALS NHS FOUNDATION TRUST","RXN02","Royal Preston Hospital",null,"R1F","BARTS HEALTH NHS TRUST",null,"R1F","BARTS HEALTH NHS TRUST","R0B01","Barnet Hospital"]
[null,null,null,null,null,null,null,null,null,null,"Percentage Negative","Percentage Positive","Site Name",null,"QHG","BEDFORDSHIRE, LUTON AND MILTON KEYNES STP",null,"QHG","BEDFORDSHIRE, LUTON AND MILTON KEYNES STP",null,"QE1","RTX","UNIVERSITY HOSPITALS OF MORECAMBE BAY NHS FOUNDATION TRUST","RTXBU","Furness General Hospital",null,"R1H","BEDFORDSHIRE HOSPITALS NHS FOUNDATION TRUST",null,"R1H","BEDFORDSHIRE HOSPITALS NHS FOUNDATION TRUST","R0B0Q","Barnsley Hospital NHS Foundation Trust HQ"]
[null,null,null,null,null,null,null,null,null,null,"Very Good","Percentage Negative","Total Responses",null,"QHL","BIRMINGHAM AND SOLIHULL STP",null,"QHL","BIRMINGHAM AND SOLIHULL STP",null,"QE1","RTX","UNIVERSITY HOSPITALS OF MORECAMBE BAY NHS FOUNDATION TRUST","RTX02","Royal Lancaster Infirmary",null,"R1K","BIRMINGHAM WOMEN'S AND CHILDREN'S NHS FOUNDATION TRUST",null,"R1K","BIRMINGHAM WOMEN'S AND CHILDREN'S NHS FOUNDATION TRUST","R0BXXX","BASILDON HOSPITAL"]
[null,null,null,null,null,null,null,null,null,null,"Good","Very Good","Percentage Positive",null,"QHM","CUMBRIA AND NORTH EAST STP",null,"QHM","CUMBRIA AND NORTH EAST STP",null,"QF7","RFF","BARNSLEY HOSPITAL NHS FOUNDATION TRUST","RFFAA","Barnsley Hospital NHS Foundation Trust HQ",null,"RA2","BLACKPOOL TEACHING HOSPITALS NHS FOUNDATION TRUST",null,"RA2","BLACKPOOL TEACHING HOSPITALS NHS FOUNDATION TRUST","R0D01","Basingstoke and North Hampshire Hospital"]
[null,null,null,null,null,null,null,null,null,null,"Neither Good nor Poor","Good","Percentage Negative",null,"QJ2","JOINED UP CARE DERBYSHIRE STP",null,"QJ2","JOINED UP CARE DERBYSHIRE STP",null,"QF7","RP5","DONCASTER AND BASSETLAW TEACHING HOSPITALS NHS FOUNDATION TRUST","RP5BA","Bassetlaw Hospital",null,"RA4","BOLTON NHS FOUNDATION TRUST",null,"RA4","BOLTON NHS FOUNDATION TRUST","R0D02","Bassetlaw Hospital"]
[null,null,null,null,null,null,null,null,null,null,"Poor","Neither Good nor Poor","Very Good",null,"QJG","SUFFOLK AND NORTH EAST ESSEX ICS",null,"QJG","SUFFOLK AND NORTH EAST ESSEX ICS",null,"QF7","RP5","DONCASTER AND BASSETLAW TEACHING HOSPITALS NHS FOUNDATION TRUST","RP5DR","Doncaster Royal Infirmary",null,"RA7","BRADFORD TEACHING HOSPITALS NHS FOUNDATION TRUST",null,"RA7","BRADFORD TEACHING HOSPITALS NHS FOUNDATION TRUST","R1F01","BEDFORD HOSPITAL SOUTH WING"]
[null,null,null,null,null,null,null,null,null,null,"Very Poor","Poor","Good",null,"QJK","DEVON STP",null,"QJK","DEVON STP",null,"QF7","RHQ","SHEFFIELD TEACHING HOSPITALS NHS FOUNDATION TRUST","RHQHH","Royal Hallamshire Hospital",null,"RA9","BUCKINGHAMSHIRE HEALTHCARE NHS TRUST",null,"RA9","BUCKINGHAMSHIRE HEALTHCARE NHS TRUST","R1H12","Birmingham Women's Hospital"]
[null,null,null,null,null,null,null,null,null,null,"Don't Know","Very Poor","Neither Good nor Poor",null,"QJM","LINCOLNSHIRE STP",null,"QJM","LINCOLNSHIRE STP",null,"QF7","RFR","THE ROTHERHAM NHS FOUNDATION TRUST","RFRPA","Rotherham District General Hospital",null,"RAE","CALDERDALE AND HUDDERSFIELD NHS FOUNDATION TRUST",null,"RAE","CALDERDALE AND HUDDERSFIELD NHS FOUNDATION TRUST","R1HKH","Blackpool Victoria Hospital"]
[null,null,null,null,null,null,null,null,null,null,null,"Don't Know","Poor",null,"QK1","LEICESTER, LEICESTERSHIRE AND RUTLAND STP",null,"QK1","LEICESTER, LEICESTERSHIRE AND RUTLAND STP",null,"QGH","RWP","WORCESTERSHIRE ACUTE HOSPITALS NHS TRUST","RWP50","Worcestershire Royal Hospital",null,"RAJ","CAMBRIDGE UNIVERSITY HOSPITALS NHS FOUNDATION TRUST",null,"RAJ","CAMBRIDGE UNIVERSITY HOSPITALS NHS FOUNDATION TRUST","R1HNH","Bradford Royal Infirmary"]
[null,null,null,null,null,null,null,null,null,null,null,"Mode SMS","Very Poor",null,"QKK","OUR HEALTHIER SOUTH EAST LONDON STP",null,"QKK","OUR HEALTHIER SOUTH EAST LONDON STP",null,"QGH","RLQ","WYE VALLEY NHS TRUST","RLQ01","Hereford County Hospital",null,"RAL","CHELSEA AND WESTMINSTER HOSPITAL NHS FOUNDATION TRUST",null,"RAL","CHELSEA AND WESTMINSTER HOSPITAL NHS FOUNDATION TRUST","R1K01","Bridgnorth Hospital (Maternity)"]
[null,null,null,null,null,null,null,null,null,null,null,"Mode Electronic Discharge","Don't Know",null,"QKS","KENT AND MEDWAY STP",null,"QKS","KENT AND MEDWAY STP",null,"QH8","RAJ","MID AND SOUTH ESSEX NHS FOUNDATION TRUST","RAJ12","BASILDON HOSPITAL",null,"RAP","COUNTY DURHAM AND DARLINGTON NHS FOUNDATION TRUST",null,"RAP","COUNTY DURHAM AND DARLINGTON NHS FOUNDATION TRUST","RA201","Bridgwater Hospital"]
[null,null,null,null,null,null,null,null,null,null,null,"Mode Electronic Home",null,null,"QM7","HERTFORDSHIRE AND WEST ESSEX STP",null,"QM7","HERTFORDSHIRE AND WEST ESSEX STP",null,"QH8","RAJ","MID AND SOUTH ESSEX NHS FOUNDATION TRUST","RAJ32","MID ESSEX HOSPITAL",null,"RAS","CROYDON HEALTH SERVICES NHS TRUST",null,"RAS","CROYDON HEALTH SERVICES NHS TRUST","RA430","Calderdale Royal Hospital"]
[null,null,null,null,null,null,null,null,null,null,null,"Mode Paper Discharge",null,null,"QMF","EAST LONDON HEALTH & CARE PARTNERSHIP (STP)",null,"QMF","EAST LONDON HEALTH & CARE PARTNERSHIP (STP)",null,"QHG","RC9","BEDFORDSHIRE HOSPITALS NHS FOUNDATION TRUST","RC979","BEDFORD HOSPITAL SOUTH WING",null,"RAX","DARTFORD AND GRAVESHAM NHS TRUST",null,"RAX","DARTFORD AND GRAVESHAM NHS TRUST","RA707","Chelsea and Westminster Hospital"]
[null,null,null,null,null,null,null,null,null,null,null,"Mode Paper Home",null,null,"QMJ","NORTH LONDON PARTNERS IN HEALTH & CARE (STP)",null,"QMJ","NORTH LONDON PARTNERS IN HEALTH & CARE (STP)",null,"QHG","RC9","BEDFORDSHIRE HOSPITALS NHS FOUNDATION TRUST","RC971","Luton and Dunstable Hospital",null,"RBD","DONCASTER AND BASSETLAW TEACHING HOSPITALS NHS FOUNDATION TRUST",null,"RBD","DONCASTER AND BASSETLAW TEACHING HOSPITALS NHS FOUNDATION TRUST","RA901","Chorley and South Ribble Hospital"]
[null,null,null,null,null,null,null,null,null,null,null,"Mode Telephone",null,null,"QMM","NORFOLK AND WAVENEY HEALTH & CARE PARTNERSHIP (STP)",null,"QMM","NORFOLK AND WAVENEY HEALTH & CARE PARTNERSHIP (STP)",null,"QHG","RD8","MILTON KEYNES UNIVERSITY HOSPITAL NHS FOUNDATION TRUST","RD816","Milton Keynes Hospital",null,"RBK","DORSET COUNTY HOSPITAL NHS FOUNDATION TRUST",null,"RBK","DORSET COUNTY HOSPITAL NHS FOUNDATION TRUST","RAE01","Colchester General Hospital"]
[null,null,null,null,null,null,null,null,null,null,null,"Mode Online",null,null,"QNC","STAFFORDSHIRE & STOKE ON TRENT STP",null,"QNC","STAFFORDSHIRE & STOKE ON TRENT STP",null,"QHL","RQ3","BIRMINGHAM WOMEN'S AND CHILDREN'S NHS FOUNDATION TRUST","RQ370","Birmingham Women's Hospital",null,"RBL","EAST AND NORTH HERTFORDSHIRE NHS TRUST",null,"RBL","EAST AND NORTH HERTFORDSHIRE NHS TRUST","RAJ12","Conquest Hospital"]
[null,null,null,null,null,null,null,null,null,null,null,"Mode Other",null,null,"QNQ","FRIMLEY HEALTH & CARE (STP)",null,"QNQ","FRIMLEY HEALTH & CARE (STP)",null,"QHL","RRK","UNIVERSITY HOSPITALS BIRMINGHAM NHS FOUNDATION TRUST","RRK98","Good Hope Hospital",null,"RBN","EAST CHESHIRE NHS TRUST",null,"RBN","EAST CHESHIRE NHS TRUST","RAJ32","Cossham Hospital"]
[null,null,null,null,null,null,null,null,null,null,null,null,null,null,"QNX","SUSSEX HEALTH AND CARE PARTNERSHIP",null,"QNX","SUSSEX HEALTH AND CARE PARTNERSHIP",null,"QHL","RRK","UNIVERSITY HOSPITALS BIRMINGHAM NHS FOUNDATION TRUST","RRK97","Heartlands Hospital",null,"RBT","EAST LANCASHIRE HOSPITALS NHS TRUST",null,"RBT","EAST LANCASHIRE HOSPITALS NHS TRUST","RAL01","Croydon University Hospital"]
[null,null,null,null,null,null,null,null,null,null,null,null,null,null,"QOC","SHROPSHIRE AND TELFORD AND WREKIN STP",null,"QOC","SHROPSHIRE AND TELFORD AND WREKIN STP",null,"QHL","RRK","UNIVERSITY HOSPITALS BIRMINGHAM NHS FOUNDATION TRUST","RRK99","Solihull Hospital",null,"RBZ","EAST SUFFOLK AND NORTH ESSEX NHS FOUNDATION TRUST",null,"RBZ","EAST SUFFOLK AND NORTH ESSEX NHS FOUNDATION TRUST","RAL26","Cumberland Infirmary"]
[null,null,null,null,null,null,null,null,null,null,null,null,null,null,"QOP","GREATER MANCHESTER HEALTH & SOCIAL CARE PARTNERSHIP",null,"QOP","GREATER MANCHESTER HEALTH & SOCIAL CARE PARTNERSHIP",null,"QHM","RXP","COUNTY DURHAM AND DARLINGTON NHS FOUNDATION TRUST","RXPCP","University Hospital Of North Durham",null,"RC9","EAST SUSSEX HEALTHCARE NHS TRUST",null,"RC9","EAST SUSSEX HEALTHCARE NHS TRUST","RAPNM","Darent Valley Hospital"]
[null,null,null,null,null,null,null,null,null,null,null,null,null,null,"QOQ","HUMBER, COAST AND VALE STP",null,"QOQ","HUMBER, COAST AND VALE STP",null,"QHM","RR7","GATESHEAD HEALTH NHS FOUNDATION TRUST","RR7EN","Queen Elizabeth Hospital",null,"RCB","EPSOM AND ST HELIER UNIVERSITY HOSPITALS NHS TRUST",null,"RCB","EPSOM AND ST HELIER UNIVERSITY HOSPITALS NHS TRUST","RAS01","Derriford Hospital"]
[null,null,null,null,null,null,null,null,null,null,null,null,null,null,"QOX","BATH AND NORTH EAST SOMERSET, SWINDON AND WILTSHIRE STP",null,"QOX","BATH AND NORTH EAST SOMERSET, SWINDON AND WILTSHIRE STP",null,"QHM","RNN","NORTH CUMBRIA INTEGRATED CARE NHS FOUNDATION TRUST","RNN62","Cumberland Infirmary",null,"RCD","FRIMLEY HEALTH NHS FOUNDATION TRUST",null,"RCD","FRIMLEY HEALTH NHS FOUNDATION TRUST","RAX01","Doncaster Royal Infirmary"]
[null,null,null,null,null,null,null,null,null,null,null,null,null,null,"QPM","NORTHAMPTONSHIRE STP",null,"QPM","NORTHAMPTONSHIRE STP",null,"QHM","RNN","NORTH CUMBRIA INTEGRATED CARE NHS FOUNDATION TRUST","RNNBX","West Cumberland Hospital",null,"RCX","GATESHEAD HEALTH NHS FOUNDATION TRUST",null,"RCX","GATESHEAD HEALTH NHS FOUNDATION TRUST","RBD01","Dorset County Hospital"]
[null,null,null,null,null,null,null,null,null,null,null,null,null,null,"QR1","GLOUCESTERSHIRE STP",null,"QR1","GLOUCESTERSHIRE STP",null,"QHM","RVW","NORTH TEES AND HARTLEPOOL NHS FOUNDATION TRUST","RVWAE","University Hospital Of North Tees",null,"RD1","GEORGE ELIOT HOSPITAL NHS TRUST",null,"RD1","GEORGE ELIOT HOSPITAL NHS TRUST","RBK02","East Surrey Hospital"]
[null,null,null,null,null,null,null,null,null,null,null,null,null,null,"QRL","HAMPSHIRE AND THE ISLE OF WIGHT STP",null,"QRL","HAMPSHIRE AND THE ISLE OF WIGHT STP",null,"QHM","RTF","NORTHUMBRIA HEALTHCARE NHS FOUNDATION TRUST","RTFDJ","Alnwick Infirmary",null,"RD8","GLOUCESTERSHIRE HOSPITALS NHS FOUNDATION TRUST",null,"RD8","GLOUCESTERSHIRE HOSPITALS NHS FOUNDATION TRUST","RBL14","Eastbourne District General Hospital"]
[null,null,null,null,null,null,null,null,null,null,null,null,null,null,"QRV","NORTH WEST LONDON HEALTH & CARE PARTNERSHIP (STP)",null,"QRV","NORTH WEST LONDON HEALTH & CARE PARTNERSHIP (STP)",null,"QHM","RTF","NORTHUMBRIA HEALTHCARE NHS FOUNDATION TRUST","RTFDR","Hexham General Hospital",null,"RDE","GREAT WESTERN HOSPITALS NHS FOUNDATION TRUST",null,"RDE","GREAT WESTERN HOSPITALS NHS FOUNDATION TRUST","RBN01","Epsom Hospital"]
[null,null,null,null,null,null,null,null,null,null,null,null,null,null,"QSL","SOMERSET STP",null,"QSL","SOMERSET STP",null,"QHM","RTF","NORTHUMBRIA HEALTHCARE NHS FOUNDATION TRUST","RTFXXX","Non-hospital site",null,"RDU","GUY'S AND ST THOMAS' NHS FOUNDATION TRUST",null,"RDU","GUY'S AND ST THOMAS' NHS FOUNDATION TRUST","RBT20","Friarage Hospital Site"]
[null,null,null,null,null,null,null,null,null,null,null,null,null,null,"QT1","NOTTINGHAM AND NOTTINGHAMSHIRE HEALTH AND CARE STP",null,"QT1","NOTTINGHAM AND NOTTINGHAMSHIRE HEALTH AND CARE STP",null,"QHM","RTF","NORTHUMBRIA HEALTHCARE NHS FOUNDATION TRUST","RTF86","The Northumbria",null,"REF","HAMPSHIRE HOSPITALS NHS FOUNDATION TRUST",null,"REF","HAMPSHIRE HOSPITALS NHS FOUNDATION TRUST","RBZ12","Frimley Park Hospital"]
[null,null,null,null,null,null,null,null,null,null,null,null,null,null,"QT6","CORNWALL AND THE ISLES OF SCILLY HEALTH & SOCIAL CARE PARTNERSHIP (STP)",null,"QT6","CORNWALL AND THE ISLES OF SCILLY HEALTH & SOCIAL CARE PARTNERSHIP (STP)",null,"QHM","RTR","SOUTH TEES HOSPITALS NHS FOUNDATION TRUST","RTR45","Friarage Hospital Site",null,"REP","HARROGATE AND DISTRICT NHS FOUNDATION TRUST",null,"REP","HARROGATE AND DISTRICT NHS FOUNDATION TRUST","RC971","Furness General Hospital"]
[null,null,null,null,null,null,null,null,null,null,null,null,null,null,"QU9","BUCKINGHAMSHIRE, OXFORDSHIRE AND BERKSHIRE WEST STP",null,"QU9","BUCKINGHAMSHIRE, OXFORDSHIRE AND BERKSHIRE WEST STP",null,"QHM","RTR","SOUTH TEES HOSPITALS NHS FOUNDATION TRUST","RTRAT","The James Cook University Hospital",null,"RF4","HOMERTON UNIVERSITY HOSPITAL NHS FOUNDATION TRUST",null,"RF4","HOMERTON UNIVERSITY HOSPITAL NHS FOUNDATION TRUST","RC979","George Eliot Hospital - Acute Services"]
[null,null,null,null,null,null,null,null,null,null,null,null,null,null,"QUA","THE BLACK COUNTRY AND WEST BIRMINGHAM STP",null,"QUA","THE BLACK COUNTRY AND WEST BIRMINGHAM STP",null,"QHM","R0B","SOUTH TYNESIDE AND SUNDERLAND NHS FOUNDATION TRUST","R0BXXX","Non-hospital site",null,"RFF","HULL UNIVERSITY TEACHING HOSPITALS NHS TRUST",null,"RFF","HULL UNIVERSITY TEACHING HOSPITALS NHS TRUST","RCB55","Gloucestershire Royal Hospital"]
[null,null,null,null,null,null,null,null,null,null,null,null,null,null,"QUE","CAMBRIDGESHIRE AND PETERBOROUGH STP",null,"QUE","CAMBRIDGESHIRE AND PETERBOROUGH STP",null,"QHM","R0B","SOUTH TYNESIDE AND SUNDERLAND NHS FOUNDATION TRUST","R0B0Q","South Tyneside District Hospital",null,"RFR","IMPERIAL COLLEGE HEALTHCARE NHS TRUST",null,"RFR","IMPERIAL COLLEGE HEALTHCARE NHS TRUST","RCBCA","Good Hope Hospital"]
[null,null,null,null,null,null,null,null,null,null,null,null,null,null,"QUY","BRISTOL, NORTH SOMERSET AND SOUTH GLOUCESTERSHIRE STP",null,"QUY","BRISTOL, NORTH SOMERSET AND SOUTH GLOUCESTERSHIRE STP",null,"QHM","R0B","SOUTH TYNESIDE AND SUNDERLAND NHS FOUNDATION TRUST","R0B01","Sunderland Royal Hospital",null,"RGN","ISLE OF WIGHT NHS TRUST",null,"RGN","ISLE OF WIGHT NHS TRUST","RCD01","Gosport War Memorial Hospital"]
[null,null,null,null,null,null,null,null,null,null,null,null,null,null,"QVV","DORSET STP",null,"QVV","DORSET STP",null,"QHM","RTD","THE NEWCASTLE UPON TYNE HOSPITALS NHS FOUNDATION TRUST","RTD02","The Royal Victoria Infirmary",null,"RGP","JAMES PAGET UNIVERSITY HOSPITALS NHS FOUNDATION TRUST",null,"RGP","JAMES PAGET UNIVERSITY HOSPITALS NHS FOUNDATION TRUST","RCX70","Grantham and District Hospital"]
[null,null,null,null,null,null,null,null,null,null,null,null,null,null,"QWE","SOUTH WEST LONDON HEALTH & CARE PARTNERSHIP (STP)",null,"QWE","SOUTH WEST LONDON HEALTH & CARE PARTNERSHIP (STP)",null,"QJ2","RTG","UNIVERSITY HOSPITALS OF DERBY AND BURTON NHS FOUNDATION TRUST","RTG02","Queens Hospital, Burton Upon Trent",null,"RGR","KETTERING GENERAL HOSPITAL NHS FOUNDATION TRUST",null,"RGR","KETTERING GENERAL HOSPITAL NHS FOUNDATION TRUST","RD130","Harrogate District Hospital"]
[null,null,null,null,null,null,null,null,null,null,null,null,null,null,"QWO","WEST YORKSHIRE AND HARROGATE HEALTH & CARE PARTNERSHIP (STP)",null,"QWO","WEST YORKSHIRE AND HARROGATE HEALTH & CARE PARTNERSHIP (STP)",null,"QJG","RDE","EAST SUFFOLK AND NORTH ESSEX NHS FOUNDATION TRUST","RDEE4","Colchester General Hospital",null,"RGT","KING'S COLLEGE HOSPITAL NHS FOUNDATION TRUST",null,"RGT","KING'S COLLEGE HOSPITAL NHS FOUNDATION TRUST","RD816","Heartlands Hospital"]
[null,null,null,null,null,null,null,null,null,null,null,null,null,null,"QWU","COVENTRY AND WARWICKSHIRE STP",null,"QWU","COVENTRY AND WARWICKSHIRE STP",null,"QJG","RDE","EAST SUFFOLK AND NORTH ESSEX NHS FOUNDATION TRUST","RDE03","Ipswich Hospital",null,"RH5","KINGSTON HOSPITAL NHS FOUNDATION TRUST",null,"RH5","KINGSTON HOSPITAL NHS FOUNDATION TRUST","RDE03","Hereford County Hospital"]
[null,null,null,null,null,null,null,null,null,null,null,null,null,null,"QXU","SURREY HEARTLANDS HEALTH & CARE PARTNERSHIP (STP)",null,"QXU","SURREY HEARTLANDS HEALTH & CARE PARTNERSHIP (STP)",null,"QJG","RGR","WEST SUFFOLK NHS FOUNDATION TRUST","RGR50","West Suffolk Hospital",null,"RH8","LANCASHIRE TEACHING HOSPITALS NHS FOUNDATION TRUST",null,"RH8","LANCASHIRE TEACHING HOSPITALS NHS FOUNDATION TRUST","RDEE4","Hexham General Hospital"]
[null,null,null,null,null,null,null,null,null,null,null,null,null,null,"QYG","CHESHIRE AND MERSEYSIDE STP",null,"QYG","CHESHIRE AND MERSEYSIDE STP",null,"QJK","RBZ","NORTHERN DEVON HEALTHCARE NHS TRUST","RBZ12","North Devon District Hospital",null,"RHM","LEEDS TEACHING HOSPITALS NHS TRUST",null,"RHM","LEEDS TEACHING HOSPITALS NHS TRUST","RDU01","Hillingdon Hospital"]
[null,null,null,null,null,null,null,null,null,null,null,null,null,null,null,null,null,null,null,null,"QJK","RH8","ROYAL DEVON AND EXETER NHS FOUNDATION TRUST","RH801","Royal Devon and Exeter Hospital (Wonford)",null,"RHQ","LEWISHAM AND GREENWICH NHS TRUST",null,"RHQ","LEWISHAM AND GREENWICH NHS TRUST","RDU50","Hinchingbrooke Hospital"]
[null,null,null,null,null,null,null,null,null,null,null,null,null,null,null,null,null,null,null,null,"QJK","RA9","TORBAY AND SOUTH DEVON NHS FOUNDATION TRUST","RA901","Torbay Hospital",null,"RHU","LIVERPOOL WOMEN'S NHS FOUNDATION TRUST",null,"RHU","LIVERPOOL WOMEN'S NHS FOUNDATION TRUST","REF12","Homerton University Hospital"]
[null,null,null,null,null,null,null,null,null,null,null,null,null,null,null,null,null,null,null,null,"QJK","RK9","UNIVERSITY HOSPITALS PLYMOUTH NHS TRUST","RK950","Derriford Hospital",null,"RHW","LONDON NORTH WEST UNIVERSITY HEALTHCARE NHS TRUST",null,"RHW","LONDON NORTH WEST UNIVERSITY HEALTHCARE NHS TRUST","REP01","Horton General Hospital"]
[null,null,null,null,null,null,null,null,null,null,null,null,null,null,null,null,null,null,null,null,"QJM","RWD","UNITED LINCOLNSHIRE HOSPITALS NHS TRUST","RWDLP","Grantham and District Hospital",null,"RJ1","MAIDSTONE AND TUNBRIDGE WELLS NHS TRUST",null,"RJ1","MAIDSTONE AND TUNBRIDGE WELLS NHS TRUST","RF4QH","Huddersfield Royal Infirmary"]
[null,null,null,null,null,null,null,null,null,null,null,null,null,null,null,null,null,null,null,null,"QJM","RWD","UNITED LINCOLNSHIRE HOSPITALS NHS TRUST","RWDDA","Lincoln County Hospital",null,"RJ2","MANCHESTER UNIVERSITY NHS FOUNDATION TRUST",null,"RJ2","MANCHESTER UNIVERSITY NHS FOUNDATION TRUST","RFFAA","Hull Royal Infirmary"]
[null,null,null,null,null,null,null,null,null,null,null,null,null,null,null,null,null,null,null,null,"QJM","RWD","UNITED LINCOLNSHIRE HOSPITALS NHS TRUST","RWDLA","Pilgrim Hospital",null,"RJ6","MEDWAY NHS FOUNDATION TRUST",null,"RJ6","MEDWAY NHS FOUNDATION TRUST","RFRPA","Ipswich Hospital"]
[null,null,null,null,null,null,null,null,null,null,null,null,null,null,null,null,null,null,null,null,"QK1","RWE","UNIVERSITY HOSPITALS OF LEICESTER NHS TRUST","RWEAK","Leicester General Hospital",null,"RJ7","MID AND SOUTH ESSEX NHS FOUNDATION TRUST",null,"RJ7","MID AND SOUTH ESSEX NHS FOUNDATION TRUST","RGN80","James Paget University Hospital"]
[null,null,null,null,null,null,null,null,null,null,null,null,null,null,null,null,null,null,null,null,"QK1","RWE","UNIVERSITY HOSPITALS OF LEICESTER NHS TRUST","RWEAA","Leicester Royal Infirmary",null,"RJC","MID CHESHIRE HOSPITALS NHS FOUNDATION TRUST",null,"RJC","MID CHESHIRE HOSPITALS NHS FOUNDATION TRUST","RGN90","John Radcliffe Hospital"]
[null,null,null,null,null,null,null,null,null,null,null,null,null,null,null,null,null,null,null,null,"QK1","RWE","UNIVERSITY HOSPITALS OF LEICESTER NHS TRUST","RWE10","St Mary's Hospital",null,"RJE","MID YORKSHIRE HOSPITALS NHS TRUST",null,"RJE","MID YORKSHIRE HOSPITALS NHS TRUST","RGP75","Kettering General Hospital"]
[null,null,null,null,null,null,null,null,null,null,null,null,null,null,null,null,null,null,null,null,"QKK","RJ1","GUY'S AND ST THOMAS' NHS FOUNDATION TRUST","RJ122","St Thomas' Hospital",null,"RJL","MILTON KEYNES UNIVERSITY HOSPITAL NHS FOUNDATION TRUST",null,"RJL","MILTON KEYNES UNIVERSITY HOSPITAL NHS FOUNDATION TRUST","RGR50","King's College Hospital (Denmark Hill)"]
[null,null,null,null,null,null,null,null,null,null,null,null,null,null,null,null,null,null,null,null,"QKK","RJZ","KING'S COLLEGE HOSPITAL NHS FOUNDATION TRUST","RJZ01","King's College Hospital (Denmark Hill)",null,"RJN","NORFOLK AND NORWICH UNIVERSITY HOSPITALS NHS FOUNDATION TRUST",null,"RJN","NORFOLK AND NORWICH UNIVERSITY HOSPITALS NHS FOUNDATION TRUST","RGT32","King's Mill Hospital"]
[null,null,null,null,null,null,null,null,null,null,null,null,null,null,null,null,null,null,null,null,"QKK","RJZ","KING'S COLLEGE HOSPITAL NHS FOUNDATION TRUST","RJZ30","Princess Royal University Hospital",null,"RJZ","NORTH BRISTOL NHS TRUST",null,"RJZ","NORTH BRISTOL NHS TRUST","RH5A8","Kingston Hospital"]
[null,null,null,null,null,null,null,null,null,null,null,null,null,null,null,null,null,null,null,null,"QKK","RJ2","LEWISHAM AND GREENWICH NHS TRUST","RJ231","Queen Elizabeth Hospital",null,"RK5","NORTH CUMBRIA INTEGRATED CARE NHS FOUNDATION TRUST",null,"RK5","NORTH CUMBRIA INTEGRATED CARE NHS FOUNDATION TRUST","RH5K6","Leeds General Infirmary"]
[null,null,null,null,null,null,null,null,null,null,null,null,null,null,null,null,null,null,null,null,"QKK","RJ2","LEWISHAM AND GREENWICH NHS TRUST","RJ224","University Hospital Lewisham",null,"RK9","NORTH MIDDLESEX UNIVERSITY HOSPITAL NHS TRUST",null,"RK9","NORTH MIDDLESEX UNIVERSITY HOSPITAL NHS TRUST","RH5XXXX","Leicester General Hospital"]
[null,null,null,null,null,null,null,null,null,null,null,null,null,null,null,null,null,null,null,null,"QKS","RN7","DARTFORD AND GRAVESHAM NHS TRUST","RN707","Darent Valley Hospital",null,"RKB","NORTH TEES AND HARTLEPOOL NHS FOUNDATION TRUST",null,"RKB","NORTH TEES AND HARTLEPOOL NHS FOUNDATION TRUST","RH801","Leicester Royal Infirmary"]
[null,null,null,null,null,null,null,null,null,null,null,null,null,null,null,null,null,null,null,null,"QKS","RWF","MAIDSTONE AND TUNBRIDGE WELLS NHS TRUST","RWFTW","The Tunbridge Wells Hospital",null,"RKE","NORTH WEST ANGLIA NHS FOUNDATION TRUST",null,"RKE","NORTH WEST ANGLIA NHS FOUNDATION TRUST","RHM12","Leighton Hospital"]
[null,null,null,null,null,null,null,null,null,null,null,null,null,null,null,null,null,null,null,null,"QKS","RPA","MEDWAY NHS FOUNDATION TRUST","RPA02","Medway Maritime Hospital",null,"RL4","NORTHAMPTON GENERAL HOSPITAL NHS TRUST",null,"RL4","NORTHAMPTON GENERAL HOSPITAL NHS TRUST","RHQHH","Lincoln County Hospital"]
[null,null,null,null,null,null,null,null,null,null,null,null,null,null,null,null,null,null,null,null,"QM7","RWH","EAST AND NORTH HERTFORDSHIRE NHS TRUST","RWH01","Lister Hospital",null,"RLQ","NORTHERN DEVON HEALTHCARE NHS TRUST",null,"RLQ","NORTHERN DEVON HEALTHCARE NHS TRUST","RHU02","Lister Hospital"]
[null,null,null,null,null,null,null,null,null,null,null,null,null,null,null,null,null,null,null,null,"QM7","RQW","THE PRINCESS ALEXANDRA HOSPITAL NHS TRUST","RQWG0","Princess Alexandra Hospital",null,"RLT","NORTHERN LINCOLNSHIRE AND GOOLE NHS FOUNDATION TRUST",null,"RLT","NORTHERN LINCOLNSHIRE AND GOOLE NHS FOUNDATION TRUST","RHU03","Liverpool Womens Hospital"]
[null,null,null,null,null,null,null,null,null,null,null,null,null,null,null,null,null,null,null,null,"QM7","RWG","WEST HERTFORDSHIRE TEACHING HOSPITALS NHS TRUST","RWG02","Watford General Hospital",null,"RM1","NORTHUMBRIA HEALTHCARE NHS FOUNDATION TRUST",null,"RM1","NORTHUMBRIA HEALTHCARE NHS FOUNDATION TRUST","RHU04","Ludlow Hospital (Maternity)"]
[null,null,null,null,null,null,null,null,null,null,null,null,null,null,null,null,null,null,null,null,"QMF","RF4","BARKING, HAVERING AND REDBRIDGE UNIVERSITY HOSPITALS NHS TRUST","RF4QH","Queen's Hospital",null,"RMC","NOTTINGHAM UNIVERSITY HOSPITALS NHS TRUST",null,"RMC","NOTTINGHAM UNIVERSITY HOSPITALS NHS TRUST","RHU10","Luton and Dunstable Hospital"]
[null,null,null,null,null,null,null,null,null,null,null,null,null,null,null,null,null,null,null,null,"QMF","R1H","BARTS HEALTH NHS TRUST","R1HNH","Newham General Hospital",null,"RMP","OXFORD UNIVERSITY HOSPITALS NHS FOUNDATION TRUST",null,"RMP","OXFORD UNIVERSITY HOSPITALS NHS FOUNDATION TRUST","RHW01","Macclesfield District General Hospital"]
[null,null,null,null,null,null,null,null,null,null,null,null,null,null,null,null,null,null,null,null,"QMF","R1H","BARTS HEALTH NHS TRUST","R1H12","The Royal London Hospital",null,"RN3","PORTSMOUTH HOSPITALS UNIVERSITY NATIONAL HEALTH SERVICE TRUST",null,"RN3","PORTSMOUTH HOSPITALS UNIVERSITY NATIONAL HEALTH SERVICE TRUST","RJ122","Manor Hospital"]
[null,null,null,null,null,null,null,null,null,null,null,null,null,null,null,null,null,null,null,null,"QMF","R1H","BARTS HEALTH NHS TRUST","R1HKH","Whipps Cross University Hospital",null,"RN5","ROYAL BERKSHIRE NHS FOUNDATION TRUST",null,"RN5","ROYAL BERKSHIRE NHS FOUNDATION TRUST","RJ224","Medway Maritime Hospital"]
[null,null,null,null,null,null,null,null,null,null,null,null,null,null,null,null,null,null,null,null,"QMF","RQX","HOMERTON UNIVERSITY HOSPITAL NHS FOUNDATION TRUST","RQXM1","Homerton University Hospital",null,"RN7","ROYAL CORNWALL HOSPITALS NHS TRUST",null,"RN7","ROYAL CORNWALL HOSPITALS NHS TRUST","RJ231","MID ESSEX HOSPITAL"]
[null,null,null,null,null,null,null,null,null,null,null,null,null,null,null,null,null,null,null,null,"QMJ","RAP","NORTH MIDDLESEX UNIVERSITY HOSPITAL NHS TRUST","RAPNM","North Middlesex Hospital",null,"RNA","ROYAL DEVON AND EXETER NHS FOUNDATION TRUST",null,"RNA","ROYAL DEVON AND EXETER NHS FOUNDATION TRUST","RJ611","Milton Keynes Hospital"]
[null,null,null,null,null,null,null,null,null,null,null,null,null,null,null,null,null,null,null,null,"QMJ","RAL","ROYAL FREE LONDON NHS FOUNDATION TRUST","RAL26","Barnet Hospital",null,"RNN","ROYAL FREE LONDON NHS FOUNDATION TRUST",null,"RNN","ROYAL FREE LONDON NHS FOUNDATION TRUST","RJ701","MUSGROVE PARK HOSPITAL"]
[null,null,null,null,null,null,null,null,null,null,null,null,null,null,null,null,null,null,null,null,"QMJ","RAL","ROYAL FREE LONDON NHS FOUNDATION TRUST","RAL01","Royal Free Hospital",null,"RNQ","ROYAL SURREY COUNTY HOSPITAL NHS FOUNDATION TRUST",null,"RNQ","ROYAL SURREY COUNTY HOSPITAL NHS FOUNDATION TRUST","RJC02","New Cross Hospital"]
[null,null,null,null,null,null,null,null,null,null,null,null,null,null,null,null,null,null,null,null,"QMJ","RKE","WHITTINGTON HEALTH NHS TRUST","RKEXXX","Non-hospital site",null,"RNS","ROYAL UNITED HOSPITALS BATH NHS FOUNDATION TRUST",null,"RNS","ROYAL UNITED HOSPITALS BATH NHS FOUNDATION TRUST","RJE01","Newham General Hospital"]
[null,null,null,null,null,null,null,null,null,null,null,null,null,null,null,null,null,null,null,null,"QMJ","RKE","WHITTINGTON HEALTH NHS TRUST","RKEQ4","The Whittington Hospital",null,"RNZ","SALISBURY NHS FOUNDATION TRUST",null,"RNZ","SALISBURY NHS FOUNDATION TRUST","RJL32","Non-hospital site"]
[null,null,null,null,null,null,null,null,null,null,null,null,null,null,null,null,null,null,null,null,"QMM","RGP","JAMES PAGET UNIVERSITY HOSPITALS NHS FOUNDATION TRUST","RGP75","James Paget University Hospital",null,"RP5","SHEFFIELD TEACHING HOSPITALS NHS FOUNDATION TRUST",null,"RP5","SHEFFIELD TEACHING HOSPITALS NHS FOUNDATION TRUST","RJN71","Non-hospital site"]
[null,null,null,null,null,null,null,null,null,null,null,null,null,null,null,null,null,null,null,null,"QMM","RM1","NORFOLK AND NORWICH UNIVERSITY HOSPITALS NHS FOUNDATION TRUST","RM102","Norfolk and Norwich University Hospital",null,"RPA","SHERWOOD FOREST HOSPITALS NHS FOUNDATION TRUST",null,"RPA","SHERWOOD FOREST HOSPITALS NHS FOUNDATION TRUST","RJZ01","Non-hospital site"]
[null,null,null,null,null,null,null,null,null,null,null,null,null,null,null,null,null,null,null,null,"QMM","RCX","THE QUEEN ELIZABETH HOSPITAL, KING'S LYNN, NHS FOUNDATION TRUST","RCX70","The Queen Elizabeth Hospital",null,"RQ3","SOMERSET NHS FOUNDATION TRUST",null,"RQ3","SOMERSET NHS FOUNDATION TRUST","RJZ30","Non-hospital site home/in-transit births"]
[null,null,null,null,null,null,null,null,null,null,null,null,null,null,null,null,null,null,null,null,"QNC","RJE","UNIVERSITY HOSPITALS OF NORTH MIDLANDS NHS TRUST","RJE01","Royal Stoke University Hospital",null,"RQM","SOUTH TEES HOSPITALS NHS FOUNDATION TRUST",null,"RQM","SOUTH TEES HOSPITALS NHS FOUNDATION TRUST","RK5BC","Norfolk and Norwich University Hospital"]
[null,null,null,null,null,null,null,null,null,null,null,null,null,null,null,null,null,null,null,null,"QNQ","RDU","FRIMLEY HEALTH NHS FOUNDATION TRUST","RDU01","Frimley Park Hospital",null,"RQW","SOUTH TYNESIDE AND SUNDERLAND NHS FOUNDATION TRUST",null,"RQW","SOUTH TYNESIDE AND SUNDERLAND NHS FOUNDATION TRUST","RK950","North Devon District Hospital"]
[null,null,null,null,null,null,null,null,null,null,null,null,null,null,null,null,null,null,null,null,"QNQ","RDU","FRIMLEY HEALTH NHS FOUNDATION TRUST","RDU50","Wexham Park Hospital",null,"RQX","SOUTH WARWICKSHIRE NHS FOUNDATION TRUST",null,"RQX","SOUTH WARWICKSHIRE NHS FOUNDATION TRUST","RKB01","North Middlesex Hospital"]
[null,null,null,null,null,null,null,null,null,null,null,null,null,null,null,null,null,null,null,null,"QNX","RXC","EAST SUSSEX HEALTHCARE NHS TRUST","RXC01","Conquest Hospital",null,"RR7","SOUTHPORT AND ORMSKIRK HOSPITAL NHS TRUST",null,"RR7","SOUTHPORT AND ORMSKIRK HOSPITAL NHS TRUST","RKEQ4","Northampton General Hospital (Acute)"]
[null,null,null,null,null,null,null,null,null,null,null,null,null,null,null,null,null,null,null,null,"QNX","RXC","EAST SUSSEX HEALTHCARE NHS TRUST","RXC02","Eastbourne District General Hospital",null,"RR8","ST GEORGE'S UNIVERSITY HOSPITALS NHS FOUNDATION TRUST",null,"RR8","ST GEORGE'S UNIVERSITY HOSPITALS NHS FOUNDATION TRUST","RKEXXX","Northwick Park Hospital"]
[null,null,null,null,null,null,null,null,null,null,null,null,null,null,null,null,null,null,null,null,"QNX","RYR","UNIVERSITY HOSPITALS SUSSEX NHS FOUNDATION TRUST","N6J7V","Princess Royal Hospital",null,"RRF","ST HELENS AND KNOWSLEY TEACHING HOSPITALS NHS TRUST",null,"RRF","ST HELENS AND KNOWSLEY TEACHING HOSPITALS NHS TRUST","RL403","Nottingham University Hospitals NHS Trust - City Campus"]
[null,null,null,null,null,null,null,null,null,null,null,null,null,null,null,null,null,null,null,null,"QNX","RYR","UNIVERSITY HOSPITALS SUSSEX NHS FOUNDATION TRUST","E0A3H","Royal Sussex County Hospital",null,"RRK","STOCKPORT NHS FOUNDATION TRUST",null,"RRK","STOCKPORT NHS FOUNDATION TRUST","RLQ01","Nottingham University Hospitals NHS Trust - Queen's Medical Centre Campus"]
[null,null,null,null,null,null,null,null,null,null,null,null,null,null,null,null,null,null,null,null,"QNX","RYR","UNIVERSITY HOSPITALS SUSSEX NHS FOUNDATION TRUST","RYR16","St Richard's Hospital",null,"RTD","SURREY AND SUSSEX HEALTHCARE NHS TRUST",null,"RTD","SURREY AND SUSSEX HEALTHCARE NHS TRUST","RLT01","Ormskirk and District General Hospital"]
[null,null,null,null,null,null,null,null,null,null,null,null,null,null,null,null,null,null,null,null,"QNX","RYR","UNIVERSITY HOSPITALS SUSSEX NHS FOUNDATION TRUST","RYR18","Worthing Hospital",null,"RTE","TAMESIDE AND GLOSSOP INTEGRATED CARE NHS FOUNDATION TRUST",null,"RTE","TAMESIDE AND GLOSSOP INTEGRATED CARE NHS FOUNDATION TRUST","RM102","Peterborough City Hospital"]
[null,null,null,null,null,null,null,null,null,null,null,null,null,null,null,null,null,null,null,null,"QOC","RXW","THE SHREWSBURY AND TELFORD HOSPITAL NHS TRUST","RXWMB","Bridgnorth Hospital (Maternity)",null,"RTF","THE DUDLEY GROUP NHS FOUNDATION TRUST",null,"RTF","THE DUDLEY GROUP NHS FOUNDATION TRUST","RMC01","Petersfield Community Hospital"]
[null,null,null,null,null,null,null,null,null,null,null,null,null,null,null,null,null,null,null,null,"QOC","RXW","THE SHREWSBURY AND TELFORD HOSPITAL NHS TRUST","RXWML","Ludlow Hospital (Maternity)",null,"RTG","THE HILLINGDON HOSPITALS NHS FOUNDATION TRUST",null,"RTG","THE HILLINGDON HOSPITALS NHS FOUNDATION TRUST","RMP01","Pilgrim Hospital"]
[null,null,null,null,null,null,null,null,null,null,null,null,null,null,null,null,null,null,null,null,"QOC","RXW","THE SHREWSBURY AND TELFORD HOSPITAL NHS TRUST","RXWMJ","Robert Jones & Agnes Hunt Orthopaedic & District Hospital",null,"RTH","THE NEWCASTLE UPON TYNE HOSPITALS NHS FOUNDATION TRUST",null,"RTH","THE NEWCASTLE UPON TYNE HOSPITALS NHS FOUNDATION TRUST","RN325","Pinderfields General Hospital"]
[null,null,null,null,null,null,null,null,null,null,null,null,null,null,null,null,null,null,null,null,"QOC","RXW","THE SHREWSBURY AND TELFORD HOSPITAL NHS TRUST","RXWAS","Royal Shrewsbury Hospital",null,"RTK","THE PRINCESS ALEXANDRA HOSPITAL NHS TRUST",null,"RTK","THE PRINCESS ALEXANDRA HOSPITAL NHS TRUST","RN506","Poole Hospital"]
[null,null,null,null,null,null,null,null,null,null,null,null,null,null,null,null,null,null,null,null,"QOC","RXW","THE SHREWSBURY AND TELFORD HOSPITAL NHS TRUST","RXWAT","The Princess Royal Hospital",null,"RTP","THE QUEEN ELIZABETH HOSPITAL, KING'S LYNN, NHS FOUNDATION TRUST",null,"RTP","THE QUEEN ELIZABETH HOSPITAL, KING'S LYNN, NHS FOUNDATION TRUST","RN541","Princess Alexandra Hospital"]
[null,null,null,null,null,null,null,null,null,null,null,null,null,null,null,null,null,null,null,null,"QOP","RMC","BOLTON NHS FOUNDATION TRUST","RMC01","Royal Bolton Hospital",null,"RTR","THE ROTHERHAM NHS FOUNDATION TRUST",null,"RTR","THE ROTHERHAM NHS FOUNDATION TRUST","RN707","Princess Anne Hospital"]
[null,null,null,null,null,null,null,null,null,null,null,null,null,null,null,null,null,null,null,null,"QOP","R0A","MANCHESTER UNIVERSITY NHS FOUNDATION TRUST","R0A05","St Mary's Hospital",null,"RTX","THE ROYAL WOLVERHAMPTON NHS TRUST",null,"RTX","THE ROYAL WOLVERHAMPTON NHS TRUST","RNA01","Princess Anne Wing RUH"]
[null,null,null,null,null,null,null,null,null,null,null,null,null,null,null,null,null,null,null,null,"QOP","RWJ","STOCKPORT NHS FOUNDATION TRUST","RWJ09","Stepping Hill Hospital",null,"RVJ","THE SHREWSBURY AND TELFORD HOSPITAL NHS TRUST",null,"RVJ","THE SHREWSBURY AND TELFORD HOSPITAL NHS TRUST","RNN62","Princess Royal Hospital"]
[null,null,null,null,null,null,null,null,null,null,null,null,null,null,null,null,null,null,null,null,"QOP","RMP","TAMESIDE AND GLOSSOP INTEGRATED CARE NHS FOUNDATION TRUST","RMP01","Tameside General Hospital",null,"RVR","TORBAY AND SOUTH DEVON NHS FOUNDATION TRUST",null,"RVR","TORBAY AND SOUTH DEVON NHS FOUNDATION TRUST","RNNBX","Princess Royal University Hospital"]
[null,null,null,null,null,null,null,null,null,null,null,null,null,null,null,null,null,null,null,null,"QOP","RRF","WRIGHTINGTON, WIGAN AND LEIGH NHS FOUNDATION TRUST","RRF02","Royal Albert Edward Infirmary",null,"RVW","UNITED LINCOLNSHIRE HOSPITALS NHS TRUST",null,"RVW","UNITED LINCOLNSHIRE HOSPITALS NHS TRUST","RNQ51","Queen Alexandra Hospital"]
[null,null,null,null,null,null,null,null,null,null,null,null,null,null,null,null,null,null,null,null,"QOQ","RCD","HARROGATE AND DISTRICT NHS FOUNDATION TRUST","RCD01","Harrogate District Hospital",null,"RVY","UNIVERSITY HOSPITAL SOUTHAMPTON NHS FOUNDATION TRUST",null,"RVY","UNIVERSITY HOSPITAL SOUTHAMPTON NHS FOUNDATION TRUST","RNS01","Queen Charlotte's Hospital"]
[null,null,null,null,null,null,null,null,null,null,null,null,null,null,null,null,null,null,null,null,"QOQ","RWA","HULL UNIVERSITY TEACHING HOSPITALS NHS TRUST","RWA01","Hull Royal Infirmary",null,"RWA","UNIVERSITY HOSPITALS BIRMINGHAM NHS FOUNDATION TRUST",null,"RWA","UNIVERSITY HOSPITALS BIRMINGHAM NHS FOUNDATION TRUST","RNZ02","Queen Elizabeth Hospital"]
[null,null,null,null,null,null,null,null,null,null,null,null,null,null,null,null,null,null,null,null,"QOQ","RJL","NORTHERN LINCOLNSHIRE AND GOOLE NHS FOUNDATION TRUST","RJL32","Scunthorpe General Hospital",null,"RWD","UNIVERSITY HOSPITALS BRISTOL AND WESTON NHS FOUNDATION TRUST",null,"RWD","UNIVERSITY HOSPITALS BRISTOL AND WESTON NHS FOUNDATION TRUST","RP5BA","Queen Elizabeth Hospital"]
[null,null,null,null,null,null,null,null,null,null,null,null,null,null,null,null,null,null,null,null,"QOQ","RCB","YORK AND SCARBOROUGH TEACHING HOSPITALS NHS FOUNDATION TRUST","RCBCA","Scarborough General Hospital",null,"RWE","UNIVERSITY HOSPITALS COVENTRY AND WARWICKSHIRE NHS TRUST",null,"RWE","UNIVERSITY HOSPITALS COVENTRY AND WARWICKSHIRE NHS TRUST","RP5DR","Queen's Hospital"]
[null,null,null,null,null,null,null,null,null,null,null,null,null,null,null,null,null,null,null,null,"QOQ","RCB","YORK AND SCARBOROUGH TEACHING HOSPITALS NHS FOUNDATION TRUST","RCB55","York Hospital",null,"RWF","UNIVERSITY HOSPITALS DORSET NHS FOUNDATION TRUST",null,"RWF","UNIVERSITY HOSPITALS DORSET NHS FOUNDATION TRUST","RPA02","Queens Hospital, Burton Upon Trent"]
[null,null,null,null,null,null,null,null,null,null,null,null,null,null,null,null,null,null,null,null,"QOX","RN3","GREAT WESTERN HOSPITALS NHS FOUNDATION TRUST","RN325","The Great Western Hospital",null,"RWG","UNIVERSITY HOSPITALS OF DERBY AND BURTON NHS FOUNDATION TRUST",null,"RWG","UNIVERSITY HOSPITALS OF DERBY AND BURTON NHS FOUNDATION TRUST","RQ370","Robert Jones & Agnes Hunt Orthopaedic & District Hospital"]
[null,null,null,null,null,null,null,null,null,null,null,null,null,null,null,null,null,null,null,null,"QOX","RD1","ROYAL UNITED HOSPITALS BATH NHS FOUNDATION TRUST","RD130","Princess Anne Wing RUH",null,"RWH","UNIVERSITY HOSPITALS OF LEICESTER NHS TRUST",null,"RWH","UNIVERSITY HOSPITALS OF LEICESTER NHS TRUST","RQM01","Rosie Hospital"]
[null,null,null,null,null,null,null,null,null,null,null,null,null,null,null,null,null,null,null,null,"QOX","RNZ","SALISBURY NHS FOUNDATION TRUST","RNZ02","Salisbury District Hospital",null,"RWJ","UNIVERSITY HOSPITALS OF MORECAMBE BAY NHS FOUNDATION TRUST",null,"RWJ","UNIVERSITY HOSPITALS OF MORECAMBE BAY NHS FOUNDATION TRUST","RQM91","Rotherham District General Hospital"]
[null,null,null,null,null,null,null,null,null,null,null,null,null,null,null,null,null,null,null,null,"QPM","RNQ","KETTERING GENERAL HOSPITAL NHS FOUNDATION TRUST","RNQ51","Kettering General Hospital",null,"RWP","UNIVERSITY HOSPITALS OF NORTH MIDLANDS NHS TRUST",null,"RWP","UNIVERSITY HOSPITALS OF NORTH MIDLANDS NHS TRUST","RQWG0","Royal Albert Edward Infirmary"]
[null,null,null,null,null,null,null,null,null,null,null,null,null,null,null,null,null,null,null,null,"QPM","RNS","NORTHAMPTON GENERAL HOSPITAL NHS TRUST","RNS01","Northampton General Hospital (Acute)",null,"RWW","UNIVERSITY HOSPITALS PLYMOUTH NHS TRUST",null,"RWW","UNIVERSITY HOSPITALS PLYMOUTH NHS TRUST","RQXM1","Royal Berkshire Hospital"]
[null,null,null,null,null,null,null,null,null,null,null,null,null,null,null,null,null,null,null,null,"QR1","RTE","GLOUCESTERSHIRE HOSPITALS NHS FOUNDATION TRUST","RTE03","Gloucestershire Royal Hospital",null,"RWY","UNIVERSITY HOSPITALS SUSSEX NHS FOUNDATION TRUST",null,"RWY","UNIVERSITY HOSPITALS SUSSEX NHS FOUNDATION TRUST","RR7EN","Royal Blackburn Hospital"]
[null,null,null,null,null,null,null,null,null,null,null,null,null,null,null,null,null,null,null,null,"QR1","RTE","GLOUCESTERSHIRE HOSPITALS NHS FOUNDATION TRUST","RTE27","Stroud Maternity Hospital",null,"RX1","WALSALL HEALTHCARE NHS TRUST",null,"RX1","WALSALL HEALTHCARE NHS TRUST","RR801","Royal Bolton Hospital"]
[null,null,null,null,null,null,null,null,null,null,null,null,null,null,null,null,null,null,null,null,"QRL","RN5","HAMPSHIRE HOSPITALS NHS FOUNDATION TRUST","RN506","Basingstoke and North Hampshire Hospital",null,"RXC","WARRINGTON AND HALTON TEACHING HOSPITALS NHS FOUNDATION TRUST",null,"RXC","WARRINGTON AND HALTON TEACHING HOSPITALS NHS FOUNDATION TRUST","RR813","Royal Bournemouth Hospital"]
[null,null,null,null,null,null,null,null,null,null,null,null,null,null,null,null,null,null,null,null,"QRL","RN5","HAMPSHIRE HOSPITALS NHS FOUNDATION TRUST","RN541","Royal Hampshire County Hospital",null,"RXF","WEST HERTFORDSHIRE TEACHING HOSPITALS NHS TRUST",null,"RXF","WEST HERTFORDSHIRE TEACHING HOSPITALS NHS TRUST","RRF02","Royal Cornwall Hospital (Treliske)"]
[null,null,null,null,null,null,null,null,null,null,null,null,null,null,null,null,null,null,null,null,"QRL","R1F","ISLE OF WIGHT NHS TRUST","R1F01","St Mary's Hospital",null,"RXL","WEST SUFFOLK NHS FOUNDATION TRUST",null,"RXL","WEST SUFFOLK NHS FOUNDATION TRUST","RRK97","Royal Devon and Exeter Hospital (Wonford)"]
[null,null,null,null,null,null,null,null,null,null,null,null,null,null,null,null,null,null,null,null,"QRL","RHU","PORTSMOUTH HOSPITALS UNIVERSITY NATIONAL HEALTH SERVICE TRUST","RHU10","Gosport War Memorial Hospital",null,"RXN","WHITTINGTON HEALTH NHS TRUST",null,"RXN","WHITTINGTON HEALTH NHS TRUST","RRK98","Royal Free Hospital"]
[null,null,null,null,null,null,null,null,null,null,null,null,null,null,null,null,null,null,null,null,"QRL","RHU","PORTSMOUTH HOSPITALS UNIVERSITY NATIONAL HEALTH SERVICE TRUST","RHU04","Petersfield Community Hospital",null,"RXP","WIRRAL UNIVERSITY TEACHING HOSPITAL NHS FOUNDATION TRUST",null,"RXP","WIRRAL UNIVERSITY TEACHING HOSPITAL NHS FOUNDATION TRUST","RRK99","Royal Hallamshire Hospital"]
[null,null,null,null,null,null,null,null,null,null,null,null,null,null,null,null,null,null,null,null,"QRL","RHU","PORTSMOUTH HOSPITALS UNIVERSITY NATIONAL HEALTH SERVICE TRUST","RHU03","Queen Alexandra Hospital",null,"RXQ","WORCESTERSHIRE ACUTE HOSPITALS NHS TRUST",null,"RXQ","WORCESTERSHIRE ACUTE HOSPITALS NHS TRUST","RTD02","Royal Hampshire County Hospital"]
[null,null,null,null,null,null,null,null,null,null,null,null,null,null,null,null,null,null,null,null,"QRL","RHU","PORTSMOUTH HOSPITALS UNIVERSITY NATIONAL HEALTH SERVICE TRUST","RHU02","St Mary's Hospital",null,"RXR","WRIGHTINGTON, WIGAN AND LEIGH NHS FOUNDATION TRUST",null,"RXR","WRIGHTINGTON, WIGAN AND LEIGH NHS FOUNDATION TRUST","RTE03","Royal Lancaster Infirmary"]
[null,null,null,null,null,null,null,null,null,null,null,null,null,null,null,null,null,null,null,null,"QRL","RHM","UNIVERSITY HOSPITAL SOUTHAMPTON NHS FOUNDATION TRUST","RHM12","Princess Anne Hospital",null,"RXW","WYE VALLEY NHS TRUST",null,"RXW","WYE VALLEY NHS TRUST","RTE27","Royal Preston Hospital"]
[null,null,null,null,null,null,null,null,null,null,null,null,null,null,null,null,null,null,null,null,"QRV","RQM","CHELSEA AND WESTMINSTER HOSPITAL NHS FOUNDATION TRUST","RQM01","Chelsea and Westminster Hospital",null,"RYJ","YEOVIL DISTRICT HOSPITAL NHS FOUNDATION TRUST",null,"RYJ","YEOVIL DISTRICT HOSPITAL NHS FOUNDATION TRUST","RTF86","Royal Shrewsbury Hospital"]
[null,null,null,null,null,null,null,null,null,null,null,null,null,null,null,null,null,null,null,null,"QRV","RQM","CHELSEA AND WESTMINSTER HOSPITAL NHS FOUNDATION TRUST","RQM91","West Middlesex University Hospital",null,"RYR","YORK AND SCARBOROUGH TEACHING HOSPITALS NHS FOUNDATION TRUST",null,"RYR","YORK AND SCARBOROUGH TEACHING HOSPITALS NHS FOUNDATION TRUST","RTFDJ","Royal Stoke University Hospital"]
[null,null,null,null,null,null,null,null,null,null,null,null,null,null,null,null,null,null,null,null,"QRV","RYJ","IMPERIAL COLLEGE HEALTHCARE NHS TRUST","RYJ04","Queen Charlotte's Hospital",null,null,null,null,null,null,"RTFDR","Royal Surrey County Hospital"]
[null,null,null,null,null,null,null,null,null,null,null,null,null,null,null,null,null,null,null,null,"QRV","RYJ","IMPERIAL COLLEGE HEALTHCARE NHS TRUST","RYJ01","St Mary's Hospital (HQ)",null,null,null,null,null,null,"RTFXXX","Royal Sussex County Hospital"]
[null,null,null,null,null,null,null,null,null,null,null,null,null,null,null,null,null,null,null,null,"QRV","R1K","LONDON NORTH WEST UNIVERSITY HEALTHCARE NHS TRUST","R1K01","Northwick Park Hospital",null,null,null,null,null,null,"RTG02","Russells Hall Hospital"]
[null,null,null,null,null,null,null,null,null,null,null,null,null,null,null,null,null,null,null,null,"QRV","RAS","THE HILLINGDON HOSPITALS NHS FOUNDATION TRUST","RAS01","Hillingdon Hospital",null,null,null,null,null,null,"RTH05","Salisbury District Hospital"]
[null,null,null,null,null,null,null,null,null,null,null,null,null,null,null,null,null,null,null,null,"QSL","RH5","SOMERSET NHS FOUNDATION TRUST","RH5K6","Bridgwater Hospital",null,null,null,null,null,null,"RTH08","Scarborough General Hospital"]
[null,null,null,null,null,null,null,null,null,null,null,null,null,null,null,null,null,null,null,null,"QSL","RH5","SOMERSET NHS FOUNDATION TRUST","RH5A8","MUSGROVE PARK HOSPITAL",null,null,null,null,null,null,"RTH16","Scunthorpe General Hospital"]
[null,null,null,null,null,null,null,null,null,null,null,null,null,null,null,null,null,null,null,null,"QSL","RH5","SOMERSET NHS FOUNDATION TRUST","RH5XXXX","Non-hospital site home/in-transit births",null,null,null,null,null,null,"RTK02","Solihull Hospital"]
[null,null,null,null,null,null,null,null,null,null,null,null,null,null,null,null,null,null,null,null,"QSL","RA4","YEOVIL DISTRICT HOSPITAL NHS FOUNDATION TRUST","RA430","Yeovil District Hospital",null,null,null,null,null,null,"RTP04","South Tyneside District Hospital"]
[null,null,null,null,null,null,null,null,null,null,null,null,null,null,null,null,null,null,null,null,"QT1","RX1","NOTTINGHAM UNIVERSITY HOSPITALS NHS TRUST","RX1CC","Nottingham University Hospitals NHS Trust - City Campus",null,null,null,null,null,null,"RTR45","Southmead Hospital"]
[null,null,null,null,null,null,null,null,null,null,null,null,null,null,null,null,null,null,null,null,"QT1","RX1","NOTTINGHAM UNIVERSITY HOSPITALS NHS TRUST","RX1RA","Nottingham University Hospitals NHS Trust - Queen's Medical Centre Campus",null,null,null,null,null,null,"RTRAT","St George's Hospital (Tooting)"]
[null,null,null,null,null,null,null,null,null,null,null,null,null,null,null,null,null,null,null,null,"QT1","RK5","SHERWOOD FOREST HOSPITALS NHS FOUNDATION TRUST","RK5BC","King's Mill Hospital",null,null,null,null,null,null,"RTX02","St Helier Hospital"]
[null,null,null,null,null,null,null,null,null,null,null,null,null,null,null,null,null,null,null,null,"QT6","REF","ROYAL CORNWALL HOSPITALS NHS TRUST","REF12","Royal Cornwall Hospital (Treliske)",null,null,null,null,null,null,"RTXBU","St James's University Hospital"]
[null,null,null,null,null,null,null,null,null,null,null,null,null,null,null,null,null,null,null,null,"QU9","RXQ","BUCKINGHAMSHIRE HEALTHCARE NHS TRUST","RXQ02","Stoke Mandeville Hospital",null,null,null,null,null,null,"RVJ01","St Mary's Hospital"]
[null,null,null,null,null,null,null,null,null,null,null,null,null,null,null,null,null,null,null,null,"QU9","RTH","OXFORD UNIVERSITY HOSPITALS NHS FOUNDATION TRUST","RTH05","Horton General Hospital",null,null,null,null,null,null,"RVJ21","St Mary's Hospital"]
[null,null,null,null,null,null,null,null,null,null,null,null,null,null,null,null,null,null,null,null,"QU9","RTH","OXFORD UNIVERSITY HOSPITALS NHS FOUNDATION TRUST","RTH08","John Radcliffe Hospital",null,null,null,null,null,null,"RVR05","St Mary's Hospital"]
[null,null,null,null,null,null,null,null,null,null,null,null,null,null,null,null,null,null,null,null,"QU9","RTH","OXFORD UNIVERSITY HOSPITALS NHS FOUNDATION TRUST","RTH16","Wallingford Community Hospital",null,null,null,null,null,null,"RVR50","St Mary's Hospital"]
[null,null,null,null,null,null,null,null,null,null,null,null,null,null,null,null,null,null,null,null,"QU9","RHW","ROYAL BERKSHIRE NHS FOUNDATION TRUST","RHW01","Royal Berkshire Hospital",null,null,null,null,null,null,"RVWAE","St Mary's Hospital (HQ)"]
[null,null,null,null,null,null,null,null,null,null,null,null,null,null,null,null,null,null,null,null,"QUA","RNA","THE DUDLEY GROUP NHS FOUNDATION TRUST","RNA01","Russells Hall Hospital",null,null,null,null,null,null,"RVY02","St Michael's Hospital"]
[null,null,null,null,null,null,null,null,null,null,null,null,null,null,null,null,null,null,null,null,"QUA","RL4","THE ROYAL WOLVERHAMPTON NHS TRUST","RL403","New Cross Hospital",null,null,null,null,null,null,"RWA01","St Richard's Hospital"]
[null,null,null,null,null,null,null,null,null,null,null,null,null,null,null,null,null,null,null,null,"QUA","RBK","WALSALL HEALTHCARE NHS TRUST","RBK02","Manor Hospital",null,null,null,null,null,null,"RWDDA","St Thomas' Hospital"]
[null,null,null,null,null,null,null,null,null,null,null,null,null,null,null,null,null,null,null,null,"QUE","RGT","CAMBRIDGE UNIVERSITY HOSPITALS NHS FOUNDATION TRUST","RGT32","Rosie Hospital",null,null,null,null,null,null,"RWDLA","Stepping Hill Hospital"]
[null,null,null,null,null,null,null,null,null,null,null,null,null,null,null,null,null,null,null,null,"QUE","RGN","NORTH WEST ANGLIA NHS FOUNDATION TRUST","RGN90","Hinchingbrooke Hospital",null,null,null,null,null,null,"RWDLP","Stoke Mandeville Hospital"]
[null,null,null,null,null,null,null,null,null,null,null,null,null,null,null,null,null,null,null,null,"QUE","RGN","NORTH WEST ANGLIA NHS FOUNDATION TRUST","RGN80","Peterborough City Hospital",null,null,null,null,null,null,"RWE10","Stroud Maternity Hospital"]
[null,null,null,null,null,null,null,null,null,null,null,null,null,null,null,null,null,null,null,null,"QUY","RVJ","NORTH BRISTOL NHS TRUST","RVJ21","Cossham Hospital",null,null,null,null,null,null,"RWEAA","Sunderland Royal Hospital"]
[null,null,null,null,null,null,null,null,null,null,null,null,null,null,null,null,null,null,null,null,"QUY","RVJ","NORTH BRISTOL NHS TRUST","RVJ01","Southmead Hospital",null,null,null,null,null,null,"RWEAK","Tameside General Hospital"]
[null,null,null,null,null,null,null,null,null,null,null,null,null,null,null,null,null,null,null,null,"QUY","RA7","UNIVERSITY HOSPITALS BRISTOL AND WESTON NHS FOUNDATION TRUST","RA707","St Michael's Hospital",null,null,null,null,null,null,"RWFTW","The Great Western Hospital"]
[null,null,null,null,null,null,null,null,null,null,null,null,null,null,null,null,null,null,null,null,"QVV","RBD","DORSET COUNTY HOSPITAL NHS FOUNDATION TRUST","RBD01","Dorset County Hospital",null,null,null,null,null,null,"RWG02","The James Cook University Hospital"]
[null,null,null,null,null,null,null,null,null,null,null,null,null,null,null,null,null,null,null,null,"QVV","R0D","UNIVERSITY HOSPITALS DORSET NHS FOUNDATION TRUST","R0D01","Poole Hospital",null,null,null,null,null,null,"RWH01","The Northumbria"]
[null,null,null,null,null,null,null,null,null,null,null,null,null,null,null,null,null,null,null,null,"QVV","R0D","UNIVERSITY HOSPITALS DORSET NHS FOUNDATION TRUST","R0D02","Royal Bournemouth Hospital",null,null,null,null,null,null,"RWJ09","The Princess Royal Hospital"]
[null,null,null,null,null,null,null,null,null,null,null,null,null,null,null,null,null,null,null,null,"QWE","RJ6","CROYDON HEALTH SERVICES NHS TRUST","RJ611","Croydon University Hospital",null,null,null,null,null,null,"RWP50","The Queen Elizabeth Hospital"]
[null,null,null,null,null,null,null,null,null,null,null,null,null,null,null,null,null,null,null,null,"QWE","RVR","EPSOM AND ST HELIER UNIVERSITY HOSPITALS NHS TRUST","RVR50","Epsom Hospital",null,null,null,null,null,null,"RWWWH","The Royal London Hospital"]
[null,null,null,null,null,null,null,null,null,null,null,null,null,null,null,null,null,null,null,null,"QWE","RVR","EPSOM AND ST HELIER UNIVERSITY HOSPITALS NHS TRUST","RVR05","St Helier Hospital",null,null,null,null,null,null,"RWY01","The Royal Victoria Infirmary"]
[null,null,null,null,null,null,null,null,null,null,null,null,null,null,null,null,null,null,null,null,"QWE","RAX","KINGSTON HOSPITAL NHS FOUNDATION TRUST","RAX01","Kingston Hospital",null,null,null,null,null,null,"RWY02","The Tunbridge Wells Hospital"]
[null,null,null,null,null,null,null,null,null,null,null,null,null,null,null,null,null,null,null,null,"QWE","RJ7","ST GEORGE'S UNIVERSITY HOSPITALS NHS FOUNDATION TRUST","RJ701","St George's Hospital (Tooting)",null,null,null,null,null,null,"RX1CC","The Whittington Hospital"]
[null,null,null,null,null,null,null,null,null,null,null,null,null,null,null,null,null,null,null,null,"QWO","RAE","BRADFORD TEACHING HOSPITALS NHS FOUNDATION TRUST","RAE01","Bradford Royal Infirmary",null,null,null,null,null,null,"RX1RA","Torbay Hospital"]
[null,null,null,null,null,null,null,null,null,null,null,null,null,null,null,null,null,null,null,null,"QWO","RWY","CALDERDALE AND HUDDERSFIELD NHS FOUNDATION TRUST","RWY02","Calderdale Royal Hospital",null,null,null,null,null,null,"RXC01","University Hospital (Coventry)"]
[null,null,null,null,null,null,null,null,null,null,null,null,null,null,null,null,null,null,null,null,"QWO","RWY","CALDERDALE AND HUDDERSFIELD NHS FOUNDATION TRUST","RWY01","Huddersfield Royal Infirmary",null,null,null,null,null,null,"RXC02","University Hospital Lewisham"]
[null,null,null,null,null,null,null,null,null,null,null,null,null,null,null,null,null,null,null,null,"QWO","RR8","LEEDS TEACHING HOSPITALS NHS TRUST","RR801","Leeds General Infirmary",null,null,null,null,null,null,"RXF05","University Hospital Of North Durham"]
[null,null,null,null,null,null,null,null,null,null,null,null,null,null,null,null,null,null,null,null,"QWO","RR8","LEEDS TEACHING HOSPITALS NHS TRUST","RR813","St James's University Hospital",null,null,null,null,null,null,"RXL01","University Hospital Of North Tees"]
[null,null,null,null,null,null,null,null,null,null,null,null,null,null,null,null,null,null,null,null,"QWO","RXF","MID YORKSHIRE HOSPITALS NHS TRUST","RXF05","Pinderfields General Hospital",null,null,null,null,null,null,"RXN01","Wallingford Community Hospital"]
[null,null,null,null,null,null,null,null,null,null,null,null,null,null,null,null,null,null,null,null,"QWU","RLT","GEORGE ELIOT HOSPITAL NHS TRUST","RLT01","George Eliot Hospital - Acute Services",null,null,null,null,null,null,"RXN02","Warrington Hospital"]
[null,null,null,null,null,null,null,null,null,null,null,null,null,null,null,null,null,null,null,null,"QWU","RJC","SOUTH WARWICKSHIRE NHS FOUNDATION TRUST","RJC02","Warwick Hospital",null,null,null,null,null,null,"RXPCP","Warwick Hospital"]
[null,null,null,null,null,null,null,null,null,null,null,null,null,null,null,null,null,null,null,null,"QWU","RKB","UNIVERSITY HOSPITALS COVENTRY AND WARWICKSHIRE NHS TRUST","RKB01","University Hospital (Coventry)",null,null,null,null,null,null,"RXQ02","Watford General Hospital"]
[null,null,null,null,null,null,null,null,null,null,null,null,null,null,null,null,null,null,null,null,"QXU","RTK","ASHFORD AND ST PETER'S HOSPITALS NHS FOUNDATION TRUST","RTK02","Ashford Hospital",null,null,null,null,null,null,"RXR20","West Cumberland Hospital"]
[null,null,null,null,null,null,null,null,null,null,null,null,null,null,null,null,null,null,null,null,"QXU","RA2","ROYAL SURREY COUNTY HOSPITAL NHS FOUNDATION TRUST","RA201","Royal Surrey County Hospital",null,null,null,null,null,null,"RXWAS","West Middlesex University Hospital"]
[null,null,null,null,null,null,null,null,null,null,null,null,null,null,null,null,null,null,null,null,"QXU","RTP","SURREY AND SUSSEX HEALTHCARE NHS TRUST","RTP04","East Surrey Hospital",null,null,null,null,null,null,"RXWAT","West Suffolk Hospital"]
[null,null,null,null,null,null,null,null,null,null,null,null,null,null,null,null,null,null,null,null,"QYG","RJN","EAST CHESHIRE NHS TRUST","RJN71","Macclesfield District General Hospital",null,null,null,null,null,null,"RXWMB","Wexham Park Hospital"]
[null,null,null,null,null,null,null,null,null,null,null,null,null,null,null,null,null,null,null,null,"QYG","REP","LIVERPOOL WOMEN'S NHS FOUNDATION TRUST","REP01","Liverpool Womens Hospital",null,null,null,null,null,null,"RXWMJ","Whipps Cross University Hospital"]
[null,null,null,null,null,null,null,null,null,null,null,null,null,null,null,null,null,null,null,null,"QYG","RBT","MID CHESHIRE HOSPITALS NHS FOUNDATION TRUST","RBT20","Leighton Hospital",null,null,null,null,null,null,"RXWML","Whiston Hospital"]
[null,null,null,null,null,null,null,null,null,null,null,null,null,null,null,null,null,null,null,null,"QYG","RVY","SOUTHPORT AND ORMSKIRK HOSPITAL NHS TRUST","RVY02","Ormskirk and District General Hospital",null,null,null,null,null,null,"RYJ01","Worcestershire Royal Hospital"]
[null,null,null,null,null,null,null,null,null,null,null,null,null,null,null,null,null,null,null,null,"QYG","RBN","ST HELENS AND KNOWSLEY TEACHING HOSPITALS NHS TRUST","RBN01","Whiston Hospital",null,null,null,null,null,null,"RYJ04","Worthing Hospital"]
[null,null,null,null,null,null,null,null,null,null,null,null,null,null,null,null,null,null,null,null,"QYG","RWW","WARRINGTON AND HALTON TEACHING HOSPITALS NHS FOUNDATION TRUST","RWWWH","Warrington Hospital",null,null,null,null,null,null,"RYR16","Yeovil District Hospital"]
[null,null,null,null,null,null,null,null,null,null,null,null,null,null,null,null,null,null,null,null,"QYG","RBL","WIRRAL UNIVERSITY TEACHING HOSPITAL NHS FOUNDATION TRUST","RBL14","Arrowe Park Hospital",null,null,null,null,null,null,"RYR18","York Hospital"]

{"sheet":"BSQ4","index":16,"n_rows":120,"n_cols":28,"rows_kept":120,"cut":false,"hidden":true,"merged":[]}
[null,"Sort","Region (LO)","Region (LO)","Trusts","Trusts",null,null,null,"Sort ranges:","Sort range…","Sort range…",null,"Reference Region List:","Code…","Name…","Linked Region List:","Code…","Name…","Reference Lists:","Code…","Code…","Name…",null,null,"Trusts Linked Lists:","Code…","Name…"]
["Region (LO)",1,1,1,"-","-",null,null,null,null,"STP Code","STP Code",null,null,"QE1","LANCASHIRE AND SOUTH CUMBRIA ICS",null,"QE1","LANCASHIRE AND SOUTH CUMBRIA ICS",null,"QE1","RXL","BLACKPOOL TEACHING HOSPITALS NHS FOUNDATION TRUST",null,null,null,"R0A","AIREDALE NHS FOUNDATION TRUST"]
["Trusts",1,1,1,1,1,null,null,null,null,"STP Name","Trust Code",null,null,"QF7","SOUTH YORKSHIRE AND BASSETLAW STP",null,"QF7","SOUTH YORKSHIRE AND BASSETLAW STP",null,"QE1","RXR","EAST LANCASHIRE HOSPITALS NHS TRUST",null,null,null,"R0B","ASHFORD AND ST PETER'S HOSPITALS NHS FOUNDATION TRUST"]
[null,null,null,null,null,null,null,null,null,null,"Total Responses","Trust Name",null,null,"QGH","HEREFORDSHIRE AND WORCESTERSHIRE STP",null,"QGH","HEREFORDSHIRE AND WORCESTERSHIRE STP",null,"QE1","RXN","LANCASHIRE TEACHING HOSPITALS NHS FOUNDATION TRUST",null,null,null,"R0D","BARKING, HAVERING AND REDBRIDGE UNIVERSITY HOSPITALS NHS TRUST"]
[null,null,null,null,null,null,null,null,null,null,"Percentage Positive","Total Responses",null,null,"QH8","MID AND SOUTH ESSEX STP",null,"QH8","MID AND SOUTH ESSEX STP",null,"QE1","RTX","UNIVERSITY HOSPITALS OF MORECAMBE BAY NHS FOUNDATION TRUST",null,null,null,"R1F","BARNSLEY HOSPITAL NHS FOUNDATION TRUST"]
[null,null,null,null,null,null,null,null,null,null,"Percentage Negative","Percentage Positive",null,null,"QHG","BEDFORDSHIRE, LUTON AND MILTON KEYNES STP",null,"QHG","BEDFORDSHIRE, LUTON AND MILTON KEYNES STP",null,"QF7","RFF","BARNSLEY HOSPITAL NHS FOUNDATION TRUST",null,null,null,"R1H","BARTS HEALTH NHS TRUST"]
[null,null,null,null,null,null,null,null,null,null,"Very Good","Percentage Negative",null,null,"QHL","BIRMINGHAM AND SOLIHULL STP",null,"QHL","BIRMINGHAM AND SOLIHULL STP",null,"QF7","RP5","DONCASTER AND BASSETLAW TEACHING HOSPITALS NHS FOUNDATION TRUST",null,null,null,"R1K","BEDFORDSHIRE HOSPITALS NHS FOUNDATION TRUST"]
[null,null,null,null,null,null,null,null,null,null,"Good","Very Good",null,null,"QHM","CUMBRIA AND NORTH EAST STP",null,"QHM","CUMBRIA AND NORTH EAST STP",null,"QF7","RHQ","SHEFFIELD TEACHING HOSPITALS NHS FOUNDATION TRUST",null,null,null,"RA2","BIRMINGHAM WOMEN'S AND CHILDREN'S NHS FOUNDATION TRUST"]
[null,null,null,null,null,null,null,null,null,null,"Neither Good nor Poor","Good",null,null,"QJ2","JOINED UP CARE DERBYSHIRE STP",null,"QJ2","JOINED UP CARE DERBYSHIRE STP",null,"QF7","RFR","THE ROTHERHAM NHS FOUNDATION TRUST",null,null,null,"RA4","BLACKPOOL TEACHING HOSPITALS NHS FOUNDATION TRUST"]
[null,null,null,null,null,null,null,null,null,null,"Poor","Neither Good nor Poor",null,null,"QJG","SUFFOLK AND NORTH EAST ESSEX ICS",null,"QJG","SUFFOLK AND NORTH EAST ESSEX ICS",null,"QGH","RWP","WORCESTERSHIRE ACUTE HOSPITALS NHS TRUST",null,null,null,"RA7","BOLTON NHS FOUNDATION TRUST"]
[null,null,null,null,null,null,null,null,null,null,"Very Poor","Poor",null,null,"QJK","DEVON STP",null,"QJK","DEVON STP",null,"QGH","RLQ","WYE VALLEY NHS TRUST",null,null,null,"RA9","BRADFORD TEACHING HOSPITALS NHS FOUNDATION TRUST"]
[null,null,null,null,null,null,null,null,null,null,"Don't Know","Very Poor",null,null,"QJM","LINCOLNSHIRE STP",null,"QJM","LINCOLNSHIRE STP",null,"QH8","RAJ","MID AND SOUTH ESSEX NHS FOUNDATION TRUST",null,null,null,"RAE","BUCKINGHAMSHIRE HEALTHCARE NHS TRUST"]
[null,null,null,null,null,null,null,null,null,null,null,"Don't Know",null,null,"QK1","LEICESTER, LEICESTERSHIRE AND RUTLAND STP",null,"QK1","LEICESTER, LEICESTERSHIRE AND RUTLAND STP",null,"QHG","RC9","BEDFORDSHIRE HOSPITALS NHS FOUNDATION TRUST",null,null,null,"RAJ","CALDERDALE AND HUDDERSFIELD NHS FOUNDATION TRUST"]
[null,null,null,null,null,null,null,null,null,null,null,"Mode SMS",null,null,"QKK","OUR HEALTHIER SOUTH EAST LONDON STP",null,"QKK","OUR HEALTHIER SOUTH EAST LONDON STP",null,"QHG","RD8","MILTON KEYNES UNIVERSITY HOSPITAL NHS FOUNDATION TRUST",null,null,null,"RAL","CAMBRIDGE UNIVERSITY HOSPITALS NHS FOUNDATION TRUST"]
[null,null,null,null,null,null,null,null,null,null,null,"Mode Electronic Discharge",null,null,"QKS","KENT AND MEDWAY STP",null,"QKS","KENT AND MEDWAY STP",null,"QHL","RQ3","BIRMINGHAM WOMEN'S AND CHILDREN'S NHS FOUNDATION TRUST",null,null,null,"RAP","CHELSEA AND WESTMINSTER HOSPITAL NHS FOUNDATION TRUST"]
[null,null,null,null,null,null,null,null,null,null,null,"Mode Electronic Home",null,null,"QM7","HERTFORDSHIRE AND WEST ESSEX STP",null,"QM7","HERTFORDSHIRE AND WEST ESSEX STP",null,"QHL","RRK","UNIVERSITY HOSPITALS BIRMINGHAM NHS FOUNDATION TRUST",null,null,null,"RAS","COUNTY DURHAM AND DARLINGTON NHS FOUNDATION TRUST"]
[null,null,null,null,null,null,null,null,null,null,null,"Mode Paper Discharge",null,null,"QMF","EAST LONDON HEALTH & CARE PARTNERSHIP (STP)",null,"QMF","EAST LONDON HEALTH & CARE PARTNERSHIP (STP)",null,"QHM","RXP","COUNTY DURHAM AND DARLINGTON NHS FOUNDATION TRUST",null,null,null,"RAX","CROYDON HEALTH SERVICES NHS TRUST"]
[null,null,null,null,null,null,null,null,null,null,null,"Mode Paper Home",null,null,"QMJ","NORTH LONDON PARTNERS IN HEALTH & CARE (STP)",null,"QMJ","NORTH LONDON PARTNERS IN HEALTH & CARE (STP)",null,"QHM","RR7","GATESHEAD HEALTH NHS FOUNDATION TRUST",null,null,null,"RBD","DARTFORD AND GRAVESHAM NHS TRUST"]
[null,null,null,null,null,null,null,null,null,null,null,"Mode Telephone",null,null,"QMM","NORFOLK AND WAVENEY HEALTH & CARE PARTNERSHIP (STP)",null,"QMM","NORFOLK AND WAVENEY HEALTH & CARE PARTNERSHIP (STP)",null,"QHM","RNN","NORTH CUMBRIA INTEGRATED CARE NHS FOUNDATION TRUST",null,null,null,"RBK","DONCASTER AND BASSETLAW TEACHING HOSPITALS NHS FOUNDATION TRUST"]
[null,null,null,null,null,null,null,null,null,null,null,"Mode Online",null,null,"QNC","STAFFORDSHIRE & STOKE ON TRENT STP",null,"QNC","STAFFORDSHIRE & STOKE ON TRENT STP",null,"QHM","RVW","NORTH TEES AND HARTLEPOOL NHS FOUNDATION TRUST",null,null,null,"RBL","DORSET COUNTY HOSPITAL NHS FOUNDATION TRUST"]
[null,null,null,null,null,null,null,null,null,null,null,"Mode Other",null,null,"QNQ","FRIMLEY HEALTH & CARE (STP)",null,"QNQ","FRIMLEY HEALTH & CARE (STP)",null,"QHM","RTF","NORTHUMBRIA HEALTHCARE NHS FOUNDATION TRUST",null,null,null,"RBN","EAST AND NORTH HERTFORDSHIRE NHS TRUST"]
[null,null,null,null,null,null,null,null,null,null,null,null,null,null,"QNX","SUSSEX HEALTH AND CARE PARTNERSHIP",null,"QNX","SUSSEX HEALTH AND CARE PARTNERSHIP",null,"QHM","RTR","SOUTH TEES HOSPITALS NHS FOUNDATION TRUST",null,null,null,"RBT","EAST CHESHIRE NHS TRUST"]
[null,null,null,null,null,null,null,null,null,null,null,null,null,null,"QOC","SHROPSHIRE AND TELFORD AND WREKIN STP",null,"QOC","SHROPSHIRE AND TELFORD AND WREKIN STP",null,"QHM","R0B","SOUTH TYNESIDE AND SUNDERLAND NHS FOUNDATION TRUST",null,null,null,"RBZ","EAST KENT HOSPITALS UNIVERSITY NHS FOUNDATION TRUST"]
[null,null,null,null,null,null,null,null,null,null,null,null,null,null,"QOP","GREATER MANCHESTER HEALTH & SOCIAL CARE PARTNERSHIP",null,"QOP","GREATER MANCHESTER HEALTH & SOCIAL CARE PARTNERSHIP",null,"QHM","RTD","THE NEWCASTLE UPON TYNE HOSPITALS NHS FOUNDATION TRUST",null,null,null,"RC9","EAST LANCASHIRE HOSPITALS NHS TRUST"]
[null,null,null,null,null,null,null,null,null,null,null,null,null,null,"QOQ","HUMBER, COAST AND VALE STP",null,"QOQ","HUMBER, COAST AND VALE STP",null,"QJ2","RTG","UNIVERSITY HOSPITALS OF DERBY AND BURTON NHS FOUNDATION TRUST",null,null,null,"RCB","EAST SUFFOLK AND NORTH ESSEX NHS FOUNDATION TRUST"]
[null,null,null,null,null,null,null,null,null,null,null,null,null,null,"QOX","BATH AND NORTH EAST SOMERSET, SWINDON AND WILTSHIRE STP",null,"QOX","BATH AND NORTH EAST SOMERSET, SWINDON AND WILTSHIRE STP",null,"QJG","RDE","EAST SUFFOLK AND NORTH ESSEX NHS FOUNDATION TRUST",null,null,null,"RCD","EAST SUSSEX HEALTHCARE NHS TRUST"]
[null,null,null,null,null,null,null,null,null,null,null,null,null,null,"QPM","NORTHAMPTONSHIRE STP",null,"QPM","NORTHAMPTONSHIRE STP",null,"QJG","RGR","WEST SUFFOLK NHS FOUNDATION TRUST",null,null,null,"RCF","EPSOM AND ST HELIER UNIVERSITY HOSPITALS NHS TRUST"]
[null,null,null,null,null,null,null,null,null,null,null,null,null,null,"QR1","GLOUCESTERSHIRE STP",null,"QR1","GLOUCESTERSHIRE STP",null,"QJK","RBZ","NORTHERN DEVON HEALTHCARE NHS TRUST",null,null,null,"RCX","FRIMLEY HEALTH NHS FOUNDATION TRUST"]
[null,null,null,null,null,null,null,null,null,null,null,null,null,null,"QRL","HAMPSHIRE AND THE ISLE OF WIGHT STP",null,"QRL","HAMPSHIRE AND THE ISLE OF WIGHT STP",null,"QJK","RH8","ROYAL DEVON AND EXETER NHS FOUNDATION TRUST",null,null,null,"RD1","GATESHEAD HEALTH NHS FOUNDATION TRUST"]
[null,null,null,null,null,null,null,null,null,null,null,null,null,null,"QRV","NORTH WEST LONDON HEALTH & CARE PARTNERSHIP (STP)",null,"QRV","NORTH WEST LONDON HEALTH & CARE PARTNERSHIP (STP)",null,"QJK","RA9","TORBAY AND SOUTH DEVON NHS FOUNDATION TRUST",null,null,null,"RD8","GEORGE ELIOT HOSPITAL NHS TRUST"]
[null,null,null,null,null,null,null,null,null,null,null,null,null,null,"QSL","SOMERSET STP",null,"QSL","SOMERSET STP",null,"QJK","RK9","UNIVERSITY HOSPITALS PLYMOUTH NHS TRUST",null,null,null,"RDE","GLOUCESTERSHIRE HOSPITALS NHS FOUNDATION TRUST"]
[null,null,null,null,null,null,null,null,null,null,null,null,null,null,"QT1","NOTTINGHAM AND NOTTINGHAMSHIRE HEALTH AND CARE STP",null,"QT1","NOTTINGHAM AND NOTTINGHAMSHIRE HEALTH AND CARE STP",null,"QJM","RWD","UNITED LINCOLNSHIRE HOSPITALS NHS TRUST",null,null,null,"RDU","GREAT WESTERN HOSPITALS NHS FOUNDATION TRUST"]
[null,null,null,null,null,null,null,null,null,null,null,null,null,null,"QT6","CORNWALL AND THE ISLES OF SCILLY HEALTH & SOCIAL CARE PARTNERSHIP (STP)",null,"QT6","CORNWALL AND THE ISLES OF SCILLY HEALTH & SOCIAL CARE PARTNERSHIP (STP)",null,"QK1","RWE","UNIVERSITY HOSPITALS OF LEICESTER NHS TRUST",null,null,null,"REF","GUY'S AND ST THOMAS' NHS FOUNDATION TRUST"]
[null,null,null,null,null,null,null,null,null,null,null,null,null,null,"QU9","BUCKINGHAMSHIRE, OXFORDSHIRE AND BERKSHIRE WEST STP",null,"QU9","BUCKINGHAMSHIRE, OXFORDSHIRE AND BERKSHIRE WEST STP",null,"QKK","RJ1","GUY'S AND ST THOMAS' NHS FOUNDATION TRUST",null,null,null,"REP","HAMPSHIRE HOSPITALS NHS FOUNDATION TRUST"]
[null,null,null,null,null,null,null,null,null,null,null,null,null,null,"QUA","THE BLACK COUNTRY AND WEST BIRMINGHAM STP",null,"QUA","THE BLACK COUNTRY AND WEST BIRMINGHAM STP",null,"QKK","RJZ","KING'S COLLEGE HOSPITAL NHS FOUNDATION TRUST",null,null,null,"RF4","HARROGATE AND DISTRICT NHS FOUNDATION TRUST"]
[null,null,null,null,null,null,null,null,null,null,null,null,null,null,"QUE","CAMBRIDGESHIRE AND PETERBOROUGH STP",null,"QUE","CAMBRIDGESHIRE AND PETERBOROUGH STP",null,"QKK","RJ2","LEWISHAM AND GREENWICH NHS TRUST",null,null,null,"RFF","HOMERTON UNIVERSITY HOSPITAL NHS FOUNDATION TRUST"]
[null,null,null,null,null,null,null,null,null,null,null,null,null,null,"QUY","BRISTOL, NORTH SOMERSET AND SOUTH GLOUCESTERSHIRE STP",null,"QUY","BRISTOL, NORTH SOMERSET AND SOUTH GLOUCESTERSHIRE STP",null,"QKS","RN7","DARTFORD AND GRAVESHAM NHS TRUST",null,null,null,"RFR","HULL UNIVERSITY TEACHING HOSPITALS NHS TRUST"]
[null,null,null,null,null,null,null,null,null,null,null,null,null,null,"QVV","DORSET STP",null,"QVV","DORSET STP",null,"QKS","RVV","EAST KENT HOSPITALS UNIVERSITY NHS FOUNDATION TRUST",null,null,null,"RGN","IMPERIAL COLLEGE HEALTHCARE NHS TRUST"]
[null,null,null,null,null,null,null,null,null,null,null,null,null,null,"QWE","SOUTH WEST LONDON HEALTH & CARE PARTNERSHIP (STP)",null,"QWE","SOUTH WEST LONDON HEALTH & CARE PARTNERSHIP (STP)",null,"QKS","RWF","MAIDSTONE AND TUNBRIDGE WELLS NHS TRUST",null,null,null,"RGP","ISLE OF WIGHT NHS TRUST"]
[null,null,null,null,null,null,null,null,null,null,null,null,null,null,"QWO","WEST YORKSHIRE AND HARROGATE HEALTH & CARE PARTNERSHIP (STP)",null,"QWO","WEST YORKSHIRE AND HARROGATE HEALTH & CARE PARTNERSHIP (STP)",null,"QKS","RPA","MEDWAY NHS FOUNDATION TRUST",null,null,null,"RGR","JAMES PAGET UNIVERSITY HOSPITALS NHS FOUNDATION TRUST"]
[null,null,null,null,null,null,null,null,null,null,null,null,null,null,"QWU","COVENTRY AND WARWICKSHIRE STP",null,"QWU","COVENTRY AND WARWICKSHIRE STP",null,"QM7","RWH","EAST AND NORTH HERTFORDSHIRE NHS TRUST",null,null,null,"RGT","KETTERING GENERAL HOSPITAL NHS FOUNDATION TRUST"]
[null,null,null,null,null,null,null,null,null,null,null,null,null,null,"QXU","SURREY HEARTLANDS HEALTH & CARE PARTNERSHIP (STP)",null,"QXU","SURREY HEARTLANDS HEALTH & CARE PARTNERSHIP (STP)",null,"QM7","RQW","THE PRINCESS ALEXANDRA HOSPITAL NHS TRUST",null,null,null,"RH5","KING'S COLLEGE HOSPITAL NHS FOUNDATION TRUST"]
[null,null,null,null,null,null,null,null,null,null,null,null,null,null,"QYG","CHESHIRE AND MERSEYSIDE STP",null,"QYG","CHESHIRE AND MERSEYSIDE STP",null,"QM7","RWG","WEST HERTFORDSHIRE TEACHING HOSPITALS NHS TRUST",null,null,null,"RH8","KINGSTON HOSPITAL NHS FOUNDATION TRUST"]
[null,null,null,null,null,null,null,null,null,null,null,null,null,null,null,null,null,null,null,null,"QMF","RF4","BARKING, HAVERING AND REDBRIDGE UNIVERSITY HOSPITALS NHS TRUST",null,null,null,"RHM","LANCASHIRE TEACHING HOSPITALS NHS FOUNDATION TRUST"]
[null,null,null,null,null,null,null,null,null,null,null,null,null,null,null,null,null,null,null,null,"QMF","R1H","BARTS HEALTH NHS TRUST",null,null,null,"RHQ","LEEDS TEACHING HOSPITALS NHS TRUST"]
[null,null,null,null,null,null,null,null,null,null,null,null,null,null,null,null,null,null,null,null,"QMF","RQX","HOMERTON UNIVERSITY HOSPITAL NHS FOUNDATION TRUST",null,null,null,"RHU","LEWISHAM AND GREENWICH NHS TRUST"]
[null,null,null,null,null,null,null,null,null,null,null,null,null,null,null,null,null,null,null,null,"QMJ","RAP","NORTH MIDDLESEX UNIVERSITY HOSPITAL NHS TRUST",null,null,null,"RHW","LIVERPOOL WOMEN'S NHS FOUNDATION TRUST"]
[null,null,null,null,null,null,null,null,null,null,null,null,null,null,null,null,null,null,null,null,"QMJ","RAL","ROYAL FREE LONDON NHS FOUNDATION TRUST",null,null,null,"RJ1","LONDON NORTH WEST UNIVERSITY HEALTHCARE NHS TRUST"]
[null,null,null,null,null,null,null,null,null,null,null,null,null,null,null,null,null,null,null,null,"QMJ","RRV","UNIVERSITY COLLEGE LONDON HOSPITALS NHS FOUNDATION TRUST",null,null,null,"RJ2","MAIDSTONE AND TUNBRIDGE WELLS NHS TRUST"]
[null,null,null,null,null,null,null,null,null,null,null,null,null,null,null,null,null,null,null,null,"QMJ","RKE","WHITTINGTON HEALTH NHS TRUST",null,null,null,"RJ6","MANCHESTER UNIVERSITY NHS FOUNDATION TRUST"]
[null,null,null,null,null,null,null,null,null,null,null,null,null,null,null,null,null,null,null,null,"QMM","RGP","JAMES PAGET UNIVERSITY HOSPITALS NHS FOUNDATION TRUST",null,null,null,"RJ7","MEDWAY NHS FOUNDATION TRUST"]
[null,null,null,null,null,null,null,null,null,null,null,null,null,null,null,null,null,null,null,null,"QMM","RM1","NORFOLK AND NORWICH UNIVERSITY HOSPITALS NHS FOUNDATION TRUST",null,null,null,"RJC","MID AND SOUTH ESSEX NHS FOUNDATION TRUST"]
[null,null,null,null,null,null,null,null,null,null,null,null,null,null,null,null,null,null,null,null,"QMM","RCX","THE QUEEN ELIZABETH HOSPITAL, KING'S LYNN, NHS FOUNDATION TRUST",null,null,null,"RJE","MID CHESHIRE HOSPITALS NHS FOUNDATION TRUST"]
[null,null,null,null,null,null,null,null,null,null,null,null,null,null,null,null,null,null,null,null,"QNC","RJE","UNIVERSITY HOSPITALS OF NORTH MIDLANDS NHS TRUST",null,null,null,"RJL","MID YORKSHIRE HOSPITALS NHS TRUST"]
[null,null,null,null,null,null,null,null,null,null,null,null,null,null,null,null,null,null,null,null,"QNQ","RDU","FRIMLEY HEALTH NHS FOUNDATION TRUST",null,null,null,"RJN","MILTON KEYNES UNIVERSITY HOSPITAL NHS FOUNDATION TRUST"]
[null,null,null,null,null,null,null,null,null,null,null,null,null,null,null,null,null,null,null,null,"QNX","RXC","EAST SUSSEX HEALTHCARE NHS TRUST",null,null,null,"RJZ","NORFOLK AND NORWICH UNIVERSITY HOSPITALS NHS FOUNDATION TRUST"]
[null,null,null,null,null,null,null,null,null,null,null,null,null,null,null,null,null,null,null,null,"QNX","RYR","UNIVERSITY HOSPITALS SUSSEX NHS FOUNDATION TRUST",null,null,null,"RK5","NORTH BRISTOL NHS TRUST"]
[null,null,null,null,null,null,null,null,null,null,null,null,null,null,null,null,null,null,null,null,"QOC","RXW","THE SHREWSBURY AND TELFORD HOSPITAL NHS TRUST",null,null,null,"RK9","NORTH CUMBRIA INTEGRATED CARE NHS FOUNDATION TRUST"]
[null,null,null,null,null,null,null,null,null,null,null,null,null,null,null,null,null,null,null,null,"QOP","RMC","BOLTON NHS FOUNDATION TRUST",null,null,null,"RKB","NORTH MIDDLESEX UNIVERSITY HOSPITAL NHS TRUST"]
[null,null,null,null,null,null,null,null,null,null,null,null,null,null,null,null,null,null,null,null,"QOP","R0A","MANCHESTER UNIVERSITY NHS FOUNDATION TRUST",null,null,null,"RKE","NORTH TEES AND HARTLEPOOL NHS FOUNDATION TRUST"]
[null,null,null,null,null,null,null,null,null,null,null,null,null,null,null,null,null,null,null,null,"QOP","RWJ","STOCKPORT NHS FOUNDATION TRUST",null,null,null,"RL4","NORTH WEST ANGLIA NHS FOUNDATION TRUST"]
[null,null,null,null,null,null,null,null,null,null,null,null,null,null,null,null,null,null,null,null,"QOP","RMP","TAMESIDE AND GLOSSOP INTEGRATED CARE NHS FOUNDATION TRUST",null,null,null,"RLQ","NORTHAMPTON GENERAL HOSPITAL NHS TRUST"]
[null,null,null,null,null,null,null,null,null,null,null,null,null,null,null,null,null,null,null,null,"QOP","RRF","WRIGHTINGTON, WIGAN AND LEIGH NHS FOUNDATION TRUST",null,null,null,"RLT","NORTHERN DEVON HEALTHCARE NHS TRUST"]
[null,null,null,null,null,null,null,null,null,null,null,null,null,null,null,null,null,null,null,null,"QOQ","RCD","HARROGATE AND DISTRICT NHS FOUNDATION TRUST",null,null,null,"RM1","NORTHERN LINCOLNSHIRE AND GOOLE NHS FOUNDATION TRUST"]
[null,null,null,null,null,null,null,null,null,null,null,null,null,null,null,null,null,null,null,null,"QOQ","RWA","HULL UNIVERSITY TEACHING HOSPITALS NHS TRUST",null,null,null,"RMC","NORTHUMBRIA HEALTHCARE NHS FOUNDATION TRUST"]
[null,null,null,null,null,null,null,null,null,null,null,null,null,null,null,null,null,null,null,null,"QOQ","RJL","NORTHERN LINCOLNSHIRE AND GOOLE NHS FOUNDATION TRUST",null,null,null,"RMP","NOTTINGHAM UNIVERSITY HOSPITALS NHS TRUST"]
[null,null,null,null,null,null,null,null,null,null,null,null,null,null,null,null,null,null,null,null,"QOQ","RCB","YORK AND SCARBOROUGH TEACHING HOSPITALS NHS FOUNDATION TRUST",null,null,null,"RN3","OXFORD UNIVERSITY HOSPITALS NHS FOUNDATION TRUST"]
[null,null,null,null,null,null,null,null,null,null,null,null,null,null,null,null,null,null,null,null,"QOX","RN3","GREAT WESTERN HOSPITALS NHS FOUNDATION TRUST",null,null,null,"RN5","PORTSMOUTH HOSPITALS UNIVERSITY NATIONAL HEALTH SERVICE TRUST"]
[null,null,null,null,null,null,null,null,null,null,null,null,null,null,null,null,null,null,null,null,"QOX","RD1","ROYAL UNITED HOSPITALS BATH NHS FOUNDATION TRUST",null,null,null,"RN7","ROYAL BERKSHIRE NHS FOUNDATION TRUST"]
[null,null,null,null,null,null,null,null,null,null,null,null,null,null,null,null,null,null,null,null,"QOX","RNZ","SALISBURY NHS FOUNDATION TRUST",null,null,null,"RNA","ROYAL CORNWALL HOSPITALS NHS TRUST"]
[null,null,null,null,null,null,null,null,null,null,null,null,null,null,null,null,null,null,null,null,"QPM","RNQ","KETTERING GENERAL HOSPITAL NHS FOUNDATION TRUST",null,null,null,"RNN","ROYAL DEVON AND EXETER NHS FOUNDATION TRUST"]
[null,null,null,null,null,null,null,null,null,null,null,null,null,null,null,null,null,null,null,null,"QPM","RNS","NORTHAMPTON GENERAL HOSPITAL NHS TRUST",null,null,null,"RNQ","ROYAL FREE LONDON NHS FOUNDATION TRUST"]
[null,null,null,null,null,null,null,null,null,null,null,null,null,null,null,null,null,null,null,null,"QR1","RTE","GLOUCESTERSHIRE HOSPITALS NHS FOUNDATION TRUST",null,null,null,"RNS","ROYAL SURREY COUNTY HOSPITAL NHS FOUNDATION TRUST"]
[null,null,null,null,null,null,null,null,null,null,null,null,null,null,null,null,null,null,null,null,"QRL","RN5","HAMPSHIRE HOSPITALS NHS FOUNDATION TRUST",null,null,null,"RNZ","ROYAL UNITED HOSPITALS BATH NHS FOUNDATION TRUST"]
[null,null,null,null,null,null,null,null,null,null,null,null,null,null,null,null,null,null,null,null,"QRL","R1F","ISLE OF WIGHT NHS TRUST",null,null,null,"RP5","SALISBURY NHS FOUNDATION TRUST"]
[null,null,null,null,null,null,null,null,null,null,null,null,null,null,null,null,null,null,null,null,"QRL","RHU","PORTSMOUTH HOSPITALS UNIVERSITY NATIONAL HEALTH SERVICE TRUST",null,null,null,"RPA","SHEFFIELD TEACHING HOSPITALS NHS FOUNDATION TRUST"]
[null,null,null,null,null,null,null,null,null,null,null,null,null,null,null,null,null,null,null,null,"QRL","RHM","UNIVERSITY HOSPITAL SOUTHAMPTON NHS FOUNDATION TRUST",null,null,null,"RQ3","SHERWOOD FOREST HOSPITALS NHS FOUNDATION TRUST"]
[null,null,null,null,null,null,null,null,null,null,null,null,null,null,null,null,null,null,null,null,"QRV","RQM","CHELSEA AND WESTMINSTER HOSPITAL NHS FOUNDATION TRUST",null,null,null,"RQM","SOMERSET NHS FOUNDATION TRUST"]
[null,null,null,null,null,null,null,null,null,null,null,null,null,null,null,null,null,null,null,null,"QRV","RYJ","IMPERIAL COLLEGE HEALTHCARE NHS TRUST",null,null,null,"RQW","SOUTH TEES HOSPITALS NHS FOUNDATION TRUST"]
[null,null,null,null,null,null,null,null,null,null,null,null,null,null,null,null,null,null,null,null,"QRV","R1K","LONDON NORTH WEST UNIVERSITY HEALTHCARE NHS TRUST",null,null,null,"RQX","SOUTH TYNESIDE AND SUNDERLAND NHS FOUNDATION TRUST"]
[null,null,null,null,null,null,null,null,null,null,null,null,null,null,null,null,null,null,null,null,"QRV","RAS","THE HILLINGDON HOSPITALS NHS FOUNDATION TRUST",null,null,null,"RR7","SOUTH WARWICKSHIRE NHS FOUNDATION TRUST"]
[null,null,null,null,null,null,null,null,null,null,null,null,null,null,null,null,null,null,null,null,"QSL","RH5","SOMERSET NHS FOUNDATION TRUST",null,null,null,"RR8","SOUTHPORT AND ORMSKIRK HOSPITAL NHS TRUST"]
[null,null,null,null,null,null,null,null,null,null,null,null,null,null,null,null,null,null,null,null,"QSL","RA4","YEOVIL DISTRICT HOSPITAL NHS FOUNDATION TRUST",null,null,null,"RRF","ST GEORGE'S UNIVERSITY HOSPITALS NHS FOUNDATION TRUST"]
[null,null,null,null,null,null,null,null,null,null,null,null,null,null,null,null,null,null,null,null,"QT1","RX1","NOTTINGHAM UNIVERSITY HOSPITALS NHS TRUST",null,null,null,"RRK","ST HELENS AND KNOWSLEY TEACHING HOSPITALS NHS TRUST"]
[null,null,null,null,null,null,null,null,null,null,null,null,null,null,null,null,null,null,null,null,"QT1","RK5","SHERWOOD FOREST HOSPITALS NHS FOUNDATION TRUST",null,null,null,"RRV","STOCKPORT NHS FOUNDATION TRUST"]
[null,null,null,null,null,null,null,null,null,null,null,null,null,null,null,null,null,null,null,null,"QT6","REF","ROYAL CORNWALL HOSPITALS NHS TRUST",null,null,null,"RTD","SURREY AND SUSSEX HEALTHCARE NHS TRUST"]
[null,null,null,null,null,null,null,null,null,null,null,null,null,null,null,null,null,null,null,null,"QU9","RXQ","BUCKINGHAMSHIRE HEALTHCARE NHS TRUST",null,null,null,"RTE","TAMESIDE AND GLOSSOP INTEGRATED CARE NHS FOUNDATION TRUST"]
[null,null,null,null,null,null,null,null,null,null,null,null,null,null,null,null,null,null,null,null,"QU9","RTH","OXFORD UNIVERSITY HOSPITALS NHS FOUNDATION TRUST",null,null,null,"RTF","THE DUDLEY GROUP NHS FOUNDATION TRUST"]
[null,null,null,null,null,null,null,null,null,null,null,null,null,null,null,null,null,null,null,null,"QU9","RHW","ROYAL BERKSHIRE NHS FOUNDATION TRUST",null,null,null,"RTG","THE HILLINGDON HOSPITALS NHS FOUNDATION TRUST"]
[null,null,null,null,null,null,null,null,null,null,null,null,null,null,null,null,null,null,null,null,"QUA","RNA","THE DUDLEY GROUP NHS FOUNDATION TRUST",null,null,null,"RTH","THE NEWCASTLE UPON TYNE HOSPITALS NHS FOUNDATION TRUST"]
[null,null,null,null,null,null,null,null,null,null,null,null,null,null,null,null,null,null,null,null,"QUA","RL4","THE ROYAL WOLVERHAMPTON NHS TRUST",null,null,null,"RTK","THE PRINCESS ALEXANDRA HOSPITAL NHS TRUST"]
[null,null,null,null,null,null,null,null,null,null,null,null,null,null,null,null,null,null,null,null,"QUA","RBK","WALSALL HEALTHCARE NHS TRUST",null,null,null,"RTP","THE QUEEN ELIZABETH HOSPITAL, KING'S LYNN, NHS FOUNDATION TRUST"]
[null,null,null,null,null,null,null,null,null,null,null,null,null,null,null,null,null,null,null,null,"QUE","RGT","CAMBRIDGE UNIVERSITY HOSPITALS NHS FOUNDATION TRUST",null,null,null,"RTR","THE ROTHERHAM NHS FOUNDATION TRUST"]
[null,null,null,null,null,null,null,null,null,null,null,null,null,null,null,null,null,null,null,null,"QUE","RGN","NORTH WEST ANGLIA NHS FOUNDATION TRUST",null,null,null,"RTX","THE ROYAL WOLVERHAMPTON NHS TRUST"]
[null,null,null,null,null,null,null,null,null,null,null,null,null,null,null,null,null,null,null,null,"QUY","RVJ","NORTH BRISTOL NHS TRUST",null,null,null,"RVJ","THE SHREWSBURY AND TELFORD HOSPITAL NHS TRUST"]
[null,null,null,null,null,null,null,null,null,null,null,null,null,null,null,null,null,null,null,null,"QUY","RA7","UNIVERSITY HOSPITALS BRISTOL AND WESTON NHS FOUNDATION TRUST",null,null,null,"RVR","TORBAY AND SOUTH DEVON NHS FOUNDATION TRUST"]
[null,null,null,null,null,null,null,null,null,null,null,null,null,null,null,null,null,null,null,null,"QVV","RBD","DORSET COUNTY HOSPITAL NHS FOUNDATION TRUST",null,null,null,"RVV","UNITED LINCOLNSHIRE HOSPITALS NHS TRUST"]
[null,null,null,null,null,null,null,null,null,null,null,null,null,null,null,null,null,null,null,null,"QVV","R0D","UNIVERSITY HOSPITALS DORSET NHS FOUNDATION TRUST",null,null,null,"RVW","UNIVERSITY COLLEGE LONDON HOSPITALS NHS FOUNDATION TRUST"]
[null,null,null,null,null,null,null,null,null,null,null,null,null,null,null,null,null,null,null,null,"QWE","RJ6","CROYDON HEALTH SERVICES NHS TRUST",null,null,null,"RVY","UNIVERSITY HOSPITAL SOUTHAMPTON NHS FOUNDATION TRUST"]
[null,null,null,null,null,null,null,null,null,null,null,null,null,null,null,null,null,null,null,null,"QWE","RVR","EPSOM AND ST HELIER UNIVERSITY HOSPITALS NHS TRUST",null,null,null,"RWA","UNIVERSITY HOSPITALS BIRMINGHAM NHS FOUNDATION TRUST"]
[null,null,null,null,null,null,null,null,null,null,null,null,null,null,null,null,null,null,null,null,"QWE","RAX","KINGSTON HOSPITAL NHS FOUNDATION TRUST",null,null,null,"RWD","UNIVERSITY HOSPITALS BRISTOL AND WESTON NHS FOUNDATION TRUST"]
[null,null,null,null,null,null,null,null,null,null,null,null,null,null,null,null,null,null,null,null,"QWE","RJ7","ST GEORGE'S UNIVERSITY HOSPITALS NHS FOUNDATION TRUST",null,null,null,"RWE","UNIVERSITY HOSPITALS COVENTRY AND WARWICKSHIRE NHS TRUST"]
[null,null,null,null,null,null,null,null,null,null,null,null,null,null,null,null,null,null,null,null,"QWO","RCF","AIREDALE NHS FOUNDATION TRUST",null,null,null,"RWF","UNIVERSITY HOSPITALS DORSET NHS FOUNDATION TRUST"]
[null,null,null,null,null,null,null,null,null,null,null,null,null,null,null,null,null,null,null,null,"QWO","RAE","BRADFORD TEACHING HOSPITALS NHS FOUNDATION TRUST",null,null,null,"RWG","UNIVERSITY HOSPITALS OF DERBY AND BURTON NHS FOUNDATION TRUST"]
[null,null,null,null,null,null,null,null,null,null,null,null,null,null,null,null,null,null,null,null,"QWO","RWY","CALDERDALE AND HUDDERSFIELD NHS FOUNDATION TRUST",null,null,null,"RWH","UNIVERSITY HOSPITALS OF LEICESTER NHS TRUST"]
[null,null,null,null,null,null,null,null,null,null,null,null,null,null,null,null,null,null,null,null,"QWO","RR8","LEEDS TEACHING HOSPITALS NHS TRUST",null,null,null,"RWJ","UNIVERSITY HOSPITALS OF MORECAMBE BAY NHS FOUNDATION TRUST"]
[null,null,null,null,null,null,null,null,null,null,null,null,null,null,null,null,null,null,null,null,"QWO","RXF","MID YORKSHIRE HOSPITALS NHS TRUST",null,null,null,"RWP","UNIVERSITY HOSPITALS OF NORTH MIDLANDS NHS TRUST"]
[null,null,null,null,null,null,null,null,null,null,null,null,null,null,null,null,null,null,null,null,"QWU","RLT","GEORGE ELIOT HOSPITAL NHS TRUST",null,null,null,"RWW","UNIVERSITY HOSPITALS PLYMOUTH NHS TRUST"]
[null,null,null,null,null,null,null,null,null,null,null,null,null,null,null,null,null,null,null,null,"QWU","RJC","SOUTH WARWICKSHIRE NHS FOUNDATION TRUST",null,null,null,"RWY","UNIVERSITY HOSPITALS SUSSEX NHS FOUNDATION TRUST"]
[null,null,null,null,null,null,null,null,null,null,null,null,null,null,null,null,null,null,null,null,"QWU","RKB","UNIVERSITY HOSPITALS COVENTRY AND WARWICKSHIRE NHS TRUST",null,null,null,"RX1","WALSALL HEALTHCARE NHS TRUST"]
[null,null,null,null,null,null,null,null,null,null,null,null,null,null,null,null,null,null,null,null,"QXU","RTK","ASHFORD AND ST PETER'S HOSPITALS NHS FOUNDATION TRUST",null,null,null,"RXC","WARRINGTON AND HALTON TEACHING HOSPITALS NHS FOUNDATION TRUST"]
[null,null,null,null,null,null,null,null,null,null,null,null,null,null,null,null,null,null,null,null,"QXU","RA2","ROYAL SURREY COUNTY HOSPITAL NHS FOUNDATION TRUST",null,null,null,"RXF","WEST HERTFORDSHIRE TEACHING HOSPITALS NHS TRUST"]
[null,null,null,null,null,null,null,null,null,null,null,null,null,null,null,null,null,null,null,null,"QXU","RTP","SURREY AND SUSSEX HEALTHCARE NHS TRUST",null,null,null,"RXL","WEST SUFFOLK NHS FOUNDATION TRUST"]
[null,null,null,null,null,null,null,null,null,null,null,null,null,null,null,null,null,null,null,null,"QYG","RJN","EAST CHESHIRE NHS TRUST",null,null,null,"RXN","WHITTINGTON HEALTH NHS TRUST"]
[null,null,null,null,null,null,null,null,null,null,null,null,null,null,null,null,null,null,null,null,"QYG","REP","LIVERPOOL WOMEN'S NHS FOUNDATION TRUST",null,null,null,"RXP","WIRRAL UNIVERSITY TEACHING HOSPITAL NHS FOUNDATION TRUST"]
[null,null,null,null,null,null,null,null,null,null,null,null,null,null,null,null,null,null,null,null,"QYG","RBT","MID CHESHIRE HOSPITALS NHS FOUNDATION TRUST",null,null,null,"RXQ","WORCESTERSHIRE ACUTE HOSPITALS NHS TRUST"]
[null,null,null,null,null,null,null,null,null,null,null,null,null,null,null,null,null,null,null,null,"QYG","RVY","SOUTHPORT AND ORMSKIRK HOSPITAL NHS TRUST",null,null,null,"RXR","WRIGHTINGTON, WIGAN AND LEIGH NHS FOUNDATION TRUST"]
[null,null,null,null,null,null,null,null,null,null,null,null,null,null,null,null,null,null,null,null,"QYG","RBN","ST HELENS AND KNOWSLEY TEACHING HOSPITALS NHS TRUST",null,null,null,"RXW","WYE VALLEY NHS TRUST"]
[null,null,null,null,null,null,null,null,null,null,null,null,null,null,null,null,null,null,null,null,"QYG","RWW","WARRINGTON AND HALTON TEACHING HOSPITALS NHS FOUNDATION TRUST",null,null,null,"RYJ","YEOVIL DISTRICT HOSPITAL NHS FOUNDATION TRUST"]
[null,null,null,null,null,null,null,null,null,null,null,null,null,null,null,null,null,null,null,null,"QYG","RBL","WIRRAL UNIVERSITY TEACHING HOSPITAL NHS FOUNDATION TRUST",null,null,null,"RYR","YORK AND SCARBOROUGH TEACHING HOSPITALS NHS FOUNDATION TRUST"]